Workbook

Sheet Explications
B2: Je suis le gestionnaire d'un concours photo, composé de 7 défis. Les défis s'étalent de Novembre à Mai pour une durée d'un mois.
B4: Chaque auteur ne peut participar qu'avec une seule photo dans un même défi. Les photos sont jugées par 3 juges. Après chaque jugement je récupère un fichier de notation.
B6: Les fichiers de notations sont insérées dans ce classeur manuellement dans des onglets nommés de Défi-1 à Défi-7.
B9: Chaque auteur est identifié par le un numéro, de 12 chiffres, qui se trouve dans la colonne "fichier". Il a la forme suivante 131353000101. il se décomose de la manière suivante : - Les deux premiers chiffres 13 corresponds au N° de l'UR. - Les quatre suivantes 1353 correspondent au N° du club. - les quatres suivante 0001 correspondent au N° d'adhérent. - Les deux derniers 01 correspondent au N° d'ordre.
B16: Deux classement sont effectués après chaque défi. - Un classement auteur qui s'obtient par totalisation des notes obtenues par un auteur dans chacun des défis auquel il a participé. Ce classement se fait sur la totalité du N° de fichier.La participation à tous les défis n'est pas obligatoire. - Un classement club obtenu par addition des trois meilleures photos d'un même club dans un défi. Ce classement doit se faire sur les quatre chiffres vert. On ne classe que les club ayant au moins trois auteurs. Avec 1 ou 2 auteur le club n'est pas classé.
B24: Ce que je souhaiterais faire, c'est qu'après chaque défi et après avoir inséré le fichier de notation, dans l'onglet correspondant à un défi, soit effectué automatiquement le classement auteur et le classement club.
B28: J'arrive à le faire manuellement, mais je suis incapable d'écrire les macros permettant d'effectuer automatiquement ces deux classements. Je suis à votre disposition pour toutes autres précisions. Merci d'avance pour votre aide.

Sheet Classement auteurs
B2: Fichier | C2: Défi-1 | D2: Défi-2 | E2: Défi-3 | F2: Défi-4 | G2: Défi-5 | H2: Défi-6 | I2: Défi-7 | J2: Total
B3: 131683007901 | C3: 54 | D3: 39 | E3: 38 | F3: 51 | G3: 58 | H3: 51 | I3: 42 | J3: =SUM(C3:I3) -> 333
B4: 131110000901 | C4: 51 | D4: 45 | E4: 56 | F4: 43 | G4: 41 | H4: 43 | I4: 36 | J4: =SUM(C4:I4) -> 315 | M4: Ce classement sera toujours maintenu dans l'ordre décroissant..
B5: 131824001901 | C5: 52 | D5: 40 | E5: 45 | F5: 48 | G5: 44 | H5: 40 | I5: 45 | J5: =SUM(C5:I5) -> 314
B6: 130987024201 | C6: 46 | D6: 43 | E6: 48 | F6: 45 | G6: 39 | H6: 45 | I6: 43 | J6: =SUM(C6:I6) -> 309 | M6: Etant le premier, le Défi-1 sert de base de départ pour les 6 autres. Pour cela on utilise les 4 premières colonnes et la colonne total.
B7: 132193000301 | C7: 48 | D7: 37 | E7: 40 | F7: 45 | G7: 38 | H7: 38 | I7: 55 | J7: =SUM(C7:I7) -> 301
B8: 130527009401 | C8: 50 | D8: 53 | E8: 46 | F8: 50 | G8: 51 | I8: 49 | J8: =SUM(C8:I8) -> 299
B9: 130987015701 | C9: 48 | D9: 39 | E9: 34 | F9: 41 | G9: 46 | H9: 34 | I9: 52 | J9: =SUM(C9:I9) -> 294 | M9: Suite à une remarque de Gbinforme j'ai supprimer les colonne inutiles. En incluanant la formule : =SIERREUR(RECHERCHEV($B4;'Défi-5'!$C$2:$J$146;8;FAUX);"") j'ai réussit à récuperer , pour un auteur donné, les notes obtenues dans les autres défis. Par contre il manque maintenant les auteurs présents sur les autres défis et absents du 1er. Le but étant d'avoir dans ce classement tous les auteurs des 7 défis. C'est un début ...
B10: 131499006801 | C10: 35 | D10: 39 | E10: 48 | F10: 52 | G10: 42 | H10: 42 | I10: 36 | J10: =SUM(C10:I10) -> 294
B11: 131683006301 | C11: 57 | D11: 36 | E11: 34 | F11: 47 | G11: 45 | H11: 34 | I11: 36 | J11: =SUM(C11:I11) -> 289
B12: 131353000101 | C12: 45 | D12: 36 | E12: 46 | F12: 47 | G12: 57 | I12: 56 | J12: =SUM(C12:I12) -> 287
B13: 131879000801 | C13: 50 | E13: 58 | F13: 40 | G13: 36 | H13: 58 | I13: 44 | J13: =SUM(C13:I13) -> 286
B14: 130987024101 | C14: 40 | D14: 39 | E14: 36 | F14: 46 | G14: 44 | H14: 36 | I14: 39 | J14: =SUM(C14:I14) -> 280
B15: 131376018301 | C15: 31 | D15: 34 | E15: 57 | F15: 41 | G15: 44 | H15: 31 | I15: 42 | J15: =SUM(C15:I15) -> 280
B16: 130987019701 | C16: 51 | D16: 40 | E16: 40 | F16: 39 | G16: 37 | H16: 37 | I16: 33 | J16: =SUM(C16:I16) -> 277
B17: 131619004501 | C17: 51 | D17: 48 | E17: 48 | F17: 46 | G17: 37 | I17: 47 | J17: =SUM(C17:I17) -> 277
B18: 131823004901 | C18: 44 | D18: 25 | E18: 43 | F18: 39 | G18: 41 | H18: 41 | I18: 43 | J18: =SUM(C18:I18) -> 276
B19: 130925007701 | C19: 46 | D19: 50 | E19: 48 | F19: 44 | G19: 37 | H19: 50 | J19: =SUM(C19:I19) -> 275
B20: 131683005101 | C20: 36 | D20: 33 | E20: 41 | F20: 44 | G20: 49 | H20: 33 | I20: 38 | J20: =SUM(C20:I20) -> 274
B21: 131683008001 | C21: 48 | D21: 47 | E21: 47 | F21: 39 | G21: 52 | H21: 39 | J21: =SUM(C21:I21) -> 272
B22: 132060001701 | C22: 37 | D22: 45 | E22: 33 | F22: 37 | G22: 37 | H22: 45 | I22: 35 | J22: =SUM(C22:I22) -> 269
B23: 131353000701 | C23: 48 | D23: 42 | E23: 39 | F23: 57 | G23: 41 | I23: 41 | J23: =SUM(C23:I23) -> 268
B24: 131376014701 | C24: 43 | D24: 23 | E24: 39 | F24: 41 | G24: 44 | H24: 43 | I24: 33 | J24: =SUM(C24:I24) -> 266 | M24: =SIERREUR(RECHERCHEV($B4;'Défi-5'!$C$2:$J$146;8;FAUX);"")
B25: 131956004501 | C25: 38 | D25: 38 | E25: 35 | F25: 37 | G25: 39 | H25: 37 | I25: 42 | J25: =SUM(C25:I25) -> 266
B26: 131499005201 | C26: 44 | D26: 31 | E26: 49 | F26: 37 | G26: 39 | H26: 31 | I26: 34 | J26: =SUM(C26:I26) -> 265
B27: 131862002201 | C27: 41 | D27: 35 | E27: 44 | F27: 27 | G27: 43 | H27: 35 | I27: 37 | J27: =SUM(C27:I27) -> 262
B28: 130878014101 | C28: 36 | D28: 37 | E28: 44 | F28: 18 | G28: 56 | H28: 37 | I28: 33 | J28: =SUM(C28:I28) -> 261
B29: 131956004601 | D29: 47 | E29: 50 | F29: 38 | G29: 27 | H29: 47 | I29: 52 | J29: =SUM(C29:I29) -> 261
B30: 130000020401 | C30: 31 | D30: 37 | E30: 35 | F30: 35 | G30: 43 | H30: 35 | I30: 41 | J30: =SUM(C30:I30) -> 257
B31: 130987013801 | C31: 38 | E31: 45 | F31: 42 | G31: 42 | H31: 38 | I31: 51 | J31: =SUM(C31:I31) -> 256
B32: 130987019601 | C32: 39 | D32: 37 | E32: 36 | F32: 44 | G32: 34 | H32: 34 | I32: 29 | J32: =SUM(C32:I32) -> 253
B33: 131110001001 | C33: 41 | D33: 41 | E33: 40 | F33: 47 | G33: 35 | H33: 47 | J33: =SUM(C33:I33) -> 251
B34: 131499008701 | C34: 44 | D34: 29 | E34: 39 | F34: 33 | G34: 34 | H34: 33 | I34: 34 | J34: =SUM(C34:I34) -> 246
B35: 131845001401 | C35: 41 | D35: 34 | E35: 48 | F35: 39 | G35: 43 | I35: 37 | J35: =SUM(C35:I35) -> 242
B36: 130000019901 | C36: 32 | D36: 41 | E36: 44 | F36: 24 | G36: 37 | H36: 24 | I36: 37 | J36: =SUM(C36:I36) -> 239
B37: 130527002501 | C37: 41 | D37: 37 | E37: 38 | F37: 30 | G37: 32 | H37: 32 | I37: 29 | J37: =SUM(C37:I37) -> 239
B38: 131956002601 | D38: 44 | E38: 44 | F38: 34 | G38: 30 | H38: 44 | I38: 43 | J38: =SUM(C38:I38) -> 239
B39: 131353004301 | C39: 18 | D39: 28 | E39: 35 | F39: 47 | G39: 24 | H39: 47 | I39: 38 | J39: =SUM(C39:I39) -> 237
B40: 131879000501 | C40: 38 | D40: 39 | E40: 40 | F40: 41 | G40: 39 | H40: 38 | J40: =SUM(C40:I40) -> 235
B41: 131353000201 | C41: 33 | D41: 37 | E41: 25 | F41: 36 | G41: 37 | H41: 33 | I41: 34 | J41: =SUM(C41:I41) -> 235
B42: 131845000101 | C42: 42 | E42: 41 | F42: 18 | G42: 41 | H42: 42 | I42: 50 | J42: =SUM(C42:I42) -> 234
B43: 132086002301 | C43: 36 | D43: 31 | E43: 35 | F43: 35 | G43: 32 | H43: 32 | I43: 33 | J43: =SUM(C43:I43) -> 234
B44: 132084001701 | C44: 45 | D44: 36 | E44: 40 | G44: 41 | H44: 41 | I44: 31 | J44: =SUM(C44:I44) -> 234
B45: 132084004001 | D45: 40 | E45: 32 | F45: 40 | G45: 42 | H45: 42 | I45: 36 | J45: =SUM(C45:I45) -> 232
B46: 131879000601 | C46: 47 | D46: 37 | E46: 34 | F46: 31 | H46: 47 | I46: 35 | J46: =SUM(C46:I46) -> 231
B47: 131879001301 | C47: 42 | D47: 30 | E47: 46 | G47: 42 | H47: 42 | I47: 29 | J47: =SUM(C47:I47) -> 231
B48: 130925009801 | C48: 44 | D48: 36 | E48: 41 | F48: 34 | G48: 40 | H48: 36 | J48: =SUM(C48:I48) -> 231
B49: 131845004001 | C49: 40 | D49: 33 | E49: 42 | F49: 39 | G49: 41 | H49: 33 | J49: =SUM(C49:I49) -> 228
B50: 130527012401 | C50: 41 | D50: 36 | E50: 18 | F50: 47 | H50: 47 | I50: 38 | J50: =SUM(C50:I50) -> 227
B51: 132060000701 | C51: 38 | D51: 29 | E51: 31 | F51: 25 | G51: 36 | H51: 38 | I51: 28 | J51: =SUM(C51:I51) -> 225
B52: 130878013001 | C52: 41 | E52: 39 | F52: 40 | G52: 26 | H52: 39 | I52: 39 | J52: =SUM(C52:I52) -> 224
B53: 131956002401 | C53: 28 | D53: 36 | E53: 40 | F53: 35 | G53: 43 | I53: 42 | J53: =SUM(C53:I53) -> 224
B54: 131494000201 | C54: 39 | D54: 34 | E54: 42 | F54: 35 | G54: 37 | H54: 35 | J54: =SUM(C54:I54) -> 222
B55: 131353006101 | D55: 41 | E55: 36 | F55: 38 | G55: 36 | H55: 36 | I55: 35 | J55: =SUM(C55:I55) -> 222
B56: 130878007201 | C56: 36 | E56: 37 | F56: 32 | G56: 35 | H56: 36 | I56: 44 | J56: =SUM(C56:I56) -> 220
B57: 132060001801 | C57: 38 | D57: 38 | E57: 40 | F57: 22 | G57: 47 | I57: 35 | J57: =SUM(C57:I57) -> 220
B58: 131879000101 | C58: 41 | D58: 41 | E58: 38 | G58: 28 | H58: 28 | I58: 40 | J58: =SUM(C58:I58) -> 216
B59: 130987024001 | C59: 46 | D59: 44 | E59: 44 | H59: 44 | I59: 37 | J59: =SUM(C59:I59) -> 215
B60: 131499006901 | C60: 42 | D60: 45 | E60: 43 | F60: 39 | G60: 46 | J60: =SUM(C60:I60) -> 215
B61: 131353003001 | C61: 45 | D61: 30 | E61: 37 | G61: 35 | H61: 30 | I61: 36 | J61: =SUM(C61:I61) -> 213
B62: 131499010001 | C62: 42 | D62: 42 | E62: 43 | F62: 42 | G62: 42 | J62: =SUM(C62:I62) -> 211
B63: 130925007601 | D63: 44 | E63: 43 | F63: 39 | G63: 41 | H63: 44 | J63: =SUM(C63:I63) -> 211
B64: 131992000301 | C64: 40 | D64: 33 | E64: 32 | G64: 31 | H64: 40 | I64: 33 | J64: =SUM(C64:I64) -> 209
B65: 130987023901 | C65: 40 | D65: 30 | E65: 40 | F65: 35 | G65: 30 | I65: 34 | J65: =SUM(C65:I65) -> 209
B66: 131499009801 | C66: 42 | E66: 35 | F66: 54 | G66: 42 | H66: 35 | J66: =SUM(C66:I66) -> 208
B67: 131823008301 | D67: 40 | E67: 48 | G67: 42 | H67: 42 | I67: 36 | J67: =SUM(C67:I67) -> 208
B68: 131683007601 | D68: 42 | E68: 31 | F68: 42 | G68: 32 | H68: 31 | I68: 29 | J68: =SUM(C68:I68) -> 207
B69: 130925010201 | C69: 46 | D69: 30 | E69: 31 | F69: 33 | H69: 31 | I69: 35 | J69: =SUM(C69:I69) -> 206
B70: 130527017001 | C70: 55 | D70: 40 | E70: 31 | F70: 29 | G70: 51 | J70: =SUM(C70:I70) -> 206
B71: 131879002001 | D71: 47 | E71: 42 | F71: 41 | G71: 38 | H71: 38 | J71: =SUM(C71:I71) -> 206
B72: 131110001101 | C72: 36 | D72: 24 | E72: 38 | F72: 36 | G72: 45 | H72: 24 | J72: =SUM(C72:I72) -> 203
B73: 131499010501 | C73: 35 | D73: 41 | E73: 47 | F73: 41 | G73: 36 | J73: =SUM(C73:I73) -> 200
B74: 131376012601 | C74: 31 | D74: 29 | E74: 40 | G74: 34 | H74: 31 | I74: 33 | J74: =SUM(C74:I74) -> 198
B75: 131499003901 | C75: 42 | E75: 40 | F75: 45 | G75: 39 | I75: 32 | J75: =SUM(C75:I75) -> 198
B76: 131683006601 | C76: 40 | D76: 26 | E76: 42 | G76: 49 | I76: 41 | J76: =SUM(C76:I76) -> 198
B77: 130987007401 | C77: 31 | D77: 32 | E77: 28 | F77: 38 | G77: 37 | H77: 31 | J77: =SUM(C77:I77) -> 197
B78: 132060001201 | C78: 46 | E78: 39 | F78: 40 | G78: 39 | I78: 33 | J78: =SUM(C78:I78) -> 197
B79: 131499008201 | C79: 45 | D79: 41 | F79: 41 | G79: 49 | I79: 20 | J79: =SUM(C79:I79) -> 196
B80: 131499010601 | C80: 46 | D80: 40 | E80: 37 | F80: 32 | G80: 39 | J80: =SUM(C80:I80) -> 194
B81: 131956005701 | C81: 36 | D81: 31 | E81: 34 | F81: 28 | G81: 38 | I81: 27 | J81: =SUM(C81:I81) -> 194
B82: 131992000401 | D82: 39 | E82: 32 | F82: 20 | G82: 45 | H82: 32 | I82: 24 | J82: =SUM(C82:I82) -> 192
B83: 131227008601 | E83: 53 | F83: 44 | G83: 42 | H83: 53 | J83: =SUM(C83:I83) -> 192
B84: 132086001401 | C84: 33 | D84: 41 | E84: 37 | F84: 46 | G84: 34 | J84: =SUM(C84:I84) -> 191
B85: 130878013401 | D85: 30 | E85: 36 | F85: 35 | G85: 30 | H85: 30 | I85: 28 | J85: =SUM(C85:I85) -> 189
B86: 131499003601 | C86: 34 | D86: 33 | E86: 35 | G86: 50 | I86: 36 | J86: =SUM(C86:I86) -> 188
B87: 130987028401 | C87: 32 | D87: 38 | E87: 27 | F87: 27 | G87: 36 | H87: 27 | J87: =SUM(C87:I87) -> 187
B88: 130527015501 | C88: 46 | E88: 45 | F88: 31 | G88: 32 | I88: 32 | J88: =SUM(C88:I88) -> 186
B89: 131956001401 | D89: 32 | E89: 38 | F89: 18 | G89: 35 | H89: 32 | I89: 31 | J89: =SUM(C89:I89) -> 186
B90: 132193000401 | C90: 41 | D90: 37 | G90: 33 | H90: 37 | I90: 37 | J90: =SUM(C90:I90) -> 185
B91: 130878014301 | C91: 38 | D91: 23 | E91: 52 | F91: 18 | G91: 29 | H91: 23 | J91: =SUM(C91:I91) -> 183
B92: 131376017701 | C92: 51 | E92: 48 | F92: 18 | H92: 18 | I92: 47 | J92: =SUM(C92:I92) -> 182
B93: 130925008401 | C93: 51 | D93: 39 | E93: 40 | G93: 51 | J93: =SUM(C93:I93) -> 181
B94: 132084002301 | D94: 37 | E94: 54 | F94: 43 | H94: 43 | J94: =SUM(C94:I94) -> 177
B95: 132060000401 | C95: 18 | E95: 43 | F95: 36 | G95: 40 | I95: 39 | J95: =SUM(C95:I95) -> 176
B96: 130987001601 | C96: 35 | D96: 36 | E96: 35 | F96: 32 | G96: 37 | J96: =SUM(C96:I96) -> 175
B97: 131353006201 | D97: 31 | E97: 39 | F97: 35 | G97: 37 | I97: 31 | J97: =SUM(C97:I97) -> 173
B98: 130925009901 | C98: 30 | D98: 38 | E98: 34 | F98: 32 | G98: 37 | J98: =SUM(C98:I98) -> 171
B99: 131956000201 | D99: 47 | E99: 44 | F99: 41 | G99: 39 | J99: =SUM(C99:I99) -> 171
B100: 131683008101 | E100: 37 | G100: 43 | H100: 43 | I100: 48 | J100: =SUM(C100:I100) -> 171
B101: 130527013301 | C101: 47 | D101: 39 | E101: 40 | F101: 44 | J101: =SUM(C101:I101) -> 170
B102: 131956002901 | C102: 43 | E102: 40 | F102: 28 | G102: 28 | H102: 28 | J102: =SUM(C102:I102) -> 167
B103: 130462001101 | E103: 38 | F103: 45 | G103: 43 | H103: 38 | J103: =SUM(C103:I103) -> 164
B104: 132103002301 | C104: 46 | D104: 43 | E104: 43 | I104: 31 | J104: =SUM(C104:I104) -> 163
B105: 132193001201 | D105: 34 | F105: 37 | G105: 37 | H105: 37 | I105: 18 | J105: =SUM(C105:I105) -> 163
B106: 131499010401 | C106: 37 | E106: 43 | F106: 41 | G106: 41 | J106: =SUM(C106:I106) -> 162
B107: 132084003501 | D107: 43 | F107: 40 | G107: 38 | H107: 40 | J107: =SUM(C107:I107) -> 161
B108: 132060000901 | C108: 35 | D108: 28 | F108: 38 | G108: 30 | I108: 29 | J108: =SUM(C108:I108) -> 160
B109: 131619004601 | C109: 35 | E109: 39 | G109: 43 | I109: 43 | J109: =SUM(C109:I109) -> 160
B110: 130878015201 | C110: 43 | F110: 18 | G110: 42 | H110: 18 | I110: 39 | J110: =SUM(C110:I110) -> 160
B111: 131845004101 | C111: 29 | D111: 34 | E111: 34 | F111: 26 | G111: 36 | J111: =SUM(C111:I111) -> 159
B112: 131376011801 | C112: 48 | F112: 18 | G112: 46 | H112: 46 | J112: =SUM(C112:I112) -> 158
B113: 131845002101 | C113: 38 | D113: 34 | E113: 42 | G113: 44 | J113: =SUM(C113:I113) -> 158
B114: 131824003101 | C114: 42 | D114: 33 | E114: 41 | H114: 41 | J114: =SUM(C114:I114) -> 157
B115: 130987002301 | D115: 44 | E115: 40 | F115: 39 | G115: 34 | J115: =SUM(C115:I115) -> 157
B116: 130987014001 | C116: 48 | D116: 37 | E116: 23 | H116: 48 | J116: =SUM(C116:I116) -> 156
B117: 132084003601 | D117: 33 | F117: 55 | G117: 35 | H117: 33 | J117: =SUM(C117:I117) -> 156
B118: 131353007301 | D118: 40 | E118: 38 | G118: 38 | H118: 40 | J118: =SUM(C118:I118) -> 156
B119: 132060000101 | C119: 29 | E119: 33 | G119: 34 | H119: 29 | I119: 29 | J119: =SUM(C119:I119) -> 154
B120: 131956003401 | C120: 37 | D120: 24 | E120: 34 | G120: 33 | H120: 24 | J120: =SUM(C120:I120) -> 152
B121: 131823006401 | D121: 38 | E121: 39 | F121: 37 | G121: 37 | J121: =SUM(C121:I121) -> 151
B122: 131823007601 | C122: 33 | E122: 40 | G122: 30 | I122: 43 | J122: =SUM(C122:I122) -> 146
B123: 132147000101 | F123: 38 | G123: 36 | H123: 36 | I123: 35 | J123: =SUM(C123:I123) -> 145
B124: 131683000701 | C124: 32 | D124: 30 | E124: 48 | H124: 32 | J124: =SUM(C124:I124) -> 142
B125: 132193000501 | D125: 25 | F125: 21 | G125: 41 | H125: 25 | I125: 30 | J125: =SUM(C125:I125) -> 142
B126: 132084000301 | D126: 39 | E126: 40 | F126: 24 | H126: 39 | J126: =SUM(C126:I126) -> 142
B127: 131845000801 | C127: 36 | G127: 34 | H127: 36 | I127: 34 | J127: =SUM(C127:I127) -> 140
B128: 132086002501 | C128: 38 | D128: 32 | E128: 38 | H128: 32 | J128: =SUM(C128:I128) -> 140
B129: 130925008601 | C129: 33 | D129: 36 | E129: 34 | H129: 36 | J129: =SUM(C129:I129) -> 139
B130: 131845002501 | C130: 30 | D130: 41 | E130: 32 | I130: 36 | J130: =SUM(C130:I130) -> 139
B131: 131499009301 | C131: 29 | E131: 35 | H131: 35 | I131: 39 | J131: =SUM(C131:I131) -> 138
B132: 131823005701 | C132: 36 | D132: 28 | E132: 37 | I132: 37 | J132: =SUM(C132:I132) -> 138
B133: 131353007101 | C133: 37 | D133: 30 | E133: 33 | G133: 37 | J133: =SUM(C133:I133) -> 137
B134: 132086002601 | C134: 32 | D134: 26 | F134: 39 | G134: 40 | J134: =SUM(C134:I134) -> 137
B135: 132089000101 | C135: 36 | D135: 29 | G135: 36 | I135: 34 | J135: =SUM(C135:I135) -> 135
B136: 131862000801 | C136: 51 | D136: 24 | E136: 36 | H136: 24 | J136: =SUM(C136:I136) -> 135
B137: 130878013601 | D137: 34 | G137: 34 | H137: 34 | I137: 33 | J137: =SUM(C137:I137) -> 135
B138: 132060002201 | C138: 41 | D138: 29 | E138: 36 | I138: 27 | J138: =SUM(C138:I138) -> 133
B139: 132103000101 | D139: 23 | E139: 55 | H139: 55 | J139: =SUM(C139:I139) -> 133
B140: 131683006901 | E140: 51 | G140: 41 | H140: 41 | J140: =SUM(C140:I140) -> 133
B141: 132089000201 | C141: 24 | D141: 31 | E141: 43 | H141: 31 | J141: =SUM(C141:I141) -> 129
B142: 132060000801 | C142: 30 | D142: 32 | E142: 33 | F142: 33 | J142: =SUM(C142:I142) -> 128
B143: 132023000101 | D143: 18 | E143: 38 | G143: 36 | H143: 36 | J143: =SUM(C143:I143) -> 128
B144: 132203000701 | E144: 40 | F144: 45 | G144: 40 | J144: =SUM(C144:I144) -> 125
B145: 130987012601 | D145: 41 | E145: 42 | H145: 41 | J145: =SUM(C145:I145) -> 124
B146: 131845003401 | C146: 28 | D146: 27 | G146: 40 | H146: 28 | J146: =SUM(C146:I146) -> 123
B147: 131619005001 | D147: 39 | G147: 45 | H147: 39 | J147: =SUM(C147:I147) -> 123
B148: 130993012301 | F148: 40 | G148: 41 | H148: 41 | J148: =SUM(C148:I148) -> 122
B149: 131499008601 | E149: 40 | G149: 41 | H149: 40 | J149: =SUM(C149:I149) -> 121
B150: 131353007401 | D150: 38 | E150: 40 | G150: 41 | J150: =SUM(C150:I150) -> 119
B151: 131376017601 | C151: 32 | D151: 24 | F151: 35 | H151: 24 | J151: =SUM(C151:I151) -> 115
B152: 130527009201 | D152: 35 | F152: 40 | H152: 40 | J152: =SUM(C152:I152) -> 115
B153: 131862001001 | D153: 39 | E153: 36 | H153: 39 | J153: =SUM(C153:I153) -> 114
B154: 131956005901 | C154: 43 | F154: 33 | G154: 37 | J154: =SUM(C154:I154) -> 113
B155: 130925008701 | D155: 34 | E155: 39 | F155: 37 | J155: =SUM(C155:I155) -> 110
B156: 131494002301 | D156: 35 | E156: 32 | G156: 42 | J156: =SUM(C156:I156) -> 109
B157: 130987025001 | D157: 39 | F157: 30 | G157: 40 | J157: =SUM(C157:I157) -> 109
B158: 130987026701 | E158: 32 | F158: 37 | G158: 40 | J158: =SUM(C158:I158) -> 109
B159: 131956006501 | E159: 34 | F159: 39 | G159: 36 | J159: =SUM(C159:I159) -> 109
B160: 131956006201 | D160: 25 | E160: 39 | I160: 44 | J160: =SUM(C160:I160) -> 108
B161: 130527011601 | C161: 39 | E161: 37 | I161: 31 | J161: =SUM(C161:I161) -> 107
B162: 131494003201 | E162: 39 | F162: 29 | H162: 39 | J162: =SUM(C162:I162) -> 107
B163: 130987016601 | F163: 38 | G163: 30 | H163: 38 | J163: =SUM(C163:I163) -> 106
B164: 131879001101 | F164: 29 | G164: 38 | H164: 38 | J164: =SUM(C164:I164) -> 105
B165: 130987028201 | C165: 42 | F165: 31 | H165: 31 | J165: =SUM(C165:I165) -> 104
B166: 130993015401 | C166: 42 | G166: 31 | H166: 31 | J166: =SUM(C166:I166) -> 104
B167: 131956005101 | C167: 34 | D167: 34 | H167: 34 | J167: =SUM(C167:I167) -> 102
B168: 131499010101 | C168: 37 | F168: 31 | G168: 34 | J168: =SUM(C168:I168) -> 102
B169: 131862005801 | D169: 34 | E169: 33 | H169: 34 | J169: =SUM(C169:I169) -> 101
B170: 131862001101 | C170: 29 | D170: 30 | E170: 41 | J170: =SUM(C170:I170) -> 100
B171: 132060002401 | C171: 35 | D171: 31 | E171: 32 | J171: =SUM(C171:I171) -> 98
B172: 130878015801 | G172: 49 | H172: 49 | J172: =SUM(C172:I172) -> 98
B173: 131823008701 | D173: 41 | E173: 28 | H173: 28 | J173: =SUM(C173:I173) -> 97
B174: 131823004201 | E174: 34 | F174: 29 | G174: 34 | J174: =SUM(C174:I174) -> 97
B175: 130993013301 | F175: 47 | H175: 47 | J175: =SUM(C175:I175) -> 94
B176: 131683002601 | D176: 37 | F176: 56 | J176: =SUM(C176:I176) -> 93
B177: 131499011001 | F177: 42 | G177: 51 | J177: =SUM(C177:I177) -> 93
B178: 132089000301 | C178: 31 | E178: 31 | F178: 30 | J178: =SUM(C178:I178) -> 92
B179: 131683006501 | D179: 28 | E179: 34 | F179: 30 | J179: =SUM(C179:I179) -> 92
B180: 132023002201 | F180: 49 | G180: 43 | J180: =SUM(C180:I180) -> 92
B181: 131956006001 | C181: 50 | I181: 39 | J181: =SUM(C181:I181) -> 89
B182: 132193000601 | E182: 44 | H182: 44 | J182: =SUM(C182:I182) -> 88
B183: 130925010501 | E183: 46 | F183: 41 | J183: =SUM(C183:I183) -> 87
B184: 130993015101 | C184: 18 | F184: 43 | H184: 18 | J184: =SUM(C184:I184) -> 79
B185: 131494002101 | D185: 29 | F185: 25 | H185: 25 | J185: =SUM(C185:I185) -> 79
B186: 131683005001 | E186: 39 | H186: 39 | J186: =SUM(C186:I186) -> 78
B187: 131376018001 | C187: 38 | D187: 38 | J187: =SUM(C187:I187) -> 76
B188: 131845000201 | F188: 18 | G188: 40 | H188: 18 | J188: =SUM(C188:I188) -> 76
B189: 130993013801 | G189: 38 | H189: 38 | J189: =SUM(C189:I189) -> 76
B190: 132084000201 | G190: 38 | H190: 38 | J190: =SUM(C190:I190) -> 76
B191: 131956000401 | C191: 33 | I191: 41 | J191: =SUM(C191:I191) -> 74
B192: 131956005401 | E192: 34 | I192: 40 | J192: =SUM(C192:I192) -> 74
B193: 131376015801 | C193: 36 | F193: 37 | J193: =SUM(C193:I193) -> 73
B194: 131845001101 | C194: 41 | G194: 32 | J194: =SUM(C194:I194) -> 73
B195: 131879000901 | E195: 44 | G195: 29 | J195: =SUM(C195:I195) -> 73
B196: 131845000301 | C196: 36 | H196: 36 | J196: =SUM(C196:I196) -> 72
B197: 130987028801 | C197: 36 | H197: 36 | J197: =SUM(C197:I197) -> 72
B198: 130878013301 | F198: 36 | H198: 36 | J198: =SUM(C198:I198) -> 72
B199: 131499010801 | D199: 30 | F199: 41 | J199: =SUM(C199:I199) -> 71
B200: 131227008301 | F200: 37 | G200: 34 | J200: =SUM(C200:I200) -> 71
B201: 130993016501 | D201: 35 | H201: 35 | J201: =SUM(C201:I201) -> 70
... 80 more rows

Sheet Classement clubs
B2: N° de club | C2: Nom | D2: Défi-1 | E2: Défi-2 | F2: Défi-3 | G2: Défi-4 | H2: Défi-5 | I2: Défi-6 | J2: Défi-7 | K2: Total
A3: 1 | B3: 1683 | C3: Marius Saint-Mitre-les-Remparts | D3: 159 | E3: 128 | F3: 146 | G3: 160 | H3: 159 | I3: 156 | J3: 147 | K3: =SUM(D3:J3) -> 1055 | N3: Ce classement sera toujours maintenu dans l'ordre décroissant..
A4: 2 | B4: 987 | C4: Cl. Phot’Azur Six-Fours-les-Plages | D4: 147 | E4: 131 | F4: 137 | G4: 135 | H4: 132 | I4: 147 | J4: 146 | K4: =SUM(D4:J4) -> 975
A5: 3 | B5: 1353 | C5: Photo Club de La Crau | D5: 138 | E5: 123 | F5: 125 | G5: 151 | H5: 139 | I5: 135 | J5: 135 | K5: =SUM(D5:J5) -> 946 | N5: Ce classement a été fait manuellement à partir de l'onglet Défi-1 et de la façon suivante : - un premier tri, dans l'ordre croissant, sur le N° de fichier. - un second tri pour classer les photos d'un même club dans l'ordre décroissant. - Ensuite j'ai fait le total des 3 premières photos. - j'ai supprimé les lignes inutiles,pour ne garder qu'une ligne par club. - j'ai fait un tris décroissant sur le total. - j'ai extrait le N° de club, - à partir de ce N° j'ai récupéré le nom du club dans l'onglet "Liste des clubs".
A6: 4 | B6: 1499 | C6: Images Expressions – Cagnes sur Mer | D6: 135 | E6: 128 | F6: 144 | G6: 151 | H6: 151 | I6: 126 | J6: 111 | K6: =SUM(D6:J6) -> 946
A7: 5 | B7: 527 | C7: Photo Club de Martigues | D7: 152 | E7: 132 | F7: 131 | G7: 141 | H7: 134 | I7: 119 | J7: 119 | K7: =SUM(D7:J7) -> 928
A8: 6 | B8: 1956 | C8: Photo Contact Puyricard | D8: 136 | E8: 138 | F8: 138 | G8: 118 | H8: 124 | I8: 129 | J8: 139 | K8: =SUM(D8:J8) -> 922
A9: 7 | B9: 1879 | C9: Association Sportive de Berre | D9: 139 | E9: 127 | F9: 148 | G9: 122 | H9: 119 | I9: 147 | J9: 119 | K9: =SUM(D9:J9) -> 921
A10: 8 | B10: 1376 | C10: PHOCAL | D10: 142 | E10: 101 | F10: 145 | G10: 119 | H10: 134 | I10: 146 | J10: 122 | K10: =SUM(D10:J10) -> 909
A11: 9 | B11: 878 | C11: PC Antoine Santoru-Port de Bouc | D11: 122 | E11: 101 | F11: 135 | G11: 111 | H11: 147 | I11: 134 | J11: 122 | K11: =SUM(D11:J11) -> 872
A12: 10 | B12: 1823 | C12: Photo Club Mouansois | D12: 113 | E12: 119 | F12: 131 | G12: 105 | H12: 120 | I12: 133 | J12: 123 | K12: =SUM(D12:J12) -> 844
A13: 11 | B13: 1845 | C13: Photo Club Carqueirannais | D13: 124 | E13: 109 | F13: 132 | G13: 104 | H13: 128 | I13: 114 | J13: 132 | K13: =SUM(D13:J13) -> 843
A14: 12 | B14: 2060 | C14: Image Club Gardéen | D14: 130 | E14: 115 | F14: 122 | G14: 115 | H14: 126 | I14: 117 | J14: 115 | K14: =SUM(D14:J14) -> 840
A15: 13 | B15: 925 | C15: A.S.L.P.S. Photo Fos-sur-Mer | D15: 143 | E15: 133 | F15: 137 | G15: 124 | H15: 132 | I15: 130 | K15: =SUM(D15:J15) -> 799 | N15: Cette opération est à faire après chaque défi.
A16: 14 | B16: 2084 | C16: Azur Photo Passion | E16: 122 | F16: 134 | G16: 138 | H16: 121 | I16: 154 | J16: 111 | K16: =SUM(D16:J16) -> 780
A17: 15 | B17: 1110 | C17: Ciné Photo Club de Peymeinade | D17: 128 | E17: 110 | F17: 134 | G17: 126 | H17: 121 | I17: 126 | K17: =SUM(D17:J17) -> 745
A18: 16 | B18: 2086 | C18: Objectif Image Nice | D18: 107 | E18: 104 | F18: 110 | G18: 120 | H18: 106 | I18: 100 | K18: =SUM(D18:J18) -> 647
A19: 17 | B19: 2193 | C19: Antibes Photo Club | E19: 108 | G19: 103 | H19: 118 | I19: 137 | J19: 129 | K19: =SUM(D19:J19) -> 595
A20: 18 | B20: 1862 | C20: Déclic et des Claps – Roquefort les Pins | D20: 121 | E20: 108 | F20: 121 | I20: 118 | J20: 116 | K20: =SUM(D20:J20) -> 584
A21: 19 | B21: 1494 | C21: Photo-Club du Brianconnais | E21: 98 | F21: 113 | G21: 89 | H21: 103 | I21: 99 | K21: =SUM(D21:J21) -> 502
A22: 20 | B22: 993 | C22: P.C. La Garde – Marseille | G22: 132 | H22: 110 | I22: 131 | K22: =SUM(D22:J22) -> 373
A23: 21 | B23: 1619 | C23: Optique Diaporama Marseille | D23: 104 | H23: 131 | J23: 124 | K23: =SUM(D23:J23) -> 359
A24: 22 | B24: 2203 | C24: Club Photo de Saignon | F24: 114 | H24: 103 | K24: =SUM(D24:J24) -> 217
A25: 23 | B25: 2089 | C25: La Farledo Objectif Club | D25: 91 | E25: 99 | K25: =SUM(D25:J25) -> 190
A26: 24 | B26: 2103 | C26: Club Photo St Laurent du Var | F26: 142 | K26: =SUM(D26:J26) -> 142
A27: 25 | B27: 1824 | C27: Photo Club IBM Cote d’Azur | I27: 141 | K27: =SUM(D27:J27) -> 141
A28: 26 | B28: 2023 | C28: Club Art Déclic de l’ Argens | H28: 117 | K28: =SUM(D28:J28) -> 117
A29: 27 | B29: 1992 | C29: Photo Club Velauxien – Clin d’Œil | J29: 97 | K29: =SUM(D29:J29) -> 97
A30: 28 | B30: 435 | C30: Beausoleil Ciné Photo Club | K30: =SUM(D30:J30) -> 0
A31: 29 | B31: 462 | C31: Image 2000 | K31: =SUM(D31:J31) -> 0
A32: 30 | B32: 921 | C32: Photo Club M.P.T. Vitrolles | K32: =SUM(D32:J32) -> 0
A33: 31 | B33: 1227 | C33: Photo Ciné Club Courthezonnais | K33: =SUM(D33:J33) -> 0
A34: 32 | B34: 1426 | C34: Diaphragme et Lumière Var – Ollioules | K34: =SUM(D34:J34) -> 0
A35: 33 | B35: 1441 | C35: Club mage Monaco | K35: =SUM(D35:J35) -> 0
A36: 34 | B36: 1450 | C36: Arc Images- Rousset | K36: =SUM(D36:J36) -> 0
A37: 35 | B37: 1601 | C37: Club Pugetois de L’image | K37: =SUM(D37:J37) -> 0
A38: 36 | B38: 1777 | C38: Club Photo et Vidéo Plan de La Tour | K38: =SUM(D38:J38) -> 0
A39: 37 | B39: 1796 | C39: Ciné Caméra Club de Cannes | K39: =SUM(D39:J39) -> 0
A40: 38 | B40: 1867 | C40: PhotoMenton | K40: =SUM(D40:J40) -> 0
A41: 39 | B41: 1899 | C41: Club de l’Image | K41: =SUM(D41:J41) -> 0
A42: 40 | B42: 1969 | C42: Mission Photo – Cannes la Bocca | K42: =SUM(D42:J42) -> 0
A43: 41 | B43: 1985 | C43: Rognonas Image Regard Espace | K43: =SUM(D43:J43) -> 0
A44: 42 | B44: 2003 | C44: Photo Club Moriérois | K44: =SUM(D44:J44) -> 0
A45: 43 | B45: 2028 | C45: Association Regards du Sud | K45: =SUM(D45:J45) -> 0
A46: 44 | B46: 2147 | C46: Club Photo Saint Savournin | K46: =SUM(D46:J46) -> 0
A47: 45 | B47: 2158 | C47: Café Photo Marseille | K47: =SUM(D47:J47) -> 0
A48: 46 | B48: 2180 | C48: Photo Club Carry Côte Bleue | K48: =SUM(D48:J48) -> 0
A49: 47 | B49: 2211 | C49: Club Photo UAICF de Gap | K49: =SUM(D49:J49) -> 0
A50: 48 | B50: 2217 | C50: ADSB – Club Photo Bouc Bel Air | K50: =SUM(D50:J50) -> 0
A51: 49 | B51: 2222 | C51: Association Culturelle Photo Club de Neffes | K51: =SUM(D51:J51) -> 0
A52: 50
A53: 80

Sheet Défi-1
A1: colis | B1: photologic | C1: fichier | D1: titre | E1: note1 | F1: note2 | G1: note3 | H1: note4 | I1: note5 | J1: total | K1: place | L1: passage | M1: statut | N1: medaille | O1: retenue | Q1: 0=absent 1=présent
A2: 13 | B2: 1 | C2: 131845003401 | D2: Avant la régate | E2: 9 | F2: 7 | G2: 12 | H2: 0 | I2: 0 | J2: =SUM(E2:I2) -> 28 | K2: 0 | L2: 31 | M2: 0 | O2: 0 | Q2: =COUNTIF('Classement auteurs'!B:B,C2) -> 1
A3: 13 | B3: 4 | C3: 130987015701 | D3: Rêve de Mérous | E3: 14 | F3: 17 | G3: 17 | H3: 0 | I3: 0 | J3: =SUM(E3:I3) -> 48 | K3: 0 | L3: 109 | M3: 0 | O3: 0 | Q3: =COUNTIF('Classement auteurs'!B:B,C3) -> 1
A4: 13 | B4: 5 | C4: 131845000801 | D4: Le soleil se lève | E4: 13 | F4: 12 | G4: 11 | H4: 0 | I4: 0 | J4: 36 | K4: 0 | L4: 136 | M4: 0 | O4: 0 | Q4: =COUNTIF('Classement auteurs'!B:B,C4) -> 1 | S4: ATTENTION :
A5: 13 | B5: 6 | C5: 131845000101 | D5: Skate Park | E5: 12 | F5: 12 | G5: 18 | H5: 0 | I5: 0 | J5: 42 | K5: 0 | L5: 132 | M5: 0 | O5: 0 | Q5: =COUNTIF('Classement auteurs'!B:B,C5) -> 1 | S5: Le total des notes est fait sur chaque onglet après insertion.
A6: 13 | B6: 7 | C6: 130987028201 | D6: Water selfie | E6: 13 | F6: 14 | G6: 15 | H6: 0 | I6: 0 | J6: 42 | K6: 0 | L6: 117 | M6: 0 | O6: 0 | Q6: =COUNTIF('Classement auteurs'!B:B,C6) -> 1
A7: 13 | B7: 9 | C7: 130987007401 | D7: Adrien | E7: 10 | F7: 11 | G7: 10 | H7: 0 | I7: 0 | J7: 31 | K7: 0 | L7: 79 | M7: 0 | O7: 0 | Q7: =COUNTIF('Classement auteurs'!B:B,C7) -> 1 | S7: L'architecture du fichier notation est toujours la même.
A8: 13 | B8: 10 | C8: 131845000301 | D8: Variation d'ocres | E8: 9 | F8: 13 | G8: 14 | H8: 0 | I8: 0 | J8: 36 | K8: 0 | L8: 53 | M8: 0 | O8: 0 | Q8: =COUNTIF('Classement auteurs'!B:B,C8) -> 1
A9: 13 | B9: 12 | C9: 131683008001 | D9: Transparences | E9: 19 | F9: 13 | G9: 16 | H9: 0 | I9: 0 | J9: 48 | K9: 0 | L9: 59 | M9: 0 | O9: 0 | Q9: =COUNTIF('Classement auteurs'!B:B,C9) -> 1 | S9: La colonne Q permet de verifier laprésence de l'auteur dans le classement auteur.
A10: 13 | B10: 14 | C10: 131499008701 | D10: Geisha | E10: 15 | F10: 14 | G10: 15 | H10: 0 | I10: 0 | J10: 44 | K10: 0 | L10: 43 | M10: 0 | O10: 0 | Q10: =COUNTIF('Classement auteurs'!B:B,C10) -> 1
A11: 13 | B11: 15 | C11: 130878013001 | D11: Perle de rose | E11: 11 | F11: 15 | G11: 15 | H11: 0 | I11: 0 | J11: 41 | K11: 0 | L11: 83 | M11: 0 | O11: 0 | Q11: =COUNTIF('Classement auteurs'!B:B,C11) -> 1
A12: 13 | B12: 18 | C12: 130987024101 | D12: L'Andine | E12: 12 | F12: 12 | G12: 16 | H12: 0 | I12: 0 | J12: 40 | K12: 0 | L12: 114 | M12: 0 | O12: 0 | Q12: =COUNTIF('Classement auteurs'!B:B,C12) -> 1
A13: 13 | B13: 19 | C13: 131992000301 | D13: Le tatoueur de Madurai. | E13: 12 | F13: 12 | G13: 16 | H13: 0 | I13: 0 | J13: 40 | K13: 0 | L13: 25 | M13: 0 | O13: 0 | Q13: =COUNTIF('Classement auteurs'!B:B,C13) -> 1
A14: 13 | B14: 20 | C14: 130993015101 | D14: Criquet vert | E14: 6 | F14: 6 | G14: 6 | H14: 0 | I14: 0 | J14: 18 | K14: 0 | L14: 125 | M14: 0 | O14: 0 | Q14: =COUNTIF('Classement auteurs'!B:B,C14) -> 1
A15: 13 | B15: 21 | C15: 131879000601 | D15: Hong Kong la nuit | E15: 15 | F15: 17 | G15: 15 | H15: 0 | I15: 0 | J15: 47 | K15: 0 | L15: 4 | M15: 0 | O15: 0 | Q15: =COUNTIF('Classement auteurs'!B:B,C15) -> 1
A16: 13 | B16: 22 | C16: 131879000101 | D16: Tangueros | E16: 12 | F16: 16 | G16: 13 | H16: 0 | I16: 0 | J16: 41 | K16: 0 | L16: 67 | M16: 0 | O16: 0 | Q16: =COUNTIF('Classement auteurs'!B:B,C16) -> 1
A17: 13 | B17: 24 | C17: 130987024001 | D17: Dorures d'autonne | E17: 16 | F17: 15 | G17: 15 | H17: 0 | I17: 0 | J17: 46 | K17: 0 | L17: 42 | M17: 0 | O17: 0 | Q17: =COUNTIF('Classement auteurs'!B:B,C17) -> 1
A18: 13 | B18: 25 | C18: 130987013801 | D18: Maréchal-ferrant | E18: 12 | F18: 12 | G18: 14 | H18: 0 | I18: 0 | J18: 38 | K18: 0 | L18: 58 | M18: 0 | O18: 0 | Q18: =COUNTIF('Classement auteurs'!B:B,C18) -> 1
A19: 13 | B19: 27 | C19: 131879000501 | D19: Barques | E19: 12 | F19: 12 | G19: 14 | H19: 0 | I19: 0 | J19: 38 | K19: 0 | L19: 127 | M19: 0 | O19: 0 | Q19: =COUNTIF('Classement auteurs'!B:B,C19) -> 1
A20: 13 | B20: 28 | C20: 131376012601 | D20: Utopie | E20: 11 | F20: 12 | G20: 8 | H20: 0 | I20: 0 | J20: 31 | K20: 0 | L20: 60 | M20: 0 | O20: 0 | Q20: =COUNTIF('Classement auteurs'!B:B,C20) -> 1
A21: 13 | B21: 29 | C21: 130987024201 | D21: Planet Caraïbes | E21: 14 | F21: 13 | G21: 19 | H21: 0 | I21: 0 | J21: 46 | K21: 0 | L21: 7 | M21: 0 | O21: 0 | Q21: =COUNTIF('Classement auteurs'!B:B,C21) -> 1
A22: 13 | B22: 30 | C22: 131824003101 | D22: Ice attack | E22: 12 | F22: 13 | G22: 17 | H22: 0 | I22: 0 | J22: 42 | K22: 0 | L22: 89 | M22: 0 | O22: 0 | Q22: =COUNTIF('Classement auteurs'!B:B,C22) -> 1
A23: 13 | B23: 31 | C23: 130987019601 | D23: Fraîcheur | E23: 12 | F23: 14 | G23: 13 | H23: 0 | I23: 0 | J23: 39 | K23: 0 | L23: 1 | M23: 0 | O23: 0 | Q23: =COUNTIF('Classement auteurs'!B:B,C23) -> 1
A24: 13 | B24: 32 | C24: 130987019701 | D24: Sommet | E24: 15 | F24: 16 | G24: 20 | H24: 0 | I24: 0 | J24: 51 | K24: 0 | L24: 54 | M24: 0 | O24: 0 | Q24: =COUNTIF('Classement auteurs'!B:B,C24) -> 1
A25: 13 | B25: 33 | C25: 130878007201 | D25: Abri multicolore | E25: 13 | F25: 8 | G25: 15 | H25: 0 | I25: 0 | J25: 36 | K25: 0 | L25: 57 | M25: 0 | O25: 0 | Q25: =COUNTIF('Classement auteurs'!B:B,C25) -> 1
A26: 13 | B26: 34 | C26: 132193000301 | D26: Ambiance New York | E26: 12 | F26: 18 | G26: 18 | H26: 0 | I26: 0 | J26: 48 | K26: 0 | L26: 69 | M26: 0 | O26: 0 | Q26: =COUNTIF('Classement auteurs'!B:B,C26) -> 1
A27: 13 | B27: 35 | C27: 131683006301 | D27: Avant l'orage | E27: 18 | F27: 19 | G27: 20 | H27: 0 | I27: 0 | J27: 57 | K27: 0 | L27: 93 | M27: 0 | O27: 0 | Q27: =COUNTIF('Classement auteurs'!B:B,C27) -> 1
A28: 13 | B28: 36 | C28: 132060000101 | D28: Signature artistique | E28: 6 | F28: 16 | G28: 7 | H28: 0 | I28: 0 | J28: 29 | K28: 0 | L28: 26 | M28: 0 | O28: 0 | Q28: =COUNTIF('Classement auteurs'!B:B,C28) -> 1
A29: 13 | B29: 37 | C29: 130987014001 | D29: Le coeur dans les nuages | E29: 14 | F29: 15 | G29: 19 | H29: 0 | I29: 0 | J29: 48 | K29: 0 | L29: 61 | M29: 0 | O29: 0 | Q29: =COUNTIF('Classement auteurs'!B:B,C29) -> 1
A30: 13 | B30: 38 | C30: 130878014301 | D30: La souffreuse | E30: 12 | F30: 12 | G30: 14 | H30: 0 | I30: 0 | J30: 38 | K30: 0 | L30: 131 | M30: 0 | O30: 0 | Q30: =COUNTIF('Classement auteurs'!B:B,C30) -> 1
A31: 13 | B31: 39 | C31: 132086002301 | D31: Parade en rose | E31: 11 | F31: 13 | G31: 12 | H31: 0 | I31: 0 | J31: 36 | K31: 0 | L31: 29 | M31: 0 | O31: 0 | Q31: =COUNTIF('Classement auteurs'!B:B,C31) -> 1
A32: 13 | B32: 40 | C32: 132060000701 | D32: Paris La Défense | E32: 13 | F32: 11 | G32: 14 | H32: 0 | I32: 0 | J32: 38 | K32: 0 | L32: 73 | M32: 0 | O32: 0 | Q32: =COUNTIF('Classement auteurs'!B:B,C32) -> 1
A33: 13 | B33: 41 | C33: 131376018301 | D33: Rêve d'Orient | E33: 12 | F33: 9 | G33: 10 | H33: 0 | I33: 0 | J33: 31 | K33: 0 | L33: 111 | M33: 0 | O33: 0 | Q33: =COUNTIF('Classement auteurs'!B:B,C33) -> 1
A34: 13 | B34: 42 | C34: 130987028801 | D34: Feu Art | E34: 11 | F34: 10 | G34: 15 | H34: 0 | I34: 0 | J34: 36 | K34: 0 | L34: 113 | M34: 0 | O34: 0 | Q34: =COUNTIF('Classement auteurs'!B:B,C34) -> 1
A35: 13 | B35: 43 | C35: 131683000701 | D35: SAYONARA | E35: 10 | F35: 11 | G35: 11 | H35: 0 | I35: 0 | J35: 32 | K35: 0 | L35: 2 | M35: 0 | O35: 0 | Q35: =COUNTIF('Classement auteurs'!B:B,C35) -> 1
A36: 13 | B36: 44 | C36: 131376014701 | D36: Enfant sous la pluie | E36: 14 | F36: 13 | G36: 16 | H36: 0 | I36: 0 | J36: 43 | K36: 0 | L36: 75 | M36: 0 | O36: 0 | Q36: =COUNTIF('Classement auteurs'!B:B,C36) -> 1
A37: 13 | B37: 45 | C37: 131824001901 | D37: Juste une éclaircie | E37: 20 | F37: 14 | G37: 18 | H37: 0 | I37: 0 | J37: 52 | K37: 0 | L37: 126 | M37: 0 | O37: 0 | Q37: =COUNTIF('Classement auteurs'!B:B,C37) -> 1
A38: 13 | B38: 46 | C38: 131956005101 | D38: Litter Litter | E38: 9 | F38: 8 | G38: 17 | H38: 0 | I38: 0 | J38: 34 | K38: 0 | L38: 15 | M38: 0 | O38: 0 | Q38: =COUNTIF('Classement auteurs'!B:B,C38) -> 1
A39: 13 | B39: 47 | C39: 131353000201 | D39: Fleur | E39: 9 | F39: 11 | G39: 13 | H39: 0 | I39: 0 | J39: 33 | K39: 0 | L39: 41 | M39: 0 | O39: 0 | Q39: =COUNTIF('Classement auteurs'!B:B,C39) -> 1
A40: 13 | B40: 48 | C40: 130000019901 | D40: La vie en rose | E40: 10 | F40: 10 | G40: 12 | H40: 0 | I40: 0 | J40: 32 | K40: 0 | L40: 99 | M40: 6 | O40: 0 | Q40: =COUNTIF('Classement auteurs'!B:B,C40) -> 1
A41: 13 | B41: 50 | C41: 132084001701 | D41: Champs d'ail | E41: 11 | F41: 18 | G41: 16 | H41: 0 | I41: 0 | J41: 45 | K41: 0 | L41: 129 | M41: 0 | O41: 0 | Q41: =COUNTIF('Classement auteurs'!B:B,C41) -> 1
A42: 13 | B42: 51 | C42: 132060002201 | D42: Collégiennes à Londres | E42: 14 | F42: 11 | G42: 16 | H42: 0 | I42: 0 | J42: 41 | K42: 0 | L42: 88 | M42: 0 | O42: 0 | Q42: =COUNTIF('Classement auteurs'!B:B,C42) -> 1
A43: 13 | B43: 53 | C43: 130878014101 | D43: Tag | E43: 12 | F43: 14 | G43: 10 | H43: 0 | I43: 0 | J43: 36 | K43: 0 | L43: 92 | M43: 0 | O43: 0 | Q43: =COUNTIF('Classement auteurs'!B:B,C43) -> 1
A44: 13 | B44: 55 | C44: 131499010101 | D44: Tout l'océan est à eux | E44: 8 | F44: 10 | G44: 19 | H44: 0 | I44: 0 | J44: 37 | K44: 0 | L44: 108 | M44: 0 | O44: 0 | Q44: =COUNTIF('Classement auteurs'!B:B,C44) -> 1
A45: 13 | B45: 56 | C45: 131499005201 | D45: Rèverie | E45: 13 | F45: 16 | G45: 15 | H45: 0 | I45: 0 | J45: 44 | K45: 0 | L45: 39 | M45: 0 | O45: 0 | Q45: =COUNTIF('Classement auteurs'!B:B,C45) -> 1
A46: 13 | B46: 57 | C46: 130925010201 | D46: Mae | E46: 12 | F46: 15 | G46: 19 | H46: 0 | I46: 0 | J46: 46 | K46: 0 | L46: 91 | M46: 0 | O46: 0 | Q46: =COUNTIF('Classement auteurs'!B:B,C46) -> 1
A47: 13 | B47: 58 | C47: 130987028401 | D47: Marée verte | E47: 6 | F47: 12 | G47: 14 | H47: 0 | I47: 0 | J47: 32 | K47: 0 | L47: 22 | M47: 0 | O47: 0 | Q47: =COUNTIF('Classement auteurs'!B:B,C47) -> 1
A48: 13 | B48: 59 | C48: 132193000401 | D48: Multicolore | E48: 12 | F48: 14 | G48: 15 | H48: 0 | I48: 0 | J48: 41 | K48: 0 | L48: 82 | M48: 0 | O48: 0 | Q48: =COUNTIF('Classement auteurs'!B:B,C48) -> 1
A49: 13 | B49: 60 | C49: 130527011601 | D49: Repos | E49: 11 | F49: 14 | G49: 14 | H49: 0 | I49: 0 | J49: 39 | K49: 0 | L49: 55 | M49: 0 | O49: 0 | Q49: =COUNTIF('Classement auteurs'!B:B,C49) -> 1
A50: 13 | B50: 61 | C50: 131845004101 | D50: Clair et foncé | E50: 7 | F50: 13 | G50: 9 | H50: 0 | I50: 0 | J50: 29 | K50: 0 | L50: 38 | M50: 0 | O50: 0 | Q50: =COUNTIF('Classement auteurs'!B:B,C50) -> 1
A51: 13 | B51: 62 | C51: 130993015401 | D51: J'étais la plus belle | E51: 13 | F51: 15 | G51: 14 | H51: 0 | I51: 0 | J51: 42 | K51: 0 | L51: 33 | M51: 0 | O51: 0 | Q51: =COUNTIF('Classement auteurs'!B:B,C51) -> 1
A52: 13 | B52: 63 | C52: 131353003001 | D52: Pas facile | E52: 17 | F52: 11 | G52: 17 | H52: 0 | I52: 0 | J52: 45 | K52: 0 | L52: 105 | M52: 0 | O52: 0 | Q52: =COUNTIF('Classement auteurs'!B:B,C52) -> 1
A53: 13 | B53: 64 | C53: 131353007101 | D53: Street art | E53: 11 | F53: 13 | G53: 13 | H53: 0 | I53: 0 | J53: 37 | K53: 0 | L53: 116 | M53: 0 | O53: 0 | Q53: =COUNTIF('Classement auteurs'!B:B,C53) -> 1
A54: 13 | B54: 65 | C54: 132089000101 | D54: Les Cinq Terres | E54: 11 | F54: 13 | G54: 12 | H54: 0 | I54: 0 | J54: 36 | K54: 0 | L54: 94 | M54: 0 | O54: 0 | Q54: =COUNTIF('Classement auteurs'!B:B,C54) -> 1
A55: 13 | B55: 66 | C55: 131376017701 | D55: Dragster | E55: 17 | F55: 16 | G55: 18 | H55: 0 | I55: 0 | J55: 51 | K55: 0 | L55: 20 | M55: 0 | O55: 0 | Q55: =COUNTIF('Classement auteurs'!B:B,C55) -> 1
A56: 13 | B56: 67 | C56: 131879000801 | D56: La fille au chapeau | E56: 17 | F56: 16 | G56: 17 | H56: 0 | I56: 0 | J56: 50 | K56: 0 | L56: 115 | M56: 0 | O56: 0 | Q56: =COUNTIF('Classement auteurs'!B:B,C56) -> 1
A57: 13 | B57: 68 | C57: 131499010401 | D57: En course | E57: 11 | F57: 12 | G57: 14 | H57: 0 | I57: 0 | J57: 37 | K57: 0 | L57: 56 | M57: 0 | O57: 0 | Q57: =COUNTIF('Classement auteurs'!B:B,C57) -> 1
A58: 13 | B58: 69 | C58: 131823004901 | D58: Flamenco à Gorbio | E58: 16 | F58: 14 | G58: 14 | H58: 0 | I58: 0 | J58: 44 | K58: 0 | L58: 64 | M58: 0 | O58: 0 | Q58: =COUNTIF('Classement auteurs'!B:B,C58) -> 1
A59: 13 | B59: 70 | C59: 131956004501 | D59: Paganello | E59: 13 | F59: 14 | G59: 11 | H59: 0 | I59: 0 | J59: 38 | K59: 0 | L59: 3 | M59: 0 | O59: 0 | Q59: =COUNTIF('Classement auteurs'!B:B,C59) -> 1
A60: 13 | B60: 71 | C60: 131956003401 | D60: Feerie | E60: 11 | F60: 15 | G60: 11 | H60: 0 | I60: 0 | J60: 37 | K60: 0 | L60: 68 | M60: 0 | O60: 0 | Q60: =COUNTIF('Classement auteurs'!B:B,C60) -> 1
A61: 13 | B61: 72 | C61: 131683007901 | D61: Regard perçant | E61: 18 | F61: 16 | G61: 20 | H61: 0 | I61: 0 | J61: 54 | K61: 0 | L61: 70 | M61: 0 | O61: 0 | Q61: =COUNTIF('Classement auteurs'!B:B,C61) -> 1
A62: 13 | B62: 73 | C62: 131110000901 | D62: Dune | E62: 16 | F62: 17 | G62: 18 | H62: 0 | I62: 0 | J62: 51 | K62: 0 | L62: 130 | M62: 0 | O62: 0 | Q62: =COUNTIF('Classement auteurs'!B:B,C62) -> 1
A63: 13 | B63: 74 | C63: 132086001401 | D63: TEMPS DE PAUSE | E63: 10 | F63: 12 | G63: 11 | H63: 0 | I63: 0 | J63: 33 | K63: 0 | L63: 121 | M63: 0 | O63: 0 | Q63: =COUNTIF('Classement auteurs'!B:B,C63) -> 1
A64: 13 | B64: 75 | C64: 131499003901 | D64: Ablution | E64: 15 | F64: 14 | G64: 13 | H64: 0 | I64: 0 | J64: 42 | K64: 0 | L64: 107 | M64: 0 | O64: 0 | Q64: =COUNTIF('Classement auteurs'!B:B,C64) -> 1
A65: 13 | B65: 76 | C65: 132060001701 | D65: Luminaires | E65: 11 | F65: 14 | G65: 12 | H65: 0 | I65: 0 | J65: 37 | K65: 0 | L65: 101 | M65: 0 | O65: 0 | Q65: =COUNTIF('Classement auteurs'!B:B,C65) -> 1
A66: 13 | B66: 77 | C66: 132103002301 | D66: Couleurs du Japon | E66: 12 | F66: 16 | G66: 18 | H66: 0 | I66: 0 | J66: 46 | K66: 0 | L66: 17 | M66: 0 | O66: 0 | Q66: =COUNTIF('Classement auteurs'!B:B,C66) -> 1
A67: 13 | B67: 78 | C67: 132089000201 | D67: CD en MACRO | E67: 7 | F67: 8 | G67: 9 | H67: 0 | I67: 0 | J67: =SUM(E67:I67) -> 24 | K67: 0 | L67: 23 | M67: 0 | O67: 0 | Q67: =COUNTIF('Classement auteurs'!B:B,C67) -> 1
A68: 13 | B68: 79 | C68: 131862002201 | D68: Automne | E68: 15 | F68: 13 | G68: 13 | H68: 0 | I68: 0 | J68: 41 | K68: 0 | L68: 135 | M68: 0 | O68: 0 | Q68: =COUNTIF('Classement auteurs'!B:B,C68) -> 1
A69: 13 | B69: 81 | C69: 131956000401 | D69: Gourmandise | E69: 12 | F69: 9 | G69: 12 | H69: 0 | I69: 0 | J69: 33 | K69: 0 | L69: 112 | M69: 0 | O69: 0 | Q69: =COUNTIF('Classement auteurs'!B:B,C69) -> 1
A70: 13 | B70: 82 | C70: 130527012401 | D70: Mistral | E70: 12 | F70: 12 | G70: 17 | H70: 0 | I70: 0 | J70: 41 | K70: 0 | L70: 12 | M70: 0 | O70: 0 | Q70: =COUNTIF('Classement auteurs'!B:B,C70) -> 1
A71: 13 | B71: 83 | C71: 131683005101 | D71: La Crau un autre désert | E71: 9 | F71: 12 | G71: 15 | H71: 0 | I71: 0 | J71: 36 | K71: 0 | L71: 84 | M71: 0 | O71: 0 | Q71: =COUNTIF('Classement auteurs'!B:B,C71) -> 1
A72: 13 | B72: 84 | C72: 131956006001 | D72: Light under the milky way | E72: 16 | F72: 17 | G72: 17 | H72: 0 | I72: 0 | J72: 50 | K72: 0 | L72: 104 | M72: 0 | O72: 0 | Q72: =COUNTIF('Classement auteurs'!B:B,C72) -> 1
A73: 13 | B73: 85 | C73: 132060002001 | D73: Bleu, blanc, rouge | E73: 12 | F73: 15 | G73: 16 | H73: 0 | I73: 0 | J73: 43 | K73: 0 | L73: 137 | M73: 0 | O73: 0 | Q73: =COUNTIF('Classement auteurs'!B:B,C73) -> 1
A74: 13 | B74: 86 | C74: 130000020401 | D74: Je t'ai à l'oeil | E74: 8 | F74: 11 | G74: 12 | H74: 0 | I74: 0 | J74: 31 | K74: 0 | L74: 13 | M74: 6 | O74: 0 | Q74: =COUNTIF('Classement auteurs'!B:B,C74) -> 1
A75: 13 | B75: 88 | C75: 131619004201 | D75: DEMOISELLE | E75: 6 | F75: 6 | G75: 6 | H75: 0 | I75: 0 | J75: 18 | K75: 0 | L75: 86 | M75: 0 | O75: 0 | Q75: =COUNTIF('Classement auteurs'!B:B,C75) -> 1
A76: 13 | B76: 89 | C76: 130527013301 | D76: Rue de Cuba | E76: 13 | F76: 14 | G76: 20 | H76: 0 | I76: 0 | J76: 47 | K76: 0 | L76: 97 | M76: 0 | O76: 0 | Q76: =COUNTIF('Classement auteurs'!B:B,C76) -> 1
A77: 13 | B77: 90 | C77: 130527006401 | D77: Bleu, blanc, noir | E77: 6 | F77: 16 | G77: 14 | H77: 0 | I77: 0 | J77: 36 | K77: 0 | L77: 71 | M77: 0 | O77: 0 | Q77: =COUNTIF('Classement auteurs'!B:B,C77) -> 1
A78: 13 | B78: 91 | C78: 131879001301 | D78: Le chat | E78: 12 | F78: 15 | G78: 15 | H78: 0 | I78: 0 | J78: 42 | K78: 0 | L78: 118 | M78: 0 | O78: 0 | Q78: =COUNTIF('Classement auteurs'!B:B,C78) -> 1
A79: 13 | B79: 92 | C79: 132060002401 | D79: Orchidées incandescents | E79: 7 | F79: 14 | G79: 14 | H79: 0 | I79: 0 | J79: 35 | K79: 0 | L79: 51 | M79: 0 | O79: 0 | Q79: =COUNTIF('Classement auteurs'!B:B,C79) -> 1
A80: 13 | B80: 93 | C80: 130527002501 | D80: Parapluies | E80: 14 | F80: 15 | G80: 12 | H80: 0 | I80: 0 | J80: 41 | K80: 0 | L80: 63 | M80: 0 | O80: 0 | Q80: =COUNTIF('Classement auteurs'!B:B,C80) -> 1
A81: 13 | B81: 94 | C81: 132060000901 | D81: Face au mur | E81: 13 | F81: 9 | G81: 13 | H81: 0 | I81: 0 | J81: 35 | K81: 0 | L81: 30 | M81: 0 | O81: 0 | Q81: =COUNTIF('Classement auteurs'!B:B,C81) -> 1
A82: 13 | B82: 95 | C82: 132060001801 | D82: No limit | E82: 10 | F82: 13 | G82: 15 | H82: 0 | I82: 0 | J82: 38 | K82: 0 | L82: 74 | M82: 0 | O82: 0 | Q82: =COUNTIF('Classement auteurs'!B:B,C82) -> 1
A83: 13 | B83: 96 | C83: 131499010501 | D83: Au musée | E83: 9 | F83: 13 | G83: 13 | H83: 0 | I83: 0 | J83: 35 | K83: 0 | L83: 95 | M83: 0 | O83: 0 | Q83: =COUNTIF('Classement auteurs'!B:B,C83) -> 1
A84: 13 | B84: 97 | C84: 131499010601 | D84: Petits navires ... | E84: 14 | F84: 15 | G84: 17 | H84: 0 | I84: 0 | J84: 46 | K84: 0 | L84: 47 | M84: 0 | O84: 0 | Q84: =COUNTIF('Classement auteurs'!B:B,C84) -> 1
A85: 13 | B85: 98 | C85: 131862001101 | D85: Le guitariste | E85: 10 | F85: 9 | G85: 10 | H85: 0 | I85: 0 | J85: 29 | K85: 0 | L85: 72 | M85: 0 | O85: 0 | Q85: =COUNTIF('Classement auteurs'!B:B,C85) -> 1
A86: 13 | B86: 99 | C86: 130987023901 | D86: Street Painting | E86: 10 | F86: 15 | G86: 15 | H86: 0 | I86: 0 | J86: 40 | K86: 0 | L86: 27 | M86: 0 | O86: 0 | Q86: =COUNTIF('Classement auteurs'!B:B,C86) -> 1
A87: 13 | B87: 100 | C87: 131499010001 | D87: Une jolie voix de Cassel | E87: 11 | F87: 15 | G87: 16 | H87: 0 | I87: 0 | J87: 42 | K87: 0 | L87: 100 | M87: 0 | O87: 0 | Q87: =COUNTIF('Classement auteurs'!B:B,C87) -> 1
A88: 13 | B88: 101 | C88: 130925008401 | D88: Chorégraphie | E88: 16 | F88: 16 | G88: 19 | H88: 0 | I88: 0 | J88: 51 | K88: 0 | L88: 76 | M88: 0 | O88: 0 | Q88: =COUNTIF('Classement auteurs'!B:B,C88) -> 1
A89: 13 | B89: 102 | C89: 131499009801 | D89: Mystère | E89: 10 | F89: 15 | G89: 17 | H89: 0 | I89: 0 | J89: 42 | K89: 0 | L89: 10 | M89: 0 | O89: 0 | Q89: =COUNTIF('Classement auteurs'!B:B,C89) -> 1
A90: 13 | B90: 104 | C90: 130527015501 | D90: Roses | E90: 14 | F90: 19 | G90: 13 | H90: 0 | I90: 0 | J90: 46 | K90: 0 | L90: 32 | M90: 0 | O90: 0 | Q90: =COUNTIF('Classement auteurs'!B:B,C90) -> 1
A91: 13 | B91: 105 | C91: 132060001501 | D91: Profitons vite | E91: 9 | F91: 12 | G91: 14 | H91: 0 | I91: 0 | J91: 35 | K91: 0 | L91: 96 | M91: 0 | O91: 0 | Q91: =COUNTIF('Classement auteurs'!B:B,C91) -> 1
A92: 13 | B92: 106 | C92: 130925008601 | D92: Rouge | E92: 13 | F92: 7 | G92: 13 | H92: 0 | I92: 0 | J92: 33 | K92: 0 | L92: 66 | M92: 0 | O92: 0 | Q92: =COUNTIF('Classement auteurs'!B:B,C92) -> 1
A93: 13 | B93: 107 | C93: 131353004301 | D93: Vert et rouge | E93: 6 | F93: 6 | G93: 6 | H93: 0 | I93: 0 | J93: 18 | K93: 0 | L93: 90 | M93: 0 | O93: 0 | Q93: =COUNTIF('Classement auteurs'!B:B,C93) -> 1
A94: 13 | B94: 108 | C94: 131376011801 | D94: BAMBINS HIMBAS | E94: 14 | F94: 16 | G94: 18 | H94: 0 | I94: 0 | J94: 48 | K94: 0 | L94: 85 | M94: 7 | O94: 0 | Q94: =COUNTIF('Classement auteurs'!B:B,C94) -> 1
A95: 13 | B95: 109 | C95: 131619004601 | D95: Balle au nez | E95: 9 | F95: 12 | G95: 14 | H95: 0 | I95: 0 | J95: 35 | K95: 0 | L95: 44 | M95: 0 | O95: 0 | Q95: =COUNTIF('Classement auteurs'!B:B,C95) -> 1
A96: 13 | B96: 110 | C96: 130000020801 | D96: Un soir sur la Saône | E96: 13 | F96: 13 | G96: 14 | H96: 0 | I96: 0 | J96: 40 | K96: 0 | L96: 34 | M96: 6 | O96: 0 | Q96: =COUNTIF('Classement auteurs'!B:B,C96) -> 1
A97: 13 | B97: 111 | C97: 131110001101 | D97: Lotus au petit matin | E97: 11 | F97: 12 | G97: 13 | H97: 0 | I97: 0 | J97: 36 | K97: 0 | L97: 134 | M97: 0 | O97: 0 | Q97: =COUNTIF('Classement auteurs'!B:B,C97) -> 1
A98: 13 | B98: 113 | C98: 131494000201 | D98: Vélo d'enfer | E98: 13 | F98: 10 | G98: 16 | H98: 0 | I98: 0 | J98: 39 | K98: 0 | L98: 78 | M98: 0 | O98: 0 | Q98: =COUNTIF('Classement auteurs'!B:B,C98) -> 1
A99: 13 | B99: 114 | C99: 131499009301 | D99: Lights | E99: 8 | F99: 14 | G99: 7 | H99: 0 | I99: 0 | J99: 29 | K99: 0 | L99: 80 | M99: 0 | O99: 0 | Q99: =COUNTIF('Classement auteurs'!B:B,C99) -> 1
A100: 13 | B100: 115 | C100: 131823007801 | D100: Eucalyptus | E100: 8 | F100: 10 | G100: 12 | H100: 0 | I100: 0 | J100: 30 | K100: 0 | L100: 11 | M100: 0 | O100: 0 | Q100: =COUNTIF('Classement auteurs'!B:B,C100) -> 1
A101: 13 | B101: 116 | C101: 131845002501 | D101: Avenue de Tayac | E101: 7 | F101: 13 | G101: 10 | H101: 0 | I101: 0 | J101: 30 | K101: 0 | L101: 98 | M101: 0 | O101: 0 | Q101: =COUNTIF('Classement auteurs'!B:B,C101) -> 1
A102: 13 | B102: 117 | C102: 131499006801 | D102: Reflets sur St Honorat | E102: 13 | F102: 8 | G102: 14 | H102: 0 | I102: 0 | J102: 35 | K102: 0 | L102: 45 | M102: 0 | O102: 0 | Q102: =COUNTIF('Classement auteurs'!B:B,C102) -> 1
A103: 13 | B103: 118 | C103: 131845001401 | D103: Seul au monde | E103: 11 | F103: 13 | G103: 17 | H103: 0 | I103: 0 | J103: 41 | K103: 0 | L103: 19 | M103: 0 | O103: 0 | Q103: =COUNTIF('Classement auteurs'!B:B,C103) -> 1
A104: 13 | B104: 119 | C104: 130878015201 | D104: Magie des lumières | E104: 13 | F104: 14 | G104: 16 | H104: 0 | I104: 0 | J104: 43 | K104: 0 | L104: 122 | M104: 0 | O104: 0 | Q104: =COUNTIF('Classement auteurs'!B:B,C104) -> 1
A105: 13 | B105: 120 | C105: 131823005701 | D105: Cannes régates royales | E105: 10 | F105: 11 | G105: 15 | H105: 0 | I105: 0 | J105: 36 | K105: 0 | L105: 124 | M105: 0 | O105: 0 | Q105: =COUNTIF('Classement auteurs'!B:B,C105) -> 1
A106: 13 | B106: 121 | C106: 132060003301 | D106: Floraison | E106: 7 | F106: 11 | G106: 10 | H106: 0 | I106: 0 | J106: 28 | K106: 0 | L106: 128 | M106: 7 | O106: 0 | Q106: =COUNTIF('Classement auteurs'!B:B,C106) -> 1
A107: 13 | B107: 122 | C107: 131845004001 | D107: Le cheval de cirque | E107: 7 | F107: 16 | G107: 17 | H107: 0 | I107: 0 | J107: 40 | K107: 0 | L107: 103 | M107: 0 | O107: 0 | Q107: =COUNTIF('Classement auteurs'!B:B,C107) -> 1
A108: 13 | B108: 123 | C108: 130925007701 | D108: Arbres pétrifiés | E108: 15 | F108: 13 | G108: 18 | H108: 0 | I108: 0 | J108: 46 | K108: 0 | L108: 37 | M108: 0 | O108: 0 | Q108: =COUNTIF('Classement auteurs'!B:B,C108) -> 1
A109: 13 | B109: 124 | C109: 131376017601 | D109: Au fond de mon verre | E109: 11 | F109: 9 | G109: 12 | H109: 0 | I109: 0 | J109: 32 | K109: 0 | L109: 120 | M109: 0 | O109: 0 | Q109: =COUNTIF('Classement auteurs'!B:B,C109) -> 1
A110: 13 | B110: 126 | C110: 131683006601 | D110: La fillette et sa glace | E110: 13 | F110: 11 | G110: 16 | H110: 0 | I110: 0 | J110: 40 | K110: 0 | L110: 21 | M110: 0 | O110: 0 | Q110: =COUNTIF('Classement auteurs'!B:B,C110) -> 1
A111: 13 | B111: 127 | C111: 131862000801 | D111: Bleu de nice | E111: 15 | F111: 17 | G111: 19 | H111: 0 | I111: 0 | J111: 51 | K111: 0 | L111: 8 | M111: 0 | O111: 0 | Q111: =COUNTIF('Classement auteurs'!B:B,C111) -> 1
A112: 13 | B112: 128 | C112: 132089000301 | D112: Festirun | E112: 10 | F112: 10 | G112: 11 | H112: 0 | I112: 0 | J112: 31 | K112: 0 | L112: 40 | M112: 0 | O112: 0 | Q112: =COUNTIF('Classement auteurs'!B:B,C112) -> 1
A113: 13 | B113: 129 | C113: 131499003601 | D113: Casquettes | E113: 9 | F113: 10 | G113: 15 | H113: 0 | I113: 0 | J113: 34 | K113: 0 | L113: 102 | M113: 0 | O113: 0 | Q113: =COUNTIF('Classement auteurs'!B:B,C113) -> 1
A114: 13 | B114: 130 | C114: 130925009801 | D114: Vite ! | E114: 14 | F114: 14 | G114: 16 | H114: 0 | I114: 0 | J114: 44 | K114: 0 | L114: 18 | M114: 0 | O114: 0 | Q114: =COUNTIF('Classement auteurs'!B:B,C114) -> 1
A115: 13 | B115: 131 | C115: 131499008201 | D115: Champ jaune et vert | E115: 12 | F115: 17 | G115: 16 | H115: 0 | I115: 0 | J115: 45 | K115: 0 | L115: 35 | M115: 0 | O115: 0 | Q115: =COUNTIF('Classement auteurs'!B:B,C115) -> 1
A116: 13 | B116: 132 | C116: 131376018001 | D116: DemonstrationTimesSquare | E116: 11 | F116: 13 | G116: 14 | H116: 0 | I116: 0 | J116: 38 | K116: 0 | L116: 9 | M116: 0 | O116: 0 | Q116: =COUNTIF('Classement auteurs'!B:B,C116) -> 1
A117: 13 | B117: 134 | C117: 131110001001 | D117: Transhumance | E117: 13 | F117: 14 | G117: 14 | H117: 0 | I117: 0 | J117: 41 | K117: 0 | L117: 77 | M117: 0 | O117: 0 | Q117: =COUNTIF('Classement auteurs'!B:B,C117) -> 1
A118: 13 | B118: 136 | C118: 131376015801 | D118: Quiétude | E118: 13 | F118: 12 | G118: 11 | H118: 0 | I118: 0 | J118: 36 | K118: 0 | L118: 49 | M118: 0 | O118: 0 | Q118: =COUNTIF('Classement auteurs'!B:B,C118) -> 1
A119: 13 | B119: 137 | C119: 131619004501 | D119: Foncouverte | E119: 19 | F119: 14 | G119: 18 | H119: 0 | I119: 0 | J119: 51 | K119: 0 | L119: 133 | M119: 0 | O119: 0 | Q119: =COUNTIF('Classement auteurs'!B:B,C119) -> 1
A120: 13 | B120: 138 | C120: 131956005901 | D120: Couleurs de Montréal | E120: 10 | F120: 15 | G120: 18 | H120: 0 | I120: 0 | J120: 43 | K120: 0 | L120: 52 | M120: 0 | O120: 0 | Q120: =COUNTIF('Classement auteurs'!B:B,C120) -> 1
A121: 13 | B121: 139 | C121: 132060000401 | D121: Butineuse au travail | E121: 6 | F121: 6 | G121: 6 | H121: 0 | I121: 0 | J121: 18 | K121: 0 | L121: 65 | M121: 0 | O121: 0 | Q121: =COUNTIF('Classement auteurs'!B:B,C121) -> 1
A122: 13 | B122: 140 | C122: 131499006901 | D122: Florence | E122: 10 | F122: 16 | G122: 16 | H122: 0 | I122: 0 | J122: 42 | K122: 0 | L122: 81 | M122: 0 | O122: 0 | Q122: =COUNTIF('Classement auteurs'!B:B,C122) -> 1
A123: 13 | B123: 141 | C123: 132086002601 | D123: Fluidité arborescente | E123: 8 | F123: 15 | G123: 9 | H123: 0 | I123: 0 | J123: 32 | K123: 0 | L123: 48 | M123: 0 | O123: 0 | Q123: =COUNTIF('Classement auteurs'!B:B,C123) -> 1
A124: 13 | B124: 142 | C124: 132060000801 | D124: Entre ciel et terre | E124: 7 | F124: 10 | G124: 13 | H124: 0 | I124: 0 | J124: 30 | K124: 0 | L124: 14 | M124: 0 | O124: 0 | Q124: =COUNTIF('Classement auteurs'!B:B,C124) -> 1
A125: 13 | B125: 143 | C125: 131823007601 | D125: Orange Grassoise | E125: 8 | F125: 11 | G125: 14 | H125: 0 | I125: 0 | J125: 33 | K125: 0 | L125: 46 | M125: 0 | O125: 0 | Q125: =COUNTIF('Classement auteurs'!B:B,C125) -> 1
A126: 13 | B126: 144 | C126: 130527017001 | D126: Les mots envolés. | E126: 20 | F126: 15 | G126: 20 | H126: 0 | I126: 0 | J126: 55 | K126: 0 | L126: 6 | M126: 0 | O126: 0 | Q126: =COUNTIF('Classement auteurs'!B:B,C126) -> 1
A127: 13 | B127: 146 | C127: 132086002501 | D127: Retour du marché | E127: 8 | F127: 13 | G127: 17 | H127: 0 | I127: 0 | J127: 38 | K127: 0 | L127: 123 | M127: 0 | O127: 0 | Q127: =COUNTIF('Classement auteurs'!B:B,C127) -> 1
A128: 13 | B128: 148 | C128: 131845002101 | D128: Abandon | E128: 9 | F128: 13 | G128: 16 | H128: 0 | I128: 0 | J128: 38 | K128: 0 | L128: 87 | M128: 0 | O128: 0 | Q128: =COUNTIF('Classement auteurs'!B:B,C128) -> 1
A129: 13 | B129: 149 | C129: 131845001101 | D129: ...vers la culture | E129: 14 | F129: 13 | G129: 14 | H129: 0 | I129: 0 | J129: 41 | K129: 0 | L129: 28 | M129: 0 | O129: 0 | Q129: =COUNTIF('Classement auteurs'!B:B,C129) -> 1
A130: 13 | B130: 150 | C130: 130527009401 | D130: Chez l'artiste ... | E130: 16 | F130: 18 | G130: 16 | H130: 0 | I130: 0 | J130: 50 | K130: 0 | L130: 50 | M130: 0 | O130: 0 | Q130: =COUNTIF('Classement auteurs'!B:B,C130) -> 1
A131: 13 | B131: 151 | C131: 131956002401 | D131: Chut Silence | E131: 8 | F131: 11 | G131: 9 | H131: 0 | I131: 0 | J131: =SUM(E131:I131) -> 28 | K131: 0 | L131: 16 | M131: 0 | O131: 0 | Q131: =COUNTIF('Classement auteurs'!B:B,C131) -> 1
A132: 13 | B132: 152 | C132: 131956002901 | D132: Rouge salant | E132: 14 | F132: 14 | G132: 15 | H132: 0 | I132: 0 | J132: 43 | K132: 0 | L132: 5 | M132: 0 | O132: 0 | Q132: =COUNTIF('Classement auteurs'!B:B,C132) -> 1
A133: 13 | B133: 153 | C133: 130925009901 | D133: Belles coiffes | E133: 10 | F133: 9 | G133: 11 | H133: 0 | I133: 0 | J133: 30 | K133: 0 | L133: 119 | M133: 0 | O133: 0 | Q133: =COUNTIF('Classement auteurs'!B:B,C133) -> 1
A134: 13 | B134: 154 | C134: 132060001201 | D134: Atomes | E134: 15 | F134: 16 | G134: 15 | H134: 0 | I134: 0 | J134: 46 | K134: 0 | L134: 36 | M134: 0 | O134: 0 | Q134: =COUNTIF('Classement auteurs'!B:B,C134) -> 1
A135: 13 | B135: 155 | C135: 130987001601 | D135: Envol | E135: 11 | F135: 11 | G135: 13 | H135: 0 | I135: 0 | J135: 35 | K135: 0 | L135: 106 | M135: 0 | O135: 0 | Q135: =COUNTIF('Classement auteurs'!B:B,C135) -> 1
A136: 13 | B136: 156 | C136: 131956005701 | D136: Solitudes | E136: 11 | F136: 12 | G136: 13 | H136: 0 | I136: 0 | J136: 36 | K136: 0 | L136: 62 | M136: 0 | O136: 0 | Q136: =COUNTIF('Classement auteurs'!B:B,C136) -> 1
A137: 13 | B137: 158 | C137: 131353000701 | D137: Cellulose du Rhône | E137: 14 | F137: 20 | G137: 14 | H137: 0 | I137: 0 | J137: 48 | K137: 0 | L137: 24 | M137: 0 | O137: 0 | Q137: =COUNTIF('Classement auteurs'!B:B,C137) -> 1
A138: 13 | B138: 159 | C138: 131353000101 | D138: Ambiance automnale | E138: 14 | F138: 14 | G138: 17 | H138: 0 | I138: 0 | J138: 45 | K138: 0 | L138: 110 | M138: 0 | O138: 0 | Q138: =COUNTIF('Classement auteurs'!B:B,C138) -> 1

Sheet Défi-2
A1: colis | B1: photologic | C1: fichier | D1: titre | E1: note1 | F1: note2 | G1: note3 | H1: note4 | I1: note5 | J1: total | K1: place | L1: passage | M1: statut | N1: medaille | O1: retenue | Q1: 0=absent 1=présent
A2: 13 | B2: 1 | C2: 131499010201 | D2: Edsel 1958 Cuba | E2: 12 | F2: 10 | G2: 8 | H2: 0 | I2: 0 | J2: =SUM(E2:I2) -> 30 | K2: 0 | L2: 132 | M2: 0 | O2: 0 | Q2: =COUNTIF('Classement auteurs'!B:B,C2) -> 1
A3: 13 | B3: 2 | C3: 131862001101 | D3: Le V | E3: 11 | F3: 10 | G3: 9 | H3: 0 | I3: 0 | J3: =SUM(E3:I3) -> 30 | K3: 0 | L3: 57 | M3: 0 | O3: 0 | Q3: =COUNTIF('Classement auteurs'!B:B,C3) -> 1
A4: 13 | B4: 4 | C4: 131683000701 | D4: L'ARBRE DE VIE | E4: 12 | F4: 10 | G4: 8 | H4: 0 | I4: 0 | J4: 30 | K4: 0 | L4: 35 | M4: 0 | O4: 0 | Q4: =COUNTIF('Classement auteurs'!B:B,C4) -> 1
A5: 13 | B5: 5 | C5: 132193000301 | D5: Peuple Uros lac Titicaca | E5: 12 | F5: 12 | G5: 13 | H5: 0 | I5: 0 | J5: 37 | K5: 0 | L5: 101 | M5: 7 | O5: 0 | Q5: =COUNTIF('Classement auteurs'!B:B,C5) -> 1
A6: 13 | B6: 6 | C6: 130987024201 | D6: La nuit des Sans | E6: 15 | F6: 12 | G6: 16 | H6: 0 | I6: 0 | J6: 43 | K6: 0 | L6: 141 | M6: 0 | O6: 0 | Q6: =COUNTIF('Classement auteurs'!B:B,C6) -> 1
A7: 13 | B7: 7 | C7: 130987024101 | D7: Ado Himba | E7: 12 | F7: 12 | G7: 15 | H7: 0 | I7: 0 | J7: 39 | K7: 0 | L7: 87 | M7: 0 | O7: 0 | Q7: =COUNTIF('Classement auteurs'!B:B,C7) -> 1
A8: 13 | B8: 8 | C8: 132203000901 | D8: Femme Ousbèque | E8: 14 | F8: 16 | G8: 18 | H8: 0 | I8: 0 | J8: 48 | K8: 0 | L8: 5 | M8: 0 | O8: 0 | Q8: =COUNTIF('Classement auteurs'!B:B,C8) -> 1
A9: 13 | B9: 9 | C9: 131879000101 | D9: Fille Akha | E9: 14 | F9: 10 | G9: 17 | H9: 0 | I9: 0 | J9: 41 | K9: 0 | L9: 95 | M9: 0 | O9: 0 | Q9: =COUNTIF('Classement auteurs'!B:B,C9) -> 1
A10: 13 | B10: 10 | C10: 131376018301 | D10: Holi | E10: 11 | F10: 11 | G10: 12 | H10: 0 | I10: 0 | J10: 34 | K10: 0 | L10: 38 | M10: 0 | O10: 0 | Q10: =COUNTIF('Classement auteurs'!B:B,C10) -> 1
A11: 13 | B11: 11 | C11: 131992000301 | D11: Famille Tamoul. | E11: 11 | F11: 10 | G11: 12 | H11: 0 | I11: 0 | J11: 33 | K11: 0 | L11: 91 | M11: 0 | O11: 0 | Q11: =COUNTIF('Classement auteurs'!B:B,C11) -> 1
A12: 13 | B12: 12 | C12: 131683007601 | D12: Don sacré | E12: 13 | F12: 14 | G12: 15 | H12: 0 | I12: 0 | J12: 42 | K12: 0 | L12: 13 | M12: 0 | O12: 0 | Q12: =COUNTIF('Classement auteurs'!B:B,C12) -> 1
A13: 13 | B13: 13 | C13: 130527013301 | D13: New york 1 | E13: 13 | F13: 11 | G13: 15 | H13: 0 | I13: 0 | J13: 39 | K13: 0 | L13: 18 | M13: 0 | O13: 0 | Q13: =COUNTIF('Classement auteurs'!B:B,C13) -> 1
A14: 13 | B14: 14 | C14: 131823004901 | D14: Pas de doute | E14: 11 | F14: 6 | G14: 8 | H14: 0 | I14: 0 | J14: 25 | K14: 0 | L14: 74 | M14: 0 | O14: 0 | Q14: =COUNTIF('Classement auteurs'!B:B,C14) -> 1
A15: 13 | B15: 15 | C15: 131494002101 | D15: Retour à la bergerie | E15: 11 | F15: 9 | G15: 9 | H15: 0 | I15: 0 | J15: 29 | K15: 0 | L15: 1 | M15: 0 | O15: 0 | Q15: =COUNTIF('Classement auteurs'!B:B,C15) -> 1
A16: 13 | B16: 17 | C16: 130925010201 | D16: Tempête sur l'Angleterre | E16: 11 | F16: 11 | G16: 8 | H16: 0 | I16: 0 | J16: 30 | K16: 0 | L16: 82 | M16: 0 | O16: 0 | Q16: =COUNTIF('Classement auteurs'!B:B,C16) -> 1
A17: 13 | B17: 18 | C17: 130987024001 | D17: Tre Cime | E17: 13 | F17: 12 | G17: 19 | H17: 0 | I17: 0 | J17: 44 | K17: 0 | L17: 129 | M17: 0 | O17: 0 | Q17: =COUNTIF('Classement auteurs'!B:B,C17) -> 1
A18: 13 | B18: 19 | C18: 131110001001 | D18: étudiant birman | E18: 12 | F18: 11 | G18: 18 | H18: 0 | I18: 0 | J18: 41 | K18: 0 | L18: 86 | M18: 0 | O18: 0 | Q18: =COUNTIF('Classement auteurs'!B:B,C18) -> 1
A19: 13 | B19: 20 | C19: 131376012601 | D19: Festival des cultures | E19: 12 | F19: 9 | G19: 8 | H19: 0 | I19: 0 | J19: 29 | K19: 0 | L19: 17 | M19: 0 | O19: 0 | Q19: =COUNTIF('Classement auteurs'!B:B,C19) -> 1
A20: 13 | B20: 21 | C20: 131683008001 | D20: Les tanneurs de Fes | E20: 12 | F20: 16 | G20: 19 | H20: 0 | I20: 0 | J20: 47 | K20: 0 | L20: 135 | M20: 0 | O20: 0 | Q20: =COUNTIF('Classement auteurs'!B:B,C20) -> 1
A21: 13 | B21: 22 | C21: 130987028401 | D21: Pêche traditionnelle | E21: 13 | F21: 13 | G21: 12 | H21: 0 | I21: 0 | J21: 38 | K21: 0 | L21: 133 | M21: 0 | O21: 0 | Q21: =COUNTIF('Classement auteurs'!B:B,C21) -> 1
A22: 13 | B22: 23 | C22: 131353000201 | D22: Arc en ciel | E22: 13 | F22: 13 | G22: 11 | H22: 0 | I22: 0 | J22: 37 | K22: 0 | L22: 84 | M22: 0 | O22: 0 | Q22: =COUNTIF('Classement auteurs'!B:B,C22) -> 1
A23: 13 | B23: 24 | C23: 131879001301 | D23: Inde | E23: 11 | F23: 12 | G23: 7 | H23: 0 | I23: 0 | J23: 30 | K23: 0 | L23: 36 | M23: 0 | O23: 0 | Q23: =COUNTIF('Classement auteurs'!B:B,C23) -> 1
A24: 13 | B24: 25 | C24: 131499008701 | D24: Si vaste et si fragile... | E24: 10 | F24: 7 | G24: 12 | H24: 0 | I24: 0 | J24: 29 | K24: 0 | L24: 112 | M24: 0 | O24: 0 | Q24: =COUNTIF('Classement auteurs'!B:B,C24) -> 1
A25: 13 | B25: 27 | C25: 132084004001 | D25: La vache et le soldat | E25: 12 | F25: 10 | G25: 18 | H25: 0 | I25: 0 | J25: 40 | K25: 0 | L25: 106 | M25: 0 | O25: 0 | Q25: =COUNTIF('Classement auteurs'!B:B,C25) -> 1
A26: 13 | B26: 28 | C26: 131823008801 | D26: Mais pourquoi ? | E26: 11 | F26: 8 | G26: 9 | H26: 0 | I26: 0 | J26: 28 | K26: 0 | L26: 61 | M26: 0 | O26: 0 | Q26: =COUNTIF('Classement auteurs'!B:B,C26) -> 1
A27: 13 | B27: 29 | C27: 130987019701 | D27: Venezia | E27: 13 | F27: 11 | G27: 16 | H27: 0 | I27: 0 | J27: 40 | K27: 0 | L27: 69 | M27: 0 | O27: 0 | Q27: =COUNTIF('Classement auteurs'!B:B,C27) -> 1
A28: 13 | B28: 30 | C28: 130987019601 | D28: Padaung Karen | E28: 12 | F28: 10 | G28: 15 | H28: 0 | I28: 0 | J28: 37 | K28: 0 | L28: 40 | M28: 0 | O28: 0 | Q28: =COUNTIF('Classement auteurs'!B:B,C28) -> 1
A29: 13 | B29: 31 | C29: 131845004101 | D29: Regard réprobateur | E29: 11 | F29: 8 | G29: 15 | H29: 0 | I29: 0 | J29: 34 | K29: 0 | L29: 24 | M29: 0 | O29: 0 | Q29: =COUNTIF('Classement auteurs'!B:B,C29) -> 1
A30: 13 | B30: 32 | C30: 131992000401 | D30: Regard envoutant | E30: 13 | F30: 10 | G30: 16 | H30: 0 | I30: 0 | J30: 39 | K30: 0 | L30: 21 | M30: 0 | O30: 0 | Q30: =COUNTIF('Classement auteurs'!B:B,C30) -> 1
A31: 13 | B31: 33 | C31: 131879002001 | D31: La faiseuse de briques | E31: 14 | F31: 13 | G31: 20 | H31: 0 | I31: 0 | J31: 47 | K31: 0 | L31: 26 | M31: 0 | O31: 0 | Q31: =COUNTIF('Classement auteurs'!B:B,C31) -> 1
A32: 13 | B32: 35 | C32: 131353004301 | D32: Mucem 2016 | E32: 11 | F32: 7 | G32: 10 | H32: 0 | I32: 0 | J32: 28 | K32: 0 | L32: 32 | M32: 0 | O32: 0 | Q32: =COUNTIF('Classement auteurs'!B:B,C32) -> 1
A33: 13 | B33: 36 | C33: 130987007401 | D33: Florence | E33: 11 | F33: 13 | G33: 8 | H33: 0 | I33: 0 | J33: 32 | K33: 0 | L33: 105 | M33: 0 | O33: 0 | Q33: =COUNTIF('Classement auteurs'!B:B,C33) -> 1
A34: 13 | B34: 37 | C34: 131956005101 | D34: L'Égypte à Madrid | E34: 12 | F34: 11 | G34: 11 | H34: 0 | I34: 0 | J34: 34 | K34: 0 | L34: 16 | M34: 0 | O34: 0 | Q34: =COUNTIF('Classement auteurs'!B:B,C34) -> 1
A35: 13 | B35: 38 | C35: 130987014001 | D35: Sourire de Bahia | E35: 12 | F35: 10 | G35: 15 | H35: 0 | I35: 0 | J35: 37 | K35: 0 | L35: 47 | M35: 0 | O35: 0 | Q35: =COUNTIF('Classement auteurs'!B:B,C35) -> 1
A36: 13 | B36: 39 | C36: 132084001701 | D36: Venise | E36: 12 | F36: 11 | G36: 13 | H36: 0 | I36: 0 | J36: 36 | K36: 0 | L36: 73 | M36: 0 | O36: 0 | Q36: =COUNTIF('Classement auteurs'!B:B,C36) -> 1
A37: 13 | B37: 40 | C37: 132086001401 | D37: Il neige sur Venise | E37: 13 | F37: 13 | G37: 15 | H37: 0 | I37: 0 | J37: 41 | K37: 0 | L37: 102 | M37: 0 | O37: 0 | Q37: =COUNTIF('Classement auteurs'!B:B,C37) -> 1
A38: 13 | B38: 41 | C38: 131823008301 | D38: Afrique | E38: 12 | F38: 10 | G38: 18 | H38: 0 | I38: 0 | J38: 40 | K38: 0 | L38: 92 | M38: 0 | O38: 0 | Q38: =COUNTIF('Classement auteurs'!B:B,C38) -> 1
A39: 13 | B39: 42 | C39: 131824003101 | D39: Croisement de regard | E39: 11 | F39: 13 | G39: 9 | H39: 0 | I39: 0 | J39: 33 | K39: 0 | L39: 131 | M39: 0 | O39: 0 | Q39: =COUNTIF('Classement auteurs'!B:B,C39) -> 1
A40: 13 | B40: 43 | C40: 131499010001 | D40: Dans la cour de l'école | E40: 13 | F40: 15 | G40: 14 | H40: 0 | I40: 0 | J40: 42 | K40: 0 | L40: 44 | M40: 0 | O40: 0 | Q40: =COUNTIF('Classement auteurs'!B:B,C40) -> 1
A41: 13 | B41: 44 | C41: 132023000101 | D41: Mésange à la lune | E41: 6 | F41: 6 | G41: 6 | H41: 0 | I41: 0 | J41: 18 | K41: 0 | L41: 55 | M41: 0 | O41: 0 | Q41: =COUNTIF('Classement auteurs'!B:B,C41) -> 1
A42: 13 | B42: 45 | C42: 131499005201 | D42: Pizzaiolo | E42: 11 | F42: 7 | G42: 13 | H42: 0 | I42: 0 | J42: 31 | K42: 0 | L42: 46 | M42: 0 | O42: 0 | Q42: =COUNTIF('Classement auteurs'!B:B,C42) -> 1
A43: 13 | B43: 46 | C43: 131376017601 | D43: Les touristes | E43: 9 | F43: 6 | G43: 9 | H43: 0 | I43: 0 | J43: 24 | K43: 0 | L43: 64 | M43: 0 | O43: 0 | Q43: =COUNTIF('Classement auteurs'!B:B,C43) -> 1
A44: 13 | B44: 47 | C44: 131683006301 | D44: Regards indiens | E44: 12 | F44: 15 | G44: 9 | H44: 0 | I44: 0 | J44: 36 | K44: 0 | L44: 127 | M44: 0 | O44: 0 | Q44: =COUNTIF('Classement auteurs'!B:B,C44) -> 1
A45: 13 | B45: 48 | C45: 131824001901 | D45: Auprès de mon arbre.... | E45: 13 | F45: 9 | G45: 18 | H45: 0 | I45: 0 | J45: 40 | K45: 0 | L45: 62 | M45: 0 | O45: 0 | Q45: =COUNTIF('Classement auteurs'!B:B,C45) -> 1
A46: 13 | B46: 49 | C46: 130925009801 | D46: Shanghai | E46: 12 | F46: 10 | G46: 14 | H46: 0 | I46: 0 | J46: 36 | K46: 0 | L46: 11 | M46: 0 | O46: 0 | Q46: =COUNTIF('Classement auteurs'!B:B,C46) -> 1
A47: 13 | B47: 50 | C47: 130000020401 | D47: Khiva - La Roue | E47: 13 | F47: 11 | G47: 13 | H47: 0 | I47: 0 | J47: 37 | K47: 0 | L47: 123 | M47: 6 | O47: 0 | Q47: =COUNTIF('Classement auteurs'!B:B,C47) -> 1
A48: 13 | B48: 51 | C48: 132193000501 | D48: Guerrier irlandais | E48: 11 | F48: 7 | G48: 7 | H48: 0 | I48: 0 | J48: 25 | K48: 0 | L48: 41 | M48: 7 | O48: 0 | Q48: =COUNTIF('Classement auteurs'!B:B,C48) -> 1
A49: 13 | B49: 52 | C49: 131956003401 | D49: Regard de la foret | E49: 11 | F49: 6 | G49: 7 | H49: 0 | I49: 0 | J49: 24 | K49: 0 | L49: 56 | M49: 0 | O49: 0 | Q49: =COUNTIF('Classement auteurs'!B:B,C49) -> 1
A50: 13 | B50: 53 | C50: 132086002501 | D50: Le Chianti moderne | E50: 14 | F50: 7 | G50: 11 | H50: 0 | I50: 0 | J50: 32 | K50: 0 | L50: 29 | M50: 0 | O50: 0 | Q50: =COUNTIF('Classement auteurs'!B:B,C50) -> 1
A51: 13 | B51: 54 | C51: 131683005101 | D51: Clarisse | E51: 15 | F51: 6 | G51: 12 | H51: 0 | I51: 0 | J51: 33 | K51: 0 | L51: 126 | M51: 0 | O51: 0 | Q51: =COUNTIF('Classement auteurs'!B:B,C51) -> 1
A52: 13 | B52: 55 | C52: 130987012601 | D52: Taxi à Tokyo. | E52: 12 | F52: 12 | G52: 17 | H52: 0 | I52: 0 | J52: 41 | K52: 0 | L52: 136 | M52: 0 | O52: 0 | Q52: =COUNTIF('Classement auteurs'!B:B,C52) -> 1
A53: 13 | B53: 56 | C53: 130993016501 | D53: Reflet_Asie | E53: 13 | F53: 12 | G53: 10 | H53: 0 | I53: 0 | J53: 35 | K53: 0 | L53: 31 | M53: 0 | O53: 0 | Q53: =COUNTIF('Classement auteurs'!B:B,C53) -> 1
A54: 13 | B54: 57 | C54: 131862001001 | D54: Petite Vietnamienne | E54: 12 | F54: 12 | G54: 15 | H54: 0 | I54: 0 | J54: 39 | K54: 0 | L54: 139 | M54: 0 | O54: 0 | Q54: =COUNTIF('Classement auteurs'!B:B,C54) -> 1
A55: 13 | B55: 58 | C55: 132084003501 | D55: Coiffes Himbas | E55: 14 | F55: 12 | G55: 17 | H55: 0 | I55: 0 | J55: 43 | K55: 0 | L55: 34 | M55: 0 | O55: 0 | Q55: =COUNTIF('Classement auteurs'!B:B,C55) -> 1
A56: 13 | B56: 59 | C56: 132084003601 | D56: Kaokoland airport | E56: 11 | F56: 12 | G56: 10 | H56: 0 | I56: 0 | J56: 33 | K56: 0 | L56: 98 | M56: 0 | O56: 0 | Q56: =COUNTIF('Classement auteurs'!B:B,C56) -> 1
A57: 13 | B57: 60 | C57: 131353007301 | D57: LAGUNA COLORADA BOLIVIE | E57: 14 | F57: 11 | G57: 15 | H57: 0 | I57: 0 | J57: 40 | K57: 0 | L57: 37 | M57: 0 | O57: 0 | Q57: =COUNTIF('Classement auteurs'!B:B,C57) -> 1
A58: 13 | B58: 61 | C58: 130878014301 | D58: L’œil de la terre | E58: 10 | F58: 6 | G58: 7 | H58: 0 | I58: 0 | J58: 23 | K58: 0 | L58: 7 | M58: 0 | O58: 0 | Q58: =COUNTIF('Classement auteurs'!B:B,C58) -> 1
A59: 13 | B59: 62 | C59: 131353003001 | D59: Regard de l'inconnue | E59: 12 | F59: 6 | G59: 12 | H59: 0 | I59: 0 | J59: 30 | K59: 0 | L59: 48 | M59: 0 | O59: 0 | Q59: =COUNTIF('Classement auteurs'!B:B,C59) -> 1
A60: 13 | B60: 63 | C60: 130878014101 | D60: Orientation | E60: 11 | F60: 7 | G60: 19 | H60: 0 | I60: 0 | J60: 37 | K60: 0 | L60: 76 | M60: 0 | O60: 0 | Q60: =COUNTIF('Classement auteurs'!B:B,C60) -> 1
A61: 13 | B61: 64 | C61: 131619005001 | D61: Regard sur le haut atlas | E61: 11 | F61: 15 | G61: 13 | H61: 0 | I61: 0 | J61: 39 | K61: 0 | L61: 77 | M61: 0 | O61: 0 | Q61: =COUNTIF('Classement auteurs'!B:B,C61) -> 1
A62: 13 | B62: 65 | C62: 131879000501 | D62: Tromso | E62: 14 | F62: 14 | G62: 11 | H62: 0 | I62: 0 | J62: 39 | K62: 0 | L62: 142 | M62: 0 | O62: 0 | Q62: =COUNTIF('Classement auteurs'!B:B,C62) -> 1
A63: 13 | B63: 66 | C63: 131956002601 | D63: Berlin | E63: 14 | F63: 14 | G63: 16 | H63: 0 | I63: 0 | J63: 44 | K63: 0 | L63: 68 | M63: 0 | O63: 0 | Q63: =COUNTIF('Classement auteurs'!B:B,C63) -> 1
A64: 13 | B64: 67 | C64: 131823008701 | D64: école en Sulawesi | E64: 12 | F64: 13 | G64: 16 | H64: 0 | I64: 0 | J64: 41 | K64: 0 | L64: 97 | M64: 0 | O64: 0 | Q64: =COUNTIF('Classement auteurs'!B:B,C64) -> 1
A65: 13 | B65: 68 | C65: 130925008601 | D65: Amerique | E65: 13 | F65: 7 | G65: 16 | H65: 0 | I65: 0 | J65: 36 | K65: 0 | L65: 85 | M65: 0 | O65: 0 | Q65: =COUNTIF('Classement auteurs'!B:B,C65) -> 1
A66: 13 | B66: 69 | C66: 130878013601 | D66: L'enfant et le torri | E66: 12 | F66: 9 | G66: 13 | H66: 0 | I66: 0 | J66: 34 | K66: 0 | L66: 72 | M66: 0 | O66: 0 | Q66: =COUNTIF('Classement auteurs'!B:B,C66) -> 1
A67: 13 | B67: 70 | C67: 131845004001 | D67: VIETAMIENNE | E67: 11 | F67: 9 | G67: 13 | H67: 0 | I67: 0 | J67: =SUM(E67:I67) -> 33 | K67: 0 | L67: 66 | M67: 0 | O67: 0 | Q67: =COUNTIF('Classement auteurs'!B:B,C67) -> 1
A68: 13 | B68: 71 | C68: 130925007601 | D68: Famille Himba | E68: 14 | F68: 13 | G68: 17 | H68: 0 | I68: 0 | J68: 44 | K68: 0 | L68: 45 | M68: 0 | O68: 0 | Q68: =COUNTIF('Classement auteurs'!B:B,C68) -> 1
A69: 13 | B69: 72 | C69: 130925007701 | D69: Regards d'enfants | E69: 14 | F69: 17 | G69: 19 | H69: 0 | I69: 0 | J69: 50 | K69: 0 | L69: 119 | M69: 0 | O69: 0 | Q69: =COUNTIF('Classement auteurs'!B:B,C69) -> 1
A70: 13 | B70: 73 | C70: 132060001701 | D70: Enfant gitan de la mer | E70: 14 | F70: 14 | G70: 17 | H70: 0 | I70: 0 | J70: 45 | K70: 0 | L70: 42 | M70: 0 | O70: 0 | Q70: =COUNTIF('Classement auteurs'!B:B,C70) -> 1
A71: 13 | B71: 74 | C71: 131862000801 | D71: Le Chat du Rabin | E71: 11 | F71: 6 | G71: 7 | H71: 0 | I71: 0 | J71: 24 | K71: 0 | L71: 78 | M71: 0 | O71: 0 | Q71: =COUNTIF('Classement auteurs'!B:B,C71) -> 1
A72: 13 | B72: 75 | C72: 132084000301 | D72: Croisère à Kotor | E72: 14 | F72: 11 | G72: 14 | H72: 0 | I72: 0 | J72: 39 | K72: 0 | L72: 120 | M72: 0 | O72: 0 | Q72: =COUNTIF('Classement auteurs'!B:B,C72) -> 1
A73: 13 | B73: 76 | C73: 130000019901 | D73: Recueillement | E73: 13 | F73: 13 | G73: 15 | H73: 0 | I73: 0 | J73: 41 | K73: 0 | L73: 115 | M73: 6 | O73: 0 | Q73: =COUNTIF('Classement auteurs'!B:B,C73) -> 1
A74: 13 | B74: 77 | C74: 132193000401 | D74: Un pont entre 2 mondes | E74: 12 | F74: 12 | G74: 13 | H74: 0 | I74: 0 | J74: 37 | K74: 0 | L74: 93 | M74: 7 | O74: 0 | Q74: =COUNTIF('Classement auteurs'!B:B,C74) -> 1
A75: 13 | B75: 78 | C75: 131956004601 | D75: Regards sur notre galaxie | E75: 13 | F75: 19 | G75: 15 | H75: 0 | I75: 0 | J75: 47 | K75: 0 | L75: 20 | M75: 0 | O75: 0 | Q75: =COUNTIF('Classement auteurs'!B:B,C75) -> 1
A76: 13 | B76: 79 | C76: 130987015701 | D76: Les Falaises de Moher | E76: 14 | F76: 9 | G76: 16 | H76: 0 | I76: 0 | J76: 39 | K76: 0 | L76: 111 | M76: 0 | O76: 0 | Q76: =COUNTIF('Classement auteurs'!B:B,C76) -> 1
A77: 13 | B77: 80 | C77: 131956001401 | D77: Regard Colombien | E77: 11 | F77: 10 | G77: 11 | H77: 0 | I77: 0 | J77: 32 | K77: 0 | L77: 134 | M77: 0 | O77: 0 | Q77: =COUNTIF('Classement auteurs'!B:B,C77) -> 1
A78: 13 | B78: 81 | C78: 131862002201 | D78: Matsumoto. Japon | E78: 12 | F78: 11 | G78: 12 | H78: 0 | I78: 0 | J78: 35 | K78: 0 | L78: 50 | M78: 0 | O78: 0 | Q78: =COUNTIF('Classement auteurs'!B:B,C78) -> 1
A79: 13 | B79: 82 | C79: 132089000201 | D79: Au Radjastan | E79: 10 | F79: 11 | G79: 10 | H79: 0 | I79: 0 | J79: 31 | K79: 0 | L79: 6 | M79: 0 | O79: 0 | Q79: =COUNTIF('Classement auteurs'!B:B,C79) -> 1
A80: 13 | B80: 83 | C80: 131862005801 | D80: Suivez mon regard | E80: 11 | F80: 11 | G80: 12 | H80: 0 | I80: 0 | J80: 34 | K80: 0 | L80: 52 | M80: 0 | O80: 0 | Q80: =COUNTIF('Classement auteurs'!B:B,C80) -> 1
A81: 13 | B81: 84 | C81: 131956004501 | D81: Aquarius | E81: 12 | F81: 14 | G81: 12 | H81: 0 | I81: 0 | J81: 38 | K81: 0 | L81: 54 | M81: 0 | O81: 0 | Q81: =COUNTIF('Classement auteurs'!B:B,C81) -> 1
A82: 13 | B82: 85 | C82: 131110001101 | D82: Le petit guitariste | E82: 11 | F82: 6 | G82: 7 | H82: 0 | I82: 0 | J82: 24 | K82: 0 | L82: 108 | M82: 0 | O82: 0 | Q82: =COUNTIF('Classement auteurs'!B:B,C82) -> 1
A83: 13 | B83: 86 | C83: 132060000701 | D83: Flamenco andalou | E83: 12 | F83: 10 | G83: 7 | H83: 0 | I83: 0 | J83: 29 | K83: 0 | L83: 30 | M83: 0 | O83: 0 | Q83: =COUNTIF('Classement auteurs'!B:B,C83) -> 1
A84: 13 | B84: 87 | C84: 131494002301 | D84: Gondoles | E84: 11 | F84: 10 | G84: 14 | H84: 0 | I84: 0 | J84: 35 | K84: 0 | L84: 113 | M84: 0 | O84: 0 | Q84: =COUNTIF('Classement auteurs'!B:B,C84) -> 1
A85: 13 | B85: 88 | C85: 131494000201 | D85: Enfants Masaï | E85: 14 | F85: 11 | G85: 9 | H85: 0 | I85: 0 | J85: 34 | K85: 0 | L85: 121 | M85: 0 | O85: 0 | Q85: =COUNTIF('Classement auteurs'!B:B,C85) -> 1
A86: 13 | B86: 89 | C86: 131845003401 | D86: Flotte internationale | E86: 11 | F86: 6 | G86: 10 | H86: 0 | I86: 0 | J86: 27 | K86: 0 | L86: 96 | M86: 0 | O86: 0 | Q86: =COUNTIF('Classement auteurs'!B:B,C86) -> 1
A87: 13 | B87: 91 | C87: 132089000501 | D87: Ma Thaïlande | E87: 12 | F87: 14 | G87: 13 | H87: 0 | I87: 0 | J87: 39 | K87: 0 | L87: 125 | M87: 0 | O87: 0 | Q87: =COUNTIF('Classement auteurs'!B:B,C87) -> 1
A88: 13 | B88: 92 | C88: 131845002101 | D88: Baigneuse coréenne | E88: 11 | F88: 10 | G88: 13 | H88: 0 | I88: 0 | J88: 34 | K88: 0 | L88: 117 | M88: 0 | O88: 0 | Q88: =COUNTIF('Classement auteurs'!B:B,C88) -> 1
A89: 13 | B89: 93 | C89: 131956005501 | D89: European flags | E89: 10 | F89: 14 | G89: 9 | H89: 0 | I89: 0 | J89: 33 | K89: 0 | L89: 81 | M89: 0 | O89: 0 | Q89: =COUNTIF('Classement auteurs'!B:B,C89) -> 1
A90: 13 | B90: 94 | C90: 131376014701 | D90: Le cri | E90: 9 | F90: 7 | G90: 7 | H90: 0 | I90: 0 | J90: 23 | K90: 0 | L90: 118 | M90: 0 | O90: 0 | Q90: =COUNTIF('Classement auteurs'!B:B,C90) -> 1
A91: 13 | B91: 95 | C91: 131845002501 | D91: Séville. Place d'Espagne. | E91: 14 | F91: 14 | G91: 13 | H91: 0 | I91: 0 | J91: 41 | K91: 0 | L91: 99 | M91: 0 | O91: 0 | Q91: =COUNTIF('Classement auteurs'!B:B,C91) -> 1
A92: 13 | B92: 96 | C92: 131110000901 | D92: Marcher sur l'eau | E92: 13 | F92: 12 | G92: 20 | H92: 0 | I92: 0 | J92: 45 | K92: 0 | L92: 103 | M92: 0 | O92: 0 | Q92: =COUNTIF('Classement auteurs'!B:B,C92) -> 1
A93: 13 | B93: 97 | C93: 131683006601 | D93: Un kilt assumé | E93: 11 | F93: 8 | G93: 7 | H93: 0 | I93: 0 | J93: 26 | K93: 0 | L93: 39 | M93: 0 | O93: 0 | Q93: =COUNTIF('Classement auteurs'!B:B,C93) -> 1
A94: 13 | B94: 98 | C94: 131499010801 | D94: Hommage de New York | E94: 12 | F94: 9 | G94: 9 | H94: 0 | I94: 0 | J94: 30 | K94: 0 | L94: 51 | M94: 0 | O94: 0 | Q94: =COUNTIF('Classement auteurs'!B:B,C94) -> 1
A95: 13 | B95: 99 | C95: 131353007401 | D95: Regards de Bolivie | E95: 14 | F95: 12 | G95: 12 | H95: 0 | I95: 0 | J95: 38 | K95: 0 | L95: 4 | M95: 0 | O95: 0 | Q95: =COUNTIF('Classement auteurs'!B:B,C95) -> 1
A96: 13 | B96: 100 | C96: 132193001201 | D96: La potion magique | E96: 12 | F96: 12 | G96: 10 | H96: 0 | I96: 0 | J96: 34 | K96: 0 | L96: 130 | M96: 7 | O96: 0 | Q96: =COUNTIF('Classement auteurs'!B:B,C96) -> 1
A97: 13 | B97: 101 | C97: 130878013401 | D97: 01 Globe terreste | E97: 11 | F97: 11 | G97: 8 | H97: 0 | I97: 0 | J97: 30 | K97: 0 | L97: 63 | M97: 0 | O97: 0 | Q97: =COUNTIF('Classement auteurs'!B:B,C97) -> 1
A98: 13 | B98: 102 | C98: 130987023901 | D98: Love in the air | E98: 11 | F98: 8 | G98: 11 | H98: 0 | I98: 0 | J98: 30 | K98: 0 | L98: 8 | M98: 0 | O98: 0 | Q98: =COUNTIF('Classement auteurs'!B:B,C98) -> 1
A99: 13 | B99: 103 | C99: 131956006201 | D99: Larmes de sang | E99: 12 | F99: 6 | G99: 7 | H99: 0 | I99: 0 | J99: 25 | K99: 0 | L99: 109 | M99: 0 | O99: 0 | Q99: =COUNTIF('Classement auteurs'!B:B,C99) -> 1
A100: 13 | B100: 104 | C100: 130527002501 | D100: Internation | E100: 12 | F100: 11 | G100: 14 | H100: 0 | I100: 0 | J100: 37 | K100: 0 | L100: 144 | M100: 0 | O100: 0 | Q100: =COUNTIF('Classement auteurs'!B:B,C100) -> 1
A101: 13 | B101: 105 | C101: 130527012601 | D101: Transport | E101: 12 | F101: 10 | G101: 15 | H101: 0 | I101: 0 | J101: 37 | K101: 0 | L101: 143 | M101: 0 | O101: 0 | Q101: =COUNTIF('Classement auteurs'!B:B,C101) -> 1
A102: 13 | B102: 106 | C102: 132060000801 | D102: Vision cubaine | E102: 11 | F102: 10 | G102: 11 | H102: 0 | I102: 0 | J102: 32 | K102: 0 | L102: 122 | M102: 0 | O102: 0 | Q102: =COUNTIF('Classement auteurs'!B:B,C102) -> 1
A103: 13 | B103: 107 | C103: 132103000101 | D103: Quel vol déja | E103: 8 | F103: 7 | G103: 8 | H103: 0 | I103: 0 | J103: 23 | K103: 0 | L103: 124 | M103: 0 | O103: 0 | Q103: =COUNTIF('Classement auteurs'!B:B,C103) -> 1
A104: 13 | B104: 108 | C104: 132086002301 | D104: Le poids des traditions | E104: 10 | F104: 11 | G104: 10 | H104: 0 | I104: 0 | J104: 31 | K104: 0 | L104: 14 | M104: 0 | O104: 0 | Q104: =COUNTIF('Classement auteurs'!B:B,C104) -> 1
A105: 13 | B105: 109 | C105: 131956000201 | D105: Femme lepcha sikkim inde | E105: 11 | F105: 18 | G105: 18 | H105: 0 | I105: 0 | J105: 47 | K105: 0 | L105: 60 | M105: 0 | O105: 0 | Q105: =COUNTIF('Classement auteurs'!B:B,C105) -> 1
A106: 13 | B106: 110 | C106: 131879000601 | D106: Magique Islande | E106: 12 | F106: 10 | G106: 15 | H106: 0 | I106: 0 | J106: 37 | K106: 0 | L106: 107 | M106: 0 | O106: 0 | Q106: =COUNTIF('Classement auteurs'!B:B,C106) -> 1
A107: 13 | B107: 111 | C107: 131683007901 | D107: Lueur D'espoir | E107: 12 | F107: 7 | G107: 20 | H107: 0 | I107: 0 | J107: 39 | K107: 0 | L107: 128 | M107: 0 | O107: 0 | Q107: =COUNTIF('Classement auteurs'!B:B,C107) -> 1
A108: 13 | B108: 112 | C108: 131862001401 | D108: Vahine | E108: 11 | F108: 9 | G108: 7 | H108: 0 | I108: 0 | J108: 27 | K108: 0 | L108: 49 | M108: 0 | O108: 0 | Q108: =COUNTIF('Classement auteurs'!B:B,C108) -> 1
A109: 13 | B109: 113 | C109: 132086002601 | D109: Regards partagés | E109: 12 | F109: 6 | G109: 8 | H109: 0 | I109: 0 | J109: 26 | K109: 0 | L109: 27 | M109: 0 | O109: 0 | Q109: =COUNTIF('Classement auteurs'!B:B,C109) -> 1
A110: 13 | B110: 114 | C110: 132060002201 | D110: Festival du rire Montréal | E110: 11 | F110: 10 | G110: 8 | H110: 0 | I110: 0 | J110: 29 | K110: 0 | L110: 58 | M110: 0 | O110: 0 | Q110: =COUNTIF('Classement auteurs'!B:B,C110) -> 1
A111: 13 | B111: 115 | C111: 131353007101 | D111: Regads de l'étranger | E111: 11 | F111: 9 | G111: 10 | H111: 0 | I111: 0 | J111: 30 | K111: 0 | L111: 67 | M111: 0 | O111: 0 | Q111: =COUNTIF('Classement auteurs'!B:B,C111) -> 1
A112: 13 | B112: 116 | C112: 131823005701 | D112: Lever-soleil-Suède | E112: 9 | F112: 12 | G112: 7 | H112: 0 | I112: 0 | J112: 28 | K112: 0 | L112: 83 | M112: 0 | O112: 0 | Q112: =COUNTIF('Classement auteurs'!B:B,C112) -> 1
A113: 13 | B113: 117 | C113: 131956005701 | D113: Bancroft way Berkeley | E113: 10 | F113: 12 | G113: 9 | H113: 0 | I113: 0 | J113: 31 | K113: 0 | L113: 116 | M113: 0 | O113: 0 | Q113: =COUNTIF('Classement auteurs'!B:B,C113) -> 1
A114: 13 | B114: 118 | C114: 132060001801 | D114: Jiwa et la femme au betel | E114: 12 | F114: 12 | G114: 14 | H114: 0 | I114: 0 | J114: 38 | K114: 0 | L114: 94 | M114: 0 | O114: 0 | Q114: =COUNTIF('Classement auteurs'!B:B,C114) -> 1
A115: 13 | B115: 119 | C115: 130527009201 | D115: Aki Matsuri | E115: 12 | F115: 12 | G115: 11 | H115: 0 | I115: 0 | J115: 35 | K115: 0 | L115: 2 | M115: 0 | O115: 0 | Q115: =COUNTIF('Classement auteurs'!B:B,C115) -> 1
A116: 13 | B116: 120 | C116: 130987001601 | D116: Marché Gabonais | E116: 10 | F116: 10 | G116: 16 | H116: 0 | I116: 0 | J116: 36 | K116: 0 | L116: 114 | M116: 0 | O116: 0 | Q116: =COUNTIF('Classement auteurs'!B:B,C116) -> 1
A117: 13 | B117: 121 | C117: 132060002401 | D117: Voyage familial | E117: 12 | F117: 12 | G117: 7 | H117: 0 | I117: 0 | J117: 31 | K117: 0 | L117: 75 | M117: 0 | O117: 0 | Q117: =COUNTIF('Classement auteurs'!B:B,C117) -> 1
A118: 13 | B118: 122 | C118: 130527009401 | D118: Bella ciao | E118: 13 | F118: 20 | G118: 20 | H118: 0 | I118: 0 | J118: 53 | K118: 0 | L118: 43 | M118: 0 | O118: 0 | Q118: =COUNTIF('Classement auteurs'!B:B,C118) -> 1
A119: 13 | B119: 123 | C119: 131499006801 | D119: Retour des troupeaux | E119: 13 | F119: 14 | G119: 12 | H119: 0 | I119: 0 | J119: 39 | K119: 0 | L119: 33 | M119: 0 | O119: 0 | Q119: =COUNTIF('Classement auteurs'!B:B,C119) -> 1
A120: 13 | B120: 124 | C120: 130527017001 | D120: Un monde curieux. | E120: 15 | F120: 13 | G120: 12 | H120: 0 | I120: 0 | J120: 40 | K120: 0 | L120: 12 | M120: 0 | O120: 0 | Q120: =COUNTIF('Classement auteurs'!B:B,C120) -> 1
A121: 13 | B121: 125 | C121: 131376018001 | D121: Immigration | E121: 11 | F121: 15 | G121: 12 | H121: 0 | I121: 0 | J121: 38 | K121: 0 | L121: 104 | M121: 0 | O121: 0 | Q121: =COUNTIF('Classement auteurs'!B:B,C121) -> 1
A122: 13 | B122: 127 | C122: 131499008201 | D122: Train à Madagascar | E122: 15 | F122: 11 | G122: 15 | H122: 0 | I122: 0 | J122: 41 | K122: 0 | L122: 138 | M122: 0 | O122: 0 | Q122: =COUNTIF('Classement auteurs'!B:B,C122) -> 1
A123: 13 | B123: 128 | C123: 131845001401 | D123: Voyage | E123: 12 | F123: 6 | G123: 16 | H123: 0 | I123: 0 | J123: 34 | K123: 0 | L123: 70 | M123: 0 | O123: 0 | Q123: =COUNTIF('Classement auteurs'!B:B,C123) -> 1
A124: 13 | B124: 129 | C124: 131499003601 | D124: Gargote japonaise | E124: 11 | F124: 14 | G124: 8 | H124: 0 | I124: 0 | J124: 33 | K124: 0 | L124: 19 | M124: 0 | O124: 0 | Q124: =COUNTIF('Classement auteurs'!B:B,C124) -> 1
A125: 13 | B125: 130 | C125: 130987002301 | D125: Entrez sans frapper | E125: 13 | F125: 13 | G125: 18 | H125: 0 | I125: 0 | J125: 44 | K125: 0 | L125: 88 | M125: 0 | O125: 0 | Q125: =COUNTIF('Classement auteurs'!B:B,C125) -> 1
A126: 13 | B126: 131 | C126: 132089000101 | D126: Milan 2015 | E126: 11 | F126: 10 | G126: 8 | H126: 0 | I126: 0 | J126: 29 | K126: 0 | L126: 100 | M126: 0 | O126: 0 | Q126: =COUNTIF('Classement auteurs'!B:B,C126) -> 1
A127: 13 | B127: 132 | C127: 131499006901 | D127: Les tanneurs de Fès | E127: 14 | F127: 12 | G127: 19 | H127: 0 | I127: 0 | J127: 45 | K127: 0 | L127: 9 | M127: 0 | O127: 0 | Q127: =COUNTIF('Classement auteurs'!B:B,C127) -> 1
A128: 13 | B128: 133 | C128: 130925009901 | D128: Tatouage | E128: 12 | F128: 9 | G128: 17 | H128: 0 | I128: 0 | J128: 38 | K128: 0 | L128: 89 | M128: 0 | O128: 0 | Q128: =COUNTIF('Classement auteurs'!B:B,C128) -> 1
A129: 13 | B129: 134 | C129: 131619004501 | D129: Colisé | E129: 14 | F129: 15 | G129: 19 | H129: 0 | I129: 0 | J129: 48 | K129: 0 | L129: 10 | M129: 0 | O129: 0 | Q129: =COUNTIF('Classement auteurs'!B:B,C129) -> 1
A130: 13 | B130: 135 | C130: 132084002301 | D130: Moaïs | E130: 13 | F130: 9 | G130: 15 | H130: 0 | I130: 0 | J130: 37 | K130: 0 | L130: 137 | M130: 0 | O130: 0 | Q130: =COUNTIF('Classement auteurs'!B:B,C130) -> 1
A131: 13 | B131: 136 | C131: 130925008401 | D131: Temps passé | E131: 15 | F131: 7 | G131: 17 | H131: 0 | I131: 0 | J131: =SUM(E131:I131) -> 39 | K131: 0 | L131: 140 | M131: 0 | O131: 0 | Q131: =COUNTIF('Classement auteurs'!B:B,C131) -> 1
A132: 13 | B132: 137 | C132: 130987025001 | D132: Repos du pêcheur | E132: 13 | F132: 14 | G132: 12 | H132: 0 | I132: 0 | J132: 39 | K132: 0 | L132: 80 | M132: 0 | O132: 0 | Q132: =COUNTIF('Classement auteurs'!B:B,C132) -> 1
A133: 13 | B133: 138 | C133: 131499010601 | D133: Journal birman | E133: 12 | F133: 11 | G133: 17 | H133: 0 | I133: 0 | J133: 40 | K133: 0 | L133: 71 | M133: 0 | O133: 0 | Q133: =COUNTIF('Classement auteurs'!B:B,C133) -> 1
A134: 13 | B134: 139 | C134: 131499010501 | D134: Retour de marché | E134: 12 | F134: 13 | G134: 16 | H134: 0 | I134: 0 | J134: 41 | K134: 0 | L134: 59 | M134: 0 | O134: 0 | Q134: =COUNTIF('Classement auteurs'!B:B,C134) -> 1
A135: 13 | B135: 140 | C135: 130527012401 | D135: Allée de baobabs | E135: 13 | F135: 10 | G135: 13 | H135: 0 | I135: 0 | J135: 36 | K135: 0 | L135: 22 | M135: 0 | O135: 0 | Q135: =COUNTIF('Classement auteurs'!B:B,C135) -> 1
A136: 13 | B136: 141 | C136: 131353006201 | D136: La tour olympique | E136: 11 | F136: 11 | G136: 9 | H136: 0 | I136: 0 | J136: 31 | K136: 0 | L136: 3 | M136: 0 | O136: 0 | Q136: =COUNTIF('Classement auteurs'!B:B,C136) -> 1
A137: 13 | B137: 142 | C137: 131683006501 | D137: A la croix del condor | E137: 11 | F137: 9 | G137: 8 | H137: 0 | I137: 0 | J137: 28 | K137: 0 | L137: 110 | M137: 0 | O137: 0 | Q137: =COUNTIF('Classement auteurs'!B:B,C137) -> 1
A138: 13 | B138: 143 | C138: 131683002601 | D138: Lumière sublime d'Afrique | E138: 14 | F138: 11 | G138: 12 | H138: 0 | I138: 0 | J138: 37 | K138: 0 | L138: 65 | M138: 0 | O138: 0 | Q138: =COUNTIF('Classement auteurs'!B:B,C138) -> 1
A139: 13 | B139: 144 | C139: 131823006401 | D139: Flash sur l'artiste | E139: 12 | F139: 7 | G139: 19 | H139: 0 | I139: 0 | J139: 38 | K139: 0 | L139: 53 | M139: 0 | O139: 0
A140: 13 | B140: 145 | C140: 131353006101 | D140: Santorin | E140: 13 | F140: 11 | G140: 17 | H140: 0 | I140: 0 | J140: 41 | K140: 0 | L140: 15 | M140: 0 | O140: 0
A141: 13 | B141: 146 | C141: 132060000901 | D141: Lever de soleil africain | E141: 12 | F141: 9 | G141: 7 | H141: 0 | I141: 0 | J141: 28 | K141: 0 | L141: 28 | M141: 7 | O141: 0
A142: 13 | B142: 147 | C142: 130925008701 | D142: Derviche tourneur | E142: 13 | F142: 10 | G142: 11 | H142: 0 | I142: 0 | J142: 34 | K142: 0 | L142: 145 | M142: 0 | O142: 0
A143: 13 | B143: 148 | C143: 132103002301 | D143: Les yeux de l'Inde | E143: 13 | F143: 13 | G143: 17 | H143: 0 | I143: 0 | J143: 43 | K143: 0 | L143: 79 | M143: 0 | O143: 0
A144: 13 | B144: 149 | C144: 131956002401 | D144: Réunion au sommet - lima | E144: 12 | F144: 12 | G144: 12 | H144: 0 | I144: 0 | J144: 36 | K144: 0 | L144: 23 | M144: 0 | O144: 0
A145: 13 | B145: 150 | C145: 131353000101 | D145: Travail des rizières | E145: 13 | F145: 11 | G145: 12 | H145: 0 | I145: 0 | J145: 36 | K145: 0 | L145: 25 | M145: 0 | O145: 0
A146: 13 | B146: 151 | C146: 131353000701 | D146: Vietnamese little girls | E146: 12 | F146: 12 | G146: 18 | H146: 0 | I146: 0 | J146: 42 | K146: 0 | L146: 90 | M146: 0 | O146: 0

Sheet Défi-3
A1: colis | B1: photologic | C1: fichier | D1: titre | E1: note1 | F1: note2 | G1: note3 | H1: note4 | I1: note5 | J1: total | K1: place | L1: passage | M1: statut | N1: medaille | O1: retenue | Q1: 0=absent 1=présent
A2: 13 | B2: 1 | C2: 130987024201 | D2: Cracheur de Feu | E2: 17 | F2: 18 | G2: 13 | H2: 0 | I2: 0 | J2: =SUM(E2:I2) -> 48 | K2: 0 | L2: 50 | M2: 0 | O2: 0 | Q2: =COUNTIF('Classement auteurs'!B:B,C2) -> 1
A3: 13 | B3: 2 | C3: 130987024101 | D3: A l'affut | E3: 15 | F3: 11 | G3: 10 | H3: 0 | I3: 0 | J3: =SUM(E3:I3) -> 36 | K3: 0 | L3: 65 | M3: 0 | O3: 0 | Q3: =COUNTIF('Classement auteurs'!B:B,C3) -> 1
A4: 13 | B4: 4 | C4: 130987012601 | D4: Répétition. | E4: 14 | F4: 15 | G4: 13 | H4: 0 | I4: 0 | J4: 42 | K4: 0 | L4: 149 | M4: 0 | O4: 0 | Q4: =COUNTIF('Classement auteurs'!B:B,C4) -> 1
A5: 13 | B5: 5 | C5: 131376018301 | D5: La poursuite | E5: 19 | F5: 18 | G5: 20 | H5: 0 | I5: 0 | J5: 57 | K5: 0 | L5: 132 | M5: 0 | O5: 0 | Q5: =COUNTIF('Classement auteurs'!B:B,C5) -> 1
A6: 13 | B6: 6 | C6: 132193000601 | D6: Proue inversée | E6: 17 | F6: 14 | G6: 13 | H6: 0 | I6: 0 | J6: 44 | K6: 0 | L6: 26 | M6: 0 | O6: 0 | Q6: =COUNTIF('Classement auteurs'!B:B,C6) -> 1
A7: 13 | B7: 7 | C7: 131683008001 | D7: Espiègle | E7: 16 | F7: 19 | G7: 12 | H7: 0 | I7: 0 | J7: 47 | K7: 0 | L7: 153 | M7: 0 | O7: 0 | Q7: =COUNTIF('Classement auteurs'!B:B,C7) -> 1
A8: 13 | B8: 8 | C8: 131823008301 | D8: Portrait de rue | E8: 16 | F8: 18 | G8: 14 | H8: 0 | I8: 0 | J8: 48 | K8: 0 | L8: 12 | M8: 0 | O8: 0 | Q8: =COUNTIF('Classement auteurs'!B:B,C8) -> 1
A9: 13 | B9: 9 | C9: 132103000101 | D9: Prendre de le temps | E9: 19 | F9: 19 | G9: 17 | H9: 0 | I9: 0 | J9: 55 | K9: 0 | L9: 152 | M9: 0 | O9: 0 | Q9: =COUNTIF('Classement auteurs'!B:B,C9) -> 1
A10: 13 | B10: 10 | C10: 131494003201 | D10: Jeans | E10: 15 | F10: 13 | G10: 11 | H10: 0 | I10: 0 | J10: 39 | K10: 0 | L10: 64 | M10: 0 | O10: 0 | Q10: =COUNTIF('Classement auteurs'!B:B,C10) -> 1
A11: 13 | B11: 11 | C11: 130000021001 | D11: Un voyage à LONDRES | E11: 7 | F11: 6 | G11: 8 | H11: 0 | I11: 0 | J11: 21 | K11: 0 | L11: 137 | M11: 6 | O11: 0 | Q11: =COUNTIF('Classement auteurs'!B:B,C11) -> 1
A12: 13 | B12: 12 | C12: 130987029901 | D12: Rodin.jpg | E12: 9 | F12: 11 | G12: 11 | H12: 0 | I12: 0 | J12: 31 | K12: 0 | L12: 113 | M12: 0 | O12: 0 | Q12: =COUNTIF('Classement auteurs'!B:B,C12) -> 1
A13: 13 | B13: 13 | C13: 131683007601 | D13: Maillot jaune | E13: 11 | F13: 10 | G13: 10 | H13: 0 | I13: 0 | J13: 31 | K13: 0 | L13: 20 | M13: 0 | O13: 0 | Q13: =COUNTIF('Classement auteurs'!B:B,C13) -> 1
A14: 13 | B14: 14 | C14: 131823004901 | D14: Ça chauffe | E14: 14 | F14: 16 | G14: 13 | H14: 0 | I14: 0 | J14: 43 | K14: 0 | L14: 48 | M14: 0 | O14: 0 | Q14: =COUNTIF('Classement auteurs'!B:B,C14) -> 1
A15: 13 | B15: 15 | C15: 131683005001 | D15: Rêverie | E15: 14 | F15: 13 | G15: 12 | H15: 0 | I15: 0 | J15: 39 | K15: 0 | L15: 31 | M15: 0 | O15: 0 | Q15: =COUNTIF('Classement auteurs'!B:B,C15) -> 1
A16: 13 | B16: 16 | C16: 131499008701 | D16: Suivre notre chemin... | E16: 13 | F16: 14 | G16: 12 | H16: 0 | I16: 0 | J16: 39 | K16: 0 | L16: 158 | M16: 0 | O16: 0 | Q16: =COUNTIF('Classement auteurs'!B:B,C16) -> 1
A17: 13 | B17: 17 | C17: 132193000301 | D17: Salsa | E17: 20 | F17: 7 | G17: 13 | H17: 0 | I17: 0 | J17: 40 | K17: 0 | L17: 4 | M17: 0 | O17: 0 | Q17: =COUNTIF('Classement auteurs'!B:B,C17) -> 1
A18: 13 | B18: 18 | C18: 131823008701 | D18: Jusqu'au ciel | E18: 8 | F18: 10 | G18: 10 | H18: 0 | I18: 0 | J18: 28 | K18: 0 | L18: 115 | M18: 0 | O18: 0 | Q18: =COUNTIF('Classement auteurs'!B:B,C18) -> 1
A19: 13 | B19: 20 | C19: 130987028401 | D19: Sensibilité de Granit | E19: 11 | F19: 7 | G19: 9 | H19: 0 | I19: 0 | J19: 27 | K19: 0 | L19: 93 | M19: 0 | O19: 0 | Q19: =COUNTIF('Classement auteurs'!B:B,C19) -> 1
A20: 13 | B20: 21 | C20: 131824001901 | D20: Terre Secrete Mâconnaise | E20: 17 | F20: 14 | G20: 14 | H20: 0 | I20: 0 | J20: 45 | K20: 0 | L20: 66 | M20: 0 | O20: 0 | Q20: =COUNTIF('Classement auteurs'!B:B,C20) -> 1
A21: 13 | B21: 22 | C21: 130878013001 | D21: La plage | E21: 15 | F21: 12 | G21: 12 | H21: 0 | I21: 0 | J21: 39 | K21: 0 | L21: 80 | M21: 0 | O21: 0 | Q21: =COUNTIF('Classement auteurs'!B:B,C21) -> 1
A22: 13 | B22: 23 | C22: 132084002301 | D22: Les petits hommes | E22: 19 | F22: 18 | G22: 17 | H22: 0 | I22: 0 | J22: 54 | K22: 0 | L22: 8 | M22: 0 | O22: 0 | Q22: =COUNTIF('Classement auteurs'!B:B,C22) -> 1
A23: 13 | B23: 24 | C23: 131683006301 | D23: Graphisme rural | E23: 11 | F23: 13 | G23: 10 | H23: 0 | I23: 0 | J23: 34 | K23: 0 | L23: 118 | M23: 0 | O23: 0 | Q23: =COUNTIF('Classement auteurs'!B:B,C23) -> 1
A24: 13 | B24: 25 | C24: 131862002201 | D24: Les fiancés | E24: 18 | F24: 12 | G24: 14 | H24: 0 | I24: 0 | J24: 44 | K24: 0 | L24: 144 | M24: 0 | O24: 0 | Q24: =COUNTIF('Classement auteurs'!B:B,C24) -> 1
A25: 13 | B25: 26 | C25: 130462001101 | D25: Oeuvre 1-mucem | E25: 13 | F25: 11 | G25: 14 | H25: 0 | I25: 0 | J25: 38 | K25: 0 | L25: 161 | M25: 0 | O25: 0 | Q25: =COUNTIF('Classement auteurs'!B:B,C25) -> 1
A26: 13 | B26: 27 | C26: 130987024001 | D26: Ambiance nordique | E26: 15 | F26: 15 | G26: 14 | H26: 0 | I26: 0 | J26: 44 | K26: 0 | L26: 121 | M26: 0 | O26: 0 | Q26: =COUNTIF('Classement auteurs'!B:B,C26) -> 1
A27: 13 | B27: 28 | C27: 131683000701 | D27: MARIE | E27: 18 | F27: 13 | G27: 17 | H27: 0 | I27: 0 | J27: 48 | K27: 0 | L27: 40 | M27: 0 | O27: 0 | Q27: =COUNTIF('Classement auteurs'!B:B,C27) -> 1
A28: 13 | B28: 29 | C28: 131879000801 | D28: Harmonie | E28: 19 | F28: 19 | G28: 20 | H28: 0 | I28: 0 | J28: 58 | K28: 0 | L28: 99 | M28: 0 | O28: 0 | Q28: =COUNTIF('Classement auteurs'!B:B,C28) -> 1
A29: 13 | B29: 30 | C29: 131499009301 | D29: Les parasols | E29: 11 | F29: 11 | G29: 13 | H29: 0 | I29: 0 | J29: 35 | K29: 0 | L29: 96 | M29: 0 | O29: 0 | Q29: =COUNTIF('Classement auteurs'!B:B,C29) -> 1
A30: 13 | B30: 31 | C30: 131879000101 | D30: Shinkansen-japon | E30: 13 | F30: 15 | G30: 10 | H30: 0 | I30: 0 | J30: 38 | K30: 0 | L30: 74 | M30: 0 | O30: 0 | Q30: =COUNTIF('Classement auteurs'!B:B,C30) -> 1
A31: 13 | B31: 32 | C31: 131824003101 | D31: Encre du Japon | E31: 15 | F31: 12 | G31: 14 | H31: 0 | I31: 0 | J31: 41 | K31: 0 | L31: 104 | M31: 0 | O31: 0 | Q31: =COUNTIF('Classement auteurs'!B:B,C31) -> 1
A32: 13 | B32: 33 | C32: 131353006101 | D32: Mains d'Argile | E32: 15 | F32: 11 | G32: 10 | H32: 0 | I32: 0 | J32: 36 | K32: 0 | L32: 63 | M32: 0 | O32: 0 | Q32: =COUNTIF('Classement auteurs'!B:B,C32) -> 1
A33: 13 | B33: 34 | C33: 131499009801 | D33: Bella musica | E33: 13 | F33: 10 | G33: 12 | H33: 0 | I33: 0 | J33: 35 | K33: 0 | L33: 82 | M33: 0 | O33: 0 | Q33: =COUNTIF('Classement auteurs'!B:B,C33) -> 1
A34: 13 | B34: 35 | C34: 132023000101 | D34: L'homme au damier | E34: 16 | F34: 8 | G34: 14 | H34: 0 | I34: 0 | J34: 38 | K34: 0 | L34: 92 | M34: 0 | O34: 0 | Q34: =COUNTIF('Classement auteurs'!B:B,C34) -> 1
A35: 13 | B35: 36 | C35: 130987015701 | D35: Douceur | E35: 12 | F35: 9 | G35: 13 | H35: 0 | I35: 0 | J35: 34 | K35: 0 | L35: 147 | M35: 0 | O35: 0 | Q35: =COUNTIF('Classement auteurs'!B:B,C35) -> 1
A36: 13 | B36: 38 | C36: 131499008601 | D36: Il potassait... | E36: 14 | F36: 11 | G36: 15 | H36: 0 | I36: 0 | J36: 40 | K36: 0 | L36: 159 | M36: 0 | O36: 0 | Q36: =COUNTIF('Classement auteurs'!B:B,C36) -> 1
A37: 13 | B37: 39 | C37: 131992000401 | D37: Fantôme de Noel | E37: 12 | F37: 9 | G37: 11 | H37: 0 | I37: 0 | J37: 32 | K37: 0 | L37: 138 | M37: 0 | O37: 0 | Q37: =COUNTIF('Classement auteurs'!B:B,C37) -> 1
A38: 13 | B38: 40 | C38: 130925010201 | D38: Arles | E38: 10 | F38: 11 | G38: 10 | H38: 0 | I38: 0 | J38: 31 | K38: 0 | L38: 15 | M38: 0 | O38: 0 | Q38: =COUNTIF('Classement auteurs'!B:B,C38) -> 1
A39: 13 | B39: 41 | C39: 131227008601 | D39: Après la pluie | E39: 20 | F39: 17 | G39: 16 | H39: 0 | I39: 0 | J39: 53 | K39: 0 | L39: 2 | M39: 0 | O39: 0 | Q39: =COUNTIF('Classement auteurs'!B:B,C39) -> 1
A40: 13 | B40: 42 | C40: 130878014101 | D40: Voilier echoué | E40: 15 | F40: 13 | G40: 16 | H40: 0 | I40: 0 | J40: 44 | K40: 0 | L40: 35 | M40: 0 | O40: 0 | Q40: =COUNTIF('Classement auteurs'!B:B,C40) -> 1
A41: 13 | B41: 44 | C41: 130000020401 | D41: The Camps | E41: 12 | F41: 11 | G41: 12 | H41: 0 | I41: 0 | J41: 35 | K41: 0 | L41: 131 | M41: 6 | O41: 0 | Q41: =COUNTIF('Classement auteurs'!B:B,C41) -> 1
A42: 13 | B42: 46 | C42: 131499005201 | D42: James | E42: 18 | F42: 14 | G42: 17 | H42: 0 | I42: 0 | J42: 49 | K42: 0 | L42: 28 | M42: 0 | O42: 0 | Q42: =COUNTIF('Classement auteurs'!B:B,C42) -> 1
A43: 13 | B43: 47 | C43: 131376014701 | D43: Trompette | E43: 13 | F43: 13 | G43: 13 | H43: 0 | I43: 0 | J43: 39 | K43: 0 | L43: 95 | M43: 0 | O43: 0 | Q43: =COUNTIF('Classement auteurs'!B:B,C43) -> 1
A44: 13 | B44: 48 | C44: 131956001401 | D44: Escalier Iranien | E44: 14 | F44: 9 | G44: 15 | H44: 0 | I44: 0 | J44: 38 | K44: 0 | L44: 105 | M44: 0 | O44: 0 | Q44: =COUNTIF('Classement auteurs'!B:B,C44) -> 1
A45: 13 | B45: 49 | C45: 131879000501 | D45: Rencontre | E45: 12 | F45: 13 | G45: 15 | H45: 0 | I45: 0 | J45: 40 | K45: 0 | L45: 85 | M45: 0 | O45: 0 | Q45: =COUNTIF('Classement auteurs'!B:B,C45) -> 1
A46: 13 | B46: 50 | C46: 130987013801 | D46: Massilia 2017 | E46: 16 | F46: 14 | G46: 15 | H46: 0 | I46: 0 | J46: 45 | K46: 0 | L46: 11 | M46: 0 | O46: 0 | Q46: =COUNTIF('Classement auteurs'!B:B,C46) -> 1
A47: 13 | B47: 51 | C47: 132060000801 | D47: Ramasseurs de coquillages | E47: 15 | F47: 7 | G47: 11 | H47: 0 | I47: 0 | J47: 33 | K47: 0 | L47: 17 | M47: 0 | O47: 0 | Q47: =COUNTIF('Classement auteurs'!B:B,C47) -> 1
A48: 13 | B48: 52 | C48: 132084000301 | D48: Fuir la cité maudite | E48: 14 | F48: 14 | G48: 12 | H48: 0 | I48: 0 | J48: 40 | K48: 0 | L48: 108 | M48: 0 | O48: 0 | Q48: =COUNTIF('Classement auteurs'!B:B,C48) -> 1
A49: 13 | B49: 53 | C49: 131376012601 | D49: Ecume des mers | E49: 13 | F49: 13 | G49: 14 | H49: 0 | I49: 0 | J49: 40 | K49: 0 | L49: 3 | M49: 0 | O49: 0 | Q49: =COUNTIF('Classement auteurs'!B:B,C49) -> 1
A50: 13 | B50: 54 | C50: 130987019601 | D50: La photographe | E50: 11 | F50: 12 | G50: 13 | H50: 0 | I50: 0 | J50: 36 | K50: 0 | L50: 19 | M50: 0 | O50: 0 | Q50: =COUNTIF('Classement auteurs'!B:B,C50) -> 1
A51: 13 | B51: 55 | C51: 130987019701 | D51: Big Ben | E51: 12 | F51: 16 | G51: 12 | H51: 0 | I51: 0 | J51: 40 | K51: 0 | L51: 33 | M51: 0 | O51: 0 | Q51: =COUNTIF('Classement auteurs'!B:B,C51) -> 1
A52: 13 | B52: 56 | C52: 130925008601 | D52: Silhouette | E52: 15 | F52: 8 | G52: 11 | H52: 0 | I52: 0 | J52: 34 | K52: 0 | L52: 155 | M52: 0 | O52: 0 | Q52: =COUNTIF('Classement auteurs'!B:B,C52) -> 1
A53: 13 | B53: 57 | C53: 130878007201 | D53: Marlène | E53: 13 | F53: 11 | G53: 13 | H53: 0 | I53: 0 | J53: 37 | K53: 0 | L53: 112 | M53: 0 | O53: 0 | Q53: =COUNTIF('Classement auteurs'!B:B,C53) -> 1
A54: 13 | B54: 58 | C54: 131845004001 | D54: John peter | E54: 17 | F54: 11 | G54: 14 | H54: 0 | I54: 0 | J54: 42 | K54: 0 | L54: 72 | M54: 0 | O54: 0 | Q54: =COUNTIF('Classement auteurs'!B:B,C54) -> 1
A55: 13 | B55: 59 | C55: 132084001701 | D55: Au bout... la mer | E55: 14 | F55: 12 | G55: 14 | H55: 0 | I55: 0 | J55: 40 | K55: 0 | L55: 27 | M55: 0 | O55: 0 | Q55: =COUNTIF('Classement auteurs'!B:B,C55) -> 1
A56: 13 | B56: 60 | C56: 132060001701 | D56: Artiste dans l'atelier | E56: 14 | F56: 8 | G56: 11 | H56: 0 | I56: 0 | J56: 33 | K56: 0 | L56: 55 | M56: 0 | O56: 0 | Q56: =COUNTIF('Classement auteurs'!B:B,C56) -> 1
A57: 13 | B57: 61 | C57: 131862001001 | D57: Brume et Givre | E57: 13 | F57: 10 | G57: 13 | H57: 0 | I57: 0 | J57: 36 | K57: 0 | L57: 49 | M57: 0 | O57: 0 | Q57: =COUNTIF('Classement auteurs'!B:B,C57) -> 1
A58: 13 | B58: 62 | C58: 132103002301 | D58: Nobody... nowhere | E58: 13 | F58: 16 | G58: 14 | H58: 0 | I58: 0 | J58: 43 | K58: 0 | L58: 89 | M58: 0 | O58: 0 | Q58: =COUNTIF('Classement auteurs'!B:B,C58) -> 1
A59: 13 | B59: 63 | C59: 132217000101 | D59: Dans le vent | E59: 9 | F59: 8 | G59: 13 | H59: 0 | I59: 0 | J59: 30 | K59: 0 | L59: 22 | M59: 0 | O59: 0 | Q59: =COUNTIF('Classement auteurs'!B:B,C59) -> 1
A60: 13 | B60: 64 | C60: 131353006201 | D60: Cairn à Quiberon | E60: 12 | F60: 14 | G60: 13 | H60: 0 | I60: 0 | J60: 39 | K60: 0 | L60: 46 | M60: 0 | O60: 0 | Q60: =COUNTIF('Classement auteurs'!B:B,C60) -> 1
A61: 13 | B61: 65 | C61: 132084004001 | D61: Village Diola | E61: 13 | F61: 8 | G61: 11 | H61: 0 | I61: 0 | J61: 32 | K61: 0 | L61: 71 | M61: 0 | O61: 0 | Q61: =COUNTIF('Classement auteurs'!B:B,C61) -> 1
A62: 13 | B62: 66 | C62: 132103000201 | D62: La femme du village | E62: 14 | F62: 18 | G62: 12 | H62: 0 | I62: 0 | J62: 44 | K62: 0 | L62: 51 | M62: 0 | O62: 0 | Q62: =COUNTIF('Classement auteurs'!B:B,C62) -> 1
A63: 13 | B63: 68 | C63: 130527013301 | D63: New york | E63: 12 | F63: 14 | G63: 14 | H63: 0 | I63: 0 | J63: 40 | K63: 0 | L63: 62 | M63: 0 | O63: 0 | Q63: =COUNTIF('Classement auteurs'!B:B,C63) -> 1
A64: 13 | B64: 69 | C64: 130527011601 | D64: THE BIG APPLE | E64: 12 | F64: 11 | G64: 14 | H64: 0 | I64: 0 | J64: 37 | K64: 0 | L64: 7 | M64: 0 | O64: 0 | Q64: =COUNTIF('Classement auteurs'!B:B,C64) -> 1
A65: 13 | B65: 70 | C65: 131494002301 | D65: Vagues à l'âme | E65: 11 | F65: 9 | G65: 12 | H65: 0 | I65: 0 | J65: 32 | K65: 0 | L65: 116 | M65: 0 | O65: 0 | Q65: =COUNTIF('Classement auteurs'!B:B,C65) -> 1
A66: 13 | B66: 71 | C66: 130987001601 | D66: Il chante!!! | E66: 14 | F66: 7 | G66: 14 | H66: 0 | I66: 0 | J66: 35 | K66: 0 | L66: 111 | M66: 0 | O66: 0 | Q66: =COUNTIF('Classement auteurs'!B:B,C66) -> 1
A67: 13 | B67: 72 | C67: 131823005701 | D67: L'ange | E67: 13 | F67: 12 | G67: 12 | H67: 0 | I67: 0 | J67: =SUM(E67:I67) -> 37 | K67: 0 | L67: 45 | M67: 0 | O67: 0 | Q67: =COUNTIF('Classement auteurs'!B:B,C67) -> 1
A68: 13 | B68: 73 | C68: 130987014001 | D68: Prière | E68: 8 | F68: 7 | G68: 8 | H68: 0 | I68: 0 | J68: 23 | K68: 0 | L68: 76 | M68: 0 | O68: 0 | Q68: =COUNTIF('Classement auteurs'!B:B,C68) -> 1
A69: 13 | B69: 74 | C69: 131845002501 | D69: Spartan à St Tropez | E69: 11 | F69: 11 | G69: 10 | H69: 0 | I69: 0 | J69: 32 | K69: 0 | L69: 87 | M69: 0 | O69: 0 | Q69: =COUNTIF('Classement auteurs'!B:B,C69) -> 1
A70: 13 | B70: 75 | C70: 130878013401 | D70: Prison | E70: 14 | F70: 9 | G70: 13 | H70: 0 | I70: 0 | J70: 36 | K70: 0 | L70: 162 | M70: 0 | O70: 0 | Q70: =COUNTIF('Classement auteurs'!B:B,C70) -> 1
A71: 13 | B71: 76 | C71: 130878014301 | D71: L'homme | E71: 19 | F71: 16 | G71: 17 | H71: 0 | I71: 0 | J71: 52 | K71: 0 | L71: 107 | M71: 0 | O71: 0 | Q71: =COUNTIF('Classement auteurs'!B:B,C71) -> 1
A72: 13 | B72: 77 | C72: 131879001301 | D72: Rue | E72: 17 | F72: 16 | G72: 13 | H72: 0 | I72: 0 | J72: 46 | K72: 0 | L72: 14 | M72: 0 | O72: 0 | Q72: =COUNTIF('Classement auteurs'!B:B,C72) -> 1
A73: 13 | B73: 78 | C73: 130527015501 | D73: Amaryllis | E73: 14 | F73: 19 | G73: 12 | H73: 0 | I73: 0 | J73: 45 | K73: 0 | L73: 140 | M73: 0 | O73: 0 | Q73: =COUNTIF('Classement auteurs'!B:B,C73) -> 1
A74: 13 | B74: 79 | C74: 131823006401 | D74: Solitude | E74: 16 | F74: 10 | G74: 13 | H74: 0 | I74: 0 | J74: 39 | K74: 0 | L74: 23 | M74: 0 | O74: 0 | Q74: =COUNTIF('Classement auteurs'!B:B,C74) -> 1
A75: 13 | B75: 81 | C75: 131683006601 | D75: Escaliers | E75: 13 | F75: 15 | G75: 14 | H75: 0 | I75: 0 | J75: 42 | K75: 0 | L75: 110 | M75: 0 | O75: 0 | Q75: =COUNTIF('Classement auteurs'!B:B,C75) -> 1
A76: 13 | B76: 82 | C76: 132060001801 | D76: Est-ce la bonne direction ? | E76: 17 | F76: 11 | G76: 12 | H76: 0 | I76: 0 | J76: 40 | K76: 0 | L76: 44 | M76: 0 | O76: 0 | Q76: =COUNTIF('Classement auteurs'!B:B,C76) -> 1
A77: 13 | B77: 83 | C77: 130527019601 | D77: Flatiron building | E77: 9 | F77: 10 | G77: 10 | H77: 0 | I77: 0 | J77: 29 | K77: 0 | L77: 91 | M77: 0 | O77: 0 | Q77: =COUNTIF('Classement auteurs'!B:B,C77) -> 1
A78: 13 | B78: 84 | C78: 130527012401 | D78: En vallée d'Aspe | E78: 6 | F78: 6 | G78: 6 | H78: 0 | I78: 0 | J78: 18 | K78: 0 | L78: 136 | M78: 0 | O78: 0 | Q78: =COUNTIF('Classement auteurs'!B:B,C78) -> 1
A79: 13 | B79: 85 | C79: 130925008701 | D79: Cimetière | E79: 18 | F79: 9 | G79: 12 | H79: 0 | I79: 0 | J79: 39 | K79: 0 | L79: 43 | M79: 0 | O79: 0 | Q79: =COUNTIF('Classement auteurs'!B:B,C79) -> 1
A80: 13 | B80: 86 | C80: 131823007601 | D80: Cha NB | E80: 14 | F80: 13 | G80: 13 | H80: 0 | I80: 0 | J80: 40 | K80: 0 | L80: 67 | M80: 0 | O80: 0 | Q80: =COUNTIF('Classement auteurs'!B:B,C80) -> 1
A81: 13 | B81: 87 | C81: 130987026701 | D81: Tamaris Le Matin_ St Mandrier _26.08.17 | E81: 12 | F81: 12 | G81: 8 | H81: 0 | I81: 0 | J81: 32 | K81: 0 | L81: 84 | M81: 0 | O81: 0 | Q81: =COUNTIF('Classement auteurs'!B:B,C81) -> 1
A82: 13 | B82: 88 | C82: 132086001401 | D82: Rêverie | E82: 15 | F82: 10 | G82: 12 | H82: 0 | I82: 0 | J82: 37 | K82: 0 | L82: 37 | M82: 0 | O82: 0 | Q82: =COUNTIF('Classement auteurs'!B:B,C82) -> 1
A83: 13 | B83: 89 | C83: 130527002501 | D83: Méfiance | E83: 17 | F83: 11 | G83: 10 | H83: 0 | I83: 0 | J83: 38 | K83: 0 | L83: 25 | M83: 0 | O83: 0 | Q83: =COUNTIF('Classement auteurs'!B:B,C83) -> 1
A84: 13 | B84: 90 | C84: 132203000501 | D84: L'embarras du choix | E84: 10 | F84: 9 | G84: 11 | H84: 0 | I84: 0 | J84: 30 | K84: 0 | L84: 117 | M84: 0 | O84: 0 | Q84: =COUNTIF('Classement auteurs'!B:B,C84) -> 1
A85: 13 | B85: 91 | C85: 131992000301 | D85: Petit matin dans la mare | E85: 10 | F85: 12 | G85: 10 | H85: 0 | I85: 0 | J85: 32 | K85: 0 | L85: 160 | M85: 0 | O85: 0 | Q85: =COUNTIF('Classement auteurs'!B:B,C85) -> 1
A86: 13 | B86: 92 | C86: 132086002301 | D86: Elle part | E86: 17 | F86: 7 | G86: 11 | H86: 0 | I86: 0 | J86: 35 | K86: 0 | L86: 54 | M86: 0 | O86: 0 | Q86: =COUNTIF('Classement auteurs'!B:B,C86) -> 1
A87: 13 | B87: 93 | C87: 131499010401 | D87: Salins | E87: 18 | F87: 11 | G87: 14 | H87: 0 | I87: 0 | J87: 43 | K87: 0 | L87: 109 | M87: 0 | O87: 0 | Q87: =COUNTIF('Classement auteurs'!B:B,C87) -> 1
A88: 13 | B88: 94 | C88: 131683005101 | D88: Regard sur la rue | E88: 13 | F88: 15 | G88: 13 | H88: 0 | I88: 0 | J88: 41 | K88: 0 | L88: 39 | M88: 0 | O88: 0 | Q88: =COUNTIF('Classement auteurs'!B:B,C88) -> 1
A89: 13 | B89: 95 | C89: 130987023901 | D89: Infiniment petit dans l'infiniment grand | E89: 12 | F89: 14 | G89: 14 | H89: 0 | I89: 0 | J89: 40 | K89: 0 | L89: 129 | M89: 0 | O89: 0 | Q89: =COUNTIF('Classement auteurs'!B:B,C89) -> 1
A90: 13 | B90: 96 | C90: 130000019901 | D90: Arles | E90: 17 | F90: 12 | G90: 15 | H90: 0 | I90: 0 | J90: 44 | K90: 0 | L90: 34 | M90: 6 | O90: 0 | Q90: =COUNTIF('Classement auteurs'!B:B,C90) -> 1
A91: 13 | B91: 97 | C91: 132060002401 | D91: La force Polynésienne | E91: 13 | F91: 8 | G91: 11 | H91: 0 | I91: 0 | J91: 32 | K91: 0 | L91: 47 | M91: 0 | O91: 0 | Q91: =COUNTIF('Classement auteurs'!B:B,C91) -> 1
A92: 13 | B92: 98 | C92: 130925008401 | D92: Exploration | E92: 16 | F92: 13 | G92: 11 | H92: 0 | I92: 0 | J92: 40 | K92: 0 | L92: 42 | M92: 0 | O92: 0 | Q92: =COUNTIF('Classement auteurs'!B:B,C92) -> 1
A93: 13 | B93: 99 | C93: 131862001101 | D93: Fabrice Bistoni à Opio | E93: 13 | F93: 13 | G93: 15 | H93: 0 | I93: 0 | J93: 41 | K93: 0 | L93: 24 | M93: 0 | O93: 0 | Q93: =COUNTIF('Classement auteurs'!B:B,C93) -> 1
A94: 13 | B94: 100 | C94: 131879002001 | D94: Brume hivernale | E94: 17 | F94: 12 | G94: 13 | H94: 0 | I94: 0 | J94: 42 | K94: 0 | L94: 16 | M94: 0 | O94: 0 | Q94: =COUNTIF('Classement auteurs'!B:B,C94) -> 1
A95: 13 | B95: 101 | C95: 131110001101 | D95: Jeu d'ombres | E95: 12 | F95: 10 | G95: 16 | H95: 0 | I95: 0 | J95: 38 | K95: 0 | L95: 101 | M95: 0 | O95: 0 | Q95: =COUNTIF('Classement auteurs'!B:B,C95) -> 1
A96: 13 | B96: 102 | C96: 131683008101 | D96: L'alchimiste | E96: 13 | F96: 12 | G96: 12 | H96: 0 | I96: 0 | J96: 37 | K96: 0 | L96: 146 | M96: 0 | O96: 0 | Q96: =COUNTIF('Classement auteurs'!B:B,C96) -> 1
A97: 13 | B97: 103 | C97: 131499010001 | D97: Continue ! | E97: 16 | F97: 13 | G97: 14 | H97: 0 | I97: 0 | J97: 43 | K97: 0 | L97: 139 | M97: 0 | O97: 0 | Q97: =COUNTIF('Classement auteurs'!B:B,C97) -> 1
A98: 13 | B98: 104 | C98: 131683007901 | D98: Caresse de lumière | E98: 13 | F98: 12 | G98: 13 | H98: 0 | I98: 0 | J98: 38 | K98: 0 | L98: 88 | M98: 0 | O98: 0 | Q98: =COUNTIF('Classement auteurs'!B:B,C98) -> 1
A99: 13 | B99: 105 | C99: 130925009801 | D99: Le signe | E99: 15 | F99: 9 | G99: 17 | H99: 0 | I99: 0 | J99: 41 | K99: 0 | L99: 32 | M99: 0 | O99: 0 | Q99: =COUNTIF('Classement auteurs'!B:B,C99) -> 1
A100: 13 | B100: 107 | C100: 131879000901 | D100: Clip | E100: 14 | F100: 16 | G100: 14 | H100: 0 | I100: 0 | J100: 44 | K100: 0 | L100: 143 | M100: 0 | O100: 0 | Q100: =COUNTIF('Classement auteurs'!B:B,C100) -> 1
A101: 13 | B101: 108 | C101: 131110000901 | D101: Pecheur Intha | E101: 18 | F101: 20 | G101: 18 | H101: 0 | I101: 0 | J101: 56 | K101: 0 | L101: 83 | M101: 0 | O101: 0 | Q101: =COUNTIF('Classement auteurs'!B:B,C101) -> 1
A102: 13 | B102: 109 | C102: 130925009901 | D102: Tchatche | E102: 15 | F102: 7 | G102: 12 | H102: 0 | I102: 0 | J102: 34 | K102: 0 | L102: 97 | M102: 0 | O102: 0 | Q102: =COUNTIF('Classement auteurs'!B:B,C102) -> 1
A103: 13 | B103: 110 | C103: 131110001001 | D103: Le chemin | E103: 13 | F103: 15 | G103: 12 | H103: 0 | I103: 0 | J103: 40 | K103: 0 | L103: 122 | M103: 0 | O103: 0 | Q103: =COUNTIF('Classement auteurs'!B:B,C103) -> 1
A104: 13 | B104: 111 | C104: 131956002401 | D104: Haut alpin bienveillant | E104: 14 | F104: 15 | G104: 11 | H104: 0 | I104: 0 | J104: 40 | K104: 0 | L104: 150 | M104: 0 | O104: 0 | Q104: =COUNTIF('Classement auteurs'!B:B,C104) -> 1
A105: 13 | B105: 112 | C105: 131845000101 | D105: Tempête du 11 décembre 2017 | E105: 14 | F105: 14 | G105: 13 | H105: 0 | I105: 0 | J105: 41 | K105: 0 | L105: 120 | M105: 0 | O105: 0 | Q105: =COUNTIF('Classement auteurs'!B:B,C105) -> 1
A106: 13 | B106: 113 | C106: 131494000201 | D106: Lucy | E106: 14 | F106: 13 | G106: 15 | H106: 0 | I106: 0 | J106: 42 | K106: 0 | L106: 18 | M106: 0 | O106: 0 | Q106: =COUNTIF('Classement auteurs'!B:B,C106) -> 1
A107: 13 | B107: 114 | C107: 131956004501 | D107: Sète | E107: 16 | F107: 9 | G107: 10 | H107: 0 | I107: 0 | J107: 35 | K107: 0 | L107: 77 | M107: 0 | O107: 0 | Q107: =COUNTIF('Classement auteurs'!B:B,C107) -> 1
A108: 13 | B108: 115 | C108: 130987007401 | D108: Venise | E108: 10 | F108: 7 | G108: 11 | H108: 0 | I108: 0 | J108: 28 | K108: 0 | L108: 145 | M108: 0 | O108: 0 | Q108: =COUNTIF('Classement auteurs'!B:B,C108) -> 1
A109: 13 | B109: 116 | C109: 132084005001 | D109: Quand vient la fin de l'été | E109: 15 | F109: 11 | G109: 13 | H109: 0 | I109: 0 | J109: 39 | K109: 0 | L109: 128 | M109: 0 | O109: 0 | Q109: =COUNTIF('Classement auteurs'!B:B,C109) -> 1
A110: 13 | B110: 117 | C110: 131956006501 | D110: LA SOUPE DE BOGOTA | E110: 13 | F110: 10 | G110: 11 | H110: 0 | I110: 0 | J110: 34 | K110: 0 | L110: 124 | M110: 0 | O110: 0 | Q110: =COUNTIF('Classement auteurs'!B:B,C110) -> 1
A111: 13 | B111: 118 | C111: 130925010501 | D111: Nathalie | E111: 18 | F111: 10 | G111: 18 | H111: 0 | I111: 0 | J111: 46 | K111: 0 | L111: 103 | M111: 0 | O111: 0 | Q111: =COUNTIF('Classement auteurs'!B:B,C111) -> 1
A112: 13 | B112: 119 | C112: 132089000301 | D112: Vieux Cabanon | E112: 12 | F112: 10 | G112: 9 | H112: 0 | I112: 0 | J112: 31 | K112: 0 | L112: 36 | M112: 0 | O112: 0 | Q112: =COUNTIF('Classement auteurs'!B:B,C112) -> 1
A113: 13 | B113: 120 | C113: 132089000201 | D113: Demoiselle d'Honneur | E113: 14 | F113: 16 | G113: 13 | H113: 0 | I113: 0 | J113: 43 | K113: 0 | L113: 81 | M113: 0 | O113: 0 | Q113: =COUNTIF('Classement auteurs'!B:B,C113) -> 1
A114: 13 | B114: 121 | C114: 132203000701 | D114: Sortir de l'ombre | E114: 18 | F114: 10 | G114: 12 | H114: 0 | I114: 0 | J114: 40 | K114: 0 | L114: 141 | M114: 0 | O114: 0 | Q114: =COUNTIF('Classement auteurs'!B:B,C114) -> 1
A115: 13 | B115: 122 | C115: 132103000501 | D115: Arrosage Municipal | E115: 13 | F115: 10 | G115: 14 | H115: 0 | I115: 0 | J115: 37 | K115: 0 | L115: 1 | M115: 0 | O115: 0 | Q115: =COUNTIF('Classement auteurs'!B:B,C115) -> 1
A116: 13 | B116: 123 | C116: 131353004301 | D116: Rencontre | E116: 12 | F116: 13 | G116: 10 | H116: 0 | I116: 0 | J116: 35 | K116: 0 | L116: 100 | M116: 0 | O116: 0 | Q116: =COUNTIF('Classement auteurs'!B:B,C116) -> 1
A117: 13 | B117: 124 | C117: 132060000701 | D117: Vertige | E117: 11 | F117: 9 | G117: 11 | H117: 0 | I117: 0 | J117: 31 | K117: 0 | L117: 90 | M117: 0 | O117: 0 | Q117: =COUNTIF('Classement auteurs'!B:B,C117) -> 1
A118: 13 | B118: 125 | C118: 131353003001 | D118: Sur le chemin de Saint-Jacques | E118: 12 | F118: 13 | G118: 12 | H118: 0 | I118: 0 | J118: 37 | K118: 0 | L118: 5 | M118: 0 | O118: 0 | Q118: =COUNTIF('Classement auteurs'!B:B,C118) -> 1
A119: 13 | B119: 126 | C119: 131353007101 | D119: Du blanc ou du rouge? | E119: 13 | F119: 7 | G119: 13 | H119: 0 | I119: 0 | J119: 33 | K119: 0 | L119: 102 | M119: 0 | O119: 0 | Q119: =COUNTIF('Classement auteurs'!B:B,C119) -> 1
A120: 13 | B120: 127 | C120: 131376017701 | D120: Echec et Mat? | E120: 19 | F120: 15 | G120: 14 | H120: 0 | I120: 0 | J120: 48 | K120: 0 | L120: 114 | M120: 0 | O120: 0 | Q120: =COUNTIF('Classement auteurs'!B:B,C120) -> 1
A121: 13 | B121: 128 | C121: 131845004101 | D121: Petite fille au parapluie | E121: 11 | F121: 10 | G121: 13 | H121: 0 | I121: 0 | J121: 34 | K121: 0 | L121: 134 | M121: 0 | O121: 0 | Q121: =COUNTIF('Classement auteurs'!B:B,C121) -> 1
A122: 13 | B122: 129 | C122: 131862000801 | D122: Cosmos 1999 | E122: 12 | F122: 11 | G122: 13 | H122: 0 | I122: 0 | J122: 36 | K122: 0 | L122: 79 | M122: 0 | O122: 0 | Q122: =COUNTIF('Classement auteurs'!B:B,C122) -> 1
A123: 13 | B123: 130 | C123: 131862005801 | D123: Dentelle métallique | E123: 13 | F123: 9 | G123: 11 | H123: 0 | I123: 0 | J123: 33 | K123: 0 | L123: 148 | M123: 0 | O123: 0 | Q123: =COUNTIF('Classement auteurs'!B:B,C123) -> 1
A124: 13 | B124: 131 | C124: 131823004201 | D124: Nature orfèvre | E124: 16 | F124: 10 | G124: 8 | H124: 0 | I124: 0 | J124: 34 | K124: 0 | L124: 69 | M124: 0 | O124: 0 | Q124: =COUNTIF('Classement auteurs'!B:B,C124) -> 1
A125: 13 | B125: 132 | C125: 132203001101 | D125: Bouton de tournesol | E125: 15 | F125: 16 | G125: 13 | H125: 0 | I125: 0 | J125: 44 | K125: 0 | L125: 127 | M125: 0 | O125: 0 | Q125: =COUNTIF('Classement auteurs'!B:B,C125) -> 1
A126: 13 | B126: 133 | C126: 132060002201 | D126: Feu d'artifice | E126: 13 | F126: 11 | G126: 12 | H126: 0 | I126: 0 | J126: 36 | K126: 0 | L126: 135 | M126: 0 | O126: 0 | Q126: =COUNTIF('Classement auteurs'!B:B,C126) -> 1
A127: 13 | B127: 134 | C127: 131499006801 | D127: Complicité | E127: 18 | F127: 16 | G127: 14 | H127: 0 | I127: 0 | J127: 48 | K127: 0 | L127: 156 | M127: 0 | O127: 0 | Q127: =COUNTIF('Classement auteurs'!B:B,C127) -> 1
A128: 13 | B128: 135 | C128: 132060000101 | D128: Bien à l'Ombre | E128: 11 | F128: 11 | G128: 11 | H128: 0 | I128: 0 | J128: 33 | K128: 0 | L128: 70 | M128: 0 | O128: 0 | Q128: =COUNTIF('Classement auteurs'!B:B,C128) -> 1
A129: 13 | B129: 136 | C129: 131956000201 | D129: Solitude urbaine | E129: 16 | F129: 14 | G129: 14 | H129: 0 | I129: 0 | J129: 44 | K129: 0 | L129: 9 | M129: 0 | O129: 0 | Q129: =COUNTIF('Classement auteurs'!B:B,C129) -> 1
A130: 13 | B130: 137 | C130: 131619004501 | D130: Suivez la digue | E130: 15 | F130: 18 | G130: 15 | H130: 0 | I130: 0 | J130: 48 | K130: 0 | L130: 78 | M130: 0 | O130: 0 | Q130: =COUNTIF('Classement auteurs'!B:B,C130) -> 1
A131: 13 | B131: 138 | C131: 131683006901 | D131: Trois hommes et un goret | E131: 19 | F131: 16 | G131: 16 | H131: 0 | I131: 0 | J131: =SUM(E131:I131) -> 51 | K131: 0 | L131: 126 | M131: 0 | O131: 0 | Q131: =COUNTIF('Classement auteurs'!B:B,C131) -> 1
A132: 13 | B132: 139 | C132: 132060000401 | D132: L'estacade | E132: 15 | F132: 15 | G132: 13 | H132: 0 | I132: 0 | J132: 43 | K132: 0 | L132: 125 | M132: 0 | O132: 0 | Q132: =COUNTIF('Classement auteurs'!B:B,C132) -> 1
A133: 13 | B133: 140 | C133: 132060001401 | D133: Scène de vie | E133: 13 | F133: 8 | G133: 14 | H133: 0 | I133: 0 | J133: 35 | K133: 0 | L133: 86 | M133: 0 | O133: 0 | Q133: =COUNTIF('Classement auteurs'!B:B,C133) -> 1
A134: 13 | B134: 141 | C134: 131499003901 | D134: Plage d'hiver | E134: 15 | F134: 11 | G134: 14 | H134: 0 | I134: 0 | J134: 40 | K134: 0 | L134: 59 | M134: 0 | O134: 0 | Q134: =COUNTIF('Classement auteurs'!B:B,C134) -> 1
A135: 13 | B135: 142 | C135: 131845001401 | D135: Sous le cône | E135: 13 | F135: 17 | G135: 18 | H135: 0 | I135: 0 | J135: 48 | K135: 0 | L135: 123 | M135: 0 | O135: 0 | Q135: =COUNTIF('Classement auteurs'!B:B,C135) -> 1
A136: 13 | B136: 143 | C136: 131956004601 | D136: Le Mont chauve, Géant de Provence | E136: 18 | F136: 17 | G136: 15 | H136: 0 | I136: 0 | J136: 50 | K136: 0 | L136: 10 | M136: 0 | O136: 0 | Q136: =COUNTIF('Classement auteurs'!B:B,C136) -> 1
A137: 13 | B137: 144 | C137: 131499010601 | D137: Sur les marches | E137: 13 | F137: 12 | G137: 12 | H137: 0 | I137: 0 | J137: 37 | K137: 0 | L137: 106 | M137: 0 | O137: 0 | Q137: =COUNTIF('Classement auteurs'!B:B,C137) -> 1
A138: 13 | B138: 145 | C138: 131956003401 | D138: Influence | E138: 13 | F138: 10 | G138: 11 | H138: 0 | I138: 0 | J138: 34 | K138: 0 | L138: 75 | M138: 0 | O138: 0 | Q138: =COUNTIF('Classement auteurs'!B:B,C138) -> 1
A139: 13 | B139: 146 | C139: 131499010501 | D139: Spirituals | E139: 14 | F139: 16 | G139: 17 | H139: 0 | I139: 0 | J139: 47 | K139: 0 | L139: 38 | M139: 0 | O139: 0
A140: 13 | B140: 147 | C140: 132060001201 | D140: Vis-à-Vis | E140: 12 | F140: 14 | G140: 13 | H140: 0 | I140: 0 | J140: 39 | K140: 0 | L140: 119 | M140: 0 | O140: 0
A141: 13 | B141: 148 | C141: 130925007601 | D141: Femme hmong | E141: 15 | F141: 14 | G141: 14 | H141: 0 | I141: 0 | J141: 43 | K141: 0 | L141: 30 | M141: 0 | O141: 0
A142: 13 | B142: 149 | C142: 130925007701 | D142: Le Vélo | E142: 18 | F142: 16 | G142: 14 | H142: 0 | I142: 0 | J142: 48 | K142: 0 | L142: 57 | M142: 0 | O142: 0
A143: 13 | B143: 150 | C143: 131956002901 | D143: Victoire de la beauté | E143: 15 | F143: 10 | G143: 15 | H143: 0 | I143: 0 | J143: 40 | K143: 0 | L143: 157 | M143: 0 | O143: 0
A144: 13 | B144: 151 | C144: 131499006901 | D144: Là haut | E144: 16 | F144: 16 | G144: 11 | H144: 0 | I144: 0 | J144: 43 | K144: 0 | L144: 142 | M144: 0 | O144: 0
A145: 13 | B145: 152 | C145: 131353007401 | D145: Marché d'Arequipa Pérou | E145: 12 | F145: 15 | G145: 13 | H145: 0 | I145: 0 | J145: 40 | K145: 0 | L145: 56 | M145: 0 | O145: 0
A146: 13 | B146: 153 | C146: 130527017001 | D146: L'envol... | E146: 15 | F146: 7 | G146: 9 | H146: 0 | I146: 0 | J146: 31 | K146: 0 | L146: 94 | M146: 0 | O146: 0
A147: 13 | B147: 154 | C147: 131353007301 | D147: Marché d'Ampato Equateur | E147: 14 | F147: 12 | G147: 12 | H147: 0 | I147: 0 | J147: 38 | K147: 0 | L147: 151 | M147: 0 | O147: 0
A148: 13 | B148: 155 | C148: 130527009401 | D148: Matinale... | E148: 16 | F148: 14 | G148: 16 | H148: 0 | I148: 0 | J148: 46 | K148: 0 | L148: 73 | M148: 0 | O148: 0
A149: 13 | B149: 156 | C149: 131956005701 | D149: L'attente | E149: 11 | F149: 13 | G149: 10 | H149: 0 | I149: 0 | J149: 34 | K149: 0 | L149: 21 | M149: 0 | O149: 0
A150: 13 | B150: 157 | C150: 131956000601 | D150: Tour CMA-CGM | E150: 12 | F150: 16 | G150: 13 | H150: 0 | I150: 0 | J150: 41 | K150: 0 | L150: 41 | M150: 0 | O150: 0
A151: 13 | B151: 158 | C151: 131845002101 | D151: Vertige | E151: 13 | F151: 13 | G151: 16 | H151: 0 | I151: 0 | J151: 42 | K151: 0 | L151: 13 | M151: 0 | O151: 0
A152: 13 | B152: 159 | C152: 131879000601 | D152: Albi | E152: 13 | F152: 10 | G152: 11 | H152: 0 | I152: 0 | J152: 34 | K152: 0 | L152: 68 | M152: 0 | O152: 0
A153: 13 | B153: 160 | C153: 131956006201 | D153: Le maître de la horde | E153: 14 | F153: 14 | G153: 11 | H153: 0 | I153: 0 | J153: 39 | K153: 0 | L153: 29 | M153: 0 | O153: 0
A154: 13 | B154: 161 | C154: 131683006501 | D154: Au travers | E154: 17 | F154: 7 | G154: 10 | H154: 0 | I154: 0 | J154: 34 | K154: 0 | L154: 60 | M154: 0 | O154: 0
A155: 13 | B155: 162 | C155: 132086002501 | D155: Petit Gitan | E155: 12 | F155: 13 | G155: 13 | H155: 0 | I155: 0 | J155: 38 | K155: 0 | L155: 154 | M155: 0 | O155: 0
A156: 13 | B156: 163 | C156: 131956005401 | D156: La dame en noir | E156: 12 | F156: 10 | G156: 12 | H156: 0 | I156: 0 | J156: 34 | K156: 0 | L156: 58 | M156: 0 | O156: 0
A157: 13 | B157: 164 | C157: 130987002301 | D157: Clic | E157: 15 | F157: 14 | G157: 11 | H157: 0 | I157: 0 | J157: 40 | K157: 0 | L157: 6 | M157: 0 | O157: 0
A158: 13 | B158: 165 | C158: 131499003601 | D158: Préfouns | E158: 14 | F158: 10 | G158: 11 | H158: 0 | I158: 0 | J158: 35 | K158: 0 | L158: 133 | M158: 0 | O158: 0
A159: 13 | B159: 166 | C159: 131956002601 | D159: Soupir | E159: 13 | F159: 17 | G159: 14 | H159: 0 | I159: 0 | J159: 44 | K159: 0 | L159: 98 | M159: 0 | O159: 0
A160: 13 | B160: 167 | C160: 131619004601 | D160: Axe majeur | E160: 14 | F160: 11 | G160: 14 | H160: 0 | I160: 0 | J160: 39 | K160: 0 | L160: 52 | M160: 0 | O160: 0
A161: 13 | B161: 168 | C161: 131353000101 | D161: Avec maman | E161: 15 | F161: 18 | G161: 13 | H161: 0 | I161: 0 | J161: 46 | K161: 0 | L161: 61 | M161: 0 | O161: 0
A162: 13 | B162: 169 | C162: 131353000701 | D162: Solitaire | E162: 12 | F162: 13 | G162: 14 | H162: 0 | I162: 0 | J162: 39 | K162: 0 | L162: 53 | M162: 0 | O162: 0
A163: 13 | B163: 170 | C163: 131353000201 | D163: Pigeons | E163: 9 | F163: 8 | G163: 8 | H163: 0 | I163: 0 | J163: 25 | K163: 0 | L163: 130 | M163: 0 | O163: 0

Sheet Défi-4
A1: colis | B1: photologic | C1: fichier | D1: titre | E1: note1 | F1: note2 | G1: note3 | H1: note4 | I1: note5 | J1: total | K1: place | L1: passage | M1: statut | N1: medaille | O1: retenue | Q1: 0=absent 1=présent
A2: 13 | B2: 1 | C2: 130878015201 | D2: Je m'amuse | E2: 6 | F2: 6 | G2: 6 | H2: 0 | I2: 0 | J2: =SUM(E2:I2) -> 18 | K2: 0 | L2: 37 | M2: 0 | O2: 0 | Q2: =COUNTIF('Classement auteurs'!B:B,C2) -> 1
A3: 13 | B3: 2 | C3: 130000020401 | D3: La Goutte | E3: 10 | F3: 13 | G3: 12 | H3: 0 | I3: 0 | J3: =SUM(E3:I3) -> 35 | K3: 0 | L3: 103 | M3: 6 | O3: 0 | Q3: =COUNTIF('Classement auteurs'!B:B,C3) -> 1
A4: 13 | B4: 3 | C4: 131499008701 | D4: Symbiose | E4: 12 | F4: 11 | G4: 10 | H4: 0 | I4: 0 | J4: 33 | K4: 0 | L4: 18 | M4: 0 | O4: 0 | Q4: =COUNTIF('Classement auteurs'!B:B,C4) -> 1
A5: 13 | B5: 4 | C5: 131879000501 | D5: Calin | E5: 14 | F5: 13 | G5: 14 | H5: 0 | I5: 0 | J5: 41 | K5: 0 | L5: 89 | M5: 0 | O5: 0 | Q5: =COUNTIF('Classement auteurs'!B:B,C5) -> 1
A6: 13 | B6: 5 | C6: 131110001001 | D6: Quietude | E6: 15 | F6: 14 | G6: 18 | H6: 0 | I6: 0 | J6: 47 | K6: 0 | L6: 71 | M6: 0 | O6: 0 | Q6: =COUNTIF('Classement auteurs'!B:B,C6) -> 1
A7: 13 | B7: 6 | C7: 130878013301 | D7: Desert | E7: 11 | F7: 11 | G7: 14 | H7: 0 | I7: 0 | J7: 36 | K7: 0 | L7: 142 | M7: 0 | O7: 0 | Q7: =COUNTIF('Classement auteurs'!B:B,C7) -> 1
A8: 13 | B8: 7 | C8: 132193000301 | D8: Survol de la mer de glace | E8: 14 | F8: 15 | G8: 16 | H8: 0 | I8: 0 | J8: 45 | K8: 0 | L8: 140 | M8: 0 | O8: 0 | Q8: =COUNTIF('Classement auteurs'!B:B,C8) -> 1
A9: 13 | B9: 8 | C9: 130987028201 | D9: La sieste du rhino blanc | E9: 11 | F9: 11 | G9: 9 | H9: 0 | I9: 0 | J9: 31 | K9: 0 | L9: 26 | M9: 0 | O9: 0 | Q9: =COUNTIF('Classement auteurs'!B:B,C9) -> 1
A10: 13 | B10: 9 | C10: 130987024101 | D10: Chevèchette perlée | E10: 16 | F10: 16 | G10: 14 | H10: 0 | I10: 0 | J10: 46 | K10: 0 | L10: 28 | M10: 0 | O10: 0 | Q10: =COUNTIF('Classement auteurs'!B:B,C10) -> 1
A11: 13 | B11: 10 | C11: 130987030301 | D11: Coquelicot du Lot | E11: 10 | F11: 10 | G11: 6 | H11: 0 | I11: 0 | J11: 26 | K11: 0 | L11: 141 | M11: 0 | O11: 0 | Q11: =COUNTIF('Classement auteurs'!B:B,C11) -> 1
A12: 13 | B12: 11 | C12: 131683008001 | D12: Sentinelle du désert | E12: 13 | F12: 13 | G12: 13 | H12: 0 | I12: 0 | J12: 39 | K12: 0 | L12: 58 | M12: 0 | O12: 0 | Q12: =COUNTIF('Classement auteurs'!B:B,C12) -> 1
A13: 13 | B13: 12 | C13: 130987013801 | D13: Lever de soleil après la pluie | E13: 14 | F13: 15 | G13: 13 | H13: 0 | I13: 0 | J13: 42 | K13: 0 | L13: 73 | M13: 0 | O13: 0 | Q13: =COUNTIF('Classement auteurs'!B:B,C13) -> 1
A14: 13 | B14: 14 | C14: 130993015101 | D14: En suspension | E14: 14 | F14: 16 | G14: 13 | H14: 0 | I14: 0 | J14: 43 | K14: 0 | L14: 9 | M14: 0 | O14: 0 | Q14: =COUNTIF('Classement auteurs'!B:B,C14) -> 1
A15: 13 | B15: 16 | C15: 132147001701 | D15: L'herbe et le vent... | E15: 12 | F15: 8 | G15: 7 | H15: 0 | I15: 0 | J15: 27 | K15: 0 | L15: 101 | M15: 0 | O15: 0 | Q15: =COUNTIF('Classement auteurs'!B:B,C15) -> 1
A16: 13 | B16: 17 | C16: 131376017601 | D16: Ombre chinoise | E16: 13 | F16: 10 | G16: 12 | H16: 0 | I16: 0 | J16: 35 | K16: 0 | L16: 107 | M16: 0 | O16: 0 | Q16: =COUNTIF('Classement auteurs'!B:B,C16) -> 1
A17: 13 | B17: 18 | C17: 131494000201 | D17: Envol | E17: 10 | F17: 11 | G17: 14 | H17: 0 | I17: 0 | J17: 35 | K17: 0 | L17: 6 | M17: 0 | O17: 0 | Q17: =COUNTIF('Classement auteurs'!B:B,C17) -> 1
A18: 13 | B18: 19 | C18: 131683006301 | D18: Mésange et chardons | E18: 15 | F18: 16 | G18: 16 | H18: 0 | I18: 0 | J18: 47 | K18: 0 | L18: 125 | M18: 0 | O18: 0 | Q18: =COUNTIF('Classement auteurs'!B:B,C18) -> 1
A19: 13 | B19: 20 | C19: 130993013301 | D19: Le repas du Rollier | E19: 14 | F19: 17 | G19: 16 | H19: 0 | I19: 0 | J19: 47 | K19: 0 | L19: 34 | M19: 0 | O19: 0 | Q19: =COUNTIF('Classement auteurs'!B:B,C19) -> 1
A20: 13 | B20: 21 | C20: 130987015701 | D20: Thomise | E20: 14 | F20: 14 | G20: 13 | H20: 0 | I20: 0 | J20: 41 | K20: 0 | L20: 3 | M20: 0 | O20: 0 | Q20: =COUNTIF('Classement auteurs'!B:B,C20) -> 1
A21: 13 | B21: 22 | C21: 130527009201 | D21: On partage ? | E21: 12 | F21: 13 | G21: 15 | H21: 0 | I21: 0 | J21: 40 | K21: 0 | L21: 123 | M21: 0 | O21: 0 | Q21: =COUNTIF('Classement auteurs'!B:B,C21) -> 1
A22: 13 | B22: 23 | C22: 130987016601 | D22: Lac guichard | E22: 13 | F22: 12 | G22: 13 | H22: 0 | I22: 0 | J22: 38 | K22: 0 | L22: 106 | M22: 0 | O22: 0 | Q22: =COUNTIF('Classement auteurs'!B:B,C22) -> 1
A23: 13 | B23: 24 | C23: 131683005101 | D23: HERON | E23: 15 | F23: 15 | G23: 14 | H23: 0 | I23: 0 | J23: 44 | K23: 0 | L23: 42 | M23: 0 | O23: 0 | Q23: =COUNTIF('Classement auteurs'!B:B,C23) -> 1
A24: 13 | B24: 25 | C24: 130987024201 | D24: Jeux interdits | E24: 14 | F24: 17 | G24: 14 | H24: 0 | I24: 0 | J24: 45 | K24: 0 | L24: 65 | M24: 0 | O24: 0 | Q24: =COUNTIF('Classement auteurs'!B:B,C24) -> 1
A25: 13 | B25: 26 | C25: 131956004501 | D25: Campanules | E25: 12 | F25: 12 | G25: 13 | H25: 0 | I25: 0 | J25: 37 | K25: 0 | L25: 52 | M25: 0 | O25: 0 | Q25: =COUNTIF('Classement auteurs'!B:B,C25) -> 1
A26: 13 | B26: 27 | C26: 130527012401 | D26: Milan | E26: 15 | F26: 17 | G26: 15 | H26: 0 | I26: 0 | J26: 47 | K26: 0 | L26: 128 | M26: 0 | O26: 0 | Q26: =COUNTIF('Classement auteurs'!B:B,C26) -> 1
A27: 13 | B27: 28 | C27: 132193001201 | D27: Mes tourterelles | E27: 13 | F27: 9 | G27: 15 | H27: 0 | I27: 0 | J27: 37 | K27: 0 | L27: 82 | M27: 0 | O27: 0 | Q27: =COUNTIF('Classement auteurs'!B:B,C27) -> 1
A28: 13 | B28: 30 | C28: 131376017701 | D28: Solaire | E28: 6 | F28: 6 | G28: 6 | H28: 0 | I28: 0 | J28: 18 | K28: 0 | L28: 94 | M28: 0 | O28: 0 | Q28: =COUNTIF('Classement auteurs'!B:B,C28) -> 1
A29: 13 | B29: 31 | C29: 132084003501 | D29: Leopard dans le delta de l'okavango | E29: 14 | F29: 14 | G29: 12 | H29: 0 | I29: 0 | J29: 40 | K29: 0 | L29: 51 | M29: 0 | O29: 0 | Q29: =COUNTIF('Classement auteurs'!B:B,C29) -> 1
A30: 13 | B30: 32 | C30: 131845000201 | D30: Au vol | E30: 6 | F30: 6 | G30: 6 | H30: 0 | I30: 0 | J30: 18 | K30: 0 | L30: 53 | M30: 0 | O30: 0 | Q30: =COUNTIF('Classement auteurs'!B:B,C30) -> 1
A31: 13 | B31: 33 | C31: 131845000101 | D31: Surveillance de la marée | E31: 6 | F31: 6 | G31: 6 | H31: 0 | I31: 0 | J31: 18 | K31: 0 | L31: 116 | M31: 0 | O31: 0 | Q31: =COUNTIF('Classement auteurs'!B:B,C31) -> 1
A32: 13 | B32: 34 | C32: 132084002301 | D32: Mamooth lake | E32: 16 | F32: 13 | G32: 14 | H32: 0 | I32: 0 | J32: 43 | K32: 0 | L32: 25 | M32: 0 | O32: 0 | Q32: =COUNTIF('Classement auteurs'!B:B,C32) -> 1
A33: 13 | B33: 35 | C33: 131353000201 | D33: Butinage | E33: 12 | F33: 13 | G33: 11 | H33: 0 | I33: 0 | J33: 36 | K33: 0 | L33: 1 | M33: 0 | O33: 0 | Q33: =COUNTIF('Classement auteurs'!B:B,C33) -> 1
A34: 13 | B34: 36 | C34: 132084003601 | D34: Mini la grenouille | E34: 17 | F34: 18 | G34: 20 | H34: 0 | I34: 0 | J34: 55 | K34: 0 | L34: 137 | M34: 0 | O34: 0 | Q34: =COUNTIF('Classement auteurs'!B:B,C34) -> 1
A35: 13 | B35: 37 | C35: 131683007901 | D35: Kiai | E35: 16 | F35: 20 | G35: 15 | H35: 0 | I35: 0 | J35: 51 | K35: 0 | L35: 7 | M35: 0 | O35: 0 | Q35: =COUNTIF('Classement auteurs'!B:B,C35) -> 1
A36: 13 | B36: 38 | C36: 131110000901 | D36: Rosée | E36: 16 | F36: 12 | G36: 15 | H36: 0 | I36: 0 | J36: 43 | K36: 0 | L36: 22 | M36: 0 | O36: 0 | Q36: =COUNTIF('Classement auteurs'!B:B,C36) -> 1
A37: 13 | B37: 39 | C37: 131110001101 | D37: Fleur sauvage | E37: 13 | F37: 14 | G37: 9 | H37: 0 | I37: 0 | J37: 36 | K37: 0 | L37: 113 | M37: 0 | O37: 0 | Q37: =COUNTIF('Classement auteurs'!B:B,C37) -> 1
A38: 13 | B38: 40 | C38: 130000019901 | D38: Phacélie | E38: 6 | F38: 10 | G38: 8 | H38: 0 | I38: 0 | J38: 24 | K38: 0 | L38: 72 | M38: 6 | O38: 0 | Q38: =COUNTIF('Classement auteurs'!B:B,C38) -> 1
A39: 13 | B39: 41 | C39: 130462001101 | D39: Apres la pluie | E39: 18 | F39: 12 | G39: 15 | H39: 0 | I39: 0 | J39: 45 | K39: 0 | L39: 105 | M39: 0 | O39: 0 | Q39: =COUNTIF('Classement auteurs'!B:B,C39) -> 1
A40: 13 | B40: 42 | C40: 131494002101 | D40: Atterrissage | E40: 9 | F40: 9 | G40: 7 | H40: 0 | I40: 0 | J40: 25 | K40: 0 | L40: 90 | M40: 0 | O40: 0 | Q40: =COUNTIF('Classement auteurs'!B:B,C40) -> 1
A41: 13 | B41: 43 | C41: 131353004301 | D41: Jeune Cigale | E41: 16 | F41: 16 | G41: 15 | H41: 0 | I41: 0 | J41: 47 | K41: 0 | L41: 46 | M41: 0 | O41: 0 | Q41: =COUNTIF('Classement auteurs'!B:B,C41) -> 1
A42: 13 | B42: 44 | C42: 130878013401 | D42: Sur le nid | E42: 12 | F42: 11 | G42: 12 | H42: 0 | I42: 0 | J42: 35 | K42: 0 | L42: 86 | M42: 0 | O42: 0 | Q42: =COUNTIF('Classement auteurs'!B:B,C42) -> 1
A43: 13 | B43: 45 | C43: 130878007201 | D43: Au sommet | E43: 12 | F43: 8 | G43: 12 | H43: 0 | I43: 0 | J43: 32 | K43: 0 | L43: 16 | M43: 0 | O43: 0 | Q43: =COUNTIF('Classement auteurs'!B:B,C43) -> 1
A44: 13 | B44: 46 | C44: 131992000401 | D44: Nouvelle nature | E44: 8 | F44: 6 | G44: 6 | H44: 0 | I44: 0 | J44: 20 | K44: 0 | L44: 84 | M44: 0 | O44: 0 | Q44: =COUNTIF('Classement auteurs'!B:B,C44) -> 1
A45: 13 | B45: 47 | C45: 131494003201 | D45: Alors, çà mord ? | E45: 11 | F45: 8 | G45: 10 | H45: 0 | I45: 0 | J45: 29 | K45: 0 | L45: 131 | M45: 0 | O45: 0 | Q45: =COUNTIF('Classement auteurs'!B:B,C45) -> 1
A46: 13 | B46: 48 | C46: 130987028401 | D46: Estany de la Comassa | E46: 8 | F46: 11 | G46: 8 | H46: 0 | I46: 0 | J46: 27 | K46: 0 | L46: 96 | M46: 0 | O46: 0 | Q46: =COUNTIF('Classement auteurs'!B:B,C46) -> 1
A47: 13 | B47: 49 | C47: 132086002301 | D47: Sombre-couchant | E47: 12 | F47: 12 | G47: 11 | H47: 0 | I47: 0 | J47: 35 | K47: 0 | L47: 41 | M47: 0 | O47: 0 | Q47: =COUNTIF('Classement auteurs'!B:B,C47) -> 1
A48: 13 | B48: 50 | C48: 130878014301 | D48: Carotte | E48: 6 | F48: 6 | G48: 6 | H48: 0 | I48: 0 | J48: 18 | K48: 0 | L48: 47 | M48: 0 | O48: 0 | Q48: =COUNTIF('Classement auteurs'!B:B,C48) -> 1
A49: 13 | B49: 51 | C49: 130993012301 | D49: Vautour fauve | E49: 13 | F49: 15 | G49: 12 | H49: 0 | I49: 0 | J49: 40 | K49: 0 | L49: 111 | M49: 0 | O49: 0 | Q49: =COUNTIF('Classement auteurs'!B:B,C49) -> 1
A50: 13 | B50: 52 | C50: 130925010201 | D50: Balanin en balade | E50: 9 | F50: 12 | G50: 12 | H50: 0 | I50: 0 | J50: 33 | K50: 0 | L50: 11 | M50: 0 | O50: 0 | Q50: =COUNTIF('Classement auteurs'!B:B,C50) -> 1
A51: 13 | B51: 53 | C51: 131376011801 | D51: Alcyon | E51: 6 | F51: 6 | G51: 6 | H51: 0 | I51: 0 | J51: 18 | K51: 0 | L51: 130 | M51: 0 | O51: 0 | Q51: =COUNTIF('Classement auteurs'!B:B,C51) -> 1
A52: 13 | B52: 54 | C52: 131353006101 | D52: Bon appétit | E52: 14 | F52: 12 | G52: 12 | H52: 0 | I52: 0 | J52: 38 | K52: 0 | L52: 81 | M52: 0 | O52: 0 | Q52: =COUNTIF('Classement auteurs'!B:B,C52) -> 1
A53: 13 | B53: 55 | C53: 130527015501 | D53: Fleur | E53: 11 | F53: 11 | G53: 9 | H53: 0 | I53: 0 | J53: 31 | K53: 0 | L53: 49 | M53: 0 | O53: 0 | Q53: =COUNTIF('Classement auteurs'!B:B,C53) -> 1
A54: 13 | B54: 56 | C54: 131956002601 | D54: Campanule | E54: 10 | F54: 10 | G54: 14 | H54: 0 | I54: 0 | J54: 34 | K54: 0 | L54: 62 | M54: 0 | O54: 0 | Q54: =COUNTIF('Classement auteurs'!B:B,C54) -> 1
A55: 13 | B55: 57 | C55: 131845004001 | D55: Vue du castellet | E55: 13 | F55: 9 | G55: 17 | H55: 0 | I55: 0 | J55: 39 | K55: 0 | L55: 121 | M55: 0 | O55: 0 | Q55: =COUNTIF('Classement auteurs'!B:B,C55) -> 1
A56: 13 | B56: 58 | C56: 131879000801 | D56: Le reflet | E56: 13 | F56: 12 | G56: 15 | H56: 0 | I56: 0 | J56: 40 | K56: 0 | L56: 99 | M56: 0 | O56: 0 | Q56: =COUNTIF('Classement auteurs'!B:B,C56) -> 1
A57: 13 | B57: 59 | C57: 131376018301 | D57: Butineuse | E57: 13 | F57: 12 | G57: 16 | H57: 0 | I57: 0 | J57: 41 | K57: 0 | L57: 126 | M57: 0 | O57: 0 | Q57: =COUNTIF('Classement auteurs'!B:B,C57) -> 1
A58: 13 | B58: 60 | C58: 131499009801 | D58: La becquée | E58: 18 | F58: 18 | G58: 18 | H58: 0 | I58: 0 | J58: 54 | K58: 0 | L58: 13 | M58: 0 | O58: 0 | Q58: =COUNTIF('Classement auteurs'!B:B,C58) -> 1
A59: 13 | B59: 61 | C59: 131499008201 | D59: Portrait buffle oiseau | E59: 13 | F59: 12 | G59: 16 | H59: 0 | I59: 0 | J59: 41 | K59: 0 | L59: 5 | M59: 0 | O59: 0 | Q59: =COUNTIF('Classement auteurs'!B:B,C59) -> 1
A60: 13 | B60: 62 | C60: 131824001901 | D60: Love | E60: 19 | F60: 14 | G60: 15 | H60: 0 | I60: 0 | J60: 48 | K60: 0 | L60: 54 | M60: 0 | O60: 0 | Q60: =COUNTIF('Classement auteurs'!B:B,C60) -> 1
A61: 13 | B61: 63 | C61: 132084000301 | D61: Face à face | E61: 7 | F61: 7 | G61: 10 | H61: 0 | I61: 0 | J61: 24 | K61: 0 | L61: 85 | M61: 0 | O61: 0 | Q61: =COUNTIF('Classement auteurs'!B:B,C61) -> 1
A62: 13 | B62: 64 | C62: 132089000301 | D62: Giens par grand vent | E62: 9 | F62: 11 | G62: 10 | H62: 0 | I62: 0 | J62: 30 | K62: 0 | L62: 127 | M62: 0 | O62: 0 | Q62: =COUNTIF('Classement auteurs'!B:B,C62) -> 1
A63: 13 | B63: 65 | C63: 130878013001 | D63: Perle de pluie | E63: 16 | F63: 9 | G63: 15 | H63: 0 | I63: 0 | J63: 40 | K63: 0 | L63: 43 | M63: 0 | O63: 0 | Q63: =COUNTIF('Classement auteurs'!B:B,C63) -> 1
A64: 13 | B64: 66 | C64: 130987007401 | D64: La Claree | E64: 14 | F64: 11 | G64: 13 | H64: 0 | I64: 0 | J64: 38 | K64: 0 | L64: 134 | M64: 0 | O64: 0 | Q64: =COUNTIF('Classement auteurs'!B:B,C64) -> 1
A65: 13 | B65: 67 | C65: 130925008701 | D65: Puma | E65: 10 | F65: 14 | G65: 13 | H65: 0 | I65: 0 | J65: 37 | K65: 0 | L65: 8 | M65: 0 | O65: 0 | Q65: =COUNTIF('Classement auteurs'!B:B,C65) -> 1
A66: 13 | B66: 68 | C66: 131956002901 | D66: Sable d'or | E66: 10 | F66: 9 | G66: 9 | H66: 0 | I66: 0 | J66: 28 | K66: 0 | L66: 74 | M66: 0 | O66: 0 | Q66: =COUNTIF('Classement auteurs'!B:B,C66) -> 1
A67: 13 | B67: 69 | C67: 131499011001 | D67: L'ours blanc et noir | E67: 14 | F67: 14 | G67: 14 | H67: 0 | I67: 0 | J67: =SUM(E67:I67) -> 42 | K67: 0 | L67: 133 | M67: 0 | O67: 0 | Q67: =COUNTIF('Classement auteurs'!B:B,C67) -> 1
A68: 13 | B68: 70 | C68: 132193000501 | D68: Cotton tree | E68: 6 | F68: 7 | G68: 8 | H68: 0 | I68: 0 | J68: 21 | K68: 0 | L68: 27 | M68: 0 | O68: 0 | Q68: =COUNTIF('Classement auteurs'!B:B,C68) -> 1
A69: 13 | B69: 71 | C69: 131376015801 | D69: Butinage | E69: 14 | F69: 13 | G69: 10 | H69: 0 | I69: 0 | J69: 37 | K69: 0 | L69: 15 | M69: 0 | O69: 0 | Q69: =COUNTIF('Classement auteurs'!B:B,C69) -> 1
A70: 13 | B70: 72 | C70: 131683003301 | D70: Reflets sur la laguna Leija 4340m | E70: 17 | F70: 17 | G70: 19 | H70: 0 | I70: 0 | J70: 53 | K70: 0 | L70: 10 | M70: 0 | O70: 0 | Q70: =COUNTIF('Classement auteurs'!B:B,C70) -> 1
A71: 13 | B71: 73 | C71: 132203000701 | D71: Tout dans la séduction | E71: 16 | F71: 14 | G71: 15 | H71: 0 | I71: 0 | J71: 45 | K71: 0 | L71: 57 | M71: 0 | O71: 0 | Q71: =COUNTIF('Classement auteurs'!B:B,C71) -> 1
A72: 13 | B72: 74 | C72: 131879002001 | D72: Aras | E72: 16 | F72: 11 | G72: 14 | H72: 0 | I72: 0 | J72: 41 | K72: 0 | L72: 55 | M72: 0 | O72: 0 | Q72: =COUNTIF('Classement auteurs'!B:B,C72) -> 1
A73: 13 | B73: 75 | C73: 130925007601 | D73: Eléphants du désert | E73: 12 | F73: 14 | G73: 13 | H73: 0 | I73: 0 | J73: 39 | K73: 0 | L73: 60 | M73: 0 | O73: 0 | Q73: =COUNTIF('Classement auteurs'!B:B,C73) -> 1
A74: 13 | B74: 76 | C74: 130925007701 | D74: L'arbre vert | E74: 15 | F74: 14 | G74: 15 | H74: 0 | I74: 0 | J74: 44 | K74: 0 | L74: 39 | M74: 0 | O74: 0 | Q74: =COUNTIF('Classement auteurs'!B:B,C74) -> 1
A75: 13 | B75: 77 | C75: 132086001401 | D75: Butinage | E75: 14 | F75: 17 | G75: 15 | H75: 0 | I75: 0 | J75: 46 | K75: 0 | L75: 77 | M75: 0 | O75: 0 | Q75: =COUNTIF('Classement auteurs'!B:B,C75) -> 1
A76: 13 | B76: 78 | C76: 130878014101 | D76: Chardon | E76: 6 | F76: 6 | G76: 6 | H76: 0 | I76: 0 | J76: 18 | K76: 0 | L76: 88 | M76: 0 | O76: 0 | Q76: =COUNTIF('Classement auteurs'!B:B,C76) -> 1
A77: 13 | B77: 79 | C77: 130527013301 | D77: Pelican | E77: 15 | F77: 15 | G77: 14 | H77: 0 | I77: 0 | J77: 44 | K77: 0 | L77: 80 | M77: 0 | O77: 0 | Q77: =COUNTIF('Classement auteurs'!B:B,C77) -> 1
A78: 13 | B78: 80 | C78: 131499010401 | D78: La vie à deux | E78: 14 | F78: 12 | G78: 15 | H78: 0 | I78: 0 | J78: 41 | K78: 0 | L78: 136 | M78: 0 | O78: 0 | Q78: =COUNTIF('Classement auteurs'!B:B,C78) -> 1
A79: 13 | B79: 81 | C79: 131227008301 | D79: Enlacer | E79: 13 | F79: 13 | G79: 11 | H79: 0 | I79: 0 | J79: 37 | K79: 0 | L79: 17 | M79: 0 | O79: 0 | Q79: =COUNTIF('Classement auteurs'!B:B,C79) -> 1
A80: 13 | B80: 82 | C80: 130987019601 | D80: Martin-chasseur du Sénégal | E80: 15 | F80: 15 | G80: 14 | H80: 0 | I80: 0 | J80: 44 | K80: 0 | L80: 120 | M80: 0 | O80: 0 | Q80: =COUNTIF('Classement auteurs'!B:B,C80) -> 1
A81: 13 | B81: 83 | C81: 131862002201 | D81: Scarabé rhino | E81: 12 | F81: 8 | G81: 7 | H81: 0 | I81: 0 | J81: 27 | K81: 0 | L81: 124 | M81: 0 | O81: 0 | Q81: =COUNTIF('Classement auteurs'!B:B,C81) -> 1
A82: 13 | B82: 84 | C82: 130987019701 | D82: Red bishop | E82: 12 | F82: 13 | G82: 14 | H82: 0 | I82: 0 | J82: 39 | K82: 0 | L82: 122 | M82: 0 | O82: 0 | Q82: =COUNTIF('Classement auteurs'!B:B,C82) -> 1
A83: 13 | B83: 87 | C83: 131879001901 | D83: Flamant | E83: 13 | F83: 9 | G83: 12 | H83: 0 | I83: 0 | J83: 34 | K83: 0 | L83: 64 | M83: 0 | O83: 0 | Q83: =COUNTIF('Classement auteurs'!B:B,C83) -> 1
A84: 13 | B84: 88 | C84: 131956004601 | D84: Neige fraiche au lever du soleil | E84: 14 | F84: 13 | G84: 11 | H84: 0 | I84: 0 | J84: 38 | K84: 0 | L84: 139 | M84: 0 | O84: 0 | Q84: =COUNTIF('Classement auteurs'!B:B,C84) -> 1
A85: 13 | B85: 89 | C85: 132084004001 | D85: Désert Blanc | E85: 14 | F85: 13 | G85: 13 | H85: 0 | I85: 0 | J85: 40 | K85: 0 | L85: 129 | M85: 0 | O85: 0 | Q85: =COUNTIF('Classement auteurs'!B:B,C85) -> 1
A86: 13 | B86: 90 | C86: 130925009901 | D86: Monstrueuse fracture | E86: 13 | F86: 8 | G86: 11 | H86: 0 | I86: 0 | J86: 32 | K86: 0 | L86: 56 | M86: 0 | O86: 0 | Q86: =COUNTIF('Classement auteurs'!B:B,C86) -> 1
A87: 13 | B87: 91 | C87: 130925009801 | D87: Iguane | E87: 12 | F87: 12 | G87: 10 | H87: 0 | I87: 0 | J87: 34 | K87: 0 | L87: 118 | M87: 0 | O87: 0 | Q87: =COUNTIF('Classement auteurs'!B:B,C87) -> 1
A88: 13 | B88: 92 | C88: 131956006501 | D88: Butinage | E88: 15 | F88: 12 | G88: 12 | H88: 0 | I88: 0 | J88: 39 | K88: 0 | L88: 114 | M88: 0 | O88: 0 | Q88: =COUNTIF('Classement auteurs'!B:B,C88) -> 1
A89: 13 | B89: 93 | C89: 131823004901 | D89: Sa trompe énormément | E89: 15 | F89: 12 | G89: 12 | H89: 0 | I89: 0 | J89: 39 | K89: 0 | L89: 61 | M89: 0 | O89: 0 | Q89: =COUNTIF('Classement auteurs'!B:B,C89) -> 1
A90: 13 | B90: 94 | C90: 131376014701 | D90: La mue | E90: 14 | F90: 16 | G90: 11 | H90: 0 | I90: 0 | J90: 41 | K90: 0 | L90: 24 | M90: 0 | O90: 0 | Q90: =COUNTIF('Classement auteurs'!B:B,C90) -> 1
A91: 13 | B91: 95 | C91: 131683007601 | D91: Hautain | E91: 14 | F91: 15 | G91: 13 | H91: 0 | I91: 0 | J91: 42 | K91: 0 | L91: 33 | M91: 0 | O91: 0 | Q91: =COUNTIF('Classement auteurs'!B:B,C91) -> 1
A92: 13 | B92: 96 | C92: 131956000201 | D92: Au pied du Viso | E92: 15 | F92: 12 | G92: 14 | H92: 0 | I92: 0 | J92: 41 | K92: 0 | L92: 59 | M92: 0 | O92: 0 | Q92: =COUNTIF('Classement auteurs'!B:B,C92) -> 1
A93: 13 | B93: 97 | C93: 130527009401 | D93: La rivière noire | E93: 16 | F93: 18 | G93: 16 | H93: 0 | I93: 0 | J93: 50 | K93: 0 | L93: 87 | M93: 0 | O93: 0 | Q93: =COUNTIF('Classement auteurs'!B:B,C93) -> 1
A94: 13 | B94: 98 | C94: 132060000701 | D94: Qu'est-ce qu'elle a ma gueule? | E94: 12 | F94: 7 | G94: 6 | H94: 0 | I94: 0 | J94: 25 | K94: 0 | L94: 63 | M94: 0 | O94: 0 | Q94: =COUNTIF('Classement auteurs'!B:B,C94) -> 1
A95: 13 | B95: 99 | C95: 131879001101 | D95: Envol | E95: 13 | F95: 7 | G95: 9 | H95: 0 | I95: 0 | J95: 29 | K95: 0 | L95: 70 | M95: 0 | O95: 0 | Q95: =COUNTIF('Classement auteurs'!B:B,C95) -> 1
A96: 13 | B96: 100 | C96: 132060001701 | D96: Lueurs nocturnes | E96: 12 | F96: 12 | G96: 13 | H96: 0 | I96: 0 | J96: 37 | K96: 0 | L96: 93 | M96: 0 | O96: 0 | Q96: =COUNTIF('Classement auteurs'!B:B,C96) -> 1
A97: 13 | B97: 101 | C97: 132060001501 | D97: Quiétude | E97: 11 | F97: 8 | G97: 8 | H97: 0 | I97: 0 | J97: 27 | K97: 0 | L97: 4 | M97: 0 | O97: 0 | Q97: =COUNTIF('Classement auteurs'!B:B,C97) -> 1
A98: 13 | B98: 102 | C98: 130993016601 | D98: Libellule sur Nenuphar | E98: 15 | F98: 14 | G98: 13 | H98: 0 | I98: 0 | J98: 42 | K98: 0 | L98: 29 | M98: 0 | O98: 0 | Q98: =COUNTIF('Classement auteurs'!B:B,C98) -> 1
A99: 13 | B99: 103 | C99: 131499003901 | D99: Les marques du temps | E99: 13 | F99: 19 | G99: 13 | H99: 0 | I99: 0 | J99: 45 | K99: 0 | L99: 119 | M99: 0 | O99: 0 | Q99: =COUNTIF('Classement auteurs'!B:B,C99) -> 1
A100: 13 | B100: 104 | C100: 132086002601 | D100: Renard | E100: 14 | F100: 13 | G100: 12 | H100: 0 | I100: 0 | J100: 39 | K100: 0 | L100: 45 | M100: 0 | O100: 0 | Q100: =COUNTIF('Classement auteurs'!B:B,C100) -> 1
A101: 13 | B101: 105 | C101: 131499010001 | D101: C'est mon petit | E101: 14 | F101: 15 | G101: 13 | H101: 0 | I101: 0 | J101: 42 | K101: 0 | L101: 75 | M101: 0 | O101: 0 | Q101: =COUNTIF('Classement auteurs'!B:B,C101) -> 1
A102: 13 | B102: 106 | C102: 132060000801 | D102: L'abeille et le nénuphar | E102: 13 | F102: 10 | G102: 10 | H102: 0 | I102: 0 | J102: 33 | K102: 0 | L102: 78 | M102: 0 | O102: 0 | Q102: =COUNTIF('Classement auteurs'!B:B,C102) -> 1
A103: 13 | B103: 107 | C103: 131499005201 | D103: Mesange | E103: 13 | F103: 12 | G103: 12 | H103: 0 | I103: 0 | J103: 37 | K103: 0 | L103: 12 | M103: 0 | O103: 0 | Q103: =COUNTIF('Classement auteurs'!B:B,C103) -> 1
A104: 13 | B104: 108 | C104: 131499010801 | D104: Poissons papillon | E104: 15 | F104: 10 | G104: 16 | H104: 0 | I104: 0 | J104: 41 | K104: 0 | L104: 66 | M104: 0 | O104: 0 | Q104: =COUNTIF('Classement auteurs'!B:B,C104) -> 1
A105: 13 | B105: 109 | C105: 132217000101 | D105: Blanc Bleu | E105: 11 | F105: 14 | G105: 12 | H105: 0 | I105: 0 | J105: 37 | K105: 0 | L105: 97 | M105: 0 | O105: 0 | Q105: =COUNTIF('Classement auteurs'!B:B,C105) -> 1
A106: 13 | B106: 110 | C106: 131956005901 | D106: En vol | E106: 12 | F106: 11 | G106: 10 | H106: 0 | I106: 0 | J106: 33 | K106: 0 | L106: 19 | M106: 0 | O106: 0 | Q106: =COUNTIF('Classement auteurs'!B:B,C106) -> 1
A107: 13 | B107: 111 | C107: 131956002401 | D107: Danseur à cornes | E107: 12 | F107: 11 | G107: 12 | H107: 0 | I107: 0 | J107: 35 | K107: 0 | L107: 76 | M107: 0 | O107: 0 | Q107: =COUNTIF('Classement auteurs'!B:B,C107) -> 1
A108: 13 | B108: 112 | C108: 131227008601 | D108: Lac de monteux | E108: 13 | F108: 17 | G108: 14 | H108: 0 | I108: 0 | J108: 44 | K108: 0 | L108: 32 | M108: 0 | O108: 0 | Q108: =COUNTIF('Classement auteurs'!B:B,C108) -> 1
A109: 13 | B109: 113 | C109: 132147000101 | D109: Cincle plongeur | E109: 14 | F109: 13 | G109: 11 | H109: 0 | I109: 0 | J109: 38 | K109: 0 | L109: 38 | M109: 0 | O109: 0 | Q109: =COUNTIF('Classement auteurs'!B:B,C109) -> 1
A110: 13 | B110: 114 | C110: 132023002201 | D110: La sortie du bain | E110: 16 | F110: 16 | G110: 17 | H110: 0 | I110: 0 | J110: 49 | K110: 0 | L110: 109 | M110: 0 | O110: 0 | Q110: =COUNTIF('Classement auteurs'!B:B,C110) -> 1
A111: 13 | B111: 115 | C111: 131845004101 | D111: Cigognes en Camargue | E111: 6 | F111: 9 | G111: 11 | H111: 0 | I111: 0 | J111: 26 | K111: 0 | L111: 135 | M111: 0 | O111: 0 | Q111: =COUNTIF('Classement auteurs'!B:B,C111) -> 1
A112: 13 | B112: 116 | C112: 131499006901 | D112: Câlin aquatique | E112: 14 | F112: 10 | G112: 15 | H112: 0 | I112: 0 | J112: 39 | K112: 0 | L112: 36 | M112: 0 | O112: 0 | Q112: =COUNTIF('Classement auteurs'!B:B,C112) -> 1
A113: 13 | B113: 117 | C113: 131956001401 | D113: Etang du Vaccarès | E113: 6 | F113: 6 | G113: 6 | H113: 0 | I113: 0 | J113: 18 | K113: 0 | L113: 31 | M113: 0 | O113: 0 | Q113: =COUNTIF('Classement auteurs'!B:B,C113) -> 1
A114: 13 | B114: 118 | C114: 132060001201 | D114: Transparence | E114: 13 | F114: 12 | G114: 15 | H114: 0 | I114: 0 | J114: 40 | K114: 0 | L114: 30 | M114: 0 | O114: 0 | Q114: =COUNTIF('Classement auteurs'!B:B,C114) -> 1
A115: 13 | B115: 119 | C115: 132203001001 | D115: Coucher dans l'herbe | E115: 6 | F115: 6 | G115: 6 | H115: 0 | I115: 0 | J115: 18 | K115: 0 | L115: 100 | M115: 0 | O115: 0 | Q115: =COUNTIF('Classement auteurs'!B:B,C115) -> 1
A116: 13 | B116: 120 | C116: 130987026701 | D116: Miroir et Flamant rose | E116: 12 | F116: 12 | G116: 13 | H116: 0 | I116: 0 | J116: 37 | K116: 0 | L116: 110 | M116: 0 | O116: 0 | Q116: =COUNTIF('Classement auteurs'!B:B,C116) -> 1
A117: 13 | B117: 121 | C117: 131619004501 | D117: Lac Lavoir | E117: 16 | F117: 15 | G117: 15 | H117: 0 | I117: 0 | J117: 46 | K117: 0 | L117: 79 | M117: 0 | O117: 0 | Q117: =COUNTIF('Classement auteurs'!B:B,C117) -> 1
A118: 13 | B118: 122 | C118: 132060000401 | D118: En pêche | E118: 13 | F118: 12 | G118: 11 | H118: 0 | I118: 0 | J118: 36 | K118: 0 | L118: 115 | M118: 0 | O118: 0 | Q118: =COUNTIF('Classement auteurs'!B:B,C118) -> 1
A119: 13 | B119: 123 | C119: 132060000901 | D119: Martin pêcheur à l'affût | E119: 11 | F119: 15 | G119: 12 | H119: 0 | I119: 0 | J119: 38 | K119: 0 | L119: 91 | M119: 0 | O119: 0 | Q119: =COUNTIF('Classement auteurs'!B:B,C119) -> 1
A120: 13 | B120: 124 | C120: 130527002501 | D120: Sphins | E120: 10 | F120: 11 | G120: 9 | H120: 0 | I120: 0 | J120: 30 | K120: 0 | L120: 40 | M120: 0 | O120: 0 | Q120: =COUNTIF('Classement auteurs'!B:B,C120) -> 1
A121: 13 | B121: 125 | C121: 130987023901 | D121: Avant l'orage | E121: 13 | F121: 13 | G121: 9 | H121: 0 | I121: 0 | J121: 35 | K121: 0 | L121: 132 | M121: 0 | O121: 0 | Q121: =COUNTIF('Classement auteurs'!B:B,C121) -> 1
A122: 13 | B122: 126 | C122: 130987001601 | D122: Iceland | E122: 13 | F122: 12 | G122: 7 | H122: 0 | I122: 0 | J122: 32 | K122: 0 | L122: 48 | M122: 0 | O122: 0 | Q122: =COUNTIF('Classement auteurs'!B:B,C122) -> 1
A123: 13 | B123: 127 | C123: 131499006801 | D123: Le Butineur | E123: 17 | F123: 18 | G123: 17 | H123: 0 | I123: 0 | J123: 52 | K123: 0 | L123: 68 | M123: 0 | O123: 0 | Q123: =COUNTIF('Classement auteurs'!B:B,C123) -> 1
A124: 13 | B124: 128 | C124: 130993010201 | D124: Vulpes vulpes | E124: 15 | F124: 12 | G124: 14 | H124: 0 | I124: 0 | J124: 41 | K124: 0 | L124: 98 | M124: 0 | O124: 0 | Q124: =COUNTIF('Classement auteurs'!B:B,C124) -> 1
A125: 13 | B125: 129 | C125: 130921006401 | D125: En attendant le poisson | E125: 13 | F125: 11 | G125: 10 | H125: 0 | I125: 0 | J125: 34 | K125: 0 | L125: 117 | M125: 0 | O125: 0 | Q125: =COUNTIF('Classement auteurs'!B:B,C125) -> 1
A126: 13 | B126: 130 | C126: 131353006201 | D126: Bientôt du miel | E126: 14 | F126: 12 | G126: 9 | H126: 0 | I126: 0 | J126: 35 | K126: 0 | L126: 50 | M126: 0 | O126: 0 | Q126: =COUNTIF('Classement auteurs'!B:B,C126) -> 1
A127: 13 | B127: 131 | C127: 132060001801 | D127: Aurore... presque boréale ! | E127: 8 | F127: 8 | G127: 6 | H127: 0 | I127: 0 | J127: 22 | K127: 0 | L127: 108 | M127: 0 | O127: 0 | Q127: =COUNTIF('Classement auteurs'!B:B,C127) -> 1
A128: 13 | B128: 132 | C128: 131879000601 | D128: Solfatare en Islande | E128: 10 | F128: 13 | G128: 8 | H128: 0 | I128: 0 | J128: 31 | K128: 0 | L128: 95 | M128: 0 | O128: 0 | Q128: =COUNTIF('Classement auteurs'!B:B,C128) -> 1
A129: 13 | B129: 133 | C129: 130987002301 | D129: Sapajous Brun | E129: 11 | F129: 14 | G129: 14 | H129: 0 | I129: 0 | J129: 39 | K129: 0 | L129: 102 | M129: 0 | O129: 0 | Q129: =COUNTIF('Classement auteurs'!B:B,C129) -> 1
A130: 13 | B130: 134 | C130: 131683002601 | D130: Chouette de Tengmalm | E130: 20 | F130: 18 | G130: 18 | H130: 0 | I130: 0 | J130: 56 | K130: 0 | L130: 14 | M130: 0 | O130: 0 | Q130: =COUNTIF('Classement auteurs'!B:B,C130) -> 1
A131: 13 | B131: 135 | C131: 131499010501 | D131: Saut de bonite | E131: 15 | F131: 13 | G131: 13 | H131: 0 | I131: 0 | J131: =SUM(E131:I131) -> 41 | K131: 0 | L131: 2 | M131: 0 | O131: 0 | Q131: =COUNTIF('Classement auteurs'!B:B,C131) -> 1
A132: 13 | B132: 136 | C132: 131499010601 | D132: Goutte de bec | E132: 8 | F132: 13 | G132: 11 | H132: 0 | I132: 0 | J132: 32 | K132: 0 | L132: 23 | M132: 0 | O132: 0 | Q132: =COUNTIF('Classement auteurs'!B:B,C132) -> 1
A133: 13 | B133: 137 | C133: 130925010501 | D133: Le temps des amours | E133: 15 | F133: 13 | G133: 13 | H133: 0 | I133: 0 | J133: 41 | K133: 0 | L133: 67 | M133: 0 | O133: 0 | Q133: =COUNTIF('Classement auteurs'!B:B,C133) -> 1
A134: 13 | B134: 138 | C134: 131956005701 | D134: Rencontre par surprise | E134: 11 | F134: 10 | G134: 7 | H134: 0 | I134: 0 | J134: 28 | K134: 0 | L134: 69 | M134: 0 | O134: 0 | Q134: =COUNTIF('Classement auteurs'!B:B,C134) -> 1
A135: 13 | B135: 139 | C135: 131845001401 | D135: Affût | E135: 14 | F135: 11 | G135: 14 | H135: 0 | I135: 0 | J135: 39 | K135: 0 | L135: 35 | M135: 0 | O135: 0 | Q135: =COUNTIF('Classement auteurs'!B:B,C135) -> 1
A136: 13 | B136: 140 | C136: 131683006501 | D136: Jonquille | E136: 12 | F136: 10 | G136: 8 | H136: 0 | I136: 0 | J136: 30 | K136: 0 | L136: 138 | M136: 0 | O136: 0 | Q136: =COUNTIF('Classement auteurs'!B:B,C136) -> 1
A137: 13 | B137: 141 | C137: 131499010101 | D137: En retard | E137: 16 | F137: 7 | G137: 8 | H137: 0 | I137: 0 | J137: 31 | K137: 0 | L137: 104 | M137: 0 | O137: 0 | Q137: =COUNTIF('Classement auteurs'!B:B,C137) -> 1
A138: 13 | B138: 142 | C138: 130527017001 | D138: A chacun sa chevelure ... | E138: 12 | F138: 11 | G138: 6 | H138: 0 | I138: 0 | J138: 29 | K138: 0 | L138: 112 | M138: 0 | O138: 0 | Q138: =COUNTIF('Classement auteurs'!B:B,C138) -> 1
A139: 13 | B139: 143 | C139: 130987025001 | D139: Caillou sur la plage | E139: 13 | F139: 10 | G139: 7 | H139: 0 | I139: 0 | J139: 30 | K139: 0 | L139: 44 | M139: 0 | O139: 0
A140: 13 | B140: 144 | C140: 131823006401 | D140: Fusion | E140: 13 | F140: 12 | G140: 12 | H140: 0 | I140: 0 | J140: 37 | K140: 0 | L140: 83 | M140: 0 | O140: 0
A141: 13 | B141: 145 | C141: 131823004201 | D141: Ourlé de blanc | E141: 13 | F141: 9 | G141: 7 | H141: 0 | I141: 0 | J141: 29 | K141: 0 | L141: 21 | M141: 0 | O141: 0
A142: 13 | B142: 146 | C142: 131353000101 | D142: Criquet | E142: 13 | F142: 19 | G142: 15 | H142: 0 | I142: 0 | J142: 47 | K142: 0 | L142: 20 | M142: 0 | O142: 0
A143: 13 | B143: 147 | C143: 131353000701 | D143: Mante religieuse | E143: 20 | F143: 20 | G143: 17 | H143: 0 | I143: 0 | J143: 57 | K143: 0 | L143: 92 | M143: 0 | O143: 0

Sheet Défi-5
A1: colis | B1: photologic | C1: fichier | D1: titre | E1: note1 | F1: note2 | G1: note3 | H1: note4 | I1: note5 | J1: total | K1: place | L1: passage | M1: statut | N1: medaille | O1: retenue | Q1: 0=absent 1=présent
A2: 13 | B2: 1 | C2: 131494003001 | D2: Reflet nocturne | E2: 10 | F2: 7 | G2: 7 | H2: 0 | I2: 0 | J2: =SUM(E2:I2) -> 24 | K2: 0 | L2: 120 | M2: 0 | O2: 0 | Q2: =COUNTIF('Classement auteurs'!B:B,C2) -> 1
A3: 13 | B3: 2 | C3: 131823008301 | D3: Promenade | E3: 14 | F3: 15 | G3: 13 | H3: 0 | I3: 0 | J3: =SUM(E3:I3) -> 42 | K3: 0 | L3: 143 | M3: 0 | O3: 0 | Q3: =COUNTIF('Classement auteurs'!B:B,C3) -> 1
A4: 13 | B4: 3 | C4: 132147000101 | D4: Reflet Vénitien | E4: 11 | F4: 15 | G4: 10 | H4: 0 | I4: 0 | J4: 36 | K4: 0 | L4: 33 | M4: 0 | O4: 0 | Q4: =COUNTIF('Classement auteurs'!B:B,C4) -> 1
A5: 13 | B5: 4 | C5: 130987024101 | D5: La caravane | E5: 11 | F5: 19 | G5: 14 | H5: 0 | I5: 0 | J5: 44 | K5: 0 | L5: 149 | M5: 0 | O5: 0 | Q5: =COUNTIF('Classement auteurs'!B:B,C5) -> 1
A6: 13 | B6: 6 | C6: 130527002501 | D6: Tacle | E6: 7 | F6: 11 | G6: 14 | H6: 0 | I6: 0 | J6: 32 | K6: 0 | L6: 164 | M6: 0 | O6: 0 | Q6: =COUNTIF('Classement auteurs'!B:B,C6) -> 1
A7: 13 | B7: 7 | C7: 132023000101 | D7: Cabanes de pêcheurs | E7: 11 | F7: 10 | G7: 15 | H7: 0 | I7: 0 | J7: 36 | K7: 0 | L7: 4 | M7: 0 | O7: 0 | Q7: =COUNTIF('Classement auteurs'!B:B,C7) -> 1
A8: 13 | B8: 8 | C8: 132084004001 | D8: La négociation | E8: 11 | F8: 18 | G8: 13 | H8: 0 | I8: 0 | J8: 42 | K8: 0 | L8: 96 | M8: 0 | O8: 0 | Q8: =COUNTIF('Classement auteurs'!B:B,C8) -> 1
A9: 13 | B9: 9 | C9: 131683008101 | D9: Lola | E9: 14 | F9: 14 | G9: 15 | H9: 0 | I9: 0 | J9: 43 | K9: 0 | L9: 69 | M9: 0 | O9: 0 | Q9: =COUNTIF('Classement auteurs'!B:B,C9) -> 1
A10: 13 | B10: 10 | C10: 130987019701 | D10: Face à face | E10: 14 | F10: 10 | G10: 13 | H10: 0 | I10: 0 | J10: 37 | K10: 0 | L10: 86 | M10: 0 | O10: 0 | Q10: =COUNTIF('Classement auteurs'!B:B,C10) -> 1
A11: 13 | B11: 11 | C11: 130987019601 | D11: Les pénitents | E11: 10 | F11: 7 | G11: 17 | H11: 0 | I11: 0 | J11: 34 | K11: 0 | L11: 88 | M11: 0 | O11: 0 | Q11: =COUNTIF('Classement auteurs'!B:B,C11) -> 1
A12: 13 | B12: 13 | C12: 130878013601 | D12: En attente | E12: 8 | F12: 12 | G12: 14 | H12: 0 | I12: 0 | J12: 34 | K12: 0 | L12: 18 | M12: 0 | O12: 0 | Q12: =COUNTIF('Classement auteurs'!B:B,C12) -> 1
A13: 13 | B13: 14 | C13: 130993012301 | D13: Flamenco | E13: 13 | F13: 13 | G13: 15 | H13: 0 | I13: 0 | J13: 41 | K13: 0 | L13: 106 | M13: 0 | O13: 0 | Q13: =COUNTIF('Classement auteurs'!B:B,C13) -> 1
A14: 13 | B14: 15 | C14: 132086002301 | D14: Tourbillon d'or | E14: 12 | F14: 8 | G14: 12 | H14: 0 | I14: 0 | J14: 32 | K14: 0 | L14: 25 | M14: 0 | O14: 0 | Q14: =COUNTIF('Classement auteurs'!B:B,C14) -> 1
A15: 13 | B15: 16 | C15: 130987028401 | D15: Au bout... de la Presqu'île | E15: 11 | F15: 14 | G15: 11 | H15: 0 | I15: 0 | J15: 36 | K15: 0 | L15: 65 | M15: 0 | O15: 0 | Q15: =COUNTIF('Classement auteurs'!B:B,C15) -> 1
A16: 13 | B16: 17 | C16: 130987013801 | D16: Gymnaste en compétition | E16: 11 | F16: 18 | G16: 13 | H16: 0 | I16: 0 | J16: 42 | K16: 0 | L16: 153 | M16: 0 | O16: 0 | Q16: =COUNTIF('Classement auteurs'!B:B,C16) -> 1
A17: 13 | B17: 18 | C17: 131376012601 | D17: Jour de neige | E17: 14 | F17: 14 | G17: 6 | H17: 0 | I17: 0 | J17: 34 | K17: 0 | L17: 22 | M17: 0 | O17: 0 | Q17: =COUNTIF('Classement auteurs'!B:B,C17) -> 1
A18: 13 | B18: 19 | C18: 131956002901 | D18: Regard | E18: 7 | F18: 10 | G18: 11 | H18: 0 | I18: 0 | J18: 28 | K18: 0 | L18: 61 | M18: 0 | O18: 0 | Q18: =COUNTIF('Classement auteurs'!B:B,C18) -> 1
A19: 13 | B19: 20 | C19: 132084001701 | D19: Eglise | E19: 14 | F19: 15 | G19: 12 | H19: 0 | I19: 0 | J19: 41 | K19: 0 | L19: 78 | M19: 0 | O19: 0 | Q19: =COUNTIF('Classement auteurs'!B:B,C19) -> 1
A20: 13 | B20: 21 | C20: 131376011801 | D20: Moines du Djokang | E20: 13 | F20: 18 | G20: 15 | H20: 0 | I20: 0 | J20: 46 | K20: 0 | L20: 111 | M20: 0 | O20: 0 | Q20: =COUNTIF('Classement auteurs'!B:B,C20) -> 1
A21: 13 | B21: 22 | C21: 130993013801 | D21: Promeneur du soir | E21: 13 | F21: 14 | G21: 11 | H21: 0 | I21: 0 | J21: 38 | K21: 0 | L21: 110 | M21: 0 | O21: 0 | Q21: =COUNTIF('Classement auteurs'!B:B,C21) -> 1
A22: 13 | B22: 23 | C22: 132060000101 | D22: FETE AU CHATEAU | E22: 9 | F22: 16 | G22: 9 | H22: 0 | I22: 0 | J22: 34 | K22: 0 | L22: 115 | M22: 0 | O22: 0 | Q22: =COUNTIF('Classement auteurs'!B:B,C22) -> 1
A23: 13 | B23: 24 | C23: 131823004901 | D23: Dans les bras de Morphée | E23: 11 | F23: 15 | G23: 15 | H23: 0 | I23: 0 | J23: 41 | K23: 0 | L23: 35 | M23: 0 | O23: 0 | Q23: =COUNTIF('Classement auteurs'!B:B,C23) -> 1
A24: 13 | B24: 25 | C24: 131824001901 | D24: Un matin sur ma planète | E24: 16 | F24: 15 | G24: 13 | H24: 0 | I24: 0 | J24: 44 | K24: 0 | L24: 107 | M24: 0 | O24: 0 | Q24: =COUNTIF('Classement auteurs'!B:B,C24) -> 1
A25: 13 | B25: 26 | C25: 130878015801 | D25: Laveur d'Affiche | E25: 18 | F25: 13 | G25: 18 | H25: 0 | I25: 0 | J25: 49 | K25: 0 | L25: 32 | M25: 0 | O25: 0 | Q25: =COUNTIF('Classement auteurs'!B:B,C25) -> 1
A26: 13 | B26: 28 | C26: 131499006801 | D26: Fauteuil Rouge | E26: 8 | F26: 15 | G26: 19 | H26: 0 | I26: 0 | J26: 42 | K26: 0 | L26: 67 | M26: 0 | O26: 0 | Q26: =COUNTIF('Classement auteurs'!B:B,C26) -> 1
A27: 13 | B27: 29 | C27: 131879000101 | D27: Cerisiers en fleurs | E27: 8 | F27: 12 | G27: 8 | H27: 0 | I27: 0 | J27: 28 | K27: 0 | L27: 77 | M27: 0 | O27: 0 | Q27: =COUNTIF('Classement auteurs'!B:B,C27) -> 1
A28: 13 | B28: 30 | C28: 132084000201 | D28: Tristesse | E28: 13 | F28: 15 | G28: 10 | H28: 0 | I28: 0 | J28: 38 | K28: 0 | L28: 104 | M28: 0 | O28: 0 | Q28: =COUNTIF('Classement auteurs'!B:B,C28) -> 1
A29: 13 | B29: 31 | C29: 131879001101 | D29: Couleurs d'automne | E29: 13 | F29: 13 | G29: 12 | H29: 0 | I29: 0 | J29: 38 | K29: 0 | L29: 128 | M29: 0 | O29: 0 | Q29: =COUNTIF('Classement auteurs'!B:B,C29) -> 1
A30: 13 | B30: 32 | C30: 130878013401 | D30: Lady | E30: 8 | F30: 11 | G30: 11 | H30: 0 | I30: 0 | J30: 30 | K30: 0 | L30: 47 | M30: 0 | O30: 0 | Q30: =COUNTIF('Classement auteurs'!B:B,C30) -> 1
A31: 13 | B31: 33 | C31: 131683006901 | D31: Un p'tit coin de parapluie | E31: 17 | F31: 13 | G31: 11 | H31: 0 | I31: 0 | J31: 41 | K31: 0 | L31: 75 | M31: 0 | O31: 0 | Q31: =COUNTIF('Classement auteurs'!B:B,C31) -> 1
A32: 13 | B32: 34 | C32: 131683007001 | D32: Ordre décroissant | E32: 9 | F32: 14 | G32: 10 | H32: 0 | I32: 0 | J32: 33 | K32: 0 | L32: 157 | M32: 0 | O32: 0 | Q32: =COUNTIF('Classement auteurs'!B:B,C32) -> 1
A33: 13 | B33: 35 | C33: 130993015401 | D33: La cabanne du peuchère | E33: 9 | F33: 11 | G33: 11 | H33: 0 | I33: 0 | J33: 31 | K33: 0 | L33: 63 | M33: 0 | O33: 0 | Q33: =COUNTIF('Classement auteurs'!B:B,C33) -> 1
A34: 13 | B34: 36 | C34: 130987007401 | D34: Orage imminent | E34: 10 | F34: 15 | G34: 12 | H34: 0 | I34: 0 | J34: 37 | K34: 0 | L34: 41 | M34: 0 | O34: 0 | Q34: =COUNTIF('Classement auteurs'!B:B,C34) -> 1
A35: 13 | B35: 37 | C35: 132217000601 | D35: Ancienne taverne crétoise | E35: 8 | F35: 10 | G35: 11 | H35: 0 | I35: 0 | J35: 29 | K35: 0 | L35: 7 | M35: 0 | O35: 0 | Q35: =COUNTIF('Classement auteurs'!B:B,C35) -> 1
A36: 13 | B36: 38 | C36: 132193000301 | D36: Solfar | E36: 13 | F36: 13 | G36: 12 | H36: 0 | I36: 0 | J36: 38 | K36: 0 | L36: 159 | M36: 0 | O36: 0 | Q36: =COUNTIF('Classement auteurs'!B:B,C36) -> 1
A37: 13 | B37: 39 | C37: 131879002001 | D37: Procession | E37: 12 | F37: 13 | G37: 13 | H37: 0 | I37: 0 | J37: 38 | K37: 0 | L37: 20 | M37: 0 | O37: 0 | Q37: =COUNTIF('Classement auteurs'!B:B,C37) -> 1
A38: 13 | B38: 40 | C38: 131879001301 | D38: Regard | E38: 18 | F38: 14 | G38: 10 | H38: 0 | I38: 0 | J38: 42 | K38: 0 | L38: 38 | M38: 0 | O38: 0 | Q38: =COUNTIF('Classement auteurs'!B:B,C38) -> 1
A39: 13 | B39: 41 | C39: 132203000601 | D39: Soir | E39: 11 | F39: 7 | G39: 10 | H39: 0 | I39: 0 | J39: 28 | K39: 0 | L39: 72 | M39: 0 | O39: 0 | Q39: =COUNTIF('Classement auteurs'!B:B,C39) -> 1
A40: 13 | B40: 42 | C40: 130878014301 | D40: Bulle colorée | E40: 10 | F40: 9 | G40: 10 | H40: 0 | I40: 0 | J40: 29 | K40: 0 | L40: 100 | M40: 0 | O40: 0 | Q40: =COUNTIF('Classement auteurs'!B:B,C40) -> 1
A41: 13 | B41: 43 | C41: 131879000501 | D41: Contemplation | E41: 13 | F41: 10 | G41: 16 | H41: 0 | I41: 0 | J41: 39 | K41: 0 | L41: 68 | M41: 0 | O41: 0 | Q41: =COUNTIF('Classement auteurs'!B:B,C41) -> 1
A42: 13 | B42: 44 | C42: 131683007901 | D42: M à Venise | E42: 19 | F42: 20 | G42: 19 | H42: 0 | I42: 0 | J42: 58 | K42: 0 | L42: 5 | M42: 0 | O42: 0 | Q42: =COUNTIF('Classement auteurs'!B:B,C42) -> 1
A43: 13 | B43: 46 | C43: 131499008701 | D43: Harmonie | E43: 9 | F43: 14 | G43: 11 | H43: 0 | I43: 0 | J43: 34 | K43: 0 | L43: 112 | M43: 0 | O43: 0 | Q43: =COUNTIF('Classement auteurs'!B:B,C43) -> 1
A44: 13 | B44: 47 | C44: 130987015701 | D44: Beauté voilée | E44: 12 | F44: 16 | G44: 18 | H44: 0 | I44: 0 | J44: 46 | K44: 0 | L44: 21 | M44: 0 | O44: 0 | Q44: =COUNTIF('Classement auteurs'!B:B,C44) -> 1
A45: 13 | B45: 48 | C45: 130000020401 | D45: LUMA - Architecture de Demain | E45: 12 | F45: 19 | G45: 12 | H45: 0 | I45: 0 | J45: 43 | K45: 0 | L45: 155 | M45: 6 | O45: 0 | Q45: =COUNTIF('Classement auteurs'!B:B,C45) -> 1
A46: 13 | B46: 49 | C46: 130878007201 | D46: Photosphore | E46: 12 | F46: 13 | G46: 10 | H46: 0 | I46: 0 | J46: 35 | K46: 0 | L46: 73 | M46: 0 | O46: 0 | Q46: =COUNTIF('Classement auteurs'!B:B,C46) -> 1
A47: 13 | B47: 51 | C47: 131376018301 | D47: Marché de nuit | E47: 9 | F47: 18 | G47: 17 | H47: 0 | I47: 0 | J47: 44 | K47: 0 | L47: 14 | M47: 0 | O47: 0 | Q47: =COUNTIF('Classement auteurs'!B:B,C47) -> 1
A48: 13 | B48: 52 | C48: 132193001901 | D48: Flamboyant ciel | E48: 14 | F48: 12 | G48: 13 | H48: 0 | I48: 0 | J48: 39 | K48: 0 | L48: 133 | M48: 0 | O48: 0 | Q48: =COUNTIF('Classement auteurs'!B:B,C48) -> 1
A49: 13 | B49: 53 | C49: 131956003401 | D49: Bise | E49: 9 | F49: 12 | G49: 12 | H49: 0 | I49: 0 | J49: 33 | K49: 0 | L49: 139 | M49: 0 | O49: 0 | Q49: =COUNTIF('Classement auteurs'!B:B,C49) -> 1
A50: 13 | B50: 54 | C50: 131353000201 | D50: Petit garçon au chapeau | E50: 10 | F50: 15 | G50: 12 | H50: 0 | I50: 0 | J50: 37 | K50: 0 | L50: 151 | M50: 0 | O50: 0 | Q50: =COUNTIF('Classement auteurs'!B:B,C50) -> 1
A51: 13 | B51: 55 | C51: 131227008301 | D51: Bord du Rhône | E51: 14 | F51: 9 | G51: 11 | H51: 0 | I51: 0 | J51: 34 | K51: 0 | L51: 98 | M51: 0 | O51: 0 | Q51: =COUNTIF('Classement auteurs'!B:B,C51) -> 1
A52: 13 | B52: 56 | C52: 131992000401 | D52: J'aime l'école | E52: 12 | F52: 18 | G52: 15 | H52: 0 | I52: 0 | J52: 45 | K52: 0 | L52: 44 | M52: 0 | O52: 0 | Q52: =COUNTIF('Classement auteurs'!B:B,C52) -> 1
A53: 13 | B53: 57 | C53: 131899000801 | D53: Furtive | E53: 19 | F53: 9 | G53: 13 | H53: 0 | I53: 0 | J53: 41 | K53: 0 | L53: 11 | M53: 0 | O53: 0 | Q53: =COUNTIF('Classement auteurs'!B:B,C53) -> 1
A54: 13 | B54: 58 | C54: 131992000301 | D54: Contournement. | E54: 12 | F54: 9 | G54: 10 | H54: 0 | I54: 0 | J54: 31 | K54: 0 | L54: 40 | M54: 0 | O54: 0 | Q54: =COUNTIF('Classement auteurs'!B:B,C54) -> 1
A55: 13 | B55: 59 | C55: 132023002201 | D55: La porte de l'ecole | E55: 12 | F55: 18 | G55: 13 | H55: 0 | I55: 0 | J55: 43 | K55: 0 | L55: 31 | M55: 0 | O55: 0 | Q55: =COUNTIF('Classement auteurs'!B:B,C55) -> 1
A56: 13 | B56: 60 | C56: 131683007601 | D56: Sous terre | E56: 9 | F56: 11 | G56: 12 | H56: 0 | I56: 0 | J56: 32 | K56: 0 | L56: 156 | M56: 0 | O56: 0 | Q56: =COUNTIF('Classement auteurs'!B:B,C56) -> 1
A57: 13 | B57: 61 | C57: 131823007601 | D57: Gardian | E57: 11 | F57: 8 | G57: 11 | H57: 0 | I57: 0 | J57: 30 | K57: 0 | L57: 137 | M57: 0 | O57: 0 | Q57: =COUNTIF('Classement auteurs'!B:B,C57) -> 1
A58: 13 | B58: 62 | C58: 132060001801 | D58: Sérénité | E58: 14 | F58: 16 | G58: 17 | H58: 0 | I58: 0 | J58: 47 | K58: 0 | L58: 144 | M58: 0 | O58: 0 | Q58: =COUNTIF('Classement auteurs'!B:B,C58) -> 1
A59: 13 | B59: 64 | C59: 131499011001 | D59: Le C | E59: 18 | F59: 16 | G59: 17 | H59: 0 | I59: 0 | J59: 51 | K59: 0 | L59: 54 | M59: 0 | O59: 0 | Q59: =COUNTIF('Classement auteurs'!B:B,C59) -> 1
A60: 13 | B60: 65 | C60: 130987024201 | D60: Danse des esprits | E60: 9 | F60: 14 | G60: 16 | H60: 0 | I60: 0 | J60: 39 | K60: 0 | L60: 101 | M60: 0 | O60: 0 | Q60: =COUNTIF('Classement auteurs'!B:B,C60) -> 1
A61: 13 | B61: 66 | C61: 131110001101 | D61: Chanteur de blues | E61: 17 | F61: 17 | G61: 11 | H61: 0 | I61: 0 | J61: 45 | K61: 0 | L61: 79 | M61: 0 | O61: 0 | Q61: =COUNTIF('Classement auteurs'!B:B,C61) -> 1
A62: 13 | B62: 67 | C62: 132193000401 | D62: Promenade dans les ocres | E62: 9 | F62: 15 | G62: 9 | H62: 0 | I62: 0 | J62: 33 | K62: 0 | L62: 82 | M62: 0 | O62: 0 | Q62: =COUNTIF('Classement auteurs'!B:B,C62) -> 1
A63: 13 | B63: 68 | C63: 132060001701 | D63: Pause café | E63: 11 | F63: 12 | G63: 14 | H63: 0 | I63: 0 | J63: 37 | K63: 0 | L63: 87 | M63: 0 | O63: 0 | Q63: =COUNTIF('Classement auteurs'!B:B,C63) -> 1
A64: 13 | B64: 69 | C64: 130878014101 | D64: Echoué | E64: 17 | F64: 20 | G64: 19 | H64: 0 | I64: 0 | J64: 56 | K64: 0 | L64: 26 | M64: 0 | O64: 0 | Q64: =COUNTIF('Classement auteurs'!B:B,C64) -> 1
A65: 13 | B65: 71 | C65: 131499009801 | D65: Mon beau miroir | E65: 13 | F65: 16 | G65: 13 | H65: 0 | I65: 0 | J65: 42 | K65: 0 | L65: 39 | M65: 0 | O65: 0 | Q65: =COUNTIF('Classement auteurs'!B:B,C65) -> 1
A66: 13 | B66: 72 | C66: 131499010401 | D66: Filets du petit matin | E66: 12 | F66: 15 | G66: 14 | H66: 0 | I66: 0 | J66: 41 | K66: 0 | L66: 76 | M66: 0 | O66: 0 | Q66: =COUNTIF('Classement auteurs'!B:B,C66) -> 1
A67: 13 | B67: 73 | C67: 132084003501 | D67: Le chemin des couleurs | E67: 11 | F67: 14 | G67: 13 | H67: 0 | I67: 0 | J67: =SUM(E67:I67) -> 38 | K67: 0 | L67: 113 | M67: 0 | O67: 0 | Q67: =COUNTIF('Classement auteurs'!B:B,C67) -> 1
A68: 13 | B68: 74 | C68: 131956001401 | D68: Virage Gondole | E68: 9 | F68: 14 | G68: 12 | H68: 0 | I68: 0 | J68: 35 | K68: 0 | L68: 9 | M68: 0 | O68: 0 | Q68: =COUNTIF('Classement auteurs'!B:B,C68) -> 1
A69: 13 | B69: 75 | C69: 131879000801 | D69: La fille au masque | E69: 11 | F69: 12 | G69: 13 | H69: 0 | I69: 0 | J69: 36 | K69: 0 | L69: 74 | M69: 0 | O69: 0 | Q69: =COUNTIF('Classement auteurs'!B:B,C69) -> 1
A70: 13 | B70: 76 | C70: 132023001701 | D70: Mongolfière | E70: 11 | F70: 14 | G70: 13 | H70: 0 | I70: 0 | J70: 38 | K70: 0 | L70: 141 | M70: 0 | O70: 0 | Q70: =COUNTIF('Classement auteurs'!B:B,C70) -> 1
A71: 13 | B71: 77 | C71: 131619004601 | D71: Pêche en Brenne | E71: 13 | F71: 17 | G71: 13 | H71: 0 | I71: 0 | J71: 43 | K71: 0 | L71: 146 | M71: 0 | O71: 0 | Q71: =COUNTIF('Classement auteurs'!B:B,C71) -> 1
A72: 13 | B72: 78 | C72: 132193000501 | D72: La Nuit du carrefour | E72: 13 | F72: 15 | G72: 13 | H72: 0 | I72: 0 | J72: 41 | K72: 0 | L72: 90 | M72: 0 | O72: 0 | Q72: =COUNTIF('Classement auteurs'!B:B,C72) -> 1
A73: 13 | B73: 79 | C73: 130000019901 | D73: Paris | E73: 9 | F73: 13 | G73: 15 | H73: 0 | I73: 0 | J73: 37 | K73: 0 | L73: 81 | M73: 6 | O73: 0 | Q73: =COUNTIF('Classement auteurs'!B:B,C73) -> 1
A74: 13 | B74: 80 | C74: 131499010101 | D74: Aurore | E74: 10 | F74: 12 | G74: 12 | H74: 0 | I74: 0 | J74: 34 | K74: 0 | L74: 136 | M74: 0 | O74: 0 | Q74: =COUNTIF('Classement auteurs'!B:B,C74) -> 1
A75: 13 | B75: 81 | C75: 132084003601 | D75: Voie en couleur | E75: 9 | F75: 14 | G75: 12 | H75: 0 | I75: 0 | J75: 35 | K75: 0 | L75: 119 | M75: 0 | O75: 0 | Q75: =COUNTIF('Classement auteurs'!B:B,C75) -> 1
A76: 13 | B76: 82 | C76: 131499010301 | D76: Face au large | E76: 19 | F76: 16 | G76: 15 | H76: 0 | I76: 0 | J76: 50 | K76: 0 | L76: 114 | M76: 0 | O76: 0 | Q76: =COUNTIF('Classement auteurs'!B:B,C76) -> 1
A77: 13 | B77: 83 | C77: 132193001201 | D77: Meton au lever de soleil | E77: 10 | F77: 13 | G77: 14 | H77: 0 | I77: 0 | J77: 37 | K77: 0 | L77: 129 | M77: 0 | O77: 0 | Q77: =COUNTIF('Classement auteurs'!B:B,C77) -> 1
A78: 13 | B78: 84 | C78: 131499010001 | D78: Olivia Ruiz aux Nuits du Sud | E78: 11 | F78: 15 | G78: 16 | H78: 0 | I78: 0 | J78: 42 | K78: 0 | L78: 48 | M78: 0 | O78: 0 | Q78: =COUNTIF('Classement auteurs'!B:B,C78) -> 1
A79: 13 | B79: 86 | C79: 130527015501 | D79: Couleurs | E79: 9 | F79: 12 | G79: 11 | H79: 0 | I79: 0 | J79: 32 | K79: 0 | L79: 162 | M79: 0 | O79: 0 | Q79: =COUNTIF('Classement auteurs'!B:B,C79) -> 1
A80: 13 | B80: 87 | C80: 130993014001 | D80: Le passage | E80: 11 | F80: 8 | G80: 12 | H80: 0 | I80: 0 | J80: 31 | K80: 0 | L80: 66 | M80: 0 | O80: 0 | Q80: =COUNTIF('Classement auteurs'!B:B,C80) -> 1
A81: 13 | B81: 88 | C81: 131353006101 | D81: Regard bleu | E81: 10 | F81: 14 | G81: 12 | H81: 0 | I81: 0 | J81: 36 | K81: 0 | L81: 15 | M81: 0 | O81: 0 | Q81: =COUNTIF('Classement auteurs'!B:B,C81) -> 1
A82: 13 | B82: 89 | C82: 131499008201 | D82: L'arrêt de bus | E82: 13 | F82: 17 | G82: 19 | H82: 0 | I82: 0 | J82: 49 | K82: 0 | L82: 140 | M82: 0 | O82: 0 | Q82: =COUNTIF('Classement auteurs'!B:B,C82) -> 1
A83: 13 | B83: 90 | C83: 131683006301 | D83: Blanc | E83: 16 | F83: 17 | G83: 12 | H83: 0 | I83: 0 | J83: 45 | K83: 0 | L83: 138 | M83: 0 | O83: 0 | Q83: =COUNTIF('Classement auteurs'!B:B,C83) -> 1
A84: 13 | B84: 91 | C84: 131353003001 | D84: Femme Nature | E84: 9 | F84: 16 | G84: 10 | H84: 0 | I84: 0 | J84: 35 | K84: 0 | L84: 28 | M84: 0 | O84: 0 | Q84: =COUNTIF('Classement auteurs'!B:B,C84) -> 1
A85: 13 | B85: 92 | C85: 131353007101 | D85: Bravo! | E85: 9 | F85: 15 | G85: 13 | H85: 0 | I85: 0 | J85: 37 | K85: 0 | L85: 2 | M85: 0 | O85: 0 | Q85: =COUNTIF('Classement auteurs'!B:B,C85) -> 1
A86: 13 | B86: 93 | C86: 131110000901 | D86: Le cycliste | E86: 16 | F86: 14 | G86: 11 | H86: 0 | I86: 0 | J86: 41 | K86: 0 | L86: 58 | M86: 0 | O86: 0 | Q86: =COUNTIF('Classement auteurs'!B:B,C86) -> 1
A87: 13 | B87: 94 | C87: 131499005201 | D87: Femme au chapeau | E87: 9 | F87: 17 | G87: 13 | H87: 0 | I87: 0 | J87: 39 | K87: 0 | L87: 94 | M87: 0 | O87: 0 | Q87: =COUNTIF('Classement auteurs'!B:B,C87) -> 1
A88: 13 | B88: 95 | C88: 131499003901 | D88: Campagne beaujolaise | E88: 19 | F88: 12 | G88: 8 | H88: 0 | I88: 0 | J88: 39 | K88: 0 | L88: 109 | M88: 0 | O88: 0 | Q88: =COUNTIF('Classement auteurs'!B:B,C88) -> 1
A89: 13 | B89: 96 | C89: 131879000901 | D89: Corvette | E89: 9 | F89: 8 | G89: 12 | H89: 0 | I89: 0 | J89: 29 | K89: 0 | L89: 126 | M89: 0 | O89: 0 | Q89: =COUNTIF('Classement auteurs'!B:B,C89) -> 1
A90: 13 | B90: 97 | C90: 131494000201 | D90: Voile 7 | E90: 16 | F90: 9 | G90: 12 | H90: 0 | I90: 0 | J90: 37 | K90: 0 | L90: 80 | M90: 0 | O90: 0 | Q90: =COUNTIF('Classement auteurs'!B:B,C90) -> 1
A91: 13 | B91: 98 | C91: 131683006601 | D91: Balade nocturne | E91: 14 | F91: 18 | G91: 17 | H91: 0 | I91: 0 | J91: 49 | K91: 0 | L91: 49 | M91: 0 | O91: 0 | Q91: =COUNTIF('Classement auteurs'!B:B,C91) -> 1
A92: 13 | B92: 99 | C92: 131353004301 | D92: Eventail | E92: 10 | F92: 7 | G92: 7 | H92: 0 | I92: 0 | J92: 24 | K92: 0 | L92: 59 | M92: 0 | O92: 0 | Q92: =COUNTIF('Classement auteurs'!B:B,C92) -> 1
A93: 13 | B93: 100 | C93: 131494002301 | D93: Dans le sable. | E93: 10 | F93: 16 | G93: 16 | H93: 0 | I93: 0 | J93: 42 | K93: 0 | L93: 13 | M93: 0 | O93: 0 | Q93: =COUNTIF('Classement auteurs'!B:B,C93) -> 1
A94: 13 | B94: 101 | C94: 132203000701 | D94: Le p'tit café! place Garibaldi..... | E94: 11 | F94: 15 | G94: 14 | H94: 0 | I94: 0 | J94: 40 | K94: 0 | L94: 45 | M94: 0 | O94: 0 | Q94: =COUNTIF('Classement auteurs'!B:B,C94) -> 1
A95: 13 | B95: 103 | C95: 130925009901 | D95: Exposition Universelle Milan | E95: 9 | F95: 15 | G95: 13 | H95: 0 | I95: 0 | J95: 37 | K95: 0 | L95: 56 | M95: 0 | O95: 0 | Q95: =COUNTIF('Classement auteurs'!B:B,C95) -> 1
A96: 13 | B96: 105 | C96: 131845003401 | D96: Et danse la peinture | E96: 11 | F96: 16 | G96: 13 | H96: 0 | I96: 0 | J96: 40 | K96: 0 | L96: 37 | M96: 0 | O96: 0 | Q96: =COUNTIF('Classement auteurs'!B:B,C96) -> 1
A97: 13 | B97: 106 | C97: 131376014701 | D97: Le père et l'enfant | E97: 14 | F97: 17 | G97: 13 | H97: 0 | I97: 0 | J97: 44 | K97: 0 | L97: 158 | M97: 0 | O97: 0 | Q97: =COUNTIF('Classement auteurs'!B:B,C97) -> 1
A98: 13 | B98: 107 | C98: 131956004601 | D98: Graphismes camarguais | E98: 10 | F98: 9 | G98: 8 | H98: 0 | I98: 0 | J98: 27 | K98: 0 | L98: 10 | M98: 0 | O98: 0 | Q98: =COUNTIF('Classement auteurs'!B:B,C98) -> 1
A99: 13 | B99: 108 | C99: 131956006101 | D99: Dans les nuages | E99: 14 | F99: 14 | G99: 14 | H99: 0 | I99: 0 | J99: 42 | K99: 0 | L99: 62 | M99: 0 | O99: 0 | Q99: =COUNTIF('Classement auteurs'!B:B,C99) -> 1
A100: 13 | B100: 109 | C100: 130462009601 | D100: Sticky Boys | E100: 13 | F100: 10 | G100: 12 | H100: 0 | I100: 0 | J100: 35 | K100: 0 | L100: 116 | M100: 0 | O100: 0 | Q100: =COUNTIF('Classement auteurs'!B:B,C100) -> 1
A101: 13 | B101: 110 | C101: 131899003801 | D101: Bord de mer | E101: 11 | F101: 13 | G101: 13 | H101: 0 | I101: 0 | J101: 37 | K101: 0 | L101: 53 | M101: 0 | O101: 0 | Q101: =COUNTIF('Classement auteurs'!B:B,C101) -> 1
A102: 13 | B102: 111 | C102: 131956006501 | D102: éclosion | E102: 11 | F102: 14 | G102: 11 | H102: 0 | I102: 0 | J102: 36 | K102: 0 | L102: 42 | M102: 0 | O102: 0 | Q102: =COUNTIF('Classement auteurs'!B:B,C102) -> 1
A103: 13 | B103: 112 | C103: 131683008001 | D103: Dans la chaleur des moteurs | E103: 16 | F103: 17 | G103: 19 | H103: 0 | I103: 0 | J103: 52 | K103: 0 | L103: 57 | M103: 0 | O103: 0 | Q103: =COUNTIF('Classement auteurs'!B:B,C103) -> 1
A104: 13 | B104: 113 | C104: 131845001101 | D104: L'insolite | E104: 11 | F104: 13 | G104: 8 | H104: 0 | I104: 0 | J104: 32 | K104: 0 | L104: 130 | M104: 0 | O104: 0 | Q104: =COUNTIF('Classement auteurs'!B:B,C104) -> 1
A105: 13 | B105: 114 | C105: 131619005001 | D105: Antilope Canyon | E105: 16 | F105: 17 | G105: 12 | H105: 0 | I105: 0 | J105: 45 | K105: 0 | L105: 89 | M105: 0 | O105: 0 | Q105: =COUNTIF('Classement auteurs'!B:B,C105) -> 1
A106: 13 | B106: 115 | C106: 132060000701 | D106: Beaubourg | E106: 11 | F106: 11 | G106: 14 | H106: 0 | I106: 0 | J106: 36 | K106: 0 | L106: 148 | M106: 0 | O106: 0 | Q106: =COUNTIF('Classement auteurs'!B:B,C106) -> 1
A107: 13 | B107: 116 | C107: 131683005101 | D107: Sérénité | E107: 19 | F107: 17 | G107: 13 | H107: 0 | I107: 0 | J107: 49 | K107: 0 | L107: 105 | M107: 0 | O107: 0 | Q107: =COUNTIF('Classement auteurs'!B:B,C107) -> 1
A108: 13 | B108: 117 | C108: 132060001201 | D108: Au delà du mur | E108: 9 | F108: 16 | G108: 14 | H108: 0 | I108: 0 | J108: 39 | K108: 0 | L108: 160 | M108: 0 | O108: 0 | Q108: =COUNTIF('Classement auteurs'!B:B,C108) -> 1
A109: 13 | B109: 118 | C109: 132086002601 | D109: Urban city | E109: 9 | F109: 15 | G109: 16 | H109: 0 | I109: 0 | J109: 40 | K109: 0 | L109: 142 | M109: 0 | O109: 0 | Q109: =COUNTIF('Classement auteurs'!B:B,C109) -> 1
A110: 13 | B110: 119 | C110: 131862002201 | D110: Randonnée | E110: 10 | F110: 15 | G110: 18 | H110: 0 | I110: 0 | J110: 43 | K110: 0 | L110: 83 | M110: 0 | O110: 0 | Q110: =COUNTIF('Classement auteurs'!B:B,C110) -> 1
A111: 13 | B111: 120 | C111: 130925009801 | D111: Prédicateur | E111: 10 | F111: 17 | G111: 13 | H111: 0 | I111: 0 | J111: 40 | K111: 0 | L111: 27 | M111: 0 | O111: 0 | Q111: =COUNTIF('Classement auteurs'!B:B,C111) -> 1
A112: 13 | B112: 121 | C112: 131956002401 | D112: Reflet du lac | E112: 17 | F112: 12 | G112: 14 | H112: 0 | I112: 0 | J112: 43 | K112: 0 | L112: 8 | M112: 0 | O112: 0 | Q112: =COUNTIF('Classement auteurs'!B:B,C112) -> 1
A113: 13 | B113: 122 | C113: 131845001401 | D113: St Cast en feu | E113: 12 | F113: 16 | G113: 15 | H113: 0 | I113: 0 | J113: 43 | K113: 0 | L113: 131 | M113: 0 | O113: 0 | Q113: =COUNTIF('Classement auteurs'!B:B,C113) -> 1
A114: 13 | B114: 123 | C114: 131956005901 | D114: Vers la tour | E114: 10 | F114: 15 | G114: 12 | H114: 0 | I114: 0 | J114: 37 | K114: 0 | L114: 55 | M114: 0 | O114: 0 | Q114: =COUNTIF('Classement auteurs'!B:B,C114) -> 1
A115: 13 | B115: 124 | C115: 131227008601 | D115: Le phare de Cassis | E115: 17 | F115: 14 | G115: 11 | H115: 0 | I115: 0 | J115: 42 | K115: 0 | L115: 23 | M115: 0 | O115: 0 | Q115: =COUNTIF('Classement auteurs'!B:B,C115) -> 1
A116: 13 | B116: 125 | C116: 131353006201 | D116: Plein champ | E116: 9 | F116: 16 | G116: 12 | H116: 0 | I116: 0 | J116: 37 | K116: 0 | L116: 132 | M116: 0 | O116: 0 | Q116: =COUNTIF('Classement auteurs'!B:B,C116) -> 1
A117: 13 | B117: 126 | C117: 131956004501 | D117: Le pont routier | E117: 13 | F117: 16 | G117: 10 | H117: 0 | I117: 0 | J117: 39 | K117: 0 | L117: 64 | M117: 0 | O117: 0 | Q117: =COUNTIF('Classement auteurs'!B:B,C117) -> 1
A118: 13 | B118: 127 | C118: 131353007401 | D118: 74_MG_Malecon Cuba.jpg | E118: 9 | F118: 16 | G118: 16 | H118: 0 | I118: 0 | J118: 41 | K118: 0 | L118: 36 | M118: 0 | O118: 0 | Q118: =COUNTIF('Classement auteurs'!B:B,C118) -> 1
A119: 13 | B119: 128 | C119: 130878013001 | D119: Voyage | E119: 9 | F119: 8 | G119: 9 | H119: 0 | I119: 0 | J119: 26 | K119: 0 | L119: 12 | M119: 0 | O119: 0 | Q119: =COUNTIF('Classement auteurs'!B:B,C119) -> 1
A120: 13 | B120: 129 | C120: 132086001401 | D120: Géometrie | E120: 10 | F120: 14 | G120: 10 | H120: 0 | I120: 0 | J120: 34 | K120: 0 | L120: 147 | M120: 0 | O120: 0 | Q120: =COUNTIF('Classement auteurs'!B:B,C120) -> 1
A121: 13 | B121: 130 | C121: 131353007301 | D121: 73_PG_Musicien Des Rues La Havane.jpg | E121: 10 | F121: 16 | G121: 12 | H121: 0 | I121: 0 | J121: 38 | K121: 0 | L121: 127 | M121: 0 | O121: 0 | Q121: =COUNTIF('Classement auteurs'!B:B,C121) -> 1
A122: 13 | B122: 131 | C122: 130987025001 | D122: Buren en couleur | E122: 12 | F122: 16 | G122: 12 | H122: 0 | I122: 0 | J122: 40 | K122: 0 | L122: 95 | M122: 0 | O122: 0 | Q122: =COUNTIF('Classement auteurs'!B:B,C122) -> 1
A123: 13 | B123: 132 | C123: 131956002601 | D123: Erosion | E123: 9 | F123: 13 | G123: 8 | H123: 0 | I123: 0 | J123: 30 | K123: 0 | L123: 34 | M123: 0 | O123: 0 | Q123: =COUNTIF('Classement auteurs'!B:B,C123) -> 1
A124: 13 | B124: 133 | C124: 130987023901 | D124: "Dream" | E124: 10 | F124: 9 | G124: 11 | H124: 0 | I124: 0 | J124: 30 | K124: 0 | L124: 6 | M124: 0 | O124: 0 | Q124: =COUNTIF('Classement auteurs'!B:B,C124) -> 1
A125: 13 | B125: 134 | C125: 130462001101 | D125: Etang du Lavalduc | E125: 14 | F125: 16 | G125: 13 | H125: 0 | I125: 0 | J125: 43 | K125: 0 | L125: 135 | M125: 0 | O125: 0 | Q125: =COUNTIF('Classement auteurs'!B:B,C125) -> 1
A126: 13 | B126: 135 | C126: 132089000101 | D126: Il va neiger dans le Var | E126: 10 | F126: 14 | G126: 12 | H126: 0 | I126: 0 | J126: 36 | K126: 0 | L126: 16 | M126: 0 | O126: 0 | Q126: =COUNTIF('Classement auteurs'!B:B,C126) -> 1
A127: 13 | B127: 136 | C127: 131845004001 | D127: Chantiers de la Seyne | E127: 16 | F127: 13 | G127: 12 | H127: 0 | I127: 0 | J127: 41 | K127: 0 | L127: 46 | M127: 0 | O127: 0 | Q127: =COUNTIF('Classement auteurs'!B:B,C127) -> 1
A128: 13 | B128: 137 | C128: 131619005301 | D128: Princess Street | E128: 16 | F128: 13 | G128: 14 | H128: 0 | I128: 0 | J128: 43 | K128: 0 | L128: 145 | M128: 0 | O128: 0 | Q128: =COUNTIF('Classement auteurs'!B:B,C128) -> 1
A129: 13 | B129: 138 | C129: 131956000201 | D129: Camaieu Camarguais | E129: 18 | F129: 10 | G129: 11 | H129: 0 | I129: 0 | J129: 39 | K129: 0 | L129: 108 | M129: 0 | O129: 0 | Q129: =COUNTIF('Classement auteurs'!B:B,C129) -> 1
A130: 13 | B130: 139 | C130: 130925008401 | D130: Spleen | E130: 14 | F130: 19 | G130: 18 | H130: 0 | I130: 0 | J130: 51 | K130: 0 | L130: 161 | M130: 0 | O130: 0 | Q130: =COUNTIF('Classement auteurs'!B:B,C130) -> 1
A131: 13 | B131: 140 | C131: 130925007701 | D131: Dans la brume | E131: 10 | F131: 13 | G131: 14 | H131: 0 | I131: 0 | J131: =SUM(E131:I131) -> 37 | K131: 0 | L131: 123 | M131: 0 | O131: 0 | Q131: =COUNTIF('Classement auteurs'!B:B,C131) -> 1
A132: 13 | B132: 141 | C132: 130987016601 | D132: Carla | E132: 10 | F132: 11 | G132: 9 | H132: 0 | I132: 0 | J132: 30 | K132: 0 | L132: 99 | M132: 0 | O132: 0 | Q132: =COUNTIF('Classement auteurs'!B:B,C132) -> 1
A133: 13 | B133: 142 | C133: 131845004101 | D133: Londres | E133: 9 | F133: 12 | G133: 15 | H133: 0 | I133: 0 | J133: 36 | K133: 0 | L133: 3 | M133: 0 | O133: 0 | Q133: =COUNTIF('Classement auteurs'!B:B,C133) -> 1
A134: 13 | B134: 143 | C134: 131499010601 | D134: Ocres | E134: 13 | F134: 12 | G134: 14 | H134: 0 | I134: 0 | J134: 39 | K134: 0 | L134: 125 | M134: 0 | O134: 0 | Q134: =COUNTIF('Classement auteurs'!B:B,C134) -> 1
A135: 13 | B135: 144 | C135: 131499010501 | D135: Selfie dans les lavandes | E135: 10 | F135: 13 | G135: 13 | H135: 0 | I135: 0 | J135: 36 | K135: 0 | L135: 50 | M135: 0 | O135: 0 | Q135: =COUNTIF('Classement auteurs'!B:B,C135) -> 1
A136: 13 | B136: 146 | C136: 131823004201 | D136: La fanfare | E136: 10 | F136: 13 | G136: 11 | H136: 0 | I136: 0 | J136: 34 | K136: 0 | L136: 93 | M136: 0 | O136: 0 | Q136: =COUNTIF('Classement auteurs'!B:B,C136) -> 1
A137: 13 | B137: 147 | C137: 131956005301 | D137: Bo-Kaap Maison au palmier | E137: 9 | F137: 14 | G137: 9 | H137: 0 | I137: 0 | J137: 32 | K137: 0 | L137: 84 | M137: 0 | O137: 0 | Q137: =COUNTIF('Classement auteurs'!B:B,C137) -> 1
A138: 13 | B138: 148 | C138: 131823006401 | D138: Le petit port | E138: 10 | F138: 13 | G138: 14 | H138: 0 | I138: 0 | J138: 37 | K138: 0 | L138: 121 | M138: 0 | O138: 0 | Q138: =COUNTIF('Classement auteurs'!B:B,C138) -> 1
A139: 13 | B139: 149 | C139: 131845000801 | D139: Sama Danse des Derviches Tourneurs | E139: 7 | F139: 15 | G139: 12 | H139: 0 | I139: 0 | J139: 34 | K139: 0 | L139: 24 | M139: 0 | O139: 0
A140: 13 | B140: 150 | C140: 131956000601 | D140: En cuisine! | E140: 12 | F140: 7 | G140: 8 | H140: 0 | I140: 0 | J140: 27 | K140: 0 | L140: 118 | M140: 0 | O140: 0
A141: 13 | B141: 151 | C141: 131845000101 | D141: Façade provençale | E141: 14 | F141: 15 | G141: 12 | H141: 0 | I141: 0 | J141: 41 | K141: 0 | L141: 51 | M141: 0 | O141: 0
A142: 13 | B142: 152 | C142: 131845000201 | D142: Dans le Panier | E142: 13 | F142: 13 | G142: 14 | H142: 0 | I142: 0 | J142: 40 | K142: 0 | L142: 60 | M142: 0 | O142: 0
A143: 13 | B143: 153 | C143: 131376000101 | D143: Précautions! | E143: 8 | F143: 15 | G143: 14 | H143: 0 | I143: 0 | J143: 37 | K143: 0 | L143: 43 | M143: 0 | O143: 0
A144: 13 | B144: 154 | C144: 131956005701 | D144: Matin calme à Pokhara | E144: 10 | F144: 15 | G144: 13 | H144: 0 | I144: 0 | J144: 38 | K144: 0 | L144: 19 | M144: 0 | O144: 0
A145: 13 | B145: 155 | C145: 131619004501 | D145: Sant' Angelo | E145: 12 | F145: 14 | G145: 11 | H145: 0 | I145: 0 | J145: 37 | K145: 0 | L145: 124 | M145: 0 | O145: 0
A146: 13 | B146: 156 | C146: 130987001601 | D146: Gerbera | E146: 14 | F146: 13 | G146: 10 | H146: 0 | I146: 0 | J146: 37 | K146: 0 | L146: 92 | M146: 0 | O146: 0
A147: 13 | B147: 157 | C147: 130925007601 | D147: Birmane | E147: 9 | F147: 20 | G147: 12 | H147: 0 | I147: 0 | J147: 41 | K147: 0 | L147: 85 | M147: 0 | O147: 0
A148: 13 | B148: 158 | C148: 131845002101 | D148: Mariage de l'eau et du feu | E148: 14 | F148: 18 | G148: 12 | H148: 0 | I148: 0 | J148: 44 | K148: 0 | L148: 52 | M148: 0 | O148: 0
A149: 13 | B149: 159 | C149: 132060000901 | D149: Un air de Noël | E149: 9 | F149: 10 | G149: 11 | H149: 0 | I149: 0 | J149: 30 | K149: 0 | L149: 163 | M149: 0 | O149: 0
A150: 13 | B150: 160 | C150: 130527009401 | D150: Terre de Sienne | E150: 18 | F150: 19 | G150: 14 | H150: 0 | I150: 0 | J150: 51 | K150: 0 | L150: 30 | M150: 0 | O150: 0
A151: 13 | B151: 161 | C151: 130527017001 | D151: L'art solitaire... | E151: 14 | F151: 17 | G151: 20 | H151: 0 | I151: 0 | J151: 51 | K151: 0 | L151: 29 | M151: 0 | O151: 0
A152: 13 | B152: 162 | C152: 130987002301 | D152: Moulin Sicilien | E152: 10 | F152: 11 | G152: 13 | H152: 0 | I152: 0 | J152: 34 | K152: 0 | L152: 122 | M152: 0 | O152: 0
A153: 13 | B153: 163 | C153: 132060000401 | D153: Solitaire | E153: 11 | F153: 16 | G153: 13 | H153: 0 | I153: 0 | J153: 40 | K153: 0 | L153: 102 | M153: 0 | O153: 0
A154: 13 | B154: 164 | C154: 131499003601 | D154: Les fruits du marché | E154: 16 | F154: 19 | G154: 15 | H154: 0 | I154: 0 | J154: 50 | K154: 0 | L154: 91 | M154: 0 | O154: 0
A155: 13 | B155: 165 | C155: 131499006901 | D155: Design | E155: 18 | F155: 14 | G155: 14 | H155: 0 | I155: 0 | J155: 46 | K155: 0 | L155: 1 | M155: 0 | O155: 0
A156: 13 | B156: 166 | C156: 131499010701 | D156: Vapeur d'arc en ciel | E156: 14 | F156: 7 | G156: 12 | H156: 0 | I156: 0 | J156: 33 | K156: 0 | L156: 103 | M156: 0 | O156: 0
A157: 13 | B157: 167 | C157: 131619004201 | D157: Les Goudes | E157: 12 | F157: 7 | G157: 15 | H157: 0 | I157: 0 | J157: 34 | K157: 0 | L157: 70 | M157: 0 | O157: 0
A158: 13 | B158: 168 | C158: 131619004801 | D158: La Lune | E158: 12 | F158: 8 | G158: 14 | H158: 0 | I158: 0 | J158: 34 | K158: 0 | L158: 117 | M158: 0 | O158: 0
A159: 13 | B159: 169 | C159: 130878015201 | D159: Du blanc à la couleur | E159: 14 | F159: 15 | G159: 13 | H159: 0 | I159: 0 | J159: 42 | K159: 0 | L159: 71 | M159: 0 | O159: 0
A160: 13 | B160: 170 | C160: 131499008601 | D160: Peint ta rue | E160: 12 | F160: 17 | G160: 12 | H160: 0 | I160: 0 | J160: 41 | K160: 0 | L160: 154 | M160: 0 | O160: 0
A161: 13 | B161: 171 | C161: 130987026701 | D161: Cabanons de Cabasson | E161: 10 | F161: 12 | G161: 18 | H161: 0 | I161: 0 | J161: 40 | K161: 0 | L161: 17 | M161: 0 | O161: 0
A162: 13 | B162: 172 | C162: 131110001001 | D162: Selfie | E162: 9 | F162: 14 | G162: 12 | H162: 0 | I162: 0 | J162: 35 | K162: 0 | L162: 152 | M162: 0 | O162: 0
A163: 13 | B163: 173 | C163: 132203001001 | D163: L'ocre en provence | E163: 13 | F163: 13 | G163: 9 | H163: 0 | I163: 0 | J163: 35 | K163: 0 | L163: 134 | M163: 0 | O163: 0
A164: 13 | B164: 174 | C164: 131353000701 | D164: Pierrot à la rose | E164: 11 | F164: 17 | G164: 13 | H164: 0 | I164: 0 | J164: 41 | K164: 0 | L164: 150 | M164: 0 | O164: 0
A165: 13 | B165: 175 | C165: 131353000101 | D165: Riomaggiore | E165: 18 | F165: 19 | G165: 20 | H165: 0 | I165: 0 | J165: 57 | K165: 0 | L165: 97 | M165: 0 | O165: 0

Sheet Défi-6
A1: colis | B1: photologic | C1: fichier | D1: titre | E1: note1 | F1: note2 | G1: note3 | H1: note4 | I1: note5 | J1: total | K1: place | L1: passage | M1: statut | N1: medaille | O1: retenue | Q1: 0=absent 1=présent
A2: 13 | B2: 29 | C2: 131879000801 | D2: Harmonie | E2: 19 | F2: 19 | G2: 20 | H2: 0 | I2: 0 | J2: 58 | K2: 0 | L2: 99 | M2: 0 | O2: 0 | Q2: =COUNTIF('Classement auteurs'!B:B,C2) -> 1
A3: 13 | B3: 35 | C3: 131683006301 | D3: Avant l'orage | E3: 18 | F3: 19 | G3: 20 | H3: 0 | I3: 0 | J3: 57 | K3: 0 | L3: 93 | M3: 0 | O3: 0 | Q3: =COUNTIF('Classement auteurs'!B:B,C3) -> 1
A4: 13 | B4: 5 | C4: 131376018301 | D4: La poursuite | E4: 19 | F4: 18 | G4: 20 | H4: 0 | I4: 0 | J4: 57 | K4: 0 | L4: 132 | M4: 0 | O4: 0 | Q4: =COUNTIF('Classement auteurs'!B:B,C4) -> 1
A5: 13 | B5: 9 | C5: 132103000101 | D5: Prendre de le temps | E5: 19 | F5: 19 | G5: 17 | H5: 0 | I5: 0 | J5: 55 | K5: 0 | L5: 152 | M5: 0 | O5: 0 | Q5: =COUNTIF('Classement auteurs'!B:B,C5) -> 1
A6: 13 | B6: 36 | C6: 132084003601 | D6: Mini la grenouille | E6: 17 | F6: 18 | G6: 20 | H6: 0 | I6: 0 | J6: 55 | K6: 0 | L6: 137 | M6: 0 | O6: 0 | Q6: =COUNTIF('Classement auteurs'!B:B,C6) -> 1
A7: 13 | B7: 23 | C7: 132084002301 | D7: Les petits hommes | E7: 19 | F7: 18 | G7: 17 | H7: 0 | I7: 0 | J7: 54 | K7: 0 | L7: 8 | M7: 0 | O7: 0 | Q7: =COUNTIF('Classement auteurs'!B:B,C7) -> 1
A8: 13 | B8: 41 | C8: 131227008601 | D8: Après la pluie | E8: 20 | F8: 17 | G8: 16 | H8: 0 | I8: 0 | J8: 53 | K8: 0 | L8: 2 | M8: 0 | O8: 0 | Q8: =COUNTIF('Classement auteurs'!B:B,C8) -> 1
A9: 13 | B9: 45 | C9: 131824001901 | D9: Juste une éclaircie | E9: 20 | F9: 14 | G9: 18 | H9: 0 | I9: 0 | J9: 52 | K9: 0 | L9: 126 | M9: 0 | O9: 0 | Q9: =COUNTIF('Classement auteurs'!B:B,C9) -> 1
A10: 13 | B10: 32 | C10: 130987019701 | D10: Sommet | E10: 15 | F10: 16 | G10: 20 | H10: 0 | I10: 0 | J10: 51 | K10: 0 | L10: 54 | M10: 0 | O10: 0 | Q10: =COUNTIF('Classement auteurs'!B:B,C10) -> 1
A11: 13 | B11: 37 | C11: 131683007901 | D11: Kiai | E11: 16 | F11: 20 | G11: 15 | H11: 0 | I11: 0 | J11: 51 | K11: 0 | L11: 7 | M11: 0 | O11: 0 | Q11: =COUNTIF('Classement auteurs'!B:B,C11) -> 1
A12: 13 | B12: 72 | C12: 130925007701 | D12: Regards d'enfants | E12: 14 | F12: 17 | G12: 19 | H12: 0 | I12: 0 | J12: 50 | K12: 0 | L12: 119 | M12: 0 | O12: 0 | Q12: =COUNTIF('Classement auteurs'!B:B,C12) -> 1
A13: 13 | B13: 26 | C13: 130878015801 | D13: Laveur d'Affiche | E13: 18 | F13: 13 | G13: 18 | H13: 0 | I13: 0 | J13: 49 | K13: 0 | L13: 32 | M13: 0 | O13: 0 | Q13: =COUNTIF('Classement auteurs'!B:B,C13) -> 1
A14: 13 | B14: 4 | C14: 130987015701 | D14: Rêve de Mérous | E14: 14 | F14: 17 | G14: 17 | H14: 0 | I14: 0 | J14: 48 | K14: 0 | L14: 109 | M14: 0 | O14: 0 | Q14: =COUNTIF('Classement auteurs'!B:B,C14) -> 1
A15: 13 | B15: 12 | C15: 131683008001 | D15: Transparences | E15: 19 | F15: 13 | G15: 16 | H15: 0 | I15: 0 | J15: 48 | K15: 0 | L15: 59 | M15: 0 | O15: 0 | Q15: =COUNTIF('Classement auteurs'!B:B,C15) -> 1
A16: 13 | B16: 34 | C16: 132193000301 | D16: Ambiance New York | E16: 12 | F16: 18 | G16: 18 | H16: 0 | I16: 0 | J16: 48 | K16: 0 | L16: 69 | M16: 0 | O16: 0 | Q16: =COUNTIF('Classement auteurs'!B:B,C16) -> 1
A17: 13 | B17: 37 | C17: 130987014001 | D17: Le coeur dans les nuages | E17: 14 | F17: 15 | G17: 19 | H17: 0 | I17: 0 | J17: 48 | K17: 0 | L17: 61 | M17: 0 | O17: 0 | Q17: =COUNTIF('Classement auteurs'!B:B,C17) -> 1
A18: 13 | B18: 1 | C18: 130987024201 | D18: Cracheur de Feu | E18: 17 | F18: 18 | G18: 13 | H18: 0 | I18: 0 | J18: 48 | K18: 0 | L18: 50 | M18: 0 | O18: 0 | Q18: =COUNTIF('Classement auteurs'!B:B,C18) -> 1
A19: 13 | B19: 8 | C19: 131823008301 | D19: Portrait de rue | E19: 16 | F19: 18 | G19: 14 | H19: 0 | I19: 0 | J19: 48 | K19: 0 | L19: 12 | M19: 0 | O19: 0 | Q19: =COUNTIF('Classement auteurs'!B:B,C19) -> 1
A20: 13 | B20: 28 | C20: 131683000701 | D20: MARIE | E20: 18 | F20: 13 | G20: 17 | H20: 0 | I20: 0 | J20: 48 | K20: 0 | L20: 40 | M20: 0 | O20: 0 | Q20: =COUNTIF('Classement auteurs'!B:B,C20) -> 1
A21: 13 | B21: 33 | C21: 131353002601 | D21: Chambley 1 | E21: 15 | F21: 16 | G21: 17 | H21: 0 | I21: 0 | J21: 48 | K21: 0 | L21: 116 | M21: 0 | O21: 0 | Q21: =COUNTIF('Classement auteurs'!B:B,C21) -> 1
A22: 13 | B22: 21 | C22: 131879000601 | D22: Hong Kong la nuit | E22: 15 | F22: 17 | G22: 15 | H22: 0 | I22: 0 | J22: 47 | K22: 0 | L22: 4 | M22: 0 | O22: 0 | Q22: =COUNTIF('Classement auteurs'!B:B,C22) -> 1
A23: 13 | B23: 78 | C23: 131956004601 | D23: Regards sur notre galaxie | E23: 13 | F23: 19 | G23: 15 | H23: 0 | I23: 0 | J23: 47 | K23: 0 | L23: 20 | M23: 0 | O23: 0 | Q23: =COUNTIF('Classement auteurs'!B:B,C23) -> 1
A24: 13 | B24: 7 | C24: 131683008001 | D24: Espiègle | E24: 16 | F24: 19 | G24: 12 | H24: 0 | I24: 0 | J24: 47 | K24: 0 | L24: 153 | M24: 0 | O24: 0 | Q24: =COUNTIF('Classement auteurs'!B:B,C24) -> 1
A25: 13 | B25: 5 | C25: 131110001001 | D25: Quietude | E25: 15 | F25: 14 | G25: 18 | H25: 0 | I25: 0 | J25: 47 | K25: 0 | L25: 71 | M25: 0 | O25: 0 | Q25: =COUNTIF('Classement auteurs'!B:B,C25) -> 1
A26: 13 | B26: 19 | C26: 131683006301 | D26: Mésange et chardons | E26: 15 | F26: 16 | G26: 16 | H26: 0 | I26: 0 | J26: 47 | K26: 0 | L26: 125 | M26: 0 | O26: 0 | Q26: =COUNTIF('Classement auteurs'!B:B,C26) -> 1
A27: 13 | B27: 20 | C27: 130993013301 | D27: Le repas du Rollier | E27: 14 | F27: 17 | G27: 16 | H27: 0 | I27: 0 | J27: 47 | K27: 0 | L27: 34 | M27: 0 | O27: 0 | Q27: =COUNTIF('Classement auteurs'!B:B,C27) -> 1
A28: 13 | B28: 27 | C28: 130527012401 | D28: Milan | E28: 15 | F28: 17 | G28: 15 | H28: 0 | I28: 0 | J28: 47 | K28: 0 | L28: 128 | M28: 0 | O28: 0 | Q28: =COUNTIF('Classement auteurs'!B:B,C28) -> 1
A29: 13 | B29: 43 | C29: 131353004301 | D29: Jeune Cigale | E29: 16 | F29: 16 | G29: 15 | H29: 0 | I29: 0 | J29: 47 | K29: 0 | L29: 46 | M29: 0 | O29: 0 | Q29: =COUNTIF('Classement auteurs'!B:B,C29) -> 1
A30: 13 | B30: 24 | C30: 130987024001 | D30: Dorures d'autonne | E30: 16 | F30: 15 | G30: 15 | H30: 0 | I30: 0 | J30: 46 | K30: 0 | L30: 42 | M30: 0 | O30: 0 | Q30: =COUNTIF('Classement auteurs'!B:B,C30) -> 1
A31: 13 | B31: 29 | C31: 130987024201 | D31: Planet Caraïbes | E31: 14 | F31: 13 | G31: 19 | H31: 0 | I31: 0 | J31: 46 | K31: 0 | L31: 7 | M31: 0 | O31: 0 | Q31: =COUNTIF('Classement auteurs'!B:B,C31) -> 1
A32: 13 | B32: 9 | C32: 130987024101 | D32: Chevèchette perlée | E32: 16 | F32: 16 | G32: 14 | H32: 0 | I32: 0 | J32: 46 | K32: 0 | L32: 28 | M32: 0 | O32: 0 | Q32: =COUNTIF('Classement auteurs'!B:B,C32) -> 1
A33: 13 | B33: 21 | C33: 131376011801 | D33: Moines du Djokang | E33: 13 | F33: 18 | G33: 15 | H33: 0 | I33: 0 | J33: 46 | K33: 0 | L33: 111 | M33: 0 | O33: 0 | Q33: =COUNTIF('Classement auteurs'!B:B,C33) -> 1
A34: 13 | B34: 50 | C34: 132084001701 | D34: Champs d'ail | E34: 11 | F34: 18 | G34: 16 | H34: 0 | I34: 0 | J34: 45 | K34: 0 | L34: 129 | M34: 0 | O34: 0 | Q34: =COUNTIF('Classement auteurs'!B:B,C34) -> 1
A35: 13 | B35: 73 | C35: 132060001701 | D35: Enfant gitan de la mer | E35: 14 | F35: 14 | G35: 17 | H35: 0 | I35: 0 | J35: 45 | K35: 0 | L35: 42 | M35: 0 | O35: 0 | Q35: =COUNTIF('Classement auteurs'!B:B,C35) -> 1
A36: 13 | B36: 21 | C36: 131824001901 | D36: Terre Secrete Mâconnaise | E36: 17 | F36: 14 | G36: 14 | H36: 0 | I36: 0 | J36: 45 | K36: 0 | L36: 66 | M36: 0 | O36: 0 | Q36: =COUNTIF('Classement auteurs'!B:B,C36) -> 1
A37: 13 | B37: 7 | C37: 132193000301 | D37: Survol de la mer de glace | E37: 14 | F37: 15 | G37: 16 | H37: 0 | I37: 0 | J37: 45 | K37: 0 | L37: 140 | M37: 0 | O37: 0 | Q37: =COUNTIF('Classement auteurs'!B:B,C37) -> 1
A38: 13 | B38: 25 | C38: 130987024201 | D38: Jeux interdits | E38: 14 | F38: 17 | G38: 14 | H38: 0 | I38: 0 | J38: 45 | K38: 0 | L38: 65 | M38: 0 | O38: 0 | Q38: =COUNTIF('Classement auteurs'!B:B,C38) -> 1
A39: 13 | B39: 41 | C39: 130462001101 | D39: Apres la pluie | E39: 18 | F39: 12 | G39: 15 | H39: 0 | I39: 0 | J39: 45 | K39: 0 | L39: 105 | M39: 0 | O39: 0 | Q39: =COUNTIF('Classement auteurs'!B:B,C39) -> 1
A40: 13 | B40: 14 | C40: 131499008701 | D40: Geisha | E40: 15 | F40: 14 | G40: 15 | H40: 0 | I40: 0 | J40: 44 | K40: 0 | L40: 43 | M40: 0 | O40: 0 | Q40: =COUNTIF('Classement auteurs'!B:B,C40) -> 1
A41: 13 | B41: 66 | C41: 131956002601 | D41: Berlin | E41: 14 | F41: 14 | G41: 16 | H41: 0 | I41: 0 | J41: 44 | K41: 0 | L41: 68 | M41: 0 | O41: 0 | Q41: =COUNTIF('Classement auteurs'!B:B,C41) -> 1
A42: 13 | B42: 71 | C42: 130925007601 | D42: Famille Himba | E42: 14 | F42: 13 | G42: 17 | H42: 0 | I42: 0 | J42: 44 | K42: 0 | L42: 45 | M42: 0 | O42: 0 | Q42: =COUNTIF('Classement auteurs'!B:B,C42) -> 1
A43: 13 | B43: 6 | C43: 132193000601 | D43: Proue inversée | E43: 17 | F43: 14 | G43: 13 | H43: 0 | I43: 0 | J43: 44 | K43: 0 | L43: 26 | M43: 0 | O43: 0 | Q43: =COUNTIF('Classement auteurs'!B:B,C43) -> 1
A44: 13 | B44: 25 | C44: 131862002201 | D44: Les fiancés | E44: 18 | F44: 12 | G44: 14 | H44: 0 | I44: 0 | J44: 44 | K44: 0 | L44: 144 | M44: 0 | O44: 0 | Q44: =COUNTIF('Classement auteurs'!B:B,C44) -> 1
A45: 13 | B45: 27 | C45: 130987024001 | D45: Ambiance nordique | E45: 15 | F45: 15 | G45: 14 | H45: 0 | I45: 0 | J45: 44 | K45: 0 | L45: 121 | M45: 0 | O45: 0 | Q45: =COUNTIF('Classement auteurs'!B:B,C45) -> 1
A46: 13 | B46: 42 | C46: 130878014101 | D46: Voilier echoué | E46: 15 | F46: 13 | G46: 16 | H46: 0 | I46: 0 | J46: 44 | K46: 0 | L46: 35 | M46: 0 | O46: 0 | Q46: =COUNTIF('Classement auteurs'!B:B,C46) -> 1
A47: 13 | B47: 24 | C47: 131683005101 | D47: HERON | E47: 15 | F47: 15 | G47: 14 | H47: 0 | I47: 0 | J47: 44 | K47: 0 | L47: 42 | M47: 0 | O47: 0 | Q47: =COUNTIF('Classement auteurs'!B:B,C47) -> 1
A48: 13 | B48: 4 | C48: 130987024101 | D48: La caravane | E48: 11 | F48: 19 | G48: 14 | H48: 0 | I48: 0 | J48: 44 | K48: 0 | L48: 149 | M48: 0 | O48: 0 | Q48: =COUNTIF('Classement auteurs'!B:B,C48) -> 1
A49: 13 | B49: 25 | C49: 131824001901 | D49: Un matin sur ma planète | E49: 16 | F49: 15 | G49: 13 | H49: 0 | I49: 0 | J49: 44 | K49: 0 | L49: 107 | M49: 0 | O49: 0 | Q49: =COUNTIF('Classement auteurs'!B:B,C49) -> 1
A50: 13 | B50: 44 | C50: 131376014701 | D50: Enfant sous la pluie | E50: 14 | F50: 13 | G50: 16 | H50: 0 | I50: 0 | J50: 43 | K50: 0 | L50: 75 | M50: 0 | O50: 0 | Q50: =COUNTIF('Classement auteurs'!B:B,C50) -> 1
A51: 13 | B51: 58 | C51: 132084003501 | D51: Coiffes Himbas | E51: 14 | F51: 12 | G51: 17 | H51: 0 | I51: 0 | J51: 43 | K51: 0 | L51: 34 | M51: 0 | O51: 0 | Q51: =COUNTIF('Classement auteurs'!B:B,C51) -> 1
A52: 13 | B52: 14 | C52: 131823004901 | D52: Ça chauffe | E52: 14 | F52: 16 | G52: 13 | H52: 0 | I52: 0 | J52: 43 | K52: 0 | L52: 48 | M52: 0 | O52: 0 | Q52: =COUNTIF('Classement auteurs'!B:B,C52) -> 1
A53: 13 | B53: 14 | C53: 130993015101 | D53: En suspension | E53: 14 | F53: 16 | G53: 13 | H53: 0 | I53: 0 | J53: 43 | K53: 0 | L53: 9 | M53: 0 | O53: 0 | Q53: =COUNTIF('Classement auteurs'!B:B,C53) -> 1
A54: 13 | B54: 34 | C54: 132084002301 | D54: Mamooth lake | E54: 16 | F54: 13 | G54: 14 | H54: 0 | I54: 0 | J54: 43 | K54: 0 | L54: 25 | M54: 0 | O54: 0 | Q54: =COUNTIF('Classement auteurs'!B:B,C54) -> 1
A55: 13 | B55: 38 | C55: 131110000901 | D55: Rosée | E55: 16 | F55: 12 | G55: 15 | H55: 0 | I55: 0 | J55: 43 | K55: 0 | L55: 22 | M55: 0 | O55: 0 | Q55: =COUNTIF('Classement auteurs'!B:B,C55) -> 1
A56: 13 | B56: 9 | C56: 131683008101 | D56: Lola | E56: 14 | F56: 14 | G56: 15 | H56: 0 | I56: 0 | J56: 43 | K56: 0 | L56: 69 | M56: 0 | O56: 0 | Q56: =COUNTIF('Classement auteurs'!B:B,C56) -> 1
A57: 13 | B57: 6 | C57: 131845000101 | D57: Skate Park | E57: 12 | F57: 12 | G57: 18 | H57: 0 | I57: 0 | J57: 42 | K57: 0 | L57: 132 | M57: 0 | O57: 0 | Q57: =COUNTIF('Classement auteurs'!B:B,C57) -> 1
A58: 13 | B58: 7 | C58: 130987028201 | D58: Water selfie | E58: 13 | F58: 14 | G58: 15 | H58: 0 | I58: 0 | J58: 42 | K58: 0 | L58: 117 | M58: 0 | O58: 0 | Q58: =COUNTIF('Classement auteurs'!B:B,C58) -> 1
A59: 13 | B59: 30 | C59: 131824003101 | D59: Ice attack | E59: 12 | F59: 13 | G59: 17 | H59: 0 | I59: 0 | J59: 42 | K59: 0 | L59: 89 | M59: 0 | O59: 0 | Q59: =COUNTIF('Classement auteurs'!B:B,C59) -> 1
A60: 13 | B60: 4 | C60: 130987012601 | D60: Répétition. | E60: 14 | F60: 15 | G60: 13 | H60: 0 | I60: 0 | J60: 42 | K60: 0 | L60: 149 | M60: 0 | O60: 0 | Q60: =COUNTIF('Classement auteurs'!B:B,C60) -> 1
A61: 13 | B61: 12 | C61: 130987013801 | D61: Lever de soleil après la pluie | E61: 14 | F61: 15 | G61: 13 | H61: 0 | I61: 0 | J61: 42 | K61: 0 | L61: 73 | M61: 0 | O61: 0 | Q61: =COUNTIF('Classement auteurs'!B:B,C61) -> 1
A62: 13 | B62: 2 | C62: 131823008301 | D62: Promenade | E62: 14 | F62: 15 | G62: 13 | H62: 0 | I62: 0 | J62: 42 | K62: 0 | L62: 143 | M62: 0 | O62: 0 | Q62: =COUNTIF('Classement auteurs'!B:B,C62) -> 1
A63: 13 | B63: 8 | C63: 132084004001 | D63: La négociation | E63: 11 | F63: 18 | G63: 13 | H63: 0 | I63: 0 | J63: 42 | K63: 0 | L63: 96 | M63: 0 | O63: 0 | Q63: =COUNTIF('Classement auteurs'!B:B,C63) -> 1
A64: 13 | B64: 17 | C64: 130987013801 | D64: Gymnaste en compétition | E64: 11 | F64: 18 | G64: 13 | H64: 0 | I64: 0 | J64: 42 | K64: 0 | L64: 153 | M64: 0 | O64: 0 | Q64: =COUNTIF('Classement auteurs'!B:B,C64) -> 1
A65: 13 | B65: 28 | C65: 131499006801 | D65: Fauteuil Rouge | E65: 8 | F65: 15 | G65: 19 | H65: 0 | I65: 0 | J65: 42 | K65: 0 | L65: 67 | M65: 0 | O65: 0 | Q65: =COUNTIF('Classement auteurs'!B:B,C65) -> 1
A66: 13 | B66: 40 | C66: 131879001301 | D66: Regard | E66: 18 | F66: 14 | G66: 10 | H66: 0 | I66: 0 | J66: 42 | K66: 0 | L66: 38 | M66: 0 | O66: 0 | Q66: =COUNTIF('Classement auteurs'!B:B,C66) -> 1
A67: 13 | B67: 15 | C67: 130878013001 | D67: Perle de rose | E67: 11 | F67: 15 | G67: 15 | H67: 0 | I67: 0 | J67: 41 | K67: 0 | L67: 83 | M67: 0 | O67: 0 | Q67: =COUNTIF('Classement auteurs'!B:B,C67) -> 1
A68: 13 | B68: 22 | C68: 131879000101 | D68: Tangueros | E68: 12 | F68: 16 | G68: 13 | H68: 0 | I68: 0 | J68: 41 | K68: 0 | L68: 67 | M68: 0 | O68: 0 | Q68: =COUNTIF('Classement auteurs'!B:B,C68) -> 1
A69: 13 | B69: 55 | C69: 130987012601 | D69: Taxi à Tokyo. | E69: 12 | F69: 12 | G69: 17 | H69: 0 | I69: 0 | J69: 41 | K69: 0 | L69: 136 | M69: 0 | O69: 0 | Q69: =COUNTIF('Classement auteurs'!B:B,C69) -> 1
A70: 13 | B70: 67 | C70: 131823008701 | D70: école en Sulawesi | E70: 12 | F70: 13 | G70: 16 | H70: 0 | I70: 0 | J70: 41 | K70: 0 | L70: 97 | M70: 0 | O70: 0 | Q70: =COUNTIF('Classement auteurs'!B:B,C70) -> 1
A71: 13 | B71: 76 | C71: 130000019901 | D71: Recueillement | E71: 13 | F71: 13 | G71: 15 | H71: 0 | I71: 0 | J71: 41 | K71: 0 | L71: 115 | M71: 6 | O71: 0 | Q71: =COUNTIF('Classement auteurs'!B:B,C71) -> 1
A72: 13 | B72: 32 | C72: 131824003101 | D72: Encre du Japon | E72: 15 | F72: 12 | G72: 14 | H72: 0 | I72: 0 | J72: 41 | K72: 0 | L72: 104 | M72: 0 | O72: 0 | Q72: =COUNTIF('Classement auteurs'!B:B,C72) -> 1
A73: 13 | B73: 4 | C73: 131879000501 | D73: Calin | E73: 14 | F73: 13 | G73: 14 | H73: 0 | I73: 0 | J73: 41 | K73: 0 | L73: 89 | M73: 0 | O73: 0 | Q73: =COUNTIF('Classement auteurs'!B:B,C73) -> 1
A74: 13 | B74: 21 | C74: 130987015701 | D74: Thomise | E74: 14 | F74: 14 | G74: 13 | H74: 0 | I74: 0 | J74: 41 | K74: 0 | L74: 3 | M74: 0 | O74: 0 | Q74: =COUNTIF('Classement auteurs'!B:B,C74) -> 1
A75: 13 | B75: 14 | C75: 130993012301 | D75: Flamenco | E75: 13 | F75: 13 | G75: 15 | H75: 0 | I75: 0 | J75: 41 | K75: 0 | L75: 106 | M75: 0 | O75: 0 | Q75: =COUNTIF('Classement auteurs'!B:B,C75) -> 1
A76: 13 | B76: 20 | C76: 132084001701 | D76: Eglise | E76: 14 | F76: 15 | G76: 12 | H76: 0 | I76: 0 | J76: 41 | K76: 0 | L76: 78 | M76: 0 | O76: 0 | Q76: =COUNTIF('Classement auteurs'!B:B,C76) -> 1
A77: 13 | B77: 24 | C77: 131823004901 | D77: Dans les bras de Morphée | E77: 11 | F77: 15 | G77: 15 | H77: 0 | I77: 0 | J77: 41 | K77: 0 | L77: 35 | M77: 0 | O77: 0 | Q77: =COUNTIF('Classement auteurs'!B:B,C77) -> 1
A78: 13 | B78: 33 | C78: 131683006901 | D78: Un p'tit coin de parapluie | E78: 17 | F78: 13 | G78: 11 | H78: 0 | I78: 0 | J78: 41 | K78: 0 | L78: 75 | M78: 0 | O78: 0 | Q78: =COUNTIF('Classement auteurs'!B:B,C78) -> 1
A79: 13 | B79: 18 | C79: 130987024101 | D79: L'Andine | E79: 12 | F79: 12 | G79: 16 | H79: 0 | I79: 0 | J79: 40 | K79: 0 | L79: 114 | M79: 0 | O79: 0 | Q79: =COUNTIF('Classement auteurs'!B:B,C79) -> 1
A80: 13 | B80: 19 | C80: 131992000301 | D80: Le tatoueur de Madurai. | E80: 12 | F80: 12 | G80: 16 | H80: 0 | I80: 0 | J80: 40 | K80: 0 | L80: 25 | M80: 0 | O80: 0 | Q80: =COUNTIF('Classement auteurs'!B:B,C80) -> 1
A81: 13 | B81: 48 | C81: 131824001901 | D81: Auprès de mon arbre.... | E81: 13 | F81: 9 | G81: 18 | H81: 0 | I81: 0 | J81: 40 | K81: 0 | L81: 62 | M81: 0 | O81: 0 | Q81: =COUNTIF('Classement auteurs'!B:B,C81) -> 1
A82: 13 | B82: 60 | C82: 131353007301 | D82: LAGUNA COLORADA BOLIVIE | E82: 14 | F82: 11 | G82: 15 | H82: 0 | I82: 0 | J82: 40 | K82: 0 | L82: 37 | M82: 0 | O82: 0 | Q82: =COUNTIF('Classement auteurs'!B:B,C82) -> 1
A83: 13 | B83: 17 | C83: 132193000301 | D83: Salsa | E83: 20 | F83: 7 | G83: 13 | H83: 0 | I83: 0 | J83: 40 | K83: 0 | L83: 4 | M83: 0 | O83: 0 | Q83: =COUNTIF('Classement auteurs'!B:B,C83) -> 1
A84: 13 | B84: 38 | C84: 131499008601 | D84: Il potassait... | E84: 14 | F84: 11 | G84: 15 | H84: 0 | I84: 0 | J84: 40 | K84: 0 | L84: 159 | M84: 0 | O84: 0 | Q84: =COUNTIF('Classement auteurs'!B:B,C84) -> 1
A85: 13 | B85: 22 | C85: 130527009201 | D85: On partage ? | E85: 12 | F85: 13 | G85: 15 | H85: 0 | I85: 0 | J85: 40 | K85: 0 | L85: 123 | M85: 0 | O85: 0 | Q85: =COUNTIF('Classement auteurs'!B:B,C85) -> 1
A86: 13 | B86: 31 | C86: 132084003501 | D86: Leopard dans le delta de l'okavango | E86: 14 | F86: 14 | G86: 12 | H86: 0 | I86: 0 | J86: 40 | K86: 0 | L86: 51 | M86: 0 | O86: 0 | Q86: =COUNTIF('Classement auteurs'!B:B,C86) -> 1
A87: 13 | B87: 31 | C87: 130987019601 | D87: Fraîcheur | E87: 12 | F87: 14 | G87: 13 | H87: 0 | I87: 0 | J87: 39 | K87: 0 | L87: 1 | M87: 0 | O87: 0 | Q87: =COUNTIF('Classement auteurs'!B:B,C87) -> 1
A88: 13 | B88: 57 | C88: 131862001001 | D88: Petite Vietnamienne | E88: 12 | F88: 12 | G88: 15 | H88: 0 | I88: 0 | J88: 39 | K88: 0 | L88: 139 | M88: 0 | O88: 0 | Q88: =COUNTIF('Classement auteurs'!B:B,C88) -> 1
A89: 13 | B89: 64 | C89: 131619005001 | D89: Regard sur le haut atlas | E89: 11 | F89: 15 | G89: 13 | H89: 0 | I89: 0 | J89: 39 | K89: 0 | L89: 77 | M89: 0 | O89: 0 | Q89: =COUNTIF('Classement auteurs'!B:B,C89) -> 1
A90: 13 | B90: 65 | C90: 131879000501 | D90: Tromso | E90: 14 | F90: 14 | G90: 11 | H90: 0 | I90: 0 | J90: 39 | K90: 0 | L90: 142 | M90: 0 | O90: 0 | Q90: =COUNTIF('Classement auteurs'!B:B,C90) -> 1
A91: 13 | B91: 75 | C91: 132084000301 | D91: Croisère à Kotor | E91: 14 | F91: 11 | G91: 14 | H91: 0 | I91: 0 | J91: 39 | K91: 0 | L91: 120 | M91: 0 | O91: 0 | Q91: =COUNTIF('Classement auteurs'!B:B,C91) -> 1
A92: 13 | B92: 79 | C92: 130987015701 | D92: Les Falaises de Moher | E92: 14 | F92: 9 | G92: 16 | H92: 0 | I92: 0 | J92: 39 | K92: 0 | L92: 111 | M92: 0 | O92: 0 | Q92: =COUNTIF('Classement auteurs'!B:B,C92) -> 1
A93: 13 | B93: 10 | C93: 131494003201 | D93: Jeans | E93: 15 | F93: 13 | G93: 11 | H93: 0 | I93: 0 | J93: 39 | K93: 0 | L93: 64 | M93: 0 | O93: 0 | Q93: =COUNTIF('Classement auteurs'!B:B,C93) -> 1
A94: 13 | B94: 15 | C94: 131683005001 | D94: Rêverie | E94: 14 | F94: 13 | G94: 12 | H94: 0 | I94: 0 | J94: 39 | K94: 0 | L94: 31 | M94: 0 | O94: 0 | Q94: =COUNTIF('Classement auteurs'!B:B,C94) -> 1
A95: 13 | B95: 16 | C95: 131499008701 | D95: Suivre notre chemin... | E95: 13 | F95: 14 | G95: 12 | H95: 0 | I95: 0 | J95: 39 | K95: 0 | L95: 158 | M95: 0 | O95: 0 | Q95: =COUNTIF('Classement auteurs'!B:B,C95) -> 1
A96: 13 | B96: 22 | C96: 130878013001 | D96: La plage | E96: 15 | F96: 12 | G96: 12 | H96: 0 | I96: 0 | J96: 39 | K96: 0 | L96: 80 | M96: 0 | O96: 0 | Q96: =COUNTIF('Classement auteurs'!B:B,C96) -> 1
A97: 13 | B97: 11 | C97: 131683008001 | D97: Sentinelle du désert | E97: 13 | F97: 13 | G97: 13 | H97: 0 | I97: 0 | J97: 39 | K97: 0 | L97: 58 | M97: 0 | O97: 0 | Q97: =COUNTIF('Classement auteurs'!B:B,C97) -> 1
A98: 13 | B98: 43 | C98: 131879000501 | D98: Contemplation | E98: 13 | F98: 10 | G98: 16 | H98: 0 | I98: 0 | J98: 39 | K98: 0 | L98: 68 | M98: 0 | O98: 0 | Q98: =COUNTIF('Classement auteurs'!B:B,C98) -> 1
A99: 13 | B99: 25 | C99: 130987013801 | D99: Maréchal-ferrant | E99: 12 | F99: 12 | G99: 14 | H99: 0 | I99: 0 | J99: 38 | K99: 0 | L99: 58 | M99: 0 | O99: 0 | Q99: =COUNTIF('Classement auteurs'!B:B,C99) -> 1
A100: 13 | B100: 27 | C100: 131879000501 | D100: Barques | E100: 12 | F100: 12 | G100: 14 | H100: 0 | I100: 0 | J100: 38 | K100: 0 | L100: 127 | M100: 0 | O100: 0 | Q100: =COUNTIF('Classement auteurs'!B:B,C100) -> 1
A101: 13 | B101: 38 | C101: 130878014301 | D101: La souffreuse | E101: 12 | F101: 12 | G101: 14 | H101: 0 | I101: 0 | J101: 38 | K101: 0 | L101: 131 | M101: 0 | O101: 0 | Q101: =COUNTIF('Classement auteurs'!B:B,C101) -> 1
A102: 13 | B102: 40 | C102: 132060000701 | D102: Paris La Défense | E102: 13 | F102: 11 | G102: 14 | H102: 0 | I102: 0 | J102: 38 | K102: 0 | L102: 73 | M102: 0 | O102: 0 | Q102: =COUNTIF('Classement auteurs'!B:B,C102) -> 1
A103: 13 | B103: 84 | C103: 131956004501 | D103: Aquarius | E103: 12 | F103: 14 | G103: 12 | H103: 0 | I103: 0 | J103: 38 | K103: 0 | L103: 54 | M103: 0 | O103: 0 | Q103: =COUNTIF('Classement auteurs'!B:B,C103) -> 1
A104: 13 | B104: 26 | C104: 130462001101 | D104: Oeuvre 1-mucem | E104: 13 | F104: 11 | G104: 14 | H104: 0 | I104: 0 | J104: 38 | K104: 0 | L104: 161 | M104: 0 | O104: 0 | Q104: =COUNTIF('Classement auteurs'!B:B,C104) -> 1
A105: 13 | B105: 31 | C105: 131879000101 | D105: Shinkansen-japon | E105: 13 | F105: 15 | G105: 10 | H105: 0 | I105: 0 | J105: 38 | K105: 0 | L105: 74 | M105: 0 | O105: 0 | Q105: =COUNTIF('Classement auteurs'!B:B,C105) -> 1
A106: 13 | B106: 35 | C106: 132023000101 | D106: L'homme au damier | E106: 16 | F106: 8 | G106: 14 | H106: 0 | I106: 0 | J106: 38 | K106: 0 | L106: 92 | M106: 0 | O106: 0 | Q106: =COUNTIF('Classement auteurs'!B:B,C106) -> 1
A107: 13 | B107: 23 | C107: 130987016601 | D107: Lac guichard | E107: 13 | F107: 12 | G107: 13 | H107: 0 | I107: 0 | J107: 38 | K107: 0 | L107: 106 | M107: 0 | O107: 0 | Q107: =COUNTIF('Classement auteurs'!B:B,C107) -> 1
A108: 13 | B108: 22 | C108: 130993013801 | D108: Promeneur du soir | E108: 13 | F108: 14 | G108: 11 | H108: 0 | I108: 0 | J108: 38 | K108: 0 | L108: 110 | M108: 0 | O108: 0 | Q108: =COUNTIF('Classement auteurs'!B:B,C108) -> 1
A109: 13 | B109: 30 | C109: 132084000201 | D109: Tristesse | E109: 13 | F109: 15 | G109: 10 | H109: 0 | I109: 0 | J109: 38 | K109: 0 | L109: 104 | M109: 0 | O109: 0 | Q109: =COUNTIF('Classement auteurs'!B:B,C109) -> 1
A110: 13 | B110: 31 | C110: 131879001101 | D110: Couleurs d'automne | E110: 13 | F110: 13 | G110: 12 | H110: 0 | I110: 0 | J110: 38 | K110: 0 | L110: 128 | M110: 0 | O110: 0 | Q110: =COUNTIF('Classement auteurs'!B:B,C110) -> 1
A111: 13 | B111: 38 | C111: 132193000301 | D111: Solfar | E111: 13 | F111: 13 | G111: 12 | H111: 0 | I111: 0 | J111: 38 | K111: 0 | L111: 159 | M111: 0 | O111: 0 | Q111: =COUNTIF('Classement auteurs'!B:B,C111) -> 1
A112: 13 | B112: 39 | C112: 131879002001 | D112: Procession | E112: 12 | F112: 13 | G112: 13 | H112: 0 | I112: 0 | J112: 38 | K112: 0 | L112: 20 | M112: 0 | O112: 0 | Q112: =COUNTIF('Classement auteurs'!B:B,C112) -> 1
A113: 13 | B113: 50 | C113: 130000020401 | D113: Khiva - La Roue | E113: 13 | F113: 11 | G113: 13 | H113: 0 | I113: 0 | J113: 37 | K113: 0 | L113: 123 | M113: 6 | O113: 0 | Q113: =COUNTIF('Classement auteurs'!B:B,C113) -> 1
A114: 13 | B114: 63 | C114: 130878014101 | D114: Orientation | E114: 11 | F114: 7 | G114: 19 | H114: 0 | I114: 0 | J114: 37 | K114: 0 | L114: 76 | M114: 0 | O114: 0 | Q114: =COUNTIF('Classement auteurs'!B:B,C114) -> 1
A115: 13 | B115: 77 | C115: 132193000401 | D115: Un pont entre 2 mondes | E115: 12 | F115: 12 | G115: 13 | H115: 0 | I115: 0 | J115: 37 | K115: 0 | L115: 93 | M115: 7 | O115: 0 | Q115: =COUNTIF('Classement auteurs'!B:B,C115) -> 1
A116: 13 | B116: 26 | C116: 131956004501 | D116: Campanules | E116: 12 | F116: 12 | G116: 13 | H116: 0 | I116: 0 | J116: 37 | K116: 0 | L116: 52 | M116: 0 | O116: 0 | Q116: =COUNTIF('Classement auteurs'!B:B,C116) -> 1
A117: 13 | B117: 28 | C117: 132193001201 | D117: Mes tourterelles | E117: 13 | F117: 9 | G117: 15 | H117: 0 | I117: 0 | J117: 37 | K117: 0 | L117: 82 | M117: 0 | O117: 0 | Q117: =COUNTIF('Classement auteurs'!B:B,C117) -> 1
A118: 13 | B118: 10 | C118: 130987019701 | D118: Face à face | E118: 14 | F118: 10 | G118: 13 | H118: 0 | I118: 0 | J118: 37 | K118: 0 | L118: 86 | M118: 0 | O118: 0 | Q118: =COUNTIF('Classement auteurs'!B:B,C118) -> 1
A119: 13 | B119: 36 | C119: 130987007401 | D119: Orage imminent | E119: 10 | F119: 15 | G119: 12 | H119: 0 | I119: 0 | J119: 37 | K119: 0 | L119: 41 | M119: 0 | O119: 0 | Q119: =COUNTIF('Classement auteurs'!B:B,C119) -> 1
A120: 13 | B120: 5 | C120: 131845000801 | D120: Le soleil se lève | E120: 13 | F120: 12 | G120: 11 | H120: 0 | I120: 0 | J120: 36 | K120: 0 | L120: 136 | M120: 0 | O120: 0 | Q120: =COUNTIF('Classement auteurs'!B:B,C120) -> 1
A121: 13 | B121: 10 | C121: 131845000301 | D121: Variation d'ocres | E121: 9 | F121: 13 | G121: 14 | H121: 0 | I121: 0 | J121: 36 | K121: 0 | L121: 53 | M121: 0 | O121: 0 | Q121: =COUNTIF('Classement auteurs'!B:B,C121) -> 1
A122: 13 | B122: 33 | C122: 130878007201 | D122: Abri multicolore | E122: 13 | F122: 8 | G122: 15 | H122: 0 | I122: 0 | J122: 36 | K122: 0 | L122: 57 | M122: 0 | O122: 0 | Q122: =COUNTIF('Classement auteurs'!B:B,C122) -> 1
A123: 13 | B123: 39 | C123: 132086002301 | D123: Parade en rose | E123: 11 | F123: 13 | G123: 12 | H123: 0 | I123: 0 | J123: 36 | K123: 0 | L123: 29 | M123: 0 | O123: 0 | Q123: =COUNTIF('Classement auteurs'!B:B,C123) -> 1
A124: 13 | B124: 42 | C124: 130987028801 | D124: Feu Art | E124: 11 | F124: 10 | G124: 15 | H124: 0 | I124: 0 | J124: 36 | K124: 0 | L124: 113 | M124: 0 | O124: 0 | Q124: =COUNTIF('Classement auteurs'!B:B,C124) -> 1
A125: 13 | B125: 47 | C125: 131683006301 | D125: Regards indiens | E125: 12 | F125: 15 | G125: 9 | H125: 0 | I125: 0 | J125: 36 | K125: 0 | L125: 127 | M125: 0 | O125: 0 | Q125: =COUNTIF('Classement auteurs'!B:B,C125) -> 1
A126: 13 | B126: 49 | C126: 130925009801 | D126: Shanghai | E126: 12 | F126: 10 | G126: 14 | H126: 0 | I126: 0 | J126: 36 | K126: 0 | L126: 11 | M126: 0 | O126: 0 | Q126: =COUNTIF('Classement auteurs'!B:B,C126) -> 1
A127: 13 | B127: 68 | C127: 130925008601 | D127: Amerique | E127: 13 | F127: 7 | G127: 16 | H127: 0 | I127: 0 | J127: 36 | K127: 0 | L127: 85 | M127: 0 | O127: 0 | Q127: =COUNTIF('Classement auteurs'!B:B,C127) -> 1
A128: 13 | B128: 2 | C128: 130987024101 | D128: A l'affut | E128: 15 | F128: 11 | G128: 10 | H128: 0 | I128: 0 | J128: 36 | K128: 0 | L128: 65 | M128: 0 | O128: 0 | Q128: =COUNTIF('Classement auteurs'!B:B,C128) -> 1
A129: 13 | B129: 33 | C129: 131353006101 | D129: Mains d'Argile | E129: 15 | F129: 11 | G129: 10 | H129: 0 | I129: 0 | J129: 36 | K129: 0 | L129: 63 | M129: 0 | O129: 0 | Q129: =COUNTIF('Classement auteurs'!B:B,C129) -> 1
A130: 13 | B130: 6 | C130: 130878013301 | D130: Desert | E130: 11 | F130: 11 | G130: 14 | H130: 0 | I130: 0 | J130: 36 | K130: 0 | L130: 142 | M130: 0 | O130: 0 | Q130: =COUNTIF('Classement auteurs'!B:B,C130) -> 1
A131: 13 | B131: 35 | C131: 131353000201 | D131: Butinage | E131: 12 | F131: 13 | G131: 11 | H131: 0 | I131: 0 | J131: 36 | K131: 0 | L131: 1 | M131: 0 | O131: 0 | Q131: =COUNTIF('Classement auteurs'!B:B,C131) -> 1
A132: 13 | B132: 39 | C132: 131110001101 | D132: Fleur sauvage | E132: 13 | F132: 14 | G132: 9 | H132: 0 | I132: 0 | J132: 36 | K132: 0 | L132: 113 | M132: 0 | O132: 0 | Q132: =COUNTIF('Classement auteurs'!B:B,C132) -> 1
A133: 13 | B133: 3 | C133: 132147000101 | D133: Reflet Vénitien | E133: 11 | F133: 15 | G133: 10 | H133: 0 | I133: 0 | J133: 36 | K133: 0 | L133: 33 | M133: 0 | O133: 0 | Q133: =COUNTIF('Classement auteurs'!B:B,C133) -> 1
A134: 13 | B134: 7 | C134: 132023000101 | D134: Cabanes de pêcheurs | E134: 11 | F134: 10 | G134: 15 | H134: 0 | I134: 0 | J134: 36 | K134: 0 | L134: 4 | M134: 0 | O134: 0 | Q134: =COUNTIF('Classement auteurs'!B:B,C134) -> 1
A135: 13 | B135: 16 | C135: 130987028401 | D135: Au bout... de la Presqu'île | E135: 11 | F135: 14 | G135: 11 | H135: 0 | I135: 0 | J135: 36 | K135: 0 | L135: 65 | M135: 0 | O135: 0 | Q135: =COUNTIF('Classement auteurs'!B:B,C135) -> 1
A136: 13 | B136: 56 | C136: 130993016501 | D136: Reflet_Asie | E136: 13 | F136: 12 | G136: 10 | H136: 0 | I136: 0 | J136: 35 | K136: 0 | L136: 31 | M136: 0 | O136: 0 | Q136: =COUNTIF('Classement auteurs'!B:B,C136) -> 1
A137: 13 | B137: 81 | C137: 131862002201 | D137: Matsumoto. Japon | E137: 12 | F137: 11 | G137: 12 | H137: 0 | I137: 0 | J137: 35 | K137: 0 | L137: 50 | M137: 0 | O137: 0 | Q137: =COUNTIF('Classement auteurs'!B:B,C137) -> 1
A138: 13 | B138: 30 | C138: 131499009301 | D138: Les parasols | E138: 11 | F138: 11 | G138: 13 | H138: 0 | I138: 0 | J138: 35 | K138: 0 | L138: 96 | M138: 0 | O138: 0 | Q138: =COUNTIF('Classement auteurs'!B:B,C138) -> 1
A139: 13 | B139: 34 | C139: 131499009801 | D139: Bella musica | E139: 13 | F139: 10 | G139: 12 | H139: 0 | I139: 0 | J139: 35 | K139: 0 | L139: 82 | M139: 0 | O139: 0
A140: 13 | B140: 44 | C140: 130000020401 | D140: The Camps | E140: 12 | F140: 11 | G140: 12 | H140: 0 | I140: 0 | J140: 35 | K140: 0 | L140: 131 | M140: 6 | O140: 0
A141: 13 | B141: 2 | C141: 130000020401 | D141: La Goutte | E141: 10 | F141: 13 | G141: 12 | H141: 0 | I141: 0 | J141: 35 | K141: 0 | L141: 103 | M141: 6 | O141: 0
A142: 13 | B142: 17 | C142: 131376017601 | D142: Ombre chinoise | E142: 13 | F142: 10 | G142: 12 | H142: 0 | I142: 0 | J142: 35 | K142: 0 | L142: 107 | M142: 0 | O142: 0
A143: 13 | B143: 18 | C143: 131494000201 | D143: Envol | E143: 10 | F143: 11 | G143: 14 | H143: 0 | I143: 0 | J143: 35 | K143: 0 | L143: 6 | M143: 0 | O143: 0
A144: 13 | B144: 46 | C144: 131956005101 | D144: Litter Litter | E144: 9 | F144: 8 | G144: 17 | H144: 0 | I144: 0 | J144: 34 | K144: 0 | L144: 15 | M144: 0 | O144: 0
A145: 13 | B145: 69 | C145: 130878013601 | D145: L'enfant et le torri | E145: 12 | F145: 9 | G145: 13 | H145: 0 | I145: 0 | J145: 34 | K145: 0 | L145: 72 | M145: 0 | O145: 0
A146: 13 | B146: 83 | C146: 131862005801 | D146: Suivez mon regard | E146: 11 | F146: 11 | G146: 12 | H146: 0 | I146: 0 | J146: 34 | K146: 0 | L146: 52 | M146: 0 | O146: 0
A147: 13 | B147: 24 | C147: 131683006301 | D147: Graphisme rural | E147: 11 | F147: 13 | G147: 10 | H147: 0 | I147: 0 | J147: 34 | K147: 0 | L147: 118 | M147: 0 | O147: 0
A148: 13 | B148: 36 | C148: 130987015701 | D148: Douceur | E148: 12 | F148: 9 | G148: 13 | H148: 0 | I148: 0 | J148: 34 | K148: 0 | L148: 147 | M148: 0 | O148: 0
A149: 13 | B149: 11 | C149: 130987019601 | D149: Les pénitents | E149: 10 | F149: 7 | G149: 17 | H149: 0 | I149: 0 | J149: 34 | K149: 0 | L149: 88 | M149: 0 | O149: 0
A150: 13 | B150: 13 | C150: 130878013601 | D150: En attente | E150: 8 | F150: 12 | G150: 14 | H150: 0 | I150: 0 | J150: 34 | K150: 0 | L150: 18 | M150: 0 | O150: 0
A151: 13 | B151: 18 | C151: 131376012601 | D151: Jour de neige | E151: 14 | F151: 14 | G151: 6 | H151: 0 | I151: 0 | J151: 34 | K151: 0 | L151: 22 | M151: 0 | O151: 0
A152: 13 | B152: 23 | C152: 132060000101 | D152: FETE AU CHATEAU | E152: 9 | F152: 16 | G152: 9 | H152: 0 | I152: 0 | J152: 34 | K152: 0 | L152: 115 | M152: 0 | O152: 0
A153: 13 | B153: 47 | C153: 131353000201 | D153: Fleur | E153: 9 | F153: 11 | G153: 13 | H153: 0 | I153: 0 | J153: 33 | K153: 0 | L153: 41 | M153: 0 | O153: 0
A154: 13 | B154: 54 | C154: 131683005101 | D154: Clarisse | E154: 15 | F154: 6 | G154: 12 | H154: 0 | I154: 0 | J154: 33 | K154: 0 | L154: 126 | M154: 0 | O154: 0
A155: 13 | B155: 59 | C155: 132084003601 | D155: Kaokoland airport | E155: 11 | F155: 12 | G155: 10 | H155: 0 | I155: 0 | J155: 33 | K155: 0 | L155: 98 | M155: 0 | O155: 0
A156: 13 | B156: 70 | C156: 131845004001 | D156: VIETAMIENNE | E156: 11 | F156: 9 | G156: 13 | H156: 0 | I156: 0 | J156: 33 | K156: 0 | L156: 66 | M156: 0 | O156: 0
A157: 13 | B157: 3 | C157: 131499008701 | D157: Symbiose | E157: 12 | F157: 11 | G157: 10 | H157: 0 | I157: 0 | J157: 33 | K157: 0 | L157: 18 | M157: 0 | O157: 0
A158: 13 | B158: 34 | C158: 131683007001 | D158: Ordre décroissant | E158: 9 | F158: 14 | G158: 10 | H158: 0 | I158: 0 | J158: 33 | K158: 0 | L158: 157 | M158: 0 | O158: 0
A159: 13 | B159: 43 | C159: 131683000701 | D159: SAYONARA | E159: 10 | F159: 11 | G159: 11 | H159: 0 | I159: 0 | J159: 32 | K159: 0 | L159: 2 | M159: 0 | O159: 0
A160: 13 | B160: 48 | C160: 130000019901 | D160: La vie en rose | E160: 10 | F160: 10 | G160: 12 | H160: 0 | I160: 0 | J160: 32 | K160: 0 | L160: 99 | M160: 6 | O160: 0
A161: 13 | B161: 53 | C161: 132086002501 | D161: Le Chianti moderne | E161: 14 | F161: 7 | G161: 11 | H161: 0 | I161: 0 | J161: 32 | K161: 0 | L161: 29 | M161: 0 | O161: 0
A162: 13 | B162: 80 | C162: 131956001401 | D162: Regard Colombien | E162: 11 | F162: 10 | G162: 11 | H162: 0 | I162: 0 | J162: 32 | K162: 0 | L162: 134 | M162: 0 | O162: 0
A163: 13 | B163: 39 | C163: 131992000401 | D163: Fantôme de Noel | E163: 12 | F163: 9 | G163: 11 | H163: 0 | I163: 0 | J163: 32 | K163: 0 | L163: 138 | M163: 0 | O163: 0
A164: 13 | B164: 6 | C164: 130527002501 | D164: Tacle | E164: 7 | F164: 11 | G164: 14 | H164: 0 | I164: 0 | J164: 32 | K164: 0 | L164: 164 | M164: 0 | O164: 0
A165: 13 | B165: 15 | C165: 132086002301 | D165: Tourbillon d'or | E165: 12 | F165: 8 | G165: 12 | H165: 0 | I165: 0 | J165: 32 | K165: 0 | L165: 25 | M165: 0 | O165: 0
A166: 13 | B166: 9 | C166: 130987007401 | D166: Adrien | E166: 10 | F166: 11 | G166: 10 | H166: 0 | I166: 0 | J166: 31 | K166: 0 | L166: 79 | M166: 0 | O166: 0
A167: 13 | B167: 28 | C167: 131376012601 | D167: Utopie | E167: 11 | F167: 12 | G167: 8 | H167: 0 | I167: 0 | J167: 31 | K167: 0 | L167: 60 | M167: 0 | O167: 0
A168: 13 | B168: 41 | C168: 131376018301 | D168: Rêve d'Orient | E168: 12 | F168: 9 | G168: 10 | H168: 0 | I168: 0 | J168: 31 | K168: 0 | L168: 111 | M168: 0 | O168: 0
A169: 13 | B169: 45 | C169: 131499005201 | D169: Pizzaiolo | E169: 11 | F169: 7 | G169: 13 | H169: 0 | I169: 0 | J169: 31 | K169: 0 | L169: 46 | M169: 0 | O169: 0
A170: 13 | B170: 82 | C170: 132089000201 | D170: Au Radjastan | E170: 10 | F170: 11 | G170: 10 | H170: 0 | I170: 0 | J170: 31 | K170: 0 | L170: 6 | M170: 0 | O170: 0
A171: 13 | B171: 12 | C171: 130987029901 | D171: Rodin.jpg | E171: 9 | F171: 11 | G171: 11 | H171: 0 | I171: 0 | J171: 31 | K171: 0 | L171: 113 | M171: 0 | O171: 0
A172: 13 | B172: 13 | C172: 131683007601 | D172: Maillot jaune | E172: 11 | F172: 10 | G172: 10 | H172: 0 | I172: 0 | J172: 31 | K172: 0 | L172: 20 | M172: 0 | O172: 0
A173: 13 | B173: 40 | C173: 130925010201 | D173: Arles | E173: 10 | F173: 11 | G173: 10 | H173: 0 | I173: 0 | J173: 31 | K173: 0 | L173: 15 | M173: 0 | O173: 0
A174: 13 | B174: 8 | C174: 130987028201 | D174: La sieste du rhino blanc | E174: 11 | F174: 11 | G174: 9 | H174: 0 | I174: 0 | J174: 31 | K174: 0 | L174: 26 | M174: 0 | O174: 0
A175: 13 | B175: 35 | C175: 130993015401 | D175: La cabanne du peuchère | E175: 9 | F175: 11 | G175: 11 | H175: 0 | I175: 0 | J175: 31 | K175: 0 | L175: 63 | M175: 0 | O175: 0
A176: 13 | B176: 62 | C176: 131353003001 | D176: Regard de l'inconnue | E176: 12 | F176: 6 | G176: 12 | H176: 0 | I176: 0 | J176: 30 | K176: 0 | L176: 48 | M176: 0 | O176: 0
A177: 13 | B177: 32 | C177: 130878013401 | D177: Lady | E177: 8 | F177: 11 | G177: 11 | H177: 0 | I177: 0 | J177: 30 | K177: 0 | L177: 47 | M177: 0 | O177: 0
A178: 13 | B178: 36 | C178: 132060000101 | D178: Signature artistique | E178: 6 | F178: 16 | G178: 7 | H178: 0 | I178: 0 | J178: 29 | K178: 0 | L178: 26 | M178: 0 | O178: 0
A179: 13 | B179: 37 | C179: 132217000601 | D179: Ancienne taverne crétoise | E179: 8 | F179: 10 | G179: 11 | H179: 0 | I179: 0 | J179: 29 | K179: 0 | L179: 7 | M179: 0 | O179: 0
A180: 13 | B180: 42 | C180: 130878014301 | D180: Bulle colorée | E180: 10 | F180: 9 | G180: 10 | H180: 0 | I180: 0 | J180: 29 | K180: 0 | L180: 100 | M180: 0 | O180: 0
A181: 13 | B181: 1 | C181: 131845003401 | D181: Avant la régate | E181: 9 | F181: 7 | G181: 12 | H181: 0 | I181: 0 | J181: 28 | K181: 0 | L181: 31 | M181: 0 | O181: 0
A182: 13 | B182: 18 | C182: 131823008701 | D182: Jusqu'au ciel | E182: 8 | F182: 10 | G182: 10 | H182: 0 | I182: 0 | J182: 28 | K182: 0 | L182: 115 | M182: 0 | O182: 0
A183: 13 | B183: 19 | C183: 131956002901 | D183: Regard | E183: 7 | F183: 10 | G183: 11 | H183: 0 | I183: 0 | J183: 28 | K183: 0 | L183: 61 | M183: 0 | O183: 0
A184: 13 | B184: 29 | C184: 131879000101 | D184: Cerisiers en fleurs | E184: 8 | F184: 12 | G184: 8 | H184: 0 | I184: 0 | J184: 28 | K184: 0 | L184: 77 | M184: 0 | O184: 0
A185: 13 | B185: 41 | C185: 132203000601 | D185: Soir | E185: 11 | F185: 7 | G185: 10 | H185: 0 | I185: 0 | J185: 28 | K185: 0 | L185: 72 | M185: 0 | O185: 0
A186: 13 | B186: 20 | C186: 130987028401 | D186: Sensibilité de Granit | E186: 11 | F186: 7 | G186: 9 | H186: 0 | I186: 0 | J186: 27 | K186: 0 | L186: 93 | M186: 0 | O186: 0
A187: 13 | B187: 16 | C187: 132147001701 | D187: L'herbe et le vent... | E187: 12 | F187: 8 | G187: 7 | H187: 0 | I187: 0 | J187: 27 | K187: 0 | L187: 101 | M187: 0 | O187: 0
A188: 13 | B188: 10 | C188: 130987030301 | D188: Coquelicot du Lot | E188: 10 | F188: 10 | G188: 6 | H188: 0 | I188: 0 | J188: 26 | K188: 0 | L188: 141 | M188: 0 | O188: 0
A189: 13 | B189: 51 | C189: 132193000501 | D189: Guerrier irlandais | E189: 11 | F189: 7 | G189: 7 | H189: 0 | I189: 0 | J189: 25 | K189: 0 | L189: 41 | M189: 7 | O189: 0
A190: 13 | B190: 42 | C190: 131494002101 | D190: Atterrissage | E190: 9 | F190: 9 | G190: 7 | H190: 0 | I190: 0 | J190: 25 | K190: 0 | L190: 90 | M190: 0 | O190: 0
A191: 13 | B191: 46 | C191: 131376017601 | D191: Les touristes | E191: 9 | F191: 6 | G191: 9 | H191: 0 | I191: 0 | J191: 24 | K191: 0 | L191: 64 | M191: 0 | O191: 0
A192: 13 | B192: 52 | C192: 131956003401 | D192: Regard de la foret | E192: 11 | F192: 6 | G192: 7 | H192: 0 | I192: 0 | J192: 24 | K192: 0 | L192: 56 | M192: 0 | O192: 0
A193: 13 | B193: 74 | C193: 131862000801 | D193: Le Chat du Rabin | E193: 11 | F193: 6 | G193: 7 | H193: 0 | I193: 0 | J193: 24 | K193: 0 | L193: 78 | M193: 0 | O193: 0
A194: 13 | B194: 85 | C194: 131110001101 | D194: Le petit guitariste | E194: 11 | F194: 6 | G194: 7 | H194: 0 | I194: 0 | J194: 24 | K194: 0 | L194: 108 | M194: 0 | O194: 0
A195: 13 | B195: 40 | C195: 130000019901 | D195: Phacélie | E195: 6 | F195: 10 | G195: 8 | H195: 0 | I195: 0 | J195: 24 | K195: 0 | L195: 72 | M195: 6 | O195: 0
A196: 13 | B196: 1 | C196: 131494003001 | D196: Reflet nocturne | E196: 10 | F196: 7 | G196: 7 | H196: 0 | I196: 0 | J196: 24 | K196: 0 | L196: 120 | M196: 0 | O196: 0
A197: 13 | B197: 61 | C197: 130878014301 | D197: L’œil de la terre | E197: 10 | F197: 6 | G197: 7 | H197: 0 | I197: 0 | J197: 23 | K197: 0 | L197: 7 | M197: 0 | O197: 0
A198: 13 | B198: 11 | C198: 130000021001 | D198: Un voyage à LONDRES | E198: 7 | F198: 6 | G198: 8 | H198: 0 | I198: 0 | J198: 21 | K198: 0 | L198: 137 | M198: 6 | O198: 0
A199: 13 | B199: 20 | C199: 130993015101 | D199: Criquet vert | E199: 6 | F199: 6 | G199: 6 | H199: 0 | I199: 0 | J199: 18 | K199: 0 | L199: 125 | M199: 0 | O199: 0
A200: 13 | B200: 1 | C200: 130878015201 | D200: Je m'amuse | E200: 6 | F200: 6 | G200: 6 | H200: 0 | I200: 0 | J200: 18 | K200: 0 | L200: 37 | M200: 0 | O200: 0
... 2 more rows

Sheet Défi-7
A1: colis | B1: photologic | C1: fichier | D1: titre | E1: note1 | F1: note2 | G1: note3 | H1: note4 | I1: note5 | J1: total | K1: place | L1: passage | M1: statut | N1: medaille | O1: retenue | Q1: 0=absent 1=présent
A2: 13 | B2: 122 | C2: 131683008201 | D2: Alysée | E2: 19 | F2: 19 | G2: 19 | H2: 0 | I2: 0 | J2: 57 | K2: 0 | L2: 20 | Q2: =COUNTIF('Classement auteurs'!B:B,C2) -> 1
A3: 13 | B3: 85 | C3: 131353000101 | D3: La chapelle | E3: 17 | F3: 20 | G3: 19 | H3: 0 | I3: 0 | J3: 56 | K3: 0 | L3: 67 | Q3: =COUNTIF('Classement auteurs'!B:B,C3) -> 1
A4: 13 | B4: 7 | C4: 132193000301 | D4: Invitation au voyage | E4: 19 | F4: 18 | G4: 18 | H4: 0 | I4: 0 | J4: 55 | K4: 0 | L4: 94 | Q4: =COUNTIF('Classement auteurs'!B:B,C4) -> 1
A5: 13 | B5: 11 | C5: 131985003401 | D5: Jeune fille himbas | E5: 20 | F5: 16 | G5: 18 | H5: 0 | I5: 0 | J5: 54 | K5: 0 | L5: 118 | Q5: =COUNTIF('Classement auteurs'!B:B,C5) -> 1
A6: 13 | B6: 6 | C6: 130987015701 | D6: Orage | E6: 19 | F6: 16 | G6: 17 | H6: 0 | I6: 0 | J6: 52 | K6: 0 | L6: 23 | Q6: =COUNTIF('Classement auteurs'!B:B,C6) -> 1
A7: 13 | B7: 107 | C7: 131956004601 | D7: L'homme de pierre | E7: 17 | F7: 17 | G7: 18 | H7: 0 | I7: 0 | J7: 52 | K7: 0 | L7: 76 | Q7: =COUNTIF('Classement auteurs'!B:B,C7) -> 1
A8: 13 | B8: 26 | C8: 130987013801 | D8: Championnat de France de | E8: 18 | F8: 17 | G8: 16 | H8: 0 | I8: 0 | J8: 51 | K8: 0 | L8: 122 | Q8: =COUNTIF('Classement auteurs'!B:B,C8) -> 1
A9: 13 | B9: 53 | C9: 131845000101 | D9: Ponton | E9: 17 | F9: 17 | G9: 16 | H9: 0 | I9: 0 | J9: 50 | K9: 0 | L9: 39 | Q9: =COUNTIF('Classement auteurs'!B:B,C9) -> 1
A10: 13 | B10: 100 | C10: 130527009401 | D10: La route | E10: 14 | F10: 16 | G10: 19 | H10: 0 | I10: 0 | J10: 49 | K10: 0 | L10: 28 | Q10: =COUNTIF('Classement auteurs'!B:B,C10) -> 1
A11: 13 | B11: 115 | C11: 131683008101 | D11: La cascade du roy | E11: 16 | F11: 15 | G11: 17 | H11: 0 | I11: 0 | J11: 48 | K11: 0 | L11: 88 | Q11: =COUNTIF('Classement auteurs'!B:B,C11) -> 1
A12: 13 | B12: 3 | C12: 132103000401 | D12: Sort-tu es toujours atten | E12: 18 | F12: 15 | G12: 14 | H12: 0 | I12: 0 | J12: 47 | K12: 0 | L12: 40 | Q12: =COUNTIF('Classement auteurs'!B:B,C12) -> 1
A13: 13 | B13: 5 | C13: 132003002201 | D13: Ubiquité. | E13: 20 | F13: 10 | G13: 17 | H13: 0 | I13: 0 | J13: 47 | K13: 0 | L13: 47 | Q13: =COUNTIF('Classement auteurs'!B:B,C13) -> 1
A14: 13 | B14: 15 | C14: 131376017701 | D14: Sprint final | E14: 15 | F14: 19 | G14: 13 | H14: 0 | I14: 0 | J14: 47 | K14: 0 | L14: 103 | Q14: =COUNTIF('Classement auteurs'!B:B,C14) -> 1
A15: 13 | B15: 125 | C15: 131619004501 | D15: L'echelle | E15: 13 | F15: 14 | G15: 20 | H15: 0 | I15: 0 | J15: 47 | K15: 0 | L15: 58 | Q15: =COUNTIF('Classement auteurs'!B:B,C15) -> 1
A16: 13 | B16: 37 | C16: 131824001901 | D16: Mini'Home | E16: 14 | F16: 14 | G16: 17 | H16: 0 | I16: 0 | J16: 45 | K16: 0 | L16: 83 | Q16: =COUNTIF('Classement auteurs'!B:B,C16) -> 1
A17: 13 | B17: 46 | C17: 131845000901 | D17: Concert acrobatique | E17: 18 | F17: 14 | G17: 13 | H17: 0 | I17: 0 | J17: 45 | K17: 0 | L17: 1 | Q17: =COUNTIF('Classement auteurs'!B:B,C17) -> 1
A18: 13 | B18: 56 | C18: 130878007201 | D18: Ibrahima | E18: 17 | F18: 13 | G18: 14 | H18: 0 | I18: 0 | J18: 44 | K18: 0 | L18: 73 | Q18: =COUNTIF('Classement auteurs'!B:B,C18) -> 1
A19: 13 | B19: 63 | C19: 132084004801 | D19: Père & Fils | E19: 14 | F19: 11 | G19: 19 | H19: 0 | I19: 0 | J19: 44 | K19: 0 | L19: 82 | Q19: =COUNTIF('Classement auteurs'!B:B,C19) -> 1
A20: 13 | B20: 82 | C20: 131879000801 | D20: Madone | E20: 14 | F20: 14 | G20: 16 | H20: 0 | I20: 0 | J20: 44 | K20: 0 | L20: 41 | Q20: =COUNTIF('Classement auteurs'!B:B,C20) -> 1
A21: 13 | B21: 112 | C21: 131956006201 | D21: Promenade en terrasse | E21: 12 | F21: 16 | G21: 16 | H21: 0 | I21: 0 | J21: 44 | K21: 0 | L21: 75 | Q21: =COUNTIF('Classement auteurs'!B:B,C21) -> 1
A22: 13 | B22: 27 | C22: 130987024201 | D22: Back in black | E22: 16 | F22: 12 | G22: 15 | H22: 0 | I22: 0 | J22: 43 | K22: 0 | L22: 119 | Q22: =COUNTIF('Classement auteurs'!B:B,C22) -> 1
A23: 13 | B23: 44 | C23: 131823007601 | D23: Spirale | E23: 15 | F23: 13 | G23: 15 | H23: 0 | I23: 0 | J23: 43 | K23: 0 | L23: 114 | Q23: =COUNTIF('Classement auteurs'!B:B,C23) -> 1
A24: 13 | B24: 51 | C24: 131823004901 | D24: Evanescence | E24: 12 | F24: 16 | G24: 15 | H24: 0 | I24: 0 | J24: 43 | K24: 0 | L24: 93 | Q24: =COUNTIF('Classement auteurs'!B:B,C24) -> 1
A25: 13 | B25: 58 | C25: 131985003601 | D25: Vino | E25: 14 | F25: 12 | G25: 17 | H25: 0 | I25: 0 | J25: 43 | K25: 0 | L25: 55 | Q25: =COUNTIF('Classement auteurs'!B:B,C25) -> 1
A26: 13 | B26: 64 | C26: 131619004601 | D26: Marche à l'ombre | E26: 12 | F26: 15 | G26: 16 | H26: 0 | I26: 0 | J26: 43 | K26: 0 | L26: 81 | Q26: =COUNTIF('Classement auteurs'!B:B,C26) -> 1
A27: 13 | B27: 119 | C27: 131956002601 | D27: Trace | E27: 11 | F27: 15 | G27: 17 | H27: 0 | I27: 0 | J27: 43 | K27: 0 | L27: 99 | Q27: =COUNTIF('Classement auteurs'!B:B,C27) -> 1
A28: 13 | B28: 127 | C28: 131862001601 | D28: Vers l'orage | E28: 17 | F28: 9 | G28: 17 | H28: 0 | I28: 0 | J28: 43 | K28: 0 | L28: 102 | Q28: =COUNTIF('Classement auteurs'!B:B,C28) -> 1
A29: 13 | B29: 10 | C29: 131956004501 | D29: La souche | E29: 10 | F29: 14 | G29: 18 | H29: 0 | I29: 0 | J29: 42 | K29: 0 | L29: 62 | Q29: =COUNTIF('Classement auteurs'!B:B,C29) -> 1
A30: 13 | B30: 12 | C30: 131376018301 | D30: La penseuse ! | E30: 12 | F30: 14 | G30: 16 | H30: 0 | I30: 0 | J30: 42 | K30: 0 | L30: 42 | Q30: =COUNTIF('Classement auteurs'!B:B,C30) -> 1
A31: 13 | B31: 97 | C31: 131683007901 | D31: Tête d'oeuf | E31: 13 | F31: 11 | G31: 18 | H31: 0 | I31: 0 | J31: 42 | K31: 0 | L31: 117 | Q31: =COUNTIF('Classement auteurs'!B:B,C31) -> 1
A32: 13 | B32: 114 | C32: 131956002401 | D32: Grand Mère | E32: 13 | F32: 15 | G32: 14 | H32: 0 | I32: 0 | J32: 42 | K32: 0 | L32: 24 | Q32: =COUNTIF('Classement auteurs'!B:B,C32) -> 1
A33: 13 | B33: 9 | C33: 130000015001 | D33: Vu | E33: 15 | F33: 14 | G33: 12 | H33: 0 | I33: 0 | J33: 41 | K33: 0 | L33: 53 | Q33: =COUNTIF('Classement auteurs'!B:B,C33) -> 1
A34: 13 | B34: 40 | C34: 130000020401 | D34: Alcôve | E34: 13 | F34: 13 | G34: 15 | H34: 0 | I34: 0 | J34: 41 | K34: 0 | L34: 51 | Q34: =COUNTIF('Classement auteurs'!B:B,C34) -> 1
A35: 13 | B35: 86 | C35: 131353000701 | D35: Sous la pluie | E35: 14 | F35: 12 | G35: 15 | H35: 0 | I35: 0 | J35: 41 | K35: 0 | L35: 3 | Q35: =COUNTIF('Classement auteurs'!B:B,C35) -> 1
A36: 13 | B36: 89 | C36: 132060002101 | D36: Pont araignée sur le Rhon | E36: 14 | F36: 12 | G36: 15 | H36: 0 | I36: 0 | J36: 41 | K36: 0 | L36: 107 | Q36: =COUNTIF('Classement auteurs'!B:B,C36) -> 1
A37: 13 | B37: 105 | C37: 131683006601 | D37: Comme un génie | E37: 14 | F37: 13 | G37: 14 | H37: 0 | I37: 0 | J37: 41 | K37: 0 | L37: 78 | Q37: =COUNTIF('Classement auteurs'!B:B,C37) -> 1
A38: 13 | B38: 111 | C38: 131956000401 | D38: Westminster | E38: 14 | F38: 12 | G38: 15 | H38: 0 | I38: 0 | J38: 41 | K38: 0 | L38: 86 | Q38: =COUNTIF('Classement auteurs'!B:B,C38) -> 1
A39: 13 | B39: 32 | C39: 131879000101 | D39: Vite! | E39: 12 | F39: 12 | G39: 16 | H39: 0 | I39: 0 | J39: 40 | K39: 0 | L39: 77 | Q39: =COUNTIF('Classement auteurs'!B:B,C39) -> 1
A40: 13 | B40: 38 | C40: 131992000901 | D40: Le passage | E40: 13 | F40: 15 | G40: 12 | H40: 0 | I40: 0 | J40: 40 | K40: 0 | L40: 85 | Q40: =COUNTIF('Classement auteurs'!B:B,C40) -> 1
A41: 13 | B41: 130 | C41: 131956005401 | D41: Graphisme urbain | E41: 16 | F41: 12 | G41: 12 | H41: 0 | I41: 0 | J41: 40 | K41: 0 | L41: 90 | Q41: =COUNTIF('Classement auteurs'!B:B,C41) -> 1
A42: 13 | B42: 24 | C42: 130878015201 | D42: Rêverie | E42: 15 | F42: 13 | G42: 11 | H42: 0 | I42: 0 | J42: 39 | K42: 0 | L42: 125 | Q42: =COUNTIF('Classement auteurs'!B:B,C42) -> 1
A43: 13 | B43: 28 | C43: 130987024101 | D43: Peu ou proue... | E43: 13 | F43: 15 | G43: 11 | H43: 0 | I43: 0 | J43: 39 | K43: 0 | L43: 36 | Q43: =COUNTIF('Classement auteurs'!B:B,C43) -> 1
A44: 13 | B44: 33 | C44: 131499009301 | D44: Chemin de traverse | E44: 12 | F44: 14 | G44: 13 | H44: 0 | I44: 0 | J44: 39 | K44: 0 | L44: 113 | Q44: =COUNTIF('Classement auteurs'!B:B,C44) -> 1
A45: 13 | B45: 49 | C45: 130878013001 | D45: Complices | E45: 13 | F45: 15 | G45: 11 | H45: 0 | I45: 0 | J45: 39 | K45: 0 | L45: 110 | Q45: =COUNTIF('Classement auteurs'!B:B,C45) -> 1
A46: 13 | B46: 57 | C46: 130878015701 | D46: Damien | E46: 12 | F46: 14 | G46: 13 | H46: 0 | I46: 0 | J46: 39 | K46: 0 | L46: 61 | Q46: =COUNTIF('Classement auteurs'!B:B,C46) -> 1
A47: 13 | B47: 77 | C47: 131956006001 | D47: Le vieux port en mouvemen | E47: 10 | F47: 13 | G47: 16 | H47: 0 | I47: 0 | J47: 39 | K47: 0 | L47: 98 | Q47: =COUNTIF('Classement auteurs'!B:B,C47) -> 1
A48: 13 | B48: 118 | C48: 132060000401 | D48: Pont de dentelle | E48: 11 | F48: 12 | G48: 16 | H48: 0 | I48: 0 | J48: 39 | K48: 0 | L48: 84 | Q48: =COUNTIF('Classement auteurs'!B:B,C48) -> 1
A49: 13 | B49: 50 | C49: 131683005101 | D49: Le buron oublié | E49: 11 | F49: 14 | G49: 13 | H49: 0 | I49: 0 | J49: 38 | K49: 0 | L49: 87 | Q49: =COUNTIF('Classement auteurs'!B:B,C49) -> 1
A50: 13 | B50: 61 | C50: 130527012401 | D50: Fillette avec ses poisson | E50: 12 | F50: 12 | G50: 14 | H50: 0 | I50: 0 | J50: 38 | K50: 0 | L50: 106 | Q50: =COUNTIF('Classement auteurs'!B:B,C50) -> 1
A51: 13 | B51: 84 | C51: 131353004301 | D51: Tombes de sable | E51: 15 | F51: 7 | G51: 16 | H51: 0 | I51: 0 | J51: 38 | K51: 0 | L51: 17 | Q51: =COUNTIF('Classement auteurs'!B:B,C51) -> 1
A52: 13 | B52: 25 | C52: 132193000801 | D52: Au marché provencale | E52: 12 | F52: 12 | G52: 13 | H52: 0 | I52: 0 | J52: 37 | K52: 0 | L52: 5 | Q52: =COUNTIF('Classement auteurs'!B:B,C52) -> 1
A53: 13 | B53: 43 | C53: 131956005501 | D53: En montant à notre Dame d | E53: 13 | F53: 10 | G53: 14 | H53: 0 | I53: 0 | J53: 37 | K53: 0 | L53: 97 | Q53: =COUNTIF('Classement auteurs'!B:B,C53) -> 1
A54: 13 | B54: 47 | C54: 130000019901 | D54: Barques | E54: 12 | F54: 13 | G54: 12 | H54: 0 | I54: 0 | J54: 37 | K54: 0 | L54: 92 | Q54: =COUNTIF('Classement auteurs'!B:B,C54) -> 1
A55: 13 | B55: 52 | C55: 131824000201 | D55: Cubissime | E55: 14 | F55: 12 | G55: 11 | H55: 0 | I55: 0 | J55: 37 | K55: 0 | L55: 18 | Q55: =COUNTIF('Classement auteurs'!B:B,C55) -> 1
A56: 13 | B56: 59 | C56: 131862002201 | D56: Imploration | E56: 16 | F56: 11 | G56: 10 | H56: 0 | I56: 0 | J56: 37 | K56: 0 | L56: 64 | Q56: =COUNTIF('Classement auteurs'!B:B,C56) -> 1
A57: 13 | B57: 78 | C57: 130987024001 | D57: L'orage arrive | E57: 12 | F57: 11 | G57: 14 | H57: 0 | I57: 0 | J57: 37 | K57: 0 | L57: 32 | Q57: =COUNTIF('Classement auteurs'!B:B,C57) -> 1
A58: 13 | B58: 102 | C58: 131823005701 | D58: Voile | E58: 13 | F58: 10 | G58: 14 | H58: 0 | I58: 0 | J58: 37 | K58: 0 | L58: 109 | Q58: =COUNTIF('Classement auteurs'!B:B,C58) -> 1
A59: 13 | B59: 103 | C59: 132193000401 | D59: Le damier | E59: 12 | F59: 13 | G59: 12 | H59: 0 | I59: 0 | J59: 37 | K59: 0 | L59: 49 | Q59: =COUNTIF('Classement auteurs'!B:B,C59) -> 1
A60: 13 | B60: 113 | C60: 131845001401 | D60: L'arbre et la lune | E60: 12 | F60: 7 | G60: 18 | H60: 0 | I60: 0 | J60: 37 | K60: 0 | L60: 46 | Q60: =COUNTIF('Classement auteurs'!B:B,C60) -> 1
A61: 13 | B61: 120 | C61: 131956005601 | D61: Saxo | E61: 11 | F61: 14 | G61: 12 | H61: 0 | I61: 0 | J61: 37 | K61: 0 | L61: 16 | Q61: =COUNTIF('Classement auteurs'!B:B,C61) -> 1
A62: 13 | B62: 22 | C62: 131683006301 | D62: La jetée | E62: 14 | F62: 9 | G62: 13 | H62: 0 | I62: 0 | J62: 36 | K62: 0 | L62: 71 | Q62: =COUNTIF('Classement auteurs'!B:B,C62) -> 1
A63: 13 | B63: 30 | C63: 132084004001 | D63: La guerre des mondes | E63: 11 | F63: 11 | G63: 14 | H63: 0 | I63: 0 | J63: 36 | K63: 0 | L63: 35 | Q63: =COUNTIF('Classement auteurs'!B:B,C63) -> 1
A64: 13 | B64: 39 | C64: 131862001501 | D64: Le solitaire | E64: 11 | F64: 10 | G64: 15 | H64: 0 | I64: 0 | J64: 36 | K64: 0 | L64: 116 | Q64: =COUNTIF('Classement auteurs'!B:B,C64) -> 1
A65: 13 | B65: 54 | C65: 131823008301 | D65: Liberté surveillée | E65: 12 | F65: 14 | G65: 10 | H65: 0 | I65: 0 | J65: 36 | K65: 0 | L65: 45 | Q65: =COUNTIF('Classement auteurs'!B:B,C65) -> 1
A66: 13 | B66: 60 | C66: 131499003601 | D66: Dans la rue | E66: 11 | F66: 12 | G66: 13 | H66: 0 | I66: 0 | J66: 36 | K66: 0 | L66: 37 | Q66: =COUNTIF('Classement auteurs'!B:B,C66) -> 1
A67: 13 | B67: 81 | C67: 131110000901 | D67: Blues man | E67: 12 | F67: 14 | G67: 10 | H67: 0 | I67: 0 | J67: 36 | K67: 0 | L67: 65 | Q67: =COUNTIF('Classement auteurs'!B:B,C67) -> 1
A68: 13 | B68: 101 | C68: 131823002301 | D68: Bord de mer | E68: 10 | F68: 12 | G68: 14 | H68: 0 | I68: 0 | J68: 36 | K68: 0 | L68: 66 | Q68: =COUNTIF('Classement auteurs'!B:B,C68) -> 1
A69: 13 | B69: 108 | C69: 131353003001 | D69: Chômage technique. | E69: 13 | F69: 12 | G69: 11 | H69: 0 | I69: 0 | J69: 36 | K69: 0 | L69: 121 | Q69: =COUNTIF('Classement auteurs'!B:B,C69) -> 1
A70: 13 | B70: 109 | C70: 131845002501 | D70: Canal du centre | E70: 11 | F70: 13 | G70: 12 | H70: 0 | I70: 0 | J70: 36 | K70: 0 | L70: 96 | Q70: =COUNTIF('Classement auteurs'!B:B,C70) -> 1
A71: 13 | B71: 110 | C71: 131956004901 | D71: Imploration | E71: 13 | F71: 9 | G71: 14 | H71: 0 | I71: 0 | J71: 36 | K71: 0 | L71: 15 | Q71: =COUNTIF('Classement auteurs'!B:B,C71) -> 1
A72: 13 | B72: 121 | C72: 131499006801 | D72: Potier à l'ouvrage | E72: 10 | F72: 15 | G72: 11 | H72: 0 | I72: 0 | J72: 36 | K72: 0 | L72: 105 | Q72: =COUNTIF('Classement auteurs'!B:B,C72) -> 1
A73: 13 | B73: 14 | C73: 130925010201 | D73: La chevelure | E73: 12 | F73: 12 | G73: 11 | H73: 0 | I73: 0 | J73: 35 | K73: 0 | L73: 56 | Q73: =COUNTIF('Classement auteurs'!B:B,C73) -> 1
A74: 13 | B74: 16 | C74: 132193000701 | D74: Contemplation | E74: 15 | F74: 11 | G74: 9 | H74: 0 | I74: 0 | J74: 35 | K74: 0 | L74: 50 | Q74: =COUNTIF('Classement auteurs'!B:B,C74) -> 1
A75: 13 | B75: 62 | C75: 132147000101 | D75: Musique | E75: 11 | F75: 16 | G75: 8 | H75: 0 | I75: 0 | J75: 35 | K75: 0 | L75: 9 | Q75: =COUNTIF('Classement auteurs'!B:B,C75) -> 1
A76: 13 | B76: 76 | C76: 132060001701 | D76: Rêveries | E76: 9 | F76: 12 | G76: 14 | H76: 0 | I76: 0 | J76: 35 | K76: 0 | L76: 111 | Q76: =COUNTIF('Classement auteurs'!B:B,C76) -> 1
A77: 13 | B77: 83 | C77: 131879000601 | D77: Urbain le matin | E77: 11 | F77: 11 | G77: 13 | H77: 0 | I77: 0 | J77: 35 | K77: 0 | L77: 100 | Q77: =COUNTIF('Classement auteurs'!B:B,C77) -> 1
A78: 13 | B78: 123 | C78: 132060001801 | D78: Timidité... | E78: 14 | F78: 13 | G78: 8 | H78: 0 | I78: 0 | J78: 35 | K78: 0 | L78: 12 | Q78: =COUNTIF('Classement auteurs'!B:B,C78) -> 1
A79: 13 | B79: 124 | C79: 131353006101 | D79: Les yeux d'Athéna | E79: 14 | F79: 9 | G79: 12 | H79: 0 | I79: 0 | J79: 35 | K79: 0 | L79: 44 | Q79: =COUNTIF('Classement auteurs'!B:B,C79) -> 1
A80: 13 | B80: 1 | C80: 131845000801 | D80: Au fond de l'eau | E80: 12 | F80: 8 | G80: 14 | H80: 0 | I80: 0 | J80: 34 | K80: 0 | L80: 29 | Q80: =COUNTIF('Classement auteurs'!B:B,C80) -> 1
A81: 13 | B81: 29 | C81: 131499008701 | D81: Rencontre ... | E81: 11 | F81: 10 | G81: 13 | H81: 0 | I81: 0 | J81: 34 | K81: 0 | L81: 19 | Q81: =COUNTIF('Classement auteurs'!B:B,C81) -> 1
A82: 13 | B82: 31 | C82: 131353000201 | D82: Cité des vins à Bordeaux | E82: 11 | F82: 10 | G82: 13 | H82: 0 | I82: 0 | J82: 34 | K82: 0 | L82: 33 | Q82: =COUNTIF('Classement auteurs'!B:B,C82) -> 1
A83: 13 | B83: 34 | C83: 131499005201 | D83: Jumping | E83: 12 | F83: 12 | G83: 10 | H83: 0 | I83: 0 | J83: 34 | K83: 0 | L83: 6 | Q83: =COUNTIF('Classement auteurs'!B:B,C83) -> 1
A84: 13 | B84: 48 | C84: 131823009001 | D84: Feria carmaguaise | E84: 10 | F84: 14 | G84: 10 | H84: 0 | I84: 0 | J84: 34 | K84: 0 | L84: 13 | Q84: =COUNTIF('Classement auteurs'!B:B,C84) -> 1
A85: 13 | B85: 80 | C85: 130987023901 | D85: Paradoxe | E85: 13 | F85: 11 | G85: 10 | H85: 0 | I85: 0 | J85: 34 | K85: 0 | L85: 57 | Q85: =COUNTIF('Classement auteurs'!B:B,C85) -> 1
A86: 13 | B86: 92 | C86: 132089000101 | D86: C'est la pause ... | E86: 13 | F86: 13 | G86: 8 | H86: 0 | I86: 0 | J86: 34 | K86: 0 | L86: 60 | Q86: =COUNTIF('Classement auteurs'!B:B,C86) -> 1
A87: 13 | B87: 95 | C87: 131619002601 | D87: Sortie en ville | E87: 10 | F87: 12 | G87: 12 | H87: 0 | I87: 0 | J87: 34 | K87: 0 | L87: 34 | Q87: =COUNTIF('Classement auteurs'!B:B,C87) -> 1
A88: 13 | B88: 13 | C88: 131376014701 | D88: Souffrance | E88: 9 | F88: 11 | G88: 13 | H88: 0 | I88: 0 | J88: 33 | K88: 0 | L88: 7 | Q88: =COUNTIF('Classement auteurs'!B:B,C88) -> 1
A89: 13 | B89: 20 | C89: 131376012601 | D89: Prophétic | E89: 9 | F89: 10 | G89: 14 | H89: 0 | I89: 0 | J89: 33 | K89: 0 | L89: 91 | Q89: =COUNTIF('Classement auteurs'!B:B,C89) -> 1
A90: 13 | B90: 23 | C90: 131992000301 | D90: Champ d'échalotes | E90: 11 | F90: 9 | G90: 13 | H90: 0 | I90: 0 | J90: 33 | K90: 0 | L90: 4 | Q90: =COUNTIF('Classement auteurs'!B:B,C90) -> 1
A91: 13 | B91: 35 | C91: 130878014101 | D91: Pin-up | E91: 14 | F91: 9 | G91: 10 | H91: 0 | I91: 0 | J91: 33 | K91: 0 | L91: 112 | Q91: =COUNTIF('Classement auteurs'!B:B,C91) -> 1
A92: 13 | B92: 42 | C92: 132086002301 | D92: J'espionne | E92: 10 | F92: 10 | G92: 13 | H92: 0 | I92: 0 | J92: 33 | K92: 0 | L92: 31 | Q92: =COUNTIF('Classement auteurs'!B:B,C92) -> 1
A93: 13 | B93: 55 | C93: 131823007701 | D93: Pétrolette | E93: 12 | F93: 9 | G93: 12 | H93: 0 | I93: 0 | J93: 33 | K93: 0 | L93: 43 | Q93: =COUNTIF('Classement auteurs'!B:B,C93) -> 1
A94: 13 | B94: 70 | C94: 130878013601 | D94: Reflet dans une tasse de | E94: 10 | F94: 8 | G94: 15 | H94: 0 | I94: 0 | J94: 33 | K94: 0 | L94: 72 | Q94: =COUNTIF('Classement auteurs'!B:B,C94) -> 1
A95: 13 | B95: 88 | C95: 130987019701 | D95: Coaching | E95: 11 | F95: 14 | G95: 8 | H95: 0 | I95: 0 | J95: 33 | K95: 0 | L95: 123 | Q95: =COUNTIF('Classement auteurs'!B:B,C95) -> 1
A96: 13 | B96: 93 | C96: 132060001201 | D96: Nocturne à la Défense | E96: 10 | F96: 11 | G96: 12 | H96: 0 | I96: 0 | J96: 33 | K96: 0 | L96: 70 | Q96: =COUNTIF('Classement auteurs'!B:B,C96) -> 1
A97: 13 | B97: 45 | C97: 131499003901 | D97: La cavalière | E97: 11 | F97: 9 | G97: 12 | H97: 0 | I97: 0 | J97: 32 | K97: 0 | L97: 68 | Q97: =COUNTIF('Classement auteurs'!B:B,C97) -> 1
A98: 13 | B98: 67 | C98: 130527015501 | D98: Contre jour2 | E98: 8 | F98: 9 | G98: 15 | H98: 0 | I98: 0 | J98: 32 | K98: 0 | L98: 80 | Q98: =COUNTIF('Classement auteurs'!B:B,C98) -> 1
A99: 13 | B99: 4 | C99: 132084001701 | D99: Pavés | E99: 10 | F99: 10 | G99: 11 | H99: 0 | I99: 0 | J99: 31 | K99: 0 | L99: 69 | Q99: =COUNTIF('Classement auteurs'!B:B,C99) -> 1
A100: 13 | B100: 41 | C100: 131862003801 | D100: Plage de Piemanson | E100: 11 | F100: 9 | G100: 11 | H100: 0 | I100: 0 | J100: 31 | K100: 0 | L100: 48 | Q100: =COUNTIF('Classement auteurs'!B:B,C100) -> 1
A101: 13 | B101: 65 | C101: 132103002301 | D101: Napoli g'ART | E101: 13 | F101: 9 | G101: 9 | H101: 0 | I101: 0 | J101: 31 | K101: 0 | L101: 8 | Q101: =COUNTIF('Classement auteurs'!B:B,C101) -> 1
A102: 13 | B102: 104 | C102: 130527011601 | D102: Amour de pierre | E102: 10 | F102: 11 | G102: 10 | H102: 0 | I102: 0 | J102: 31 | K102: 0 | L102: 30 | Q102: =COUNTIF('Classement auteurs'!B:B,C102) -> 1
A103: 13 | B103: 106 | C103: 131956001401 | D103: St Pétersbourg l'hiver | E103: 10 | F103: 8 | G103: 13 | H103: 0 | I103: 0 | J103: 31 | K103: 0 | L103: 26 | Q103: =COUNTIF('Classement auteurs'!B:B,C103) -> 1
A104: 13 | B104: 126 | C104: 131353006201 | D104: Descente aux flambeaux | E104: 8 | F104: 12 | G104: 11 | H104: 0 | I104: 0 | J104: 31 | K104: 0 | L104: 14 | Q104: =COUNTIF('Classement auteurs'!B:B,C104) -> 1
A105: 13 | B105: 2 | C105: 132147000601 | D105: Ours | E105: 13 | F105: 6 | G105: 11 | H105: 0 | I105: 0 | J105: 30 | K105: 0 | L105: 104 | Q105: =COUNTIF('Classement auteurs'!B:B,C105) -> 1
A106: 13 | B106: 8 | C106: 132193000501 | D106: Alphabet | E106: 9 | F106: 10 | G106: 11 | H106: 0 | I106: 0 | J106: 30 | K106: 0 | L106: 2 | Q106: =COUNTIF('Classement auteurs'!B:B,C106) -> 1
A107: 13 | B107: 99 | C107: 130987023201 | D107: Felleng | E107: 11 | F107: 7 | G107: 12 | H107: 0 | I107: 0 | J107: 30 | K107: 0 | L107: 22 | Q107: =COUNTIF('Classement auteurs'!B:B,C107) -> 1
A108: 13 | B108: 36 | C108: 131879001301 | D108: Noir et blanc | E108: 11 | F108: 10 | G108: 8 | H108: 0 | I108: 0 | J108: 29 | K108: 0 | L108: 10 | Q108: =COUNTIF('Classement auteurs'!B:B,C108) -> 1
A109: 13 | B109: 66 | C109: 130527002501 | D109: Percheron | E109: 7 | F109: 11 | G109: 11 | H109: 0 | I109: 0 | J109: 29 | K109: 0 | L109: 21 | Q109: =COUNTIF('Classement auteurs'!B:B,C109) -> 1
A110: 13 | B110: 87 | C110: 130987019601 | D110: Les yeux d'une mère | E110: 11 | F110: 9 | G110: 9 | H110: 0 | I110: 0 | J110: 29 | K110: 0 | L110: 25 | Q110: =COUNTIF('Classement auteurs'!B:B,C110) -> 1
A111: 13 | B111: 90 | C111: 132060000101 | D111: Cimetière Marin | E111: 8 | F111: 7 | G111: 14 | H111: 0 | I111: 0 | J111: 29 | K111: 0 | L111: 38 | Q111: =COUNTIF('Classement auteurs'!B:B,C111) -> 1
A112: 13 | B112: 91 | C112: 131956004301 | D112: L'heure de la prière | E112: 11 | F112: 7 | G112: 11 | H112: 0 | I112: 0 | J112: 29 | K112: 0 | L112: 54 | Q112: =COUNTIF('Classement auteurs'!B:B,C112) -> 1
A113: 13 | B113: 96 | C113: 131683007601 | D113: Dans l'attente | E113: 9 | F113: 8 | G113: 12 | H113: 0 | I113: 0 | J113: 29 | K113: 0 | L113: 95 | Q113: =COUNTIF('Classement auteurs'!B:B,C113) -> 1
A114: 13 | B114: 116 | C114: 132060000901 | D114: La force de la nature | E114: 10 | F114: 7 | G114: 12 | H114: 0 | I114: 0 | J114: 29 | K114: 0 | L114: 52 | Q114: =COUNTIF('Classement auteurs'!B:B,C114) -> 1
A115: 13 | B115: 117 | C115: 131683007101 | D115: Les biquettes de jouques | E115: 9 | F115: 7 | G115: 13 | H115: 0 | I115: 0 | J115: 29 | K115: 0 | L115: 108 | Q115: =COUNTIF('Classement auteurs'!B:B,C115) -> 1
A116: 13 | B116: 21 | C116: 131845003501 | D116: Le voisin nous a quitté | E116: 10 | F116: 8 | G116: 10 | H116: 0 | I116: 0 | J116: 28 | K116: 0 | L116: 101 | Q116: =COUNTIF('Classement auteurs'!B:B,C116) -> 1
A117: 13 | B117: 68 | C117: 130878013401 | D117: La visite | E117: 9 | F117: 9 | G117: 10 | H117: 0 | I117: 0 | J117: 28 | K117: 0 | L117: 79 | Q117: =COUNTIF('Classement auteurs'!B:B,C117) -> 1
A118: 13 | B118: 74 | C118: 132060000701 | D118: Défense d'entrer | E118: 9 | F118: 10 | G118: 9 | H118: 0 | I118: 0 | J118: 28 | K118: 0 | L118: 120 | Q118: =COUNTIF('Classement auteurs'!B:B,C118) -> 1
A119: 13 | B119: 75 | C119: 132060002201 | D119: Petite sieste | E119: 12 | F119: 9 | G119: 6 | H119: 0 | I119: 0 | J119: 27 | K119: 0 | L119: 11 | Q119: =COUNTIF('Classement auteurs'!B:B,C119) -> 1
A120: 13 | B120: 129 | C120: 131956005701 | D120: Solitude | E120: 10 | F120: 8 | G120: 9 | H120: 0 | I120: 0 | J120: 27 | K120: 0 | L120: 115 | Q120: =COUNTIF('Classement auteurs'!B:B,C120) -> 1
A121: 13 | B121: 98 | C121: 132060002801 | D121: Marabout kaouki | E121: 12 | F121: 7 | G121: 7 | H121: 0 | I121: 0 | J121: 26 | K121: 0 | L121: 124 | Q121: =COUNTIF('Classement auteurs'!B:B,C121) -> 1
A122: 13 | B122: 128 | C122: 132060002001 | D122: Suivez les flèches ! | E122: 7 | F122: 7 | G122: 12 | H122: 0 | I122: 0 | J122: 26 | K122: 0 | L122: 89 | Q122: =COUNTIF('Classement auteurs'!B:B,C122) -> 1
A123: 13 | B123: 17 | C123: 130527019601 | D123: Ile de Goré: les adieux | E123: 8 | F123: 9 | G123: 7 | H123: 0 | I123: 0 | J123: 24 | K123: 0 | L123: 27 | Q123: =COUNTIF('Classement auteurs'!B:B,C123) -> 1
A124: 13 | B124: 72 | C124: 131992000401 | D124: Jeux de lumière | E124: 8 | F124: 7 | G124: 9 | H124: 0 | I124: 0 | J124: 24 | K124: 0 | L124: 74 | Q124: =COUNTIF('Classement auteurs'!B:B,C124) -> 1
A125: 13 | B125: 69 | C125: 131499008201 | D125: Bateau échoué | E125: 14 | F125: 6 | G125: 0 | H125: 0 | I125: 0 | J125: 20 | K125: 0 | L125: 63 | Q125: =COUNTIF('Classement auteurs'!B:B,C125) -> 1
A126: 13 | B126: 94 | C126: 132193001201 | D126: Le pied | E126: 6 | F126: 6 | G126: 6 | H126: 0 | I126: 0 | J126: 18 | K126: 0 | L126: 59 | Q126: =COUNTIF('Classement auteurs'!B:B,C126) -> 1
Q127: =COUNTIF('Classement auteurs'!B:B,C127) -> 0
Q128: =COUNTIF('Classement auteurs'!B:B,C128) -> 0
Q129: =COUNTIF('Classement auteurs'!B:B,C129) -> 0
Q130: =COUNTIF('Classement auteurs'!B:B,C130) -> 0
Q131: =COUNTIF('Classement auteurs'!B:B,C131) -> 0
Q132: =COUNTIF('Classement auteurs'!B:B,C132) -> 0
Q133: =COUNTIF('Classement auteurs'!B:B,C133) -> 0
Q134: =COUNTIF('Classement auteurs'!B:B,C134) -> 0
Q135: =COUNTIF('Classement auteurs'!B:B,C135) -> 0
Q136: =COUNTIF('Classement auteurs'!B:B,C136) -> 0
Q137: =COUNTIF('Classement auteurs'!B:B,C137) -> 0
Q138: =COUNTIF('Classement auteurs'!B:B,C138) -> 0

Sheet Liste des clubs
B2: N° de club | C2: Nom | D2: Département | E2: Ville
A3: 1 | B3: 435 | C3: Beausoleil Ciné Photo Club | D3: 6 | E3: Beausoleil
A4: 2 | B4: 462 | C4: Image 2000 | D4: 13 | E4: Marignane
A5: 3 | B5: 527 | C5: Photo Club de Martigues | D5: 13 | E5: Lavéra
A6: 4 | B6: 878 | C6: PC Antoine Santoru-Port de Bouc | D6: 13 | E6: Port-de-Bouc
A7: 5 | B7: 921 | C7: Photo Club M.P.T. Vitrolles | D7: 13 | E7: Vitrolles
A8: 6 | B8: 925 | C8: A.S.L.P.S. Photo Fos-sur-Mer | D8: 13 | E8: Fos-Sur-Mer
A9: 7 | B9: 987 | C9: Cl. Phot’Azur Six-Fours-les-Plages | D9: 83 | E9: Six-Fours-Les-Plages
A10: 8 | B10: 993 | C10: P.C. La Garde – Marseille | D10: 13 | E10: Marseille
A11: 9 | B11: 1110 | C11: Ciné Photo Club de Peymeinade | D11: 6 | E11: Peymeinade
A12: 10 | B12: 1227 | C12: Photo Ciné Club Courthezonnais | D12: 84 | E12: Bedarrides
A13: 11 | B13: 1353 | C13: Photo Club de La Crau | D13: 13 | E13: Saint-Martin-De-Crau
A14: 12 | B14: 1376 | C14: PHOCAL | D14: 13 | E14: Allauch-Cedex
A15: 13 | B15: 1426 | C15: Diaphragme et Lumière Var – Ollioules | D15: 83 | E15: Ollioules
A16: 14 | B16: 1441 | C16: Club mage Monaco | D16: 98 | E16: Monaco
A17: 15 | B17: 1450 | C17: Arc Images- Rousset | D17: 13 | E17: Rousset
A18: 16 | B18: 1494 | C18: Photo-Club du Brianconnais | D18: 5 | E18: Briancon
A19: 17 | B19: 1499 | C19: Images Expressions – Cagnes sur Mer | D19: 6 | E19: Cagnes-Sur-Mer
A20: 18 | B20: 1601 | C20: Club Pugetois de L’image | D20: 83 | E20: Puget-Sur-Argens
A21: 19 | B21: 1619 | C21: Optique Diaporama Marseille | D21: 13 | E21: La Bouilladisse
A22: 20 | B22: 1683 | C22: Marius Saint-Mitre-les-Remparts | D22: 13 | E22: Saint-Mitre-Les-Remparts
A23: 21 | B23: 1777 | C23: Club Photo et Vidéo Plan de La Tour | D23: 83 | E23: Plan-de-la-Tour
A24: 22 | B24: 1796 | C24: Ciné Caméra Club de Cannes | D24: 6 | E24: Cannes
A25: 23 | B25: 1823 | C25: Photo Club Mouansois | D25: 6 | E25: Mouans-Sartoux
A26: 24 | B26: 1824 | C26: Photo Club IBM Cote d’Azur | D26: 6 | E26: Nice
A27: 25 | B27: 1845 | C27: Photo Club Carqueirannais | D27: 83 | E27: Carqueiranne
A28: 26 | B28: 1862 | C28: Déclic et des Claps – Roquefort les Pins | D28: 6 | E28: Roquefort-les-Pins
A29: 27 | B29: 1867 | C29: PhotoMenton | D29: 6 | E29: Menton
A30: 28 | B30: 1879 | C30: Association Sportive de Berre | D30: 13 | E30: Berre-L'Etang
A31: 29 | B31: 1899 | C31: Club de l’Image | D31: 83 | E31: Sollies-Pont
A32: 30 | B32: 1956 | C32: Photo Contact Puyricard | D32: 13 | E32: Puyricard
A33: 31 | B33: 1969 | C33: Mission Photo – Cannes la Bocca | D33: 6 | E33: Cannes-la-Bocca
A34: 32 | B34: 1985 | C34: Rognonas Image Regard Espace | D34: 13 | E34: Rognonas
A35: 33 | B35: 1992 | C35: Photo Club Velauxien – Clin d’Œil | D35: 13 | E35: Velaux
A36: 34 | B36: 2003 | C36: Photo Club Moriérois | D36: 84 | E36: Morieres-les-Avignon
A37: 35 | B37: 2023 | C37: Club Art Déclic de l’ Argens | D37: 83 | E37: Puget-sur-Argens
A38: 36 | B38: 2028 | C38: Association Regards du Sud | D38: 6 | E38: Aspremont
A39: 37 | B39: 2060 | C39: Image Club Gardéen | D39: 83 | E39: La Garde
A40: 38 | B40: 2084 | C40: Azur Photo Passion | D40: 6 | E40: Cagnes-Sur-Mer
A41: 39 | B41: 2086 | C41: Objectif Image Nice | D41: 6 | E41: Nice
A42: 40 | B42: 2089 | C42: La Farledo Objectif Club | D42: 83 | E42: La Farlède
A43: 41 | B43: 2103 | C43: Club Photo St Laurent du Var | D43: 6 | E43: Saint-Laurent-du-Var
A44: 42 | B44: 2147 | C44: Club Photo Saint Savournin | D44: 13 | E44: Saint-Savournin
A45: 43 | B45: 2158 | C45: Café Photo Marseille | D45: 13 | E45: Marseille
A46: 44 | B46: 2180 | C46: Photo Club Carry Côte Bleue | D46: 13 | E46: Carry-le-Rouet
A47: 45 | B47: 2193 | C47: Antibes Photo Club | D47: 6 | E47: Antibes
A48: 46 | B48: 2203 | C48: Club Photo de Saignon | D48: 84 | E48: Saignon
A49: 47 | B49: 2211 | C49: Club Photo UAICF de Gap | D49: 5 | E49: Gap
A50: 48 | B50: 2217 | C50: ADSB – Club Photo Bouc Bel Air | D50: 13 | E50: Bouc-Bel-Air
A51: 49 | B51: 2222 | C51: Association Culturelle Photo Club de Neffes | D51: 5 | E51: Neffes

Sheet Comparaison auteurs
B1: Classement Mistral | L1: Comparaison | V1: Classement Gbinforme | W1: Classement Mistral
B2: Fichier | C2: Défi-1 | D2: Défi-2 | E2: Défi-3 | F2: Défi-4 | G2: Défi-5 | H2: Défi-6 | I2: Défi-7 | J2: Total | L2: Fichier | M2: Défi-1 | N2: Défi-2 | O2: Défi-3 | P2: Défi-4 | Q2: Défi-5 | R2: Défi-6 | S2: Défi-7 | T2: Total | V2: Fichier | W2: Défi-1 | X2: Défi-2 | Y2: Défi-3 | Z2: Défi-4 | AA2: Défi-5 | AB2: Défi-6 | AC2: Défi-7 | AD2: Total
B3: 131683007901 | C3: =IFERROR(VLOOKUP($B3,'Défi-1'!$C$2:$J$200,8,FALSE),"") -> 54 | D3: =IFERROR(VLOOKUP($B3,'Défi-2'!$C$2:$J$200,8,FALSE),"") -> 39 | E3: =IFERROR(VLOOKUP($B3,'Défi-3'!$C$2:$J$200,8,FALSE),"") -> 38 | F3: =IFERROR(VLOOKUP($B3,'Défi-4'!$C$2:$J$200,8,FALSE),"") -> 51 | G3: =IFERROR(VLOOKUP($B3,'Défi-5'!$C$2:$J$200,8,FALSE),"") -> 58 | H3: =IFERROR(VLOOKUP($B3,'Défi-6'!$C$2:$J$200,8,FALSE),"") -> 51 | I3: =IFERROR(VLOOKUP($B3,'Défi-7'!$C$2:$J$200,8,FALSE),"") -> 42 | J3: =SUM(C3:I3) -> 333 | L3: =IF(B3=V3,"OK","KO") -> OK | M3: =IF(C3=W3,"OK","KO") -> OK | N3: OK | O3: OK | P3: OK | Q3: OK | R3: OK | S3: OK | T3: OK | V3: ='Classement auteurs'!$B3 -> 131683007901 | W3: =IF('Classement auteurs'!C3="","",'Classement auteurs'!C3) -> 54 | X3: =IF('Classement auteurs'!D3="","",'Classement auteurs'!D3) -> 39 | Y3: =IF('Classement auteurs'!E3="","",'Classement auteurs'!E3) -> 38 | Z3: =IF('Classement auteurs'!F3="","",'Classement auteurs'!F3) -> 51 | AA3: =IF('Classement auteurs'!G3="","",'Classement auteurs'!G3) -> 58 | AB3: =IF('Classement auteurs'!H3="","",'Classement auteurs'!H3) -> 51 | AC3: =IF('Classement auteurs'!I3="","",'Classement auteurs'!I3) -> 42 | AD3: =IF('Classement auteurs'!J3="","",'Classement auteurs'!J3) -> 333
B4: 131110000901 | C4: =IFERROR(VLOOKUP($B4,'Défi-1'!$C$2:$J$200,8,FALSE),"") -> 51 | D4: =IFERROR(VLOOKUP($B4,'Défi-2'!$C$2:$J$200,8,FALSE),"") -> 45 | E4: =IFERROR(VLOOKUP($B4,'Défi-3'!$C$2:$J$200,8,FALSE),"") -> 56 | F4: =IFERROR(VLOOKUP($B4,'Défi-4'!$C$2:$J$200,8,FALSE),"") -> 43 | G4: =IFERROR(VLOOKUP($B4,'Défi-5'!$C$2:$J$200,8,FALSE),"") -> 41 | H4: =IFERROR(VLOOKUP($B4,'Défi-6'!$C$2:$J$200,8,FALSE),"") -> 43 | I4: =IFERROR(VLOOKUP($B4,'Défi-7'!$C$2:$J$200,8,FALSE),"") -> 36 | J4: =SUM(C4:I4) -> 315 | L4: =IF(B4=V4,"OK","KO") -> OK | M4: =IF(C4=W4,"OK","KO") -> OK | N4: =IF(D4=X4,"OK","KO") -> OK | O4: =IF(E4=Y4,"OK","KO") -> OK | P4: =IF(F4=Z4,"OK","KO") -> OK | Q4: =IF(G4=AA4,"OK","KO") -> OK | R4: =IF(H4=AB4,"OK","KO") -> OK | S4: =IF(I4=AC4,"OK","KO") -> OK | T4: =IF(J4=AD4,"OK","KO") -> OK | V4: ='Classement auteurs'!$B4 -> 131110000901 | W4: =IF('Classement auteurs'!C4="","",'Classement auteurs'!C4) -> 51 | X4: =IF('Classement auteurs'!D4="","",'Classement auteurs'!D4) -> 45 | Y4: =IF('Classement auteurs'!E4="","",'Classement auteurs'!E4) -> 56 | Z4: =IF('Classement auteurs'!F4="","",'Classement auteurs'!F4) -> 43 | AA4: =IF('Classement auteurs'!G4="","",'Classement auteurs'!G4) -> 41 | AB4: =IF('Classement auteurs'!H4="","",'Classement auteurs'!H4) -> 43 | AC4: =IF('Classement auteurs'!I4="","",'Classement auteurs'!I4) -> 36 | AD4: =IF('Classement auteurs'!J4="","",'Classement auteurs'!J4) -> 315
B5: 131824001901 | C5: =IFERROR(VLOOKUP($B5,'Défi-1'!$C$2:$J$200,8,FALSE),"") -> 52 | D5: =IFERROR(VLOOKUP($B5,'Défi-2'!$C$2:$J$200,8,FALSE),"") -> 40 | E5: =IFERROR(VLOOKUP($B5,'Défi-3'!$C$2:$J$200,8,FALSE),"") -> 45 | F5: =IFERROR(VLOOKUP($B5,'Défi-4'!$C$2:$J$200,8,FALSE),"") -> 48 | G5: =IFERROR(VLOOKUP($B5,'Défi-5'!$C$2:$J$200,8,FALSE),"") -> 44 | H5: =IFERROR(VLOOKUP($B5,'Défi-6'!$C$2:$J$200,8,FALSE),"") -> 52 | I5: =IFERROR(VLOOKUP($B5,'Défi-7'!$C$2:$J$200,8,FALSE),"") -> 45 | J5: 326 | L5: OK | M5: OK | N5: OK | O5: OK | P5: OK | Q5: OK | R5: KO | S5: OK | T5: KO | V5: ='Classement auteurs'!$B5 -> 131824001901 | W5: =IF('Classement auteurs'!C5="","",'Classement auteurs'!C5) -> 52 | X5: =IF('Classement auteurs'!D5="","",'Classement auteurs'!D5) -> 40 | Y5: =IF('Classement auteurs'!E5="","",'Classement auteurs'!E5) -> 45 | Z5: =IF('Classement auteurs'!F5="","",'Classement auteurs'!F5) -> 48 | AA5: =IF('Classement auteurs'!G5="","",'Classement auteurs'!G5) -> 44 | AB5: =IF('Classement auteurs'!H5="","",'Classement auteurs'!H5) -> 40 | AC5: =IF('Classement auteurs'!I5="","",'Classement auteurs'!I5) -> 45 | AD5: =IF('Classement auteurs'!J5="","",'Classement auteurs'!J5) -> 314
B6: 130987024201 | C6: =IFERROR(VLOOKUP($B6,'Défi-1'!$C$2:$J$200,8,FALSE),"") -> 46 | D6: =IFERROR(VLOOKUP($B6,'Défi-2'!$C$2:$J$200,8,FALSE),"") -> 43 | E6: =IFERROR(VLOOKUP($B6,'Défi-3'!$C$2:$J$200,8,FALSE),"") -> 48 | F6: =IFERROR(VLOOKUP($B6,'Défi-4'!$C$2:$J$200,8,FALSE),"") -> 45 | G6: =IFERROR(VLOOKUP($B6,'Défi-5'!$C$2:$J$200,8,FALSE),"") -> 39 | H6: =IFERROR(VLOOKUP($B6,'Défi-6'!$C$2:$J$200,8,FALSE),"") -> 48 | I6: =IFERROR(VLOOKUP($B6,'Défi-7'!$C$2:$J$200,8,FALSE),"") -> 43 | J6: 312 | L6: OK | M6: OK | N6: OK | O6: OK | P6: OK | Q6: OK | R6: KO | S6: OK | T6: KO | V6: ='Classement auteurs'!$B6 -> 130987024201 | W6: =IF('Classement auteurs'!C6="","",'Classement auteurs'!C6) -> 46 | X6: =IF('Classement auteurs'!D6="","",'Classement auteurs'!D6) -> 43 | Y6: =IF('Classement auteurs'!E6="","",'Classement auteurs'!E6) -> 48 | Z6: =IF('Classement auteurs'!F6="","",'Classement auteurs'!F6) -> 45 | AA6: =IF('Classement auteurs'!G6="","",'Classement auteurs'!G6) -> 39 | AB6: =IF('Classement auteurs'!H6="","",'Classement auteurs'!H6) -> 45 | AC6: =IF('Classement auteurs'!I6="","",'Classement auteurs'!I6) -> 43 | AD6: =IF('Classement auteurs'!J6="","",'Classement auteurs'!J6) -> 309
B7: 132193000301 | C7: =IFERROR(VLOOKUP($B7,'Défi-1'!$C$2:$J$200,8,FALSE),"") -> 48 | D7: =IFERROR(VLOOKUP($B7,'Défi-2'!$C$2:$J$200,8,FALSE),"") -> 37 | E7: =IFERROR(VLOOKUP($B7,'Défi-3'!$C$2:$J$200,8,FALSE),"") -> 40 | F7: =IFERROR(VLOOKUP($B7,'Défi-4'!$C$2:$J$200,8,FALSE),"") -> 45 | G7: =IFERROR(VLOOKUP($B7,'Défi-5'!$C$2:$J$200,8,FALSE),"") -> 38 | H7: =IFERROR(VLOOKUP($B7,'Défi-6'!$C$2:$J$200,8,FALSE),"") -> 48 | I7: =IFERROR(VLOOKUP($B7,'Défi-7'!$C$2:$J$200,8,FALSE),"") -> 55 | J7: 311 | L7: OK | M7: OK | N7: OK | O7: OK | P7: OK | Q7: OK | R7: KO | S7: OK | T7: KO | V7: ='Classement auteurs'!$B7 -> 132193000301 | W7: =IF('Classement auteurs'!C7="","",'Classement auteurs'!C7) -> 48 | X7: =IF('Classement auteurs'!D7="","",'Classement auteurs'!D7) -> 37 | Y7: =IF('Classement auteurs'!E7="","",'Classement auteurs'!E7) -> 40 | Z7: =IF('Classement auteurs'!F7="","",'Classement auteurs'!F7) -> 45 | AA7: =IF('Classement auteurs'!G7="","",'Classement auteurs'!G7) -> 38 | AB7: =IF('Classement auteurs'!H7="","",'Classement auteurs'!H7) -> 38 | AC7: =IF('Classement auteurs'!I7="","",'Classement auteurs'!I7) -> 55 | AD7: =IF('Classement auteurs'!J7="","",'Classement auteurs'!J7) -> 301
B8: 130527009401 | C8: =IFERROR(VLOOKUP($B8,'Défi-1'!$C$2:$J$200,8,FALSE),"") -> 50 | D8: =IFERROR(VLOOKUP($B8,'Défi-2'!$C$2:$J$200,8,FALSE),"") -> 53 | E8: =IFERROR(VLOOKUP($B8,'Défi-3'!$C$2:$J$200,8,FALSE),"") -> 46 | F8: =IFERROR(VLOOKUP($B8,'Défi-4'!$C$2:$J$200,8,FALSE),"") -> 50 | G8: =IFERROR(VLOOKUP($B8,'Défi-5'!$C$2:$J$200,8,FALSE),"") -> 51 | H8: =IFERROR(VLOOKUP($B8,'Défi-6'!$C$2:$J$200,8,FALSE),"") ->  | I8: =IFERROR(VLOOKUP($B8,'Défi-7'!$C$2:$J$200,8,FALSE),"") -> 49 | J8: 299 | L8: OK | M8: OK | N8: OK | O8: OK | P8: OK | Q8: OK | R8: OK | S8: OK | T8: OK | V8: ='Classement auteurs'!$B8 -> 130527009401 | W8: =IF('Classement auteurs'!C8="","",'Classement auteurs'!C8) -> 50 | X8: =IF('Classement auteurs'!D8="","",'Classement auteurs'!D8) -> 53 | Y8: =IF('Classement auteurs'!E8="","",'Classement auteurs'!E8) -> 46 | Z8: =IF('Classement auteurs'!F8="","",'Classement auteurs'!F8) -> 50 | AA8: =IF('Classement auteurs'!G8="","",'Classement auteurs'!G8) -> 51 | AB8: =IF('Classement auteurs'!H8="","",'Classement auteurs'!H8) ->  | AC8: =IF('Classement auteurs'!I8="","",'Classement auteurs'!I8) -> 49 | AD8: =IF('Classement auteurs'!J8="","",'Classement auteurs'!J8) -> 299
B9: 130987015701 | C9: =IFERROR(VLOOKUP($B9,'Défi-1'!$C$2:$J$200,8,FALSE),"") -> 48 | D9: =IFERROR(VLOOKUP($B9,'Défi-2'!$C$2:$J$200,8,FALSE),"") -> 39 | E9: =IFERROR(VLOOKUP($B9,'Défi-3'!$C$2:$J$200,8,FALSE),"") -> 34 | F9: =IFERROR(VLOOKUP($B9,'Défi-4'!$C$2:$J$200,8,FALSE),"") -> 41 | G9: =IFERROR(VLOOKUP($B9,'Défi-5'!$C$2:$J$200,8,FALSE),"") -> 46 | H9: =IFERROR(VLOOKUP($B9,'Défi-6'!$C$2:$J$200,8,FALSE),"") -> 48 | I9: =IFERROR(VLOOKUP($B9,'Défi-7'!$C$2:$J$200,8,FALSE),"") -> 52 | J9: =SUM(C9:I9) -> 308 | L9: =IF(B9=V9,"OK","KO") -> OK | M9: OK | N9: OK | O9: OK | P9: OK | Q9: OK | R9: KO | S9: OK | T9: KO | V9: ='Classement auteurs'!$B9 -> 130987015701 | W9: =IF('Classement auteurs'!C9="","",'Classement auteurs'!C9) -> 48 | X9: =IF('Classement auteurs'!D9="","",'Classement auteurs'!D9) -> 39 | Y9: =IF('Classement auteurs'!E9="","",'Classement auteurs'!E9) -> 34 | Z9: =IF('Classement auteurs'!F9="","",'Classement auteurs'!F9) -> 41 | AA9: =IF('Classement auteurs'!G9="","",'Classement auteurs'!G9) -> 46 | AB9: =IF('Classement auteurs'!H9="","",'Classement auteurs'!H9) -> 34 | AC9: =IF('Classement auteurs'!I9="","",'Classement auteurs'!I9) -> 52 | AD9: =IF('Classement auteurs'!J9="","",'Classement auteurs'!J9) -> 294
B10: 131499006801 | C10: =IFERROR(VLOOKUP($B10,'Défi-1'!$C$2:$J$200,8,FALSE),"") -> 35 | D10: =IFERROR(VLOOKUP($B10,'Défi-2'!$C$2:$J$200,8,FALSE),"") -> 39 | E10: =IFERROR(VLOOKUP($B10,'Défi-3'!$C$2:$J$200,8,FALSE),"") -> 48 | F10: =IFERROR(VLOOKUP($B10,'Défi-4'!$C$2:$J$200,8,FALSE),"") -> 52 | G10: =IFERROR(VLOOKUP($B10,'Défi-5'!$C$2:$J$200,8,FALSE),"") -> 42 | H10: =IFERROR(VLOOKUP($B10,'Défi-6'!$C$2:$J$200,8,FALSE),"") -> 42 | I10: =IFERROR(VLOOKUP($B10,'Défi-7'!$C$2:$J$200,8,FALSE),"") -> 36 | J10: =SUM(C10:I10) -> 294 | L10: =IF(B10=V10,"OK","KO") -> OK | M10: =IF(C10=W10,"OK","KO") -> OK | N10: =IF(D10=X10,"OK","KO") -> OK | O10: =IF(E10=Y10,"OK","KO") -> OK | P10: =IF(F10=Z10,"OK","KO") -> OK | Q10: =IF(G10=AA10,"OK","KO") -> OK | R10: =IF(H10=AB10,"OK","KO") -> OK | S10: =IF(I10=AC10,"OK","KO") -> OK | T10: =IF(J10=AD10,"OK","KO") -> OK | V10: ='Classement auteurs'!$B10 -> 131499006801 | W10: =IF('Classement auteurs'!C10="","",'Classement auteurs'!C10) -> 35 | X10: =IF('Classement auteurs'!D10="","",'Classement auteurs'!D10) -> 39 | Y10: =IF('Classement auteurs'!E10="","",'Classement auteurs'!E10) -> 48 | Z10: =IF('Classement auteurs'!F10="","",'Classement auteurs'!F10) -> 52 | AA10: =IF('Classement auteurs'!G10="","",'Classement auteurs'!G10) -> 42 | AB10: =IF('Classement auteurs'!H10="","",'Classement auteurs'!H10) -> 42 | AC10: =IF('Classement auteurs'!I10="","",'Classement auteurs'!I10) -> 36 | AD10: =IF('Classement auteurs'!J10="","",'Classement auteurs'!J10) -> 294
B11: 131683006301 | C11: =IFERROR(VLOOKUP($B11,'Défi-1'!$C$2:$J$200,8,FALSE),"") -> 57 | D11: =IFERROR(VLOOKUP($B11,'Défi-2'!$C$2:$J$200,8,FALSE),"") -> 36 | E11: =IFERROR(VLOOKUP($B11,'Défi-3'!$C$2:$J$200,8,FALSE),"") -> 34 | F11: =IFERROR(VLOOKUP($B11,'Défi-4'!$C$2:$J$200,8,FALSE),"") -> 47 | G11: =IFERROR(VLOOKUP($B11,'Défi-5'!$C$2:$J$200,8,FALSE),"") -> 45 | H11: =IFERROR(VLOOKUP($B11,'Défi-6'!$C$2:$J$200,8,FALSE),"") -> 57 | I11: =IFERROR(VLOOKUP($B11,'Défi-7'!$C$2:$J$200,8,FALSE),"") -> 36 | J11: 312 | L11: OK | M11: OK | N11: OK | O11: OK | P11: OK | Q11: OK | R11: KO | S11: OK | T11: KO | V11: ='Classement auteurs'!$B11 -> 131683006301 | W11: =IF('Classement auteurs'!C11="","",'Classement auteurs'!C11) -> 57 | X11: =IF('Classement auteurs'!D11="","",'Classement auteurs'!D11) -> 36 | Y11: =IF('Classement auteurs'!E11="","",'Classement auteurs'!E11) -> 34 | Z11: =IF('Classement auteurs'!F11="","",'Classement auteurs'!F11) -> 47 | AA11: =IF('Classement auteurs'!G11="","",'Classement auteurs'!G11) -> 45 | AB11: =IF('Classement auteurs'!H11="","",'Classement auteurs'!H11) -> 34 | AC11: =IF('Classement auteurs'!I11="","",'Classement auteurs'!I11) -> 36 | AD11: =IF('Classement auteurs'!J11="","",'Classement auteurs'!J11) -> 289
B12: 131353000101 | C12: =IFERROR(VLOOKUP($B12,'Défi-1'!$C$2:$J$200,8,FALSE),"") -> 45 | D12: =IFERROR(VLOOKUP($B12,'Défi-2'!$C$2:$J$200,8,FALSE),"") -> 36 | E12: =IFERROR(VLOOKUP($B12,'Défi-3'!$C$2:$J$200,8,FALSE),"") -> 46 | F12: =IFERROR(VLOOKUP($B12,'Défi-4'!$C$2:$J$200,8,FALSE),"") -> 47 | G12: =IFERROR(VLOOKUP($B12,'Défi-5'!$C$2:$J$200,8,FALSE),"") -> 57 | H12: =IFERROR(VLOOKUP($B12,'Défi-6'!$C$2:$J$200,8,FALSE),"") ->  | I12: =IFERROR(VLOOKUP($B12,'Défi-7'!$C$2:$J$200,8,FALSE),"") -> 56 | J12: =SUM(C12:I12) -> 287 | L12: =IF(B12=V12,"OK","KO") -> OK | M12: =IF(C12=W12,"OK","KO") -> OK | N12: =IF(D12=X12,"OK","KO") -> OK | O12: =IF(E12=Y12,"OK","KO") -> OK | P12: =IF(F12=Z12,"OK","KO") -> OK | Q12: =IF(G12=AA12,"OK","KO") -> OK | R12: =IF(H12=AB12,"OK","KO") -> OK | S12: =IF(I12=AC12,"OK","KO") -> OK | T12: =IF(J12=AD12,"OK","KO") -> OK | V12: ='Classement auteurs'!$B12 -> 131353000101 | W12: =IF('Classement auteurs'!C12="","",'Classement auteurs'!C12) -> 45 | X12: =IF('Classement auteurs'!D12="","",'Classement auteurs'!D12) -> 36 | Y12: =IF('Classement auteurs'!E12="","",'Classement auteurs'!E12) -> 46 | Z12: =IF('Classement auteurs'!F12="","",'Classement auteurs'!F12) -> 47 | AA12: =IF('Classement auteurs'!G12="","",'Classement auteurs'!G12) -> 57 | AB12: =IF('Classement auteurs'!H12="","",'Classement auteurs'!H12) ->  | AC12: =IF('Classement auteurs'!I12="","",'Classement auteurs'!I12) -> 56 | AD12: =IF('Classement auteurs'!J12="","",'Classement auteurs'!J12) -> 287
B13: 131879000801 | C13: =IFERROR(VLOOKUP($B13,'Défi-1'!$C$2:$J$200,8,FALSE),"") -> 50 | D13: =IFERROR(VLOOKUP($B13,'Défi-2'!$C$2:$J$200,8,FALSE),"") ->  | E13: =IFERROR(VLOOKUP($B13,'Défi-3'!$C$2:$J$200,8,FALSE),"") -> 58 | F13: =IFERROR(VLOOKUP($B13,'Défi-4'!$C$2:$J$200,8,FALSE),"") -> 40 | G13: =IFERROR(VLOOKUP($B13,'Défi-5'!$C$2:$J$200,8,FALSE),"") -> 36 | H13: =IFERROR(VLOOKUP($B13,'Défi-6'!$C$2:$J$200,8,FALSE),"") -> 58 | I13: =IFERROR(VLOOKUP($B13,'Défi-7'!$C$2:$J$200,8,FALSE),"") -> 44 | J13: 286 | L13: OK | M13: OK | N13: OK | O13: OK | P13: OK | Q13: OK | R13: OK | S13: OK | T13: OK | V13: ='Classement auteurs'!$B13 -> 131879000801 | W13: =IF('Classement auteurs'!C13="","",'Classement auteurs'!C13) -> 50 | X13: =IF('Classement auteurs'!D13="","",'Classement auteurs'!D13) ->  | Y13: =IF('Classement auteurs'!E13="","",'Classement auteurs'!E13) -> 58 | Z13: =IF('Classement auteurs'!F13="","",'Classement auteurs'!F13) -> 40 | AA13: =IF('Classement auteurs'!G13="","",'Classement auteurs'!G13) -> 36 | AB13: =IF('Classement auteurs'!H13="","",'Classement auteurs'!H13) -> 58 | AC13: =IF('Classement auteurs'!I13="","",'Classement auteurs'!I13) -> 44 | AD13: =IF('Classement auteurs'!J13="","",'Classement auteurs'!J13) -> 286
B14: 130987024101 | C14: =IFERROR(VLOOKUP($B14,'Défi-1'!$C$2:$J$200,8,FALSE),"") -> 40 | D14: =IFERROR(VLOOKUP($B14,'Défi-2'!$C$2:$J$200,8,FALSE),"") -> 39 | E14: =IFERROR(VLOOKUP($B14,'Défi-3'!$C$2:$J$200,8,FALSE),"") -> 36 | F14: =IFERROR(VLOOKUP($B14,'Défi-4'!$C$2:$J$200,8,FALSE),"") -> 46 | G14: =IFERROR(VLOOKUP($B14,'Défi-5'!$C$2:$J$200,8,FALSE),"") -> 44 | H14: =IFERROR(VLOOKUP($B14,'Défi-6'!$C$2:$J$200,8,FALSE),"") -> 46 | I14: =IFERROR(VLOOKUP($B14,'Défi-7'!$C$2:$J$200,8,FALSE),"") -> 39 | J14: 290 | L14: OK | M14: OK | N14: OK | O14: OK | P14: OK | Q14: OK | R14: KO | S14: OK | T14: KO | V14: ='Classement auteurs'!$B14 -> 130987024101 | W14: =IF('Classement auteurs'!C14="","",'Classement auteurs'!C14) -> 40 | X14: =IF('Classement auteurs'!D14="","",'Classement auteurs'!D14) -> 39 | Y14: =IF('Classement auteurs'!E14="","",'Classement auteurs'!E14) -> 36 | Z14: =IF('Classement auteurs'!F14="","",'Classement auteurs'!F14) -> 46 | AA14: =IF('Classement auteurs'!G14="","",'Classement auteurs'!G14) -> 44 | AB14: =IF('Classement auteurs'!H14="","",'Classement auteurs'!H14) -> 36 | AC14: =IF('Classement auteurs'!I14="","",'Classement auteurs'!I14) -> 39 | AD14: =IF('Classement auteurs'!J14="","",'Classement auteurs'!J14) -> 280
B15: 131376018301 | C15: =IFERROR(VLOOKUP($B15,'Défi-1'!$C$2:$J$200,8,FALSE),"") -> 31 | D15: =IFERROR(VLOOKUP($B15,'Défi-2'!$C$2:$J$200,8,FALSE),"") -> 34 | E15: =IFERROR(VLOOKUP($B15,'Défi-3'!$C$2:$J$200,8,FALSE),"") -> 57 | F15: =IFERROR(VLOOKUP($B15,'Défi-4'!$C$2:$J$200,8,FALSE),"") -> 41 | G15: =IFERROR(VLOOKUP($B15,'Défi-5'!$C$2:$J$200,8,FALSE),"") -> 44 | H15: =IFERROR(VLOOKUP($B15,'Défi-6'!$C$2:$J$200,8,FALSE),"") -> 57 | I15: =IFERROR(VLOOKUP($B15,'Défi-7'!$C$2:$J$200,8,FALSE),"") -> 42 | J15: 306 | L15: OK | M15: OK | N15: OK | O15: OK | P15: OK | Q15: OK | R15: KO | S15: OK | T15: KO | V15: ='Classement auteurs'!$B15 -> 131376018301 | W15: =IF('Classement auteurs'!C15="","",'Classement auteurs'!C15) -> 31 | X15: =IF('Classement auteurs'!D15="","",'Classement auteurs'!D15) -> 34 | Y15: =IF('Classement auteurs'!E15="","",'Classement auteurs'!E15) -> 57 | Z15: =IF('Classement auteurs'!F15="","",'Classement auteurs'!F15) -> 41 | AA15: =IF('Classement auteurs'!G15="","",'Classement auteurs'!G15) -> 44 | AB15: =IF('Classement auteurs'!H15="","",'Classement auteurs'!H15) -> 31 | AC15: =IF('Classement auteurs'!I15="","",'Classement auteurs'!I15) -> 42 | AD15: =IF('Classement auteurs'!J15="","",'Classement auteurs'!J15) -> 280
B16: 130987019701 | C16: =IFERROR(VLOOKUP($B16,'Défi-1'!$C$2:$J$200,8,FALSE),"") -> 51 | D16: =IFERROR(VLOOKUP($B16,'Défi-2'!$C$2:$J$200,8,FALSE),"") -> 40 | E16: =IFERROR(VLOOKUP($B16,'Défi-3'!$C$2:$J$200,8,FALSE),"") -> 40 | F16: =IFERROR(VLOOKUP($B16,'Défi-4'!$C$2:$J$200,8,FALSE),"") -> 39 | G16: =IFERROR(VLOOKUP($B16,'Défi-5'!$C$2:$J$200,8,FALSE),"") -> 37 | H16: =IFERROR(VLOOKUP($B16,'Défi-6'!$C$2:$J$200,8,FALSE),"") -> 51 | I16: =IFERROR(VLOOKUP($B16,'Défi-7'!$C$2:$J$200,8,FALSE),"") -> 33 | J16: 291 | L16: OK | M16: OK | N16: OK | O16: OK | P16: OK | Q16: OK | R16: KO | S16: OK | T16: KO | V16: ='Classement auteurs'!$B16 -> 130987019701 | W16: =IF('Classement auteurs'!C16="","",'Classement auteurs'!C16) -> 51 | X16: =IF('Classement auteurs'!D16="","",'Classement auteurs'!D16) -> 40 | Y16: =IF('Classement auteurs'!E16="","",'Classement auteurs'!E16) -> 40 | Z16: =IF('Classement auteurs'!F16="","",'Classement auteurs'!F16) -> 39 | AA16: =IF('Classement auteurs'!G16="","",'Classement auteurs'!G16) -> 37 | AB16: =IF('Classement auteurs'!H16="","",'Classement auteurs'!H16) -> 37 | AC16: =IF('Classement auteurs'!I16="","",'Classement auteurs'!I16) -> 33 | AD16: =IF('Classement auteurs'!J16="","",'Classement auteurs'!J16) -> 277
B17: 131619004501 | C17: =IFERROR(VLOOKUP($B17,'Défi-1'!$C$2:$J$200,8,FALSE),"") -> 51 | D17: =IFERROR(VLOOKUP($B17,'Défi-2'!$C$2:$J$200,8,FALSE),"") -> 48 | E17: =IFERROR(VLOOKUP($B17,'Défi-3'!$C$2:$J$200,8,FALSE),"") -> 48 | F17: =IFERROR(VLOOKUP($B17,'Défi-4'!$C$2:$J$200,8,FALSE),"") -> 46 | G17: =IFERROR(VLOOKUP($B17,'Défi-5'!$C$2:$J$200,8,FALSE),"") -> 37 | H17: =IFERROR(VLOOKUP($B17,'Défi-6'!$C$2:$J$200,8,FALSE),"") ->  | I17: =IFERROR(VLOOKUP($B17,'Défi-7'!$C$2:$J$200,8,FALSE),"") -> 47 | J17: 277 | L17: OK | M17: OK | N17: OK | O17: OK | P17: OK | Q17: OK | R17: OK | S17: OK | T17: OK | V17: ='Classement auteurs'!$B17 -> 131619004501 | W17: =IF('Classement auteurs'!C17="","",'Classement auteurs'!C17) -> 51 | X17: =IF('Classement auteurs'!D17="","",'Classement auteurs'!D17) -> 48 | Y17: =IF('Classement auteurs'!E17="","",'Classement auteurs'!E17) -> 48 | Z17: =IF('Classement auteurs'!F17="","",'Classement auteurs'!F17) -> 46 | AA17: =IF('Classement auteurs'!G17="","",'Classement auteurs'!G17) -> 37 | AB17: =IF('Classement auteurs'!H17="","",'Classement auteurs'!H17) ->  | AC17: =IF('Classement auteurs'!I17="","",'Classement auteurs'!I17) -> 47 | AD17: =IF('Classement auteurs'!J17="","",'Classement auteurs'!J17) -> 277
B18: 131823004901 | C18: =IFERROR(VLOOKUP($B18,'Défi-1'!$C$2:$J$200,8,FALSE),"") -> 44 | D18: =IFERROR(VLOOKUP($B18,'Défi-2'!$C$2:$J$200,8,FALSE),"") -> 25 | E18: =IFERROR(VLOOKUP($B18,'Défi-3'!$C$2:$J$200,8,FALSE),"") -> 43 | F18: =IFERROR(VLOOKUP($B18,'Défi-4'!$C$2:$J$200,8,FALSE),"") -> 39 | G18: =IFERROR(VLOOKUP($B18,'Défi-5'!$C$2:$J$200,8,FALSE),"") -> 41 | H18: =IFERROR(VLOOKUP($B18,'Défi-6'!$C$2:$J$200,8,FALSE),"") -> 43 | I18: =IFERROR(VLOOKUP($B18,'Défi-7'!$C$2:$J$200,8,FALSE),"") -> 43 | J18: 278 | L18: OK | M18: OK | N18: OK | O18: OK | P18: OK | Q18: OK | R18: KO | S18: OK | T18: KO | V18: ='Classement auteurs'!$B18 -> 131823004901 | W18: =IF('Classement auteurs'!C18="","",'Classement auteurs'!C18) -> 44 | X18: =IF('Classement auteurs'!D18="","",'Classement auteurs'!D18) -> 25 | Y18: =IF('Classement auteurs'!E18="","",'Classement auteurs'!E18) -> 43 | Z18: =IF('Classement auteurs'!F18="","",'Classement auteurs'!F18) -> 39 | AA18: =IF('Classement auteurs'!G18="","",'Classement auteurs'!G18) -> 41 | AB18: =IF('Classement auteurs'!H18="","",'Classement auteurs'!H18) -> 41 | AC18: =IF('Classement auteurs'!I18="","",'Classement auteurs'!I18) -> 43 | AD18: =IF('Classement auteurs'!J18="","",'Classement auteurs'!J18) -> 276
B19: 130925007701 | C19: =IFERROR(VLOOKUP($B19,'Défi-1'!$C$2:$J$200,8,FALSE),"") -> 46 | D19: =IFERROR(VLOOKUP($B19,'Défi-2'!$C$2:$J$200,8,FALSE),"") -> 50 | E19: =IFERROR(VLOOKUP($B19,'Défi-3'!$C$2:$J$200,8,FALSE),"") -> 48 | F19: =IFERROR(VLOOKUP($B19,'Défi-4'!$C$2:$J$200,8,FALSE),"") -> 44 | G19: =IFERROR(VLOOKUP($B19,'Défi-5'!$C$2:$J$200,8,FALSE),"") -> 37 | H19: =IFERROR(VLOOKUP($B19,'Défi-6'!$C$2:$J$200,8,FALSE),"") -> 50 | I19: =IFERROR(VLOOKUP($B19,'Défi-7'!$C$2:$J$200,8,FALSE),"") ->  | J19: 275 | L19: OK | M19: OK | N19: OK | O19: OK | P19: OK | Q19: OK | R19: OK | S19: OK | T19: OK | V19: ='Classement auteurs'!$B19 -> 130925007701 | W19: =IF('Classement auteurs'!C19="","",'Classement auteurs'!C19) -> 46 | X19: =IF('Classement auteurs'!D19="","",'Classement auteurs'!D19) -> 50 | Y19: =IF('Classement auteurs'!E19="","",'Classement auteurs'!E19) -> 48 | Z19: =IF('Classement auteurs'!F19="","",'Classement auteurs'!F19) -> 44 | AA19: =IF('Classement auteurs'!G19="","",'Classement auteurs'!G19) -> 37 | AB19: =IF('Classement auteurs'!H19="","",'Classement auteurs'!H19) -> 50 | AC19: =IF('Classement auteurs'!I19="","",'Classement auteurs'!I19) ->  | AD19: =IF('Classement auteurs'!J19="","",'Classement auteurs'!J19) -> 275
B20: 131683005101 | C20: =IFERROR(VLOOKUP($B20,'Défi-1'!$C$2:$J$200,8,FALSE),"") -> 36 | D20: =IFERROR(VLOOKUP($B20,'Défi-2'!$C$2:$J$200,8,FALSE),"") -> 33 | E20: =IFERROR(VLOOKUP($B20,'Défi-3'!$C$2:$J$200,8,FALSE),"") -> 41 | F20: =IFERROR(VLOOKUP($B20,'Défi-4'!$C$2:$J$200,8,FALSE),"") -> 44 | G20: =IFERROR(VLOOKUP($B20,'Défi-5'!$C$2:$J$200,8,FALSE),"") -> 49 | H20: =IFERROR(VLOOKUP($B20,'Défi-6'!$C$2:$J$200,8,FALSE),"") -> 44 | I20: =IFERROR(VLOOKUP($B20,'Défi-7'!$C$2:$J$200,8,FALSE),"") -> 38 | J20: 285 | L20: OK | M20: OK | N20: OK | O20: OK | P20: OK | Q20: OK | R20: KO | S20: OK | T20: KO | V20: ='Classement auteurs'!$B20 -> 131683005101 | W20: =IF('Classement auteurs'!C20="","",'Classement auteurs'!C20) -> 36 | X20: =IF('Classement auteurs'!D20="","",'Classement auteurs'!D20) -> 33 | Y20: =IF('Classement auteurs'!E20="","",'Classement auteurs'!E20) -> 41 | Z20: =IF('Classement auteurs'!F20="","",'Classement auteurs'!F20) -> 44 | AA20: =IF('Classement auteurs'!G20="","",'Classement auteurs'!G20) -> 49 | AB20: =IF('Classement auteurs'!H20="","",'Classement auteurs'!H20) -> 33 | AC20: =IF('Classement auteurs'!I20="","",'Classement auteurs'!I20) -> 38 | AD20: =IF('Classement auteurs'!J20="","",'Classement auteurs'!J20) -> 274
B21: 131683008001 | C21: =IFERROR(VLOOKUP($B21,'Défi-1'!$C$2:$J$200,8,FALSE),"") -> 48 | D21: =IFERROR(VLOOKUP($B21,'Défi-2'!$C$2:$J$200,8,FALSE),"") -> 47 | E21: =IFERROR(VLOOKUP($B21,'Défi-3'!$C$2:$J$200,8,FALSE),"") -> 47 | F21: =IFERROR(VLOOKUP($B21,'Défi-4'!$C$2:$J$200,8,FALSE),"") -> 39 | G21: =IFERROR(VLOOKUP($B21,'Défi-5'!$C$2:$J$200,8,FALSE),"") -> 52 | H21: =IFERROR(VLOOKUP($B21,'Défi-6'!$C$2:$J$200,8,FALSE),"") -> 48 | I21: =IFERROR(VLOOKUP($B21,'Défi-7'!$C$2:$J$200,8,FALSE),"") ->  | J21: 281 | L21: OK | M21: OK | N21: OK | O21: OK | P21: OK | Q21: OK | R21: KO | S21: OK | T21: KO | V21: ='Classement auteurs'!$B21 -> 131683008001 | W21: =IF('Classement auteurs'!C21="","",'Classement auteurs'!C21) -> 48 | X21: =IF('Classement auteurs'!D21="","",'Classement auteurs'!D21) -> 47 | Y21: =IF('Classement auteurs'!E21="","",'Classement auteurs'!E21) -> 47 | Z21: =IF('Classement auteurs'!F21="","",'Classement auteurs'!F21) -> 39 | AA21: =IF('Classement auteurs'!G21="","",'Classement auteurs'!G21) -> 52 | AB21: =IF('Classement auteurs'!H21="","",'Classement auteurs'!H21) -> 39 | AC21: =IF('Classement auteurs'!I21="","",'Classement auteurs'!I21) ->  | AD21: =IF('Classement auteurs'!J21="","",'Classement auteurs'!J21) -> 272
B22: 132060001701 | C22: =IFERROR(VLOOKUP($B22,'Défi-1'!$C$2:$J$200,8,FALSE),"") -> 37 | D22: =IFERROR(VLOOKUP($B22,'Défi-2'!$C$2:$J$200,8,FALSE),"") -> 45 | E22: =IFERROR(VLOOKUP($B22,'Défi-3'!$C$2:$J$200,8,FALSE),"") -> 33 | F22: =IFERROR(VLOOKUP($B22,'Défi-4'!$C$2:$J$200,8,FALSE),"") -> 37 | G22: =IFERROR(VLOOKUP($B22,'Défi-5'!$C$2:$J$200,8,FALSE),"") -> 37 | H22: =IFERROR(VLOOKUP($B22,'Défi-6'!$C$2:$J$200,8,FALSE),"") -> 45 | I22: =IFERROR(VLOOKUP($B22,'Défi-7'!$C$2:$J$200,8,FALSE),"") -> 35 | J22: 269 | L22: OK | M22: OK | N22: OK | O22: OK | P22: OK | Q22: OK | R22: OK | S22: OK | T22: OK | V22: ='Classement auteurs'!$B22 -> 132060001701 | W22: =IF('Classement auteurs'!C22="","",'Classement auteurs'!C22) -> 37 | X22: =IF('Classement auteurs'!D22="","",'Classement auteurs'!D22) -> 45 | Y22: =IF('Classement auteurs'!E22="","",'Classement auteurs'!E22) -> 33 | Z22: =IF('Classement auteurs'!F22="","",'Classement auteurs'!F22) -> 37 | AA22: =IF('Classement auteurs'!G22="","",'Classement auteurs'!G22) -> 37 | AB22: =IF('Classement auteurs'!H22="","",'Classement auteurs'!H22) -> 45 | AC22: =IF('Classement auteurs'!I22="","",'Classement auteurs'!I22) -> 35 | AD22: =IF('Classement auteurs'!J22="","",'Classement auteurs'!J22) -> 269
B23: 131353000701 | C23: =IFERROR(VLOOKUP($B23,'Défi-1'!$C$2:$J$200,8,FALSE),"") -> 48 | D23: =IFERROR(VLOOKUP($B23,'Défi-2'!$C$2:$J$200,8,FALSE),"") -> 42 | E23: =IFERROR(VLOOKUP($B23,'Défi-3'!$C$2:$J$200,8,FALSE),"") -> 39 | F23: =IFERROR(VLOOKUP($B23,'Défi-4'!$C$2:$J$200,8,FALSE),"") -> 57 | G23: =IFERROR(VLOOKUP($B23,'Défi-5'!$C$2:$J$200,8,FALSE),"") -> 41 | H23: =IFERROR(VLOOKUP($B23,'Défi-6'!$C$2:$J$200,8,FALSE),"") ->  | I23: =IFERROR(VLOOKUP($B23,'Défi-7'!$C$2:$J$200,8,FALSE),"") -> 41 | J23: 268 | L23: OK | M23: OK | N23: OK | O23: OK | P23: OK | Q23: OK | R23: OK | S23: OK | T23: OK | V23: ='Classement auteurs'!$B23 -> 131353000701 | W23: =IF('Classement auteurs'!C23="","",'Classement auteurs'!C23) -> 48 | X23: =IF('Classement auteurs'!D23="","",'Classement auteurs'!D23) -> 42 | Y23: =IF('Classement auteurs'!E23="","",'Classement auteurs'!E23) -> 39 | Z23: =IF('Classement auteurs'!F23="","",'Classement auteurs'!F23) -> 57 | AA23: =IF('Classement auteurs'!G23="","",'Classement auteurs'!G23) -> 41 | AB23: =IF('Classement auteurs'!H23="","",'Classement auteurs'!H23) ->  | AC23: =IF('Classement auteurs'!I23="","",'Classement auteurs'!I23) -> 41 | AD23: =IF('Classement auteurs'!J23="","",'Classement auteurs'!J23) -> 268
B24: 131376014701 | C24: =IFERROR(VLOOKUP($B24,'Défi-1'!$C$2:$J$200,8,FALSE),"") -> 43 | D24: =IFERROR(VLOOKUP($B24,'Défi-2'!$C$2:$J$200,8,FALSE),"") -> 23 | E24: =IFERROR(VLOOKUP($B24,'Défi-3'!$C$2:$J$200,8,FALSE),"") -> 39 | F24: =IFERROR(VLOOKUP($B24,'Défi-4'!$C$2:$J$200,8,FALSE),"") -> 41 | G24: =IFERROR(VLOOKUP($B24,'Défi-5'!$C$2:$J$200,8,FALSE),"") -> 44 | H24: =IFERROR(VLOOKUP($B24,'Défi-6'!$C$2:$J$200,8,FALSE),"") -> 43 | I24: =IFERROR(VLOOKUP($B24,'Défi-7'!$C$2:$J$200,8,FALSE),"") -> 33 | J24: 266 | L24: OK | M24: OK | N24: OK | O24: OK | P24: OK | Q24: OK | R24: OK | S24: OK | T24: OK | V24: ='Classement auteurs'!$B24 -> 131376014701 | W24: =IF('Classement auteurs'!C24="","",'Classement auteurs'!C24) -> 43 | X24: =IF('Classement auteurs'!D24="","",'Classement auteurs'!D24) -> 23 | Y24: =IF('Classement auteurs'!E24="","",'Classement auteurs'!E24) -> 39 | Z24: =IF('Classement auteurs'!F24="","",'Classement auteurs'!F24) -> 41 | AA24: =IF('Classement auteurs'!G24="","",'Classement auteurs'!G24) -> 44 | AB24: =IF('Classement auteurs'!H24="","",'Classement auteurs'!H24) -> 43 | AC24: =IF('Classement auteurs'!I24="","",'Classement auteurs'!I24) -> 33 | AD24: =IF('Classement auteurs'!J24="","",'Classement auteurs'!J24) -> 266
B25: 131956004501 | C25: =IFERROR(VLOOKUP($B25,'Défi-1'!$C$2:$J$200,8,FALSE),"") -> 38 | D25: =IFERROR(VLOOKUP($B25,'Défi-2'!$C$2:$J$200,8,FALSE),"") -> 38 | E25: =IFERROR(VLOOKUP($B25,'Défi-3'!$C$2:$J$200,8,FALSE),"") -> 35 | F25: =IFERROR(VLOOKUP($B25,'Défi-4'!$C$2:$J$200,8,FALSE),"") -> 37 | G25: =IFERROR(VLOOKUP($B25,'Défi-5'!$C$2:$J$200,8,FALSE),"") -> 39 | H25: =IFERROR(VLOOKUP($B25,'Défi-6'!$C$2:$J$200,8,FALSE),"") -> 38 | I25: =IFERROR(VLOOKUP($B25,'Défi-7'!$C$2:$J$200,8,FALSE),"") -> 42 | J25: 267 | L25: OK | M25: OK | N25: OK | O25: OK | P25: OK | Q25: OK | R25: KO | S25: OK | T25: KO | V25: ='Classement auteurs'!$B25 -> 131956004501 | W25: =IF('Classement auteurs'!C25="","",'Classement auteurs'!C25) -> 38 | X25: =IF('Classement auteurs'!D25="","",'Classement auteurs'!D25) -> 38 | Y25: =IF('Classement auteurs'!E25="","",'Classement auteurs'!E25) -> 35 | Z25: =IF('Classement auteurs'!F25="","",'Classement auteurs'!F25) -> 37 | AA25: =IF('Classement auteurs'!G25="","",'Classement auteurs'!G25) -> 39 | AB25: =IF('Classement auteurs'!H25="","",'Classement auteurs'!H25) -> 37 | AC25: =IF('Classement auteurs'!I25="","",'Classement auteurs'!I25) -> 42 | AD25: =IF('Classement auteurs'!J25="","",'Classement auteurs'!J25) -> 266
B26: 131499005201 | C26: =IFERROR(VLOOKUP($B26,'Défi-1'!$C$2:$J$200,8,FALSE),"") -> 44 | D26: =IFERROR(VLOOKUP($B26,'Défi-2'!$C$2:$J$200,8,FALSE),"") -> 31 | E26: =IFERROR(VLOOKUP($B26,'Défi-3'!$C$2:$J$200,8,FALSE),"") -> 49 | F26: =IFERROR(VLOOKUP($B26,'Défi-4'!$C$2:$J$200,8,FALSE),"") -> 37 | G26: =IFERROR(VLOOKUP($B26,'Défi-5'!$C$2:$J$200,8,FALSE),"") -> 39 | H26: =IFERROR(VLOOKUP($B26,'Défi-6'!$C$2:$J$200,8,FALSE),"") -> 31 | I26: =IFERROR(VLOOKUP($B26,'Défi-7'!$C$2:$J$200,8,FALSE),"") -> 34 | J26: 265 | L26: OK | M26: OK | N26: OK | O26: OK | P26: OK | Q26: OK | R26: OK | S26: OK | T26: OK | V26: ='Classement auteurs'!$B26 -> 131499005201 | W26: =IF('Classement auteurs'!C26="","",'Classement auteurs'!C26) -> 44 | X26: =IF('Classement auteurs'!D26="","",'Classement auteurs'!D26) -> 31 | Y26: =IF('Classement auteurs'!E26="","",'Classement auteurs'!E26) -> 49 | Z26: =IF('Classement auteurs'!F26="","",'Classement auteurs'!F26) -> 37 | AA26: =IF('Classement auteurs'!G26="","",'Classement auteurs'!G26) -> 39 | AB26: =IF('Classement auteurs'!H26="","",'Classement auteurs'!H26) -> 31 | AC26: =IF('Classement auteurs'!I26="","",'Classement auteurs'!I26) -> 34 | AD26: =IF('Classement auteurs'!J26="","",'Classement auteurs'!J26) -> 265
B27: 131862002201 | C27: =IFERROR(VLOOKUP($B27,'Défi-1'!$C$2:$J$200,8,FALSE),"") -> 41 | D27: =IFERROR(VLOOKUP($B27,'Défi-2'!$C$2:$J$200,8,FALSE),"") -> 35 | E27: =IFERROR(VLOOKUP($B27,'Défi-3'!$C$2:$J$200,8,FALSE),"") -> 44 | F27: =IFERROR(VLOOKUP($B27,'Défi-4'!$C$2:$J$200,8,FALSE),"") -> 27 | G27: =IFERROR(VLOOKUP($B27,'Défi-5'!$C$2:$J$200,8,FALSE),"") -> 43 | H27: =IFERROR(VLOOKUP($B27,'Défi-6'!$C$2:$J$200,8,FALSE),"") -> 44 | I27: =IFERROR(VLOOKUP($B27,'Défi-7'!$C$2:$J$200,8,FALSE),"") -> 37 | J27: 271 | L27: OK | M27: OK | N27: OK | O27: OK | P27: OK | Q27: OK | R27: KO | S27: OK | T27: KO | V27: ='Classement auteurs'!$B27 -> 131862002201 | W27: =IF('Classement auteurs'!C27="","",'Classement auteurs'!C27) -> 41 | X27: =IF('Classement auteurs'!D27="","",'Classement auteurs'!D27) -> 35 | Y27: =IF('Classement auteurs'!E27="","",'Classement auteurs'!E27) -> 44 | Z27: =IF('Classement auteurs'!F27="","",'Classement auteurs'!F27) -> 27 | AA27: =IF('Classement auteurs'!G27="","",'Classement auteurs'!G27) -> 43 | AB27: =IF('Classement auteurs'!H27="","",'Classement auteurs'!H27) -> 35 | AC27: =IF('Classement auteurs'!I27="","",'Classement auteurs'!I27) -> 37 | AD27: =IF('Classement auteurs'!J27="","",'Classement auteurs'!J27) -> 262
B28: 130878014101 | C28: =IFERROR(VLOOKUP($B28,'Défi-1'!$C$2:$J$200,8,FALSE),"") -> 36 | D28: =IFERROR(VLOOKUP($B28,'Défi-2'!$C$2:$J$200,8,FALSE),"") -> 37 | E28: =IFERROR(VLOOKUP($B28,'Défi-3'!$C$2:$J$200,8,FALSE),"") -> 44 | F28: =IFERROR(VLOOKUP($B28,'Défi-4'!$C$2:$J$200,8,FALSE),"") -> 18 | G28: =IFERROR(VLOOKUP($B28,'Défi-5'!$C$2:$J$200,8,FALSE),"") -> 56 | H28: =IFERROR(VLOOKUP($B28,'Défi-6'!$C$2:$J$200,8,FALSE),"") -> 44 | I28: =IFERROR(VLOOKUP($B28,'Défi-7'!$C$2:$J$200,8,FALSE),"") -> 33 | J28: 268 | L28: OK | M28: OK | N28: OK | O28: OK | P28: OK | Q28: OK | R28: KO | S28: OK | T28: KO | V28: ='Classement auteurs'!$B28 -> 130878014101 | W28: =IF('Classement auteurs'!C28="","",'Classement auteurs'!C28) -> 36 | X28: =IF('Classement auteurs'!D28="","",'Classement auteurs'!D28) -> 37 | Y28: =IF('Classement auteurs'!E28="","",'Classement auteurs'!E28) -> 44 | Z28: =IF('Classement auteurs'!F28="","",'Classement auteurs'!F28) -> 18 | AA28: =IF('Classement auteurs'!G28="","",'Classement auteurs'!G28) -> 56 | AB28: =IF('Classement auteurs'!H28="","",'Classement auteurs'!H28) -> 37 | AC28: =IF('Classement auteurs'!I28="","",'Classement auteurs'!I28) -> 33 | AD28: =IF('Classement auteurs'!J28="","",'Classement auteurs'!J28) -> 261
B29: 131956004601 | C29: =IFERROR(VLOOKUP($B29,'Défi-1'!$C$2:$J$200,8,FALSE),"") ->  | D29: =IFERROR(VLOOKUP($B29,'Défi-2'!$C$2:$J$200,8,FALSE),"") -> 47 | E29: =IFERROR(VLOOKUP($B29,'Défi-3'!$C$2:$J$200,8,FALSE),"") -> 50 | F29: =IFERROR(VLOOKUP($B29,'Défi-4'!$C$2:$J$200,8,FALSE),"") -> 38 | G29: =IFERROR(VLOOKUP($B29,'Défi-5'!$C$2:$J$200,8,FALSE),"") -> 27 | H29: =IFERROR(VLOOKUP($B29,'Défi-6'!$C$2:$J$200,8,FALSE),"") -> 47 | I29: =IFERROR(VLOOKUP($B29,'Défi-7'!$C$2:$J$200,8,FALSE),"") -> 52 | J29: 261 | L29: OK | M29: OK | N29: OK | O29: OK | P29: OK | Q29: OK | R29: OK | S29: OK | T29: OK | V29: ='Classement auteurs'!$B29 -> 131956004601 | W29: =IF('Classement auteurs'!C29="","",'Classement auteurs'!C29) ->  | X29: =IF('Classement auteurs'!D29="","",'Classement auteurs'!D29) -> 47 | Y29: =IF('Classement auteurs'!E29="","",'Classement auteurs'!E29) -> 50 | Z29: =IF('Classement auteurs'!F29="","",'Classement auteurs'!F29) -> 38 | AA29: =IF('Classement auteurs'!G29="","",'Classement auteurs'!G29) -> 27 | AB29: =IF('Classement auteurs'!H29="","",'Classement auteurs'!H29) -> 47 | AC29: =IF('Classement auteurs'!I29="","",'Classement auteurs'!I29) -> 52 | AD29: =IF('Classement auteurs'!J29="","",'Classement auteurs'!J29) -> 261
B30: 130000020401 | C30: =IFERROR(VLOOKUP($B30,'Défi-1'!$C$2:$J$200,8,FALSE),"") -> 31 | D30: =IFERROR(VLOOKUP($B30,'Défi-2'!$C$2:$J$200,8,FALSE),"") -> 37 | E30: =IFERROR(VLOOKUP($B30,'Défi-3'!$C$2:$J$200,8,FALSE),"") -> 35 | F30: =IFERROR(VLOOKUP($B30,'Défi-4'!$C$2:$J$200,8,FALSE),"") -> 35 | G30: =IFERROR(VLOOKUP($B30,'Défi-5'!$C$2:$J$200,8,FALSE),"") -> 43 | H30: =IFERROR(VLOOKUP($B30,'Défi-6'!$C$2:$J$200,8,FALSE),"") -> 37 | I30: =IFERROR(VLOOKUP($B30,'Défi-7'!$C$2:$J$200,8,FALSE),"") -> 41 | J30: 259 | L30: OK | M30: OK | N30: OK | O30: OK | P30: OK | Q30: OK | R30: KO | S30: OK | T30: KO | V30: ='Classement auteurs'!$B30 -> 130000020401 | W30: =IF('Classement auteurs'!C30="","",'Classement auteurs'!C30) -> 31 | X30: =IF('Classement auteurs'!D30="","",'Classement auteurs'!D30) -> 37 | Y30: =IF('Classement auteurs'!E30="","",'Classement auteurs'!E30) -> 35 | Z30: =IF('Classement auteurs'!F30="","",'Classement auteurs'!F30) -> 35 | AA30: =IF('Classement auteurs'!G30="","",'Classement auteurs'!G30) -> 43 | AB30: =IF('Classement auteurs'!H30="","",'Classement auteurs'!H30) -> 35 | AC30: =IF('Classement auteurs'!I30="","",'Classement auteurs'!I30) -> 41 | AD30: =IF('Classement auteurs'!J30="","",'Classement auteurs'!J30) -> 257
B31: 130987013801 | C31: =IFERROR(VLOOKUP($B31,'Défi-1'!$C$2:$J$200,8,FALSE),"") -> 38 | D31: =IFERROR(VLOOKUP($B31,'Défi-2'!$C$2:$J$200,8,FALSE),"") ->  | E31: =IFERROR(VLOOKUP($B31,'Défi-3'!$C$2:$J$200,8,FALSE),"") -> 45 | F31: =IFERROR(VLOOKUP($B31,'Défi-4'!$C$2:$J$200,8,FALSE),"") -> 42 | G31: =IFERROR(VLOOKUP($B31,'Défi-5'!$C$2:$J$200,8,FALSE),"") -> 42 | H31: =IFERROR(VLOOKUP($B31,'Défi-6'!$C$2:$J$200,8,FALSE),"") -> 42 | I31: =IFERROR(VLOOKUP($B31,'Défi-7'!$C$2:$J$200,8,FALSE),"") -> 51 | J31: 260 | L31: OK | M31: OK | N31: OK | O31: OK | P31: OK | Q31: OK | R31: KO | S31: OK | T31: KO | V31: ='Classement auteurs'!$B31 -> 130987013801 | W31: =IF('Classement auteurs'!C31="","",'Classement auteurs'!C31) -> 38 | X31: =IF('Classement auteurs'!D31="","",'Classement auteurs'!D31) ->  | Y31: =IF('Classement auteurs'!E31="","",'Classement auteurs'!E31) -> 45 | Z31: =IF('Classement auteurs'!F31="","",'Classement auteurs'!F31) -> 42 | AA31: =IF('Classement auteurs'!G31="","",'Classement auteurs'!G31) -> 42 | AB31: =IF('Classement auteurs'!H31="","",'Classement auteurs'!H31) -> 38 | AC31: =IF('Classement auteurs'!I31="","",'Classement auteurs'!I31) -> 51 | AD31: =IF('Classement auteurs'!J31="","",'Classement auteurs'!J31) -> 256
B32: 130987019601 | C32: =IFERROR(VLOOKUP($B32,'Défi-1'!$C$2:$J$200,8,FALSE),"") -> 39 | D32: =IFERROR(VLOOKUP($B32,'Défi-2'!$C$2:$J$200,8,FALSE),"") -> 37 | E32: =IFERROR(VLOOKUP($B32,'Défi-3'!$C$2:$J$200,8,FALSE),"") -> 36 | F32: =IFERROR(VLOOKUP($B32,'Défi-4'!$C$2:$J$200,8,FALSE),"") -> 44 | G32: =IFERROR(VLOOKUP($B32,'Défi-5'!$C$2:$J$200,8,FALSE),"") -> 34 | H32: =IFERROR(VLOOKUP($B32,'Défi-6'!$C$2:$J$200,8,FALSE),"") -> 39 | I32: =IFERROR(VLOOKUP($B32,'Défi-7'!$C$2:$J$200,8,FALSE),"") -> 29 | J32: 258 | L32: OK | M32: OK | N32: OK | O32: OK | P32: OK | Q32: OK | R32: KO | S32: OK | T32: KO | V32: ='Classement auteurs'!$B32 -> 130987019601 | W32: =IF('Classement auteurs'!C32="","",'Classement auteurs'!C32) -> 39 | X32: =IF('Classement auteurs'!D32="","",'Classement auteurs'!D32) -> 37 | Y32: =IF('Classement auteurs'!E32="","",'Classement auteurs'!E32) -> 36 | Z32: =IF('Classement auteurs'!F32="","",'Classement auteurs'!F32) -> 44 | AA32: =IF('Classement auteurs'!G32="","",'Classement auteurs'!G32) -> 34 | AB32: =IF('Classement auteurs'!H32="","",'Classement auteurs'!H32) -> 34 | AC32: =IF('Classement auteurs'!I32="","",'Classement auteurs'!I32) -> 29 | AD32: =IF('Classement auteurs'!J32="","",'Classement auteurs'!J32) -> 253
B33: 131110001001 | C33: =IFERROR(VLOOKUP($B33,'Défi-1'!$C$2:$J$200,8,FALSE),"") -> 41 | D33: =IFERROR(VLOOKUP($B33,'Défi-2'!$C$2:$J$200,8,FALSE),"") -> 41 | E33: =IFERROR(VLOOKUP($B33,'Défi-3'!$C$2:$J$200,8,FALSE),"") -> 40 | F33: =IFERROR(VLOOKUP($B33,'Défi-4'!$C$2:$J$200,8,FALSE),"") -> 47 | G33: =IFERROR(VLOOKUP($B33,'Défi-5'!$C$2:$J$200,8,FALSE),"") -> 35 | H33: =IFERROR(VLOOKUP($B33,'Défi-6'!$C$2:$J$200,8,FALSE),"") -> 47 | I33: =IFERROR(VLOOKUP($B33,'Défi-7'!$C$2:$J$200,8,FALSE),"") ->  | J33: 251 | L33: OK | M33: OK | N33: OK | O33: OK | P33: OK | Q33: OK | R33: OK | S33: OK | T33: OK | V33: ='Classement auteurs'!$B33 -> 131110001001 | W33: =IF('Classement auteurs'!C33="","",'Classement auteurs'!C33) -> 41 | X33: =IF('Classement auteurs'!D33="","",'Classement auteurs'!D33) -> 41 | Y33: =IF('Classement auteurs'!E33="","",'Classement auteurs'!E33) -> 40 | Z33: =IF('Classement auteurs'!F33="","",'Classement auteurs'!F33) -> 47 | AA33: =IF('Classement auteurs'!G33="","",'Classement auteurs'!G33) -> 35 | AB33: =IF('Classement auteurs'!H33="","",'Classement auteurs'!H33) -> 47 | AC33: =IF('Classement auteurs'!I33="","",'Classement auteurs'!I33) ->  | AD33: =IF('Classement auteurs'!J33="","",'Classement auteurs'!J33) -> 251
B34: 131499008701 | C34: =IFERROR(VLOOKUP($B34,'Défi-1'!$C$2:$J$200,8,FALSE),"") -> 44 | D34: =IFERROR(VLOOKUP($B34,'Défi-2'!$C$2:$J$200,8,FALSE),"") -> 29 | E34: =IFERROR(VLOOKUP($B34,'Défi-3'!$C$2:$J$200,8,FALSE),"") -> 39 | F34: =IFERROR(VLOOKUP($B34,'Défi-4'!$C$2:$J$200,8,FALSE),"") -> 33 | G34: =IFERROR(VLOOKUP($B34,'Défi-5'!$C$2:$J$200,8,FALSE),"") -> 34 | H34: =IFERROR(VLOOKUP($B34,'Défi-6'!$C$2:$J$200,8,FALSE),"") -> 44 | I34: =IFERROR(VLOOKUP($B34,'Défi-7'!$C$2:$J$200,8,FALSE),"") -> 34 | J34: 257 | L34: OK | M34: OK | N34: OK | O34: OK | P34: OK | Q34: OK | R34: KO | S34: OK | T34: KO | V34: ='Classement auteurs'!$B34 -> 131499008701 | W34: =IF('Classement auteurs'!C34="","",'Classement auteurs'!C34) -> 44 | X34: =IF('Classement auteurs'!D34="","",'Classement auteurs'!D34) -> 29 | Y34: =IF('Classement auteurs'!E34="","",'Classement auteurs'!E34) -> 39 | Z34: =IF('Classement auteurs'!F34="","",'Classement auteurs'!F34) -> 33 | AA34: =IF('Classement auteurs'!G34="","",'Classement auteurs'!G34) -> 34 | AB34: =IF('Classement auteurs'!H34="","",'Classement auteurs'!H34) -> 33 | AC34: =IF('Classement auteurs'!I34="","",'Classement auteurs'!I34) -> 34 | AD34: =IF('Classement auteurs'!J34="","",'Classement auteurs'!J34) -> 246
B35: 131845001401 | C35: =IFERROR(VLOOKUP($B35,'Défi-1'!$C$2:$J$200,8,FALSE),"") -> 41 | D35: =IFERROR(VLOOKUP($B35,'Défi-2'!$C$2:$J$200,8,FALSE),"") -> 34 | E35: =IFERROR(VLOOKUP($B35,'Défi-3'!$C$2:$J$200,8,FALSE),"") -> 48 | F35: =IFERROR(VLOOKUP($B35,'Défi-4'!$C$2:$J$200,8,FALSE),"") -> 39 | G35: =IFERROR(VLOOKUP($B35,'Défi-5'!$C$2:$J$200,8,FALSE),"") -> 43 | H35: =IFERROR(VLOOKUP($B35,'Défi-6'!$C$2:$J$200,8,FALSE),"") ->  | I35: =IFERROR(VLOOKUP($B35,'Défi-7'!$C$2:$J$200,8,FALSE),"") -> 37 | J35: 242 | L35: OK | M35: OK | N35: OK | O35: OK | P35: OK | Q35: OK | R35: OK | S35: OK | T35: OK | V35: ='Classement auteurs'!$B35 -> 131845001401 | W35: =IF('Classement auteurs'!C35="","",'Classement auteurs'!C35) -> 41 | X35: =IF('Classement auteurs'!D35="","",'Classement auteurs'!D35) -> 34 | Y35: =IF('Classement auteurs'!E35="","",'Classement auteurs'!E35) -> 48 | Z35: =IF('Classement auteurs'!F35="","",'Classement auteurs'!F35) -> 39 | AA35: =IF('Classement auteurs'!G35="","",'Classement auteurs'!G35) -> 43 | AB35: =IF('Classement auteurs'!H35="","",'Classement auteurs'!H35) ->  | AC35: =IF('Classement auteurs'!I35="","",'Classement auteurs'!I35) -> 37 | AD35: =IF('Classement auteurs'!J35="","",'Classement auteurs'!J35) -> 242
B36: 130000019901 | C36: =IFERROR(VLOOKUP($B36,'Défi-1'!$C$2:$J$200,8,FALSE),"") -> 32 | D36: =IFERROR(VLOOKUP($B36,'Défi-2'!$C$2:$J$200,8,FALSE),"") -> 41 | E36: =IFERROR(VLOOKUP($B36,'Défi-3'!$C$2:$J$200,8,FALSE),"") -> 44 | F36: =IFERROR(VLOOKUP($B36,'Défi-4'!$C$2:$J$200,8,FALSE),"") -> 24 | G36: =IFERROR(VLOOKUP($B36,'Défi-5'!$C$2:$J$200,8,FALSE),"") -> 37 | H36: =IFERROR(VLOOKUP($B36,'Défi-6'!$C$2:$J$200,8,FALSE),"") -> 41 | I36: =IFERROR(VLOOKUP($B36,'Défi-7'!$C$2:$J$200,8,FALSE),"") -> 37 | J36: 256 | L36: OK | M36: OK | N36: OK | O36: OK | P36: OK | Q36: OK | R36: KO | S36: OK | T36: KO | V36: ='Classement auteurs'!$B36 -> 130000019901 | W36: =IF('Classement auteurs'!C36="","",'Classement auteurs'!C36) -> 32 | X36: =IF('Classement auteurs'!D36="","",'Classement auteurs'!D36) -> 41 | Y36: =IF('Classement auteurs'!E36="","",'Classement auteurs'!E36) -> 44 | Z36: =IF('Classement auteurs'!F36="","",'Classement auteurs'!F36) -> 24 | AA36: =IF('Classement auteurs'!G36="","",'Classement auteurs'!G36) -> 37 | AB36: =IF('Classement auteurs'!H36="","",'Classement auteurs'!H36) -> 24 | AC36: =IF('Classement auteurs'!I36="","",'Classement auteurs'!I36) -> 37 | AD36: =IF('Classement auteurs'!J36="","",'Classement auteurs'!J36) -> 239
B37: 130527002501 | C37: =IFERROR(VLOOKUP($B37,'Défi-1'!$C$2:$J$200,8,FALSE),"") -> 41 | D37: =IFERROR(VLOOKUP($B37,'Défi-2'!$C$2:$J$200,8,FALSE),"") -> 37 | E37: =IFERROR(VLOOKUP($B37,'Défi-3'!$C$2:$J$200,8,FALSE),"") -> 38 | F37: =IFERROR(VLOOKUP($B37,'Défi-4'!$C$2:$J$200,8,FALSE),"") -> 30 | G37: =IFERROR(VLOOKUP($B37,'Défi-5'!$C$2:$J$200,8,FALSE),"") -> 32 | H37: =IFERROR(VLOOKUP($B37,'Défi-6'!$C$2:$J$200,8,FALSE),"") -> 32 | I37: =IFERROR(VLOOKUP($B37,'Défi-7'!$C$2:$J$200,8,FALSE),"") -> 29 | J37: 239 | L37: OK | M37: OK | N37: OK | O37: OK | P37: OK | Q37: OK | R37: OK | S37: OK | T37: OK | V37: ='Classement auteurs'!$B37 -> 130527002501 | W37: =IF('Classement auteurs'!C37="","",'Classement auteurs'!C37) -> 41 | X37: =IF('Classement auteurs'!D37="","",'Classement auteurs'!D37) -> 37 | Y37: =IF('Classement auteurs'!E37="","",'Classement auteurs'!E37) -> 38 | Z37: =IF('Classement auteurs'!F37="","",'Classement auteurs'!F37) -> 30 | AA37: =IF('Classement auteurs'!G37="","",'Classement auteurs'!G37) -> 32 | AB37: =IF('Classement auteurs'!H37="","",'Classement auteurs'!H37) -> 32 | AC37: =IF('Classement auteurs'!I37="","",'Classement auteurs'!I37) -> 29 | AD37: =IF('Classement auteurs'!J37="","",'Classement auteurs'!J37) -> 239
B38: 131956002601 | C38: =IFERROR(VLOOKUP($B38,'Défi-1'!$C$2:$J$200,8,FALSE),"") ->  | D38: =IFERROR(VLOOKUP($B38,'Défi-2'!$C$2:$J$200,8,FALSE),"") -> 44 | E38: =IFERROR(VLOOKUP($B38,'Défi-3'!$C$2:$J$200,8,FALSE),"") -> 44 | F38: =IFERROR(VLOOKUP($B38,'Défi-4'!$C$2:$J$200,8,FALSE),"") -> 34 | G38: =IFERROR(VLOOKUP($B38,'Défi-5'!$C$2:$J$200,8,FALSE),"") -> 30 | H38: =IFERROR(VLOOKUP($B38,'Défi-6'!$C$2:$J$200,8,FALSE),"") -> 44 | I38: =IFERROR(VLOOKUP($B38,'Défi-7'!$C$2:$J$200,8,FALSE),"") -> 43 | J38: 239 | L38: OK | M38: OK | N38: OK | O38: OK | P38: OK | Q38: OK | R38: OK | S38: OK | T38: OK | V38: ='Classement auteurs'!$B38 -> 131956002601 | W38: =IF('Classement auteurs'!C38="","",'Classement auteurs'!C38) ->  | X38: =IF('Classement auteurs'!D38="","",'Classement auteurs'!D38) -> 44 | Y38: =IF('Classement auteurs'!E38="","",'Classement auteurs'!E38) -> 44 | Z38: =IF('Classement auteurs'!F38="","",'Classement auteurs'!F38) -> 34 | AA38: =IF('Classement auteurs'!G38="","",'Classement auteurs'!G38) -> 30 | AB38: =IF('Classement auteurs'!H38="","",'Classement auteurs'!H38) -> 44 | AC38: =IF('Classement auteurs'!I38="","",'Classement auteurs'!I38) -> 43 | AD38: =IF('Classement auteurs'!J38="","",'Classement auteurs'!J38) -> 239
B39: 131353004301 | C39: =IFERROR(VLOOKUP($B39,'Défi-1'!$C$2:$J$200,8,FALSE),"") -> 18 | D39: =IFERROR(VLOOKUP($B39,'Défi-2'!$C$2:$J$200,8,FALSE),"") -> 28 | E39: =IFERROR(VLOOKUP($B39,'Défi-3'!$C$2:$J$200,8,FALSE),"") -> 35 | F39: =IFERROR(VLOOKUP($B39,'Défi-4'!$C$2:$J$200,8,FALSE),"") -> 47 | G39: =IFERROR(VLOOKUP($B39,'Défi-5'!$C$2:$J$200,8,FALSE),"") -> 24 | H39: =IFERROR(VLOOKUP($B39,'Défi-6'!$C$2:$J$200,8,FALSE),"") -> 47 | I39: =IFERROR(VLOOKUP($B39,'Défi-7'!$C$2:$J$200,8,FALSE),"") -> 38 | J39: 237 | L39: OK | M39: OK | N39: OK | O39: OK | P39: OK | Q39: OK | R39: OK | S39: OK | T39: OK | V39: ='Classement auteurs'!$B39 -> 131353004301 | W39: =IF('Classement auteurs'!C39="","",'Classement auteurs'!C39) -> 18 | X39: =IF('Classement auteurs'!D39="","",'Classement auteurs'!D39) -> 28 | Y39: =IF('Classement auteurs'!E39="","",'Classement auteurs'!E39) -> 35 | Z39: =IF('Classement auteurs'!F39="","",'Classement auteurs'!F39) -> 47 | AA39: =IF('Classement auteurs'!G39="","",'Classement auteurs'!G39) -> 24 | AB39: =IF('Classement auteurs'!H39="","",'Classement auteurs'!H39) -> 47 | AC39: =IF('Classement auteurs'!I39="","",'Classement auteurs'!I39) -> 38 | AD39: =IF('Classement auteurs'!J39="","",'Classement auteurs'!J39) -> 237
